Workbook

Sheet Instructie
C4: Handleiding model
C6: Inleiding
C7: Het doel van het model is om warmtebedrijven en gebouweigenaren aan te zetten om andere manieren van aansluiten te overwegen en stof voor gesprek te geven. Het model streeft dus niet om een absolute weergave van de werkelijkheid te geven. Als gevolg van eventuele onjuistheden en/of het gebruik van het instrumenten kan geen aansprakelijkheid worden aanvaard. Het model is gesplitst in een versie voor snel en indicatief gebruik en een versie voor een expert die ook zelf aan de slag wil met de onderleggers van het model. In de versie voor snel en indicatief gebruik heeft de gebruiker toegang tot het tabblad 'Aansluitmogelijkheden'. In de expertversie krijgt de gebruiker met een door RVO te verstrekken wachtwoord toegang tot alle tabbladen.
C8: Het instrument ‘Overzicht aansluitmogelijkheden’ en het bijbehorende rapport zijn tot stand gekomen in het kader van een opdracht van de RVO en in samenwerking met een begeleidingscommissie voor ondersteuning en inbreng. Het rapport is op te vragen via de Helpdesk
C10: Disclaimer
C11: Het ‘Overzicht aansluitmogelijkheden’ is ontwikkeld door Atriensis projecten in opdracht van het Expertisecentrum Warmte (ECW). Het is een methode die Atriensis projecten heeft ontwikkeld om mogelijke alternatieven van aansluiten op een warmtenet per woningtype te bepalen op basis van kenmerken van de woning.
C13: Aan het 'Overzicht aansluitmogelijkheden' kunnen geen rechten worden ontleend.
C14: Hoewel dit instrument met grootste zorg is samengesteld, kan Atriensis projecten geen enkele aansprakelijkheid aanvaarden voor schade als gevolg van eventuele onjuistheden en/of gebruik van het instrumenten.
C16: Het model is standaard enkel zichtbaar als basis-versie. Via de Helpdesk kan het wachtwoord van het model worden opgevraagd. Met dit wachtwoord kunnen achterliggende rekenbladen worden ontgrendeld door bovenaan in het kopje 'controleren' op de knop 'beveiliging blad opheffen' te klikken
C19: Handleiding basis-versie
C20: Het ‘Overzicht aansluitmogelijkheden’ is een model dat de mogelijke alternatieven van aansluiten op een warmtenet bepaald worden op basis van kenmerken van een woning. Op basis van kostenkengetallen uit de praktijk en een kwalitatieve beoordeling worden de verschillende aansluitmogelijkheden met elkaar vergeleken. Het model berekent deze kosten op basis van kengetallen met prijspeil juni 2022.
C22: Door vragen te beantwoorden worden de verschillende aansluitmogelijkheden weergeven. Per aansluitmogelijkheid zijn de indicatieve kosten voor het warmtebedrijf en voor de woningeigenaar opgenomen. Ook is er een kwalitatieve beoordeling weergegeven, waarbij is gekeken naar:
C23: - Praktische haalbaarheid: hierbij wordt onder andere gekeken naar de eigendomssituatie, esthetische eisen van welstand en veiligsheidsrisio's. - Overlast tijdens uitvoering: hierbij wordt onder andere gekeken naar de overlast door graaf- en herstelwerkzaamheden buiten de woning, geluidsoverlast door boringen in de woning en de duur van de werkzaamheden. - Impact woning: Hierbij wordt onder andere gekeken naar de hoeveelheid ruimte die wordt opgeofferd in de woning voor de afleverset, zichtbare leidingen in de woning en de hoeveelheid benodigde aanpassingen in de woning. - Onderhoud: Hierbij wordt onder andere gekeken naar de bereikbaarheid van afleverset en leidingwerk voor en na de afleverset.
C25: Toelichting vragen model
C26: Om te beoordelen welke aansluitingen in een specifieke situatie mogelijk zijn, dienen zes vragen beantwoord te worden:
C27: 1 Kan ik in de lengterichting van het blok onder de onderste woonlaag door
C28: 2 Wat is de dakvorm van de woningen
C29: 3 Is er inpandige ruimte in of nabij de entreehal van de woning voor een afleverset
C30: 4 Wat is de locatie van de combiketel
C31: 5 Is de plattegrond gespiegeld ten opzichte van die van de aangrenzende woning
C32: 6 Is 100% deelname van alle woningen in het blok haalbaar, eventueel door verplichting vanuit 70% instemming van huurders
C34: 1 Kan ik in de lengterichting van het blok onder de onderste woonlaag door
C35: Per basistype -eengezinswoning, portiekwoning en galerijwoning- wordt onderscheid gemaakt naar de beschikbaarheid van een volledige niet tot de woning behorende ruimte onder de onderste woonlaag. Indien er onder de onderste woonlaag ruimte beschikbaar is, kan deze benut worden voor de leidingen van het warmtenet. Bij eengezinswoningen betekent dit dat er onder de gehele begane grond een bereikbare en voldoende hoge kruipruimte aanwezig is die niet wordt opgedeeld door een tussenmuren. Bij portiek- en galerijwoningen betekent dit dat de onderste bouwlaag volledig uit bergingen en/of garageboxen bestaat en niet -al dan niet gedeeltelijk- uit woningen of andere functies zoals ontmoetings-, winkel- of praktijkruimtes.
C37: 2 Wat is de dakvorm van de woning
C38: Voor de basistypes wordt onderscheid gemaakt tussen platte en hellende daken. De vorm van het dak heeft impact op de aansluitmogelijkheden doordat deze het leidingwerk kunnen beperken. Zo kan het bij een hellend dak mogelijk zijn de leidingen van het warmtenet door de kapruimte te installeren en bij een plat dak buiten over het dak.
C40: 3 Is er inpandige ruimte in of nabij de entreehal van de woning voor een afleverset
C41: Voor warmtebedrijven is vanuit hun gebruikelijke werkwijze bij nieuwbouw plaatsing van de afleverset in de meterkast bij de voordeur de norm. Bij bestaande woningen mist die meterkast vaak de ruimte daarvoor. Ook is de ruimte van de gasmeter in die meterkast vaak niet te gebruiken omdat de gasmeter pas verwijderd kan worden nadat de warmteaansluiting gereed is. Voor de hand ligt het dan om te onderzoeken of er nabij die meterkast inpandige ruimte is: de entreehal zelf, een vaste kast in de entreehal, in de portiek nabij de voordeur, een trapkast bij een eengezinswoning of een kast met deur aan de galerij.
C43: 4 Wat is de locatie van de combiketel
C44: Voor gebouweigenaren is juist plaatsing van de afleverset ter plaatse van de huidige locatie vaak de meest wenselijke locatie voor de afleverset vanuit beperking van kosten voor de eigenaar en minimalisering van wijzigingen in de woonhuisinstallatie en daarmee kosten en overlast voor bewoners. Er is al ruimte vanwege het verdwijnen van die combiketel. Daarbij komen allerlei voorzieningen nu al op die plaats uit: de aanvoer- en retourleiding van de ruimteverwarming, de koud- en warm tapwaterleiding, de bedrading van de kamerthermostaat en er is al een elektrische voeding. Vaak bevindt het expansievat zich hier ook al. Deze is nodig bij afleversets met een dubbele scheiding.
C46: Bij eengezinswoningen is onderscheid gemaakt tussen woningen met de combiketel op de begane grond en vanaf eerste verdieping, dus op de eerste verdieping of zolder. Voor portiek- en galerijwoningen is aangenomen dat de combiketel in of nabij de keuken toegepast is.
C48: 5 Is de plattegrond gespiegeld ten opzichte van die van de aangrenzende woning
C49: Voor eengezins- en galerijwoningen wordt onderscheid gemaakt tussen woningen waarvan de plattegrond gespiegeld is ten opzichte de aangrenzende woning en woningen waarvoor dit niet geldt. De plattegronden van portiekwoningen zijn altijd gespiegeld ten opzichte van de aangrenzende woning. Wanneer de plattegrond van de woning gespiegeld is ten opzichte van de aangrenzende woning is het mogelijk om de warmteleidingen buiten te combineren en te splitsen voordat deze naar binnen gaan.
C51: 6 Is 100% deelname van alle woningen in het blok haalbaar, eventueel door verplichting vanuit 70% instemming van huurders.
C52: Als bij de aanleg van een warmtenet niet de eigenaren en bewoners van het volledig blok woningen bij meerderheid van stemmen verplicht gesteld kunnen worden tot deelname aan het aan het warmtenet, beperkt dit de mogelijkheden van aansluiten. Bij onvolledige deelname is het bijvoorbeeld niet mogelijk het leidingwerk dwars door, over of langs het hele blok te laten lopen. Bij gestapelde woningen is in praktisch opzicht 100% deelname altijd vereist. Bij eengezinswoningen beperkt het niet halen van 100% deelname het aantal oplossingen. Daarbij verhoogt het niet bereiken van 100% deelname bij eengezinswoningen de kosten van het warmtebedrijf.
C54: Bij complexen met alleen corporatiewoningen kan de corporatie gebruik maken van de regel dat bij 70% vrijwillige deelname van de huurders per bouwkundige eenheid alle huurders tot deelname verplicht kunnen worden.
C56: Bij een vereniging van eigenaren bij gestapeld bezit is via de algemene ledenvergadering (ALV) ook doorzettingsmacht mogelijk. Bij blokken eengezinswoningen met zowel corporatiewoningen als particulier woningbezit is die doorzettingsmacht voor particuliere woningen niet aanwezig.

Sheet Aansluitmogelijkheden
C4: ECW overzicht aansluitmogelijkheden
C6: Opdrachtgever | E6: Rijksdienst voor Ondernemend Nederland
C7: Datum | E7: 2022-11-30
C8: Versie | E8: 1.01
C12: Vraag | F12: Antwoord | J12: Aansluitmogelijkheden | L12: Indicatieve kosten | O12: Kwalitatieve beoordeling
J13: Code | K13: Toelichting | L13: Warmtebedrijf | M13: Woningeigenaar | N13: Totaal | O13: Praktisch haalbaarheid | P13: Overlast uitvoering | Q13: Impact woning | R13: Onderhoud
C15: 1 | D15: Type gebouw | K15: 1 | L15: 2 | M15: 2 | N15: 4 | O15: 5 | P15: 6 | Q15: 7 | R15: 8
J16: =_xlfn.UNIQUE(_xlfn._xlws.FILTER(Mogelijkheden[Rekenblad 1],Mogelijkheden[Rekenblad 1]<>"")) -> A1.1 | K16: =IFERROR(VLOOKUP($J16,Rekenblad2[],2+Aansluitmogelijkheden!K$15,0),"") -> Iedere woning afzonderlijk rechtstreeks van buiten cq portiek cq voor de galerijen met afleverset in of nabij de entreehal in het bouwblok zelf | L16: =IFERROR(VLOOKUP($J16,Rekenblad2[],4,0),"") -> 3000 | M16: =IFERROR(VLOOKUP($J16,Rekenblad2[],5,0),"") -> 4500 | N16: =IFERROR(VLOOKUP($J16,Rekenblad2[],2+Aansluitmogelijkheden!N$15,0),"") -> 7500 | O16: =IFERROR(VLOOKUP($J16,Rekenblad2[],2+Aansluitmogelijkheden!O$15,0),"") -> 5 | P16: =IFERROR(VLOOKUP($J16,Rekenblad2[],2+Aansluitmogelijkheden!P$15,0),"") -> 2 | Q16: =IFERROR(VLOOKUP($J16,Rekenblad2[],2+Aansluitmogelijkheden!Q$15,0),"") -> 4 | R16: =IFERROR(VLOOKUP($J16,Rekenblad2[],2+Aansluitmogelijkheden!R$15,0),"") -> 3
J17: A1.2 | K17: =IFERROR(VLOOKUP($J17,Rekenblad2[],2+Aansluitmogelijkheden!K$15,0),"") -> Iedere woning afzonderlijk rechtstreeks van buiten cq portiek cq voor de galerijen met afleverset in of nabij de entreehal in het bouwblok zelf | L17: =IFERROR(VLOOKUP($J17,Rekenblad2[],4,0),"") -> 3000 | M17: =IFERROR(VLOOKUP($J17,Rekenblad2[],5,0),"") -> 5500 | N17: =IFERROR(VLOOKUP($J17,Rekenblad2[],2+Aansluitmogelijkheden!N$15,0),"") -> 8500 | O17: =IFERROR(VLOOKUP($J17,Rekenblad2[],2+Aansluitmogelijkheden!O$15,0),"") -> 4 | P17: =IFERROR(VLOOKUP($J17,Rekenblad2[],2+Aansluitmogelijkheden!P$15,0),"") -> 1 | Q17: =IFERROR(VLOOKUP($J17,Rekenblad2[],2+Aansluitmogelijkheden!Q$15,0),"") -> 2 | R17: =IFERROR(VLOOKUP($J17,Rekenblad2[],2+Aansluitmogelijkheden!R$15,0),"") -> 2
J18: A2.1 | K18: =IFERROR(VLOOKUP($J18,Rekenblad2[],2+Aansluitmogelijkheden!K$15,0),"") -> Per 2 woningen rechtstreeks van buiten cq portiek cq voor de galerijen met afleverset in of nabij de entreehal in het bouwblok zelf | L18: =IFERROR(VLOOKUP($J18,Rekenblad2[],4,0),"") -> 1500 | M18: =IFERROR(VLOOKUP($J18,Rekenblad2[],5,0),"") -> 4500 | N18: =IFERROR(VLOOKUP($J18,Rekenblad2[],2+Aansluitmogelijkheden!N$15,0),"") -> 6000 | O18: =IFERROR(VLOOKUP($J18,Rekenblad2[],2+Aansluitmogelijkheden!O$15,0),"") -> 4 | P18: =IFERROR(VLOOKUP($J18,Rekenblad2[],2+Aansluitmogelijkheden!P$15,0),"") -> 3 | Q18: =IFERROR(VLOOKUP($J18,Rekenblad2[],2+Aansluitmogelijkheden!Q$15,0),"") -> 4 | R18: =IFERROR(VLOOKUP($J18,Rekenblad2[],2+Aansluitmogelijkheden!R$15,0),"") -> 3
J19: A2.2 | K19: =IFERROR(VLOOKUP($J19,Rekenblad2[],2+Aansluitmogelijkheden!K$15,0),"") -> Per 2 woningen rechtstreeks van buiten cq portiek cq voor de galerijen met afleverset in of nabij de entreehal in het bouwblok zelf | L19: =IFERROR(VLOOKUP($J19,Rekenblad2[],4,0),"") -> 1500 | M19: =IFERROR(VLOOKUP($J19,Rekenblad2[],5,0),"") -> 5500 | N19: =IFERROR(VLOOKUP($J19,Rekenblad2[],2+Aansluitmogelijkheden!N$15,0),"") -> 7000 | O19: =IFERROR(VLOOKUP($J19,Rekenblad2[],2+Aansluitmogelijkheden!O$15,0),"") -> 4 | P19: =IFERROR(VLOOKUP($J19,Rekenblad2[],2+Aansluitmogelijkheden!P$15,0),"") -> 1 | Q19: =IFERROR(VLOOKUP($J19,Rekenblad2[],2+Aansluitmogelijkheden!Q$15,0),"") -> 2 | R19: =IFERROR(VLOOKUP($J19,Rekenblad2[],2+Aansluitmogelijkheden!R$15,0),"") -> 2
J20: A3.1 | K20: =IFERROR(VLOOKUP($J20,Rekenblad2[],2+Aansluitmogelijkheden!K$15,0),"") -> Per woning via verticale leidingen op voor- of achtergevel naar afleverset | L20: =IFERROR(VLOOKUP($J20,Rekenblad2[],4,0),"") -> 5500 | M20: =IFERROR(VLOOKUP($J20,Rekenblad2[],5,0),"") -> 5000 | N20: =IFERROR(VLOOKUP($J20,Rekenblad2[],2+Aansluitmogelijkheden!N$15,0),"") -> 10500 | O20: =IFERROR(VLOOKUP($J20,Rekenblad2[],2+Aansluitmogelijkheden!O$15,0),"") -> 2 | P20: =IFERROR(VLOOKUP($J20,Rekenblad2[],2+Aansluitmogelijkheden!P$15,0),"") -> 2 | Q20: =IFERROR(VLOOKUP($J20,Rekenblad2[],2+Aansluitmogelijkheden!Q$15,0),"") -> 2 | R20: =IFERROR(VLOOKUP($J20,Rekenblad2[],2+Aansluitmogelijkheden!R$15,0),"") -> 2
C21: 2 | D21: Kan ik in de lengterichting van het blok onder de onderste woonlaag door? | J21: A3.2 | K21: =IFERROR(VLOOKUP($J21,Rekenblad2[],2+Aansluitmogelijkheden!K$15,0),"") -> Per woning via verticale leidingen op voor- of achtergevel naar afleverset | L21: =IFERROR(VLOOKUP($J21,Rekenblad2[],4,0),"") -> 5500 | M21: =IFERROR(VLOOKUP($J21,Rekenblad2[],5,0),"") -> 4000 | N21: =IFERROR(VLOOKUP($J21,Rekenblad2[],2+Aansluitmogelijkheden!N$15,0),"") -> 9500 | O21: =IFERROR(VLOOKUP($J21,Rekenblad2[],2+Aansluitmogelijkheden!O$15,0),"") -> 1 | P21: =IFERROR(VLOOKUP($J21,Rekenblad2[],2+Aansluitmogelijkheden!P$15,0),"") -> 2 | Q21: =IFERROR(VLOOKUP($J21,Rekenblad2[],2+Aansluitmogelijkheden!Q$15,0),"") -> 3 | R21: =IFERROR(VLOOKUP($J21,Rekenblad2[],2+Aansluitmogelijkheden!R$15,0),"") -> 2
J22: A4.1 | K22: =IFERROR(VLOOKUP($J22,Rekenblad2[],2+Aansluitmogelijkheden!K$15,0),"") -> Per 2 woningen via verticale leidingen op voor- of achtergevel naar afleverset | L22: =IFERROR(VLOOKUP($J22,Rekenblad2[],4,0),"") -> 2500 | M22: =IFERROR(VLOOKUP($J22,Rekenblad2[],5,0),"") -> 5000 | N22: =IFERROR(VLOOKUP($J22,Rekenblad2[],2+Aansluitmogelijkheden!N$15,0),"") -> 7500 | O22: =IFERROR(VLOOKUP($J22,Rekenblad2[],2+Aansluitmogelijkheden!O$15,0),"") -> 2 | P22: =IFERROR(VLOOKUP($J22,Rekenblad2[],2+Aansluitmogelijkheden!P$15,0),"") -> 2 | Q22: =IFERROR(VLOOKUP($J22,Rekenblad2[],2+Aansluitmogelijkheden!Q$15,0),"") -> 2 | R22: =IFERROR(VLOOKUP($J22,Rekenblad2[],2+Aansluitmogelijkheden!R$15,0),"") -> 2
J23: A4.2 | K23: =IFERROR(VLOOKUP($J23,Rekenblad2[],2+Aansluitmogelijkheden!K$15,0),"") -> Per 2 woningen via verticale leidingen op voor- of achtergevel naar afleverset | L23: =IFERROR(VLOOKUP($J23,Rekenblad2[],4,0),"") -> 2500 | M23: =IFERROR(VLOOKUP($J23,Rekenblad2[],5,0),"") -> 4000 | N23: =IFERROR(VLOOKUP($J23,Rekenblad2[],2+Aansluitmogelijkheden!N$15,0),"") -> 6500 | O23: =IFERROR(VLOOKUP($J23,Rekenblad2[],2+Aansluitmogelijkheden!O$15,0),"") -> 2 | P23: =IFERROR(VLOOKUP($J23,Rekenblad2[],2+Aansluitmogelijkheden!P$15,0),"") -> 2 | Q23: =IFERROR(VLOOKUP($J23,Rekenblad2[],2+Aansluitmogelijkheden!Q$15,0),"") -> 4 | R23: =IFERROR(VLOOKUP($J23,Rekenblad2[],2+Aansluitmogelijkheden!R$15,0),"") -> 2
J24: B1.1 | K24: =IFERROR(VLOOKUP($J24,Rekenblad2[],2+Aansluitmogelijkheden!K$15,0),"") -> In de lengterichting van het volledige blok door de kapruimte | L24: =IFERROR(VLOOKUP($J24,Rekenblad2[],4,0),"") -> 5000 | M24: =IFERROR(VLOOKUP($J24,Rekenblad2[],5,0),"") -> 5000 | N24: =IFERROR(VLOOKUP($J24,Rekenblad2[],2+Aansluitmogelijkheden!N$15,0),"") -> 10000 | O24: =IFERROR(VLOOKUP($J24,Rekenblad2[],2+Aansluitmogelijkheden!O$15,0),"") -> 2 | P24: =IFERROR(VLOOKUP($J24,Rekenblad2[],2+Aansluitmogelijkheden!P$15,0),"") -> 2 | Q24: =IFERROR(VLOOKUP($J24,Rekenblad2[],2+Aansluitmogelijkheden!Q$15,0),"") -> 1 | R24: =IFERROR(VLOOKUP($J24,Rekenblad2[],2+Aansluitmogelijkheden!R$15,0),"") -> 1
J25: B1.2 | K25: =IFERROR(VLOOKUP($J25,Rekenblad2[],2+Aansluitmogelijkheden!K$15,0),"") -> In de lengterichting van het volledige blok door de kapruimte | L25: =IFERROR(VLOOKUP($J25,Rekenblad2[],4,0),"") -> 5000 | M25: =IFERROR(VLOOKUP($J25,Rekenblad2[],5,0),"") -> 4000 | N25: =IFERROR(VLOOKUP($J25,Rekenblad2[],2+Aansluitmogelijkheden!N$15,0),"") -> 9000 | O25: =IFERROR(VLOOKUP($J25,Rekenblad2[],2+Aansluitmogelijkheden!O$15,0),"") -> 2 | P25: =IFERROR(VLOOKUP($J25,Rekenblad2[],2+Aansluitmogelijkheden!P$15,0),"") -> 3 | Q25: =IFERROR(VLOOKUP($J25,Rekenblad2[],2+Aansluitmogelijkheden!Q$15,0),"") -> 3 | R25: =IFERROR(VLOOKUP($J25,Rekenblad2[],2+Aansluitmogelijkheden!R$15,0),"") -> 2
J26: B2.1 | K26: =IFERROR(VLOOKUP($J26,Rekenblad2[],2+Aansluitmogelijkheden!K$15,0),"") -> In de lengterichting van het volledige blok over de gevel | L26: =IFERROR(VLOOKUP($J26,Rekenblad2[],4,0),"") -> 7500 | M26: =IFERROR(VLOOKUP($J26,Rekenblad2[],5,0),"") -> 5000 | N26: =IFERROR(VLOOKUP($J26,Rekenblad2[],2+Aansluitmogelijkheden!N$15,0),"") -> 12500 | O26: =IFERROR(VLOOKUP($J26,Rekenblad2[],2+Aansluitmogelijkheden!O$15,0),"") -> 1 | P26: =IFERROR(VLOOKUP($J26,Rekenblad2[],2+Aansluitmogelijkheden!P$15,0),"") -> 3 | Q26: =IFERROR(VLOOKUP($J26,Rekenblad2[],2+Aansluitmogelijkheden!Q$15,0),"") -> 2 | R26: =IFERROR(VLOOKUP($J26,Rekenblad2[],2+Aansluitmogelijkheden!R$15,0),"") -> 2
C27: 3 | D27: Wat is de dakvorm van de woning? | J27: B2.2 | K27: =IFERROR(VLOOKUP($J27,Rekenblad2[],2+Aansluitmogelijkheden!K$15,0),"") -> In de lengterichting van het volledige blok over de gevel | L27: =IFERROR(VLOOKUP($J27,Rekenblad2[],4,0),"") -> 7500 | M27: =IFERROR(VLOOKUP($J27,Rekenblad2[],5,0),"") -> 4000 | N27: =IFERROR(VLOOKUP($J27,Rekenblad2[],2+Aansluitmogelijkheden!N$15,0),"") -> 11500 | O27: =IFERROR(VLOOKUP($J27,Rekenblad2[],2+Aansluitmogelijkheden!O$15,0),"") -> 1 | P27: =IFERROR(VLOOKUP($J27,Rekenblad2[],2+Aansluitmogelijkheden!P$15,0),"") -> 4 | Q27: =IFERROR(VLOOKUP($J27,Rekenblad2[],2+Aansluitmogelijkheden!Q$15,0),"") -> 4 | R27: =IFERROR(VLOOKUP($J27,Rekenblad2[],2+Aansluitmogelijkheden!R$15,0),"") -> 2
J28: B3.1 | K28: =IFERROR(VLOOKUP($J28,Rekenblad2[],2+Aansluitmogelijkheden!K$15,0),"") -> In de lengterichting van het volledige blok over het dak | L28: =IFERROR(VLOOKUP($J28,Rekenblad2[],4,0),"") -> 4000 | M28: =IFERROR(VLOOKUP($J28,Rekenblad2[],5,0),"") -> 5000 | N28: =IFERROR(VLOOKUP($J28,Rekenblad2[],2+Aansluitmogelijkheden!N$15,0),"") -> 9000 | O28: =IFERROR(VLOOKUP($J28,Rekenblad2[],2+Aansluitmogelijkheden!O$15,0),"") -> 1 | P28: =IFERROR(VLOOKUP($J28,Rekenblad2[],2+Aansluitmogelijkheden!P$15,0),"") -> 2 | Q28: =IFERROR(VLOOKUP($J28,Rekenblad2[],2+Aansluitmogelijkheden!Q$15,0),"") -> 2 | R28: =IFERROR(VLOOKUP($J28,Rekenblad2[],2+Aansluitmogelijkheden!R$15,0),"") -> 3
J29: B3.2 | K29: =IFERROR(VLOOKUP($J29,Rekenblad2[],2+Aansluitmogelijkheden!K$15,0),"") -> In de lengterichting van het volledige blok over het dak | L29: =IFERROR(VLOOKUP($J29,Rekenblad2[],4,0),"") -> 4000 | M29: =IFERROR(VLOOKUP($J29,Rekenblad2[],5,0),"") -> 4000 | N29: =IFERROR(VLOOKUP($J29,Rekenblad2[],2+Aansluitmogelijkheden!N$15,0),"") -> 8000 | O29: =IFERROR(VLOOKUP($J29,Rekenblad2[],2+Aansluitmogelijkheden!O$15,0),"") -> 1 | P29: =IFERROR(VLOOKUP($J29,Rekenblad2[],2+Aansluitmogelijkheden!P$15,0),"") -> 4 | Q29: =IFERROR(VLOOKUP($J29,Rekenblad2[],2+Aansluitmogelijkheden!Q$15,0),"") -> 4 | R29: =IFERROR(VLOOKUP($J29,Rekenblad2[],2+Aansluitmogelijkheden!R$15,0),"") -> 3
J30: B4.1
J31: B4.2 | K31: =IF(NOT(J31=""),"…...","") -> …...
J32: C1
C33: 4 | D33: Is er inpandige ruimte in of nabij de entreehal van de woning zelf voor een afleverset? | K33: Grafiek
C39: 5 | D39: Wat is de locatie van de combiketel?
C45: 6 | D45: Is de plattegrond gespiegeld ten opzichte van die van de aangrenzende woning?
C51: 7 | D51: Is 100% deelname van alle woningen in het blok haalbaar, eventueel door verplichting vanuit 70% instemming van huurders

Sheet Instructie Expertversie
C4: Handleiding model - Expertversie
C6: Inleiding
C7: Het doel van het model is om warmtebedrijven en gebouweigenaren aan te zetten om andere manieren van aansluiten te overwegen en stof voor gesprek te geven. Het model streeft dus niet om een absolute weergave van de werkelijkheid te geven. Als gevolg van eventuele onjuistheden en/of het gebruik van het instrumenten kan geen aansprakelijkheid worden aanvaard. Het model is gesplitst in een versie voor snel en indicatief gebruik en een versie voor een expert die ook zelf aan de slag wil met de onderleggers van het model. In de versie voor snel en indicatief gebruik heeft de gebruiker toegang tot het tabblad 'Aansluitmogelijkheden'. In de expertversie krijgt de gebruiker met een door RVO te verstrekken wachtwoord toegang tot alle tabbladen.
C8: Het instrument ‘Overzicht aansluitmogelijkheden’ en het bijbehorende rapport zijn tot stand gekomen in het kader van een opdracht van de RVO en in samenwerking met een begeleidingscommissie voor ondersteuning en inbreng. Het rapport is op te vragen via de Helpdesk
C10: Disclaimer
C11: Het ‘Overzicht aansluitmogelijkheden’ is ontwikkeld door Atriensis projecten in opdracht van het Expertisecentrum Warmte (ECW). Het is een methode die Atriensis projecten heeft ontwikkeld om mogelijke alternatieven van aansluiten op een warmtenet per woningtype te bepalen op basis van kenmerken van de woning.
C13: Aan het Overzicht aansluitmogelijkheden kunnen geen rechten worden ontleend.
C14: Hoewel dit instrument met grootste zorg is samengesteld, kan Atriensis projecten geen enkele aansprakelijkheid aanvaarden voor schade als gevolg van eventuele onjuistheden en/of gebruik van het instrumenten.
C16: Het model is standaard enkel zichtbaar als basis-versie. Via de Helpdesk kan het wachtwoord van het model worden opgevraagd. Met dit wachtwoord kunnen achterliggende rekenbladen worden ontgrendeld door bovenaan in het kopje 'controleren' op de knop 'beveiliging blad opheffen' te klikken
C18: Handleiding expert-versie
C19: Het ‘Overzicht aansluitmogelijkheden’ is een model dat de mogelijke alternatieven van aansluiten op een warmtenet bepaald worden op basis van kenmerken van een woning. De kosten en de kwalitatieve aspecten van de aansluitingen worden met elkaar vergeleken. Het model berekent deze kosten op basis van kengetallen met prijspeil juni 2022.
C20: Met het invoeren van het wachtwoord worden de volgende tabbladen zichtbaar:
C21: - Rekenbladen: Deze zijn nodig voor de werking van het model. - Svv ofwel Staat van Verrekenprijzen: Hierin staan de verrekenprijzen voor werkzaamheden opgenomen. - Staat Eéngezinswoning (EGW) / Portiek / Galerij: Hierin staan de indicatieve eenheden voor de afzonderlijke aansluitmogelijkheden opgenomen. - Kwaliteit EGW / Portiek / Galerij: Hierin staan de kwalitatieve beoordeling van de verschillende aansluitmogelijkheden opgenomen.
C23: Door aanpassingen te maken aan de bovenstaande bladen kunnen de aansluitmogelijkheden voor een specifiek project nauwkeuriger worden berekend.

Sheet Rekenblad 1
C17: NR | D17: 1 Type gebouw | E17: Type (2) | F17: 2 Kan ik in de lengterichting van het blok onder de onderste woonlaag door? | G17: 3 Wat is de dakvorm van de woning? | H17: 4 Is er inpandige ruimte in of nabij de entreehal van de woning zelf voor een afleverset? | I17: 5 Wat is de locatie van de combiketel? | J17: 6 Is de plattegrond gespiegeld ten opzichte van die van de aangrenzende woning? | K17: 7 Is verplichting mogelijk tot deelname van alle woningen in het blok? | L17: A1 Iedere woning afzonderlijk rechtstreeks van buiten cq portiek cq voor de galerijen met afleverset in of nabij de entreehal in het bouwblok zelf | M17: A1.1 Iedere woning afzonderlijk rechtstreeks van buiten cq portiek cq voor de galerijen met afleverset in of nabij de entreehal in het bouwblok zelf | N17: A1.2 Iedere woning afzonderlijk rechtstreeks van buiten cq portiek cq voor de galerijen met afleverset in of nabij de entreehal in het bouwblok zelf | O17: A2 Per 2 woningen rechtstreeks van buiten cq portiek cq voor de galerijen met afleverset in of nabij de entreehal in het bouwblok zelf | P17: A2.1 Per 2 woningen rechtstreeks van buiten cq portiek cq voor de galerijen met afleverset in of nabij de entreehal in het bouwblok zelf | Q17: A2.2 Per 2 woningen rechtstreeks van buiten cq portiek cq voor de galerijen met afleverset in of nabij de entreehal in het bouwblok zel | R17: A3 Per woning via verticale leidingen op voor- of achtergevel naar afleverset | S17: A3.1 Per woning via verticale leidingen op voor- of achtergevel naar afleverset | T17: A3.2 Per woning via verticale leidingen op voor- of achtergevel naar afleverset | U17: A4 Per 2 woningen via verticale leidingen op voor- of achtergevel naar afleverset | V17: A4.1 Per 2 woningen via verticale leidingen op voor- of achtergevel naar afleverset | W17: A4.2 Per 2 woningen via verticale leidingen op voor- of achtergevel naar afleverset | X17: B1 In de lengterichting van het volledige blok door de kapruimte | Y17: B1.1 In de lengterichting van het volledige blok door de kapruimte | Z17: B1.2 In de lengterichting van het volledige blok door de kapruimte | AA17: B2 In de lengterichting van het volledige blok over de gevel | AB17: B2.1 In de lengterichting van het volledige blok over de gevel | AC17: B2.2 In de lengterichting van het volledige blok over de gevel | AD17: B3 In de lengterichting van het volledige blok over het dak | AE17: B3.1 In de lengterichting van het volledige blok over het dak | AF17: B3.2 In de lengterichting van het volledige blok over het dak | AG17: B4 In de lengterichting van het volledige blok onder de onderste woonlaag door | AH17: B4.1 In de lengterichting van het volledige blok onder de onderste woonlaag door | AI17: B4.2 In de lengterichting van het volledige blok onder de onderste woonlaag door | AJ17: C De individuele afleverset buiten de woning | AK17: Locatie CV (0) | AL17: Locatie CV (1+)
C18: 1 | D18: Eengezinswoning | E18: =IF(Rekenblad1[[#This Row],[1 Type gebouw]]="Eengezinswoning",1, IF(Rekenblad1[[#This Row],[1 Type gebouw]]="Portieketage",2, IF(Rekenblad1[[#This Row],[1 Type gebouw]]="Galerijflat",3,0))) -> 1 | F18: Ja | G18: Plat dak | H18: Nee | I18: Begane grond (EGW) | J18: Ja | K18: Ja | S18: 1 | V18: 1 | AB18: 1 | AE18: 1 | AJ18: 1 | AK18: 1
C19: 2 | D19: Eengezinswoning | E19: =IF(Rekenblad1[[#This Row],[1 Type gebouw]]="Eengezinswoning",1, IF(Rekenblad1[[#This Row],[1 Type gebouw]]="Portieketage",2, IF(Rekenblad1[[#This Row],[1 Type gebouw]]="Galerijflat",3,0))) -> 1 | F19: Ja | G19: Plat dak | H19: Nee | I19: Begane grond (EGW) | J19: Ja | K19: Nee | S19: 1 | V19: 1 | AJ19: 1 | AK19: 1
C20: 3 | D20: Eengezinswoning | E20: =IF(Rekenblad1[[#This Row],[1 Type gebouw]]="Eengezinswoning",1, IF(Rekenblad1[[#This Row],[1 Type gebouw]]="Portieketage",2, IF(Rekenblad1[[#This Row],[1 Type gebouw]]="Galerijflat",3,0))) -> 1 | F20: Ja | G20: Plat dak | H20: Nee | I20: Begane grond (EGW) | J20: Nee | K20: Ja | S20: 1 | AB20: 1 | AE20: 1 | AJ20: 1 | AK20: 1
C21: 4 | D21: Eengezinswoning | E21: =IF(Rekenblad1[[#This Row],[1 Type gebouw]]="Eengezinswoning",1, IF(Rekenblad1[[#This Row],[1 Type gebouw]]="Portieketage",2, IF(Rekenblad1[[#This Row],[1 Type gebouw]]="Galerijflat",3,0))) -> 1 | F21: Ja | G21: Plat dak | H21: Nee | I21: Begane grond (EGW) | J21: Nee | K21: Nee | S21: 1 | AJ21: 1 | AK21: 1
C22: 5 | D22: Eengezinswoning | E22: =IF(Rekenblad1[[#This Row],[1 Type gebouw]]="Eengezinswoning",1, IF(Rekenblad1[[#This Row],[1 Type gebouw]]="Portieketage",2, IF(Rekenblad1[[#This Row],[1 Type gebouw]]="Galerijflat",3,0))) -> 1 | F22: Ja | G22: Plat dak | H22: Nee | I22: Eerste verdieping of hoger (EGW) | J22: Ja | K22: Ja | T22: 1 | W22: 1 | AC22: 1 | AF22: 1 | AJ22: 1 | AL22: 2
C23: 6 | D23: Eengezinswoning | E23: =IF(Rekenblad1[[#This Row],[1 Type gebouw]]="Eengezinswoning",1, IF(Rekenblad1[[#This Row],[1 Type gebouw]]="Portieketage",2, IF(Rekenblad1[[#This Row],[1 Type gebouw]]="Galerijflat",3,0))) -> 1 | F23: Ja | G23: Plat dak | H23: Nee | I23: Eerste verdieping of hoger (EGW) | J23: Ja | K23: Nee | T23: 1 | W23: 1 | AJ23: 1 | AL23: 2
C24: 7 | D24: Eengezinswoning | E24: =IF(Rekenblad1[[#This Row],[1 Type gebouw]]="Eengezinswoning",1, IF(Rekenblad1[[#This Row],[1 Type gebouw]]="Portieketage",2, IF(Rekenblad1[[#This Row],[1 Type gebouw]]="Galerijflat",3,0))) -> 1 | F24: Ja | G24: Plat dak | H24: Nee | I24: Eerste verdieping of hoger (EGW) | J24: Nee | K24: Ja | T24: 1 | AC24: 1 | AF24: 1 | AJ24: 1 | AL24: 2
C25: 8 | D25: Eengezinswoning | E25: =IF(Rekenblad1[[#This Row],[1 Type gebouw]]="Eengezinswoning",1, IF(Rekenblad1[[#This Row],[1 Type gebouw]]="Portieketage",2, IF(Rekenblad1[[#This Row],[1 Type gebouw]]="Galerijflat",3,0))) -> 1 | F25: Ja | G25: Plat dak | H25: Nee | I25: Eerste verdieping of hoger (EGW) | J25: Nee | K25: Nee | T25: 1 | AJ25: 1 | AL25: 2
C26: 9 | D26: Eengezinswoning | E26: =IF(Rekenblad1[[#This Row],[1 Type gebouw]]="Eengezinswoning",1, IF(Rekenblad1[[#This Row],[1 Type gebouw]]="Portieketage",2, IF(Rekenblad1[[#This Row],[1 Type gebouw]]="Galerijflat",3,0))) -> 1 | F26: Ja | G26: Plat dak | H26: Ja | I26: Begane grond (EGW) | J26: Ja | K26: Ja | M26: 1 | P26: 1 | S26: 1 | V26: 1 | AB26: 1 | AE26: 1 | AH26: 1 | AJ26: 1 | AK26: 1
C27: 10 | D27: Eengezinswoning | E27: =IF(Rekenblad1[[#This Row],[1 Type gebouw]]="Eengezinswoning",1, IF(Rekenblad1[[#This Row],[1 Type gebouw]]="Portieketage",2, IF(Rekenblad1[[#This Row],[1 Type gebouw]]="Galerijflat",3,0))) -> 1 | F27: Ja | G27: Plat dak | H27: Ja | I27: Begane grond (EGW) | J27: Ja | K27: Nee | M27: 1 | P27: 1 | S27: 1 | V27: 1 | AJ27: 1 | AK27: 1
C28: 11 | D28: Eengezinswoning | E28: =IF(Rekenblad1[[#This Row],[1 Type gebouw]]="Eengezinswoning",1, IF(Rekenblad1[[#This Row],[1 Type gebouw]]="Portieketage",2, IF(Rekenblad1[[#This Row],[1 Type gebouw]]="Galerijflat",3,0))) -> 1 | F28: Ja | G28: Plat dak | H28: Ja | I28: Begane grond (EGW) | J28: Nee | K28: Ja | M28: 1 | S28: 1 | AB28: 1 | AE28: 1 | AH28: 1 | AJ28: 1 | AK28: 1
C29: 12 | D29: Eengezinswoning | E29: =IF(Rekenblad1[[#This Row],[1 Type gebouw]]="Eengezinswoning",1, IF(Rekenblad1[[#This Row],[1 Type gebouw]]="Portieketage",2, IF(Rekenblad1[[#This Row],[1 Type gebouw]]="Galerijflat",3,0))) -> 1 | F29: Ja | G29: Plat dak | H29: Ja | I29: Begane grond (EGW) | J29: Nee | K29: Nee | M29: 1 | S29: 1 | AJ29: 1 | AK29: 1
C30: 13 | D30: Eengezinswoning | E30: =IF(Rekenblad1[[#This Row],[1 Type gebouw]]="Eengezinswoning",1, IF(Rekenblad1[[#This Row],[1 Type gebouw]]="Portieketage",2, IF(Rekenblad1[[#This Row],[1 Type gebouw]]="Galerijflat",3,0))) -> 1 | F30: Ja | G30: Plat dak | H30: Ja | I30: Eerste verdieping of hoger (EGW) | J30: Ja | K30: Ja | N30: 1 | Q30: 1 | T30: 1 | W30: 1 | AC30: 1 | AF30: 1 | AI30: 1 | AJ30: 1 | AL30: 2
C31: 14 | D31: Eengezinswoning | E31: =IF(Rekenblad1[[#This Row],[1 Type gebouw]]="Eengezinswoning",1, IF(Rekenblad1[[#This Row],[1 Type gebouw]]="Portieketage",2, IF(Rekenblad1[[#This Row],[1 Type gebouw]]="Galerijflat",3,0))) -> 1 | F31: Ja | G31: Plat dak | H31: Ja | I31: Eerste verdieping of hoger (EGW) | J31: Ja | K31: Nee | N31: 1 | Q31: 1 | T31: 1 | W31: 1 | AJ31: 1 | AL31: 2
C32: 15 | D32: Eengezinswoning | E32: =IF(Rekenblad1[[#This Row],[1 Type gebouw]]="Eengezinswoning",1, IF(Rekenblad1[[#This Row],[1 Type gebouw]]="Portieketage",2, IF(Rekenblad1[[#This Row],[1 Type gebouw]]="Galerijflat",3,0))) -> 1 | F32: Ja | G32: Plat dak | H32: Ja | I32: Eerste verdieping of hoger (EGW) | J32: Nee | K32: Ja | N32: 1 | T32: 1 | AC32: 1 | AF32: 1 | AI32: 1 | AJ32: 1 | AL32: 2
C33: 16 | D33: Eengezinswoning | E33: =IF(Rekenblad1[[#This Row],[1 Type gebouw]]="Eengezinswoning",1, IF(Rekenblad1[[#This Row],[1 Type gebouw]]="Portieketage",2, IF(Rekenblad1[[#This Row],[1 Type gebouw]]="Galerijflat",3,0))) -> 1 | F33: Ja | G33: Plat dak | H33: Ja | I33: Eerste verdieping of hoger (EGW) | J33: Nee | K33: Nee | N33: 1 | T33: 1 | AJ33: 1 | AL33: 2
C34: 17 | D34: Eengezinswoning | E34: =IF(Rekenblad1[[#This Row],[1 Type gebouw]]="Eengezinswoning",1, IF(Rekenblad1[[#This Row],[1 Type gebouw]]="Portieketage",2, IF(Rekenblad1[[#This Row],[1 Type gebouw]]="Galerijflat",3,0))) -> 1 | F34: Ja | G34: Hellend dak | H34: Nee | I34: Begane grond (EGW) | J34: Ja | K34: Ja | S34: 1 | V34: 1 | Y34: 1 | AB34: 1 | AJ34: 1 | AK34: 1
C35: 18 | D35: Eengezinswoning | E35: =IF(Rekenblad1[[#This Row],[1 Type gebouw]]="Eengezinswoning",1, IF(Rekenblad1[[#This Row],[1 Type gebouw]]="Portieketage",2, IF(Rekenblad1[[#This Row],[1 Type gebouw]]="Galerijflat",3,0))) -> 1 | F35: Ja | G35: Hellend dak | H35: Nee | I35: Begane grond (EGW) | J35: Ja | K35: Nee | S35: 1 | V35: 1 | AJ35: 1 | AK35: 1
C36: 19 | D36: Eengezinswoning | E36: =IF(Rekenblad1[[#This Row],[1 Type gebouw]]="Eengezinswoning",1, IF(Rekenblad1[[#This Row],[1 Type gebouw]]="Portieketage",2, IF(Rekenblad1[[#This Row],[1 Type gebouw]]="Galerijflat",3,0))) -> 1 | F36: Ja | G36: Hellend dak | H36: Nee | I36: Begane grond (EGW) | J36: Nee | K36: Ja | S36: 1 | Y36: 1 | AB36: 1 | AJ36: 1 | AK36: 1
C37: 20 | D37: Eengezinswoning | E37: =IF(Rekenblad1[[#This Row],[1 Type gebouw]]="Eengezinswoning",1, IF(Rekenblad1[[#This Row],[1 Type gebouw]]="Portieketage",2, IF(Rekenblad1[[#This Row],[1 Type gebouw]]="Galerijflat",3,0))) -> 1 | F37: Ja | G37: Hellend dak | H37: Nee | I37: Begane grond (EGW) | J37: Nee | K37: Nee | S37: 1 | AJ37: 1 | AK37: 1
C38: 21 | D38: Eengezinswoning | E38: =IF(Rekenblad1[[#This Row],[1 Type gebouw]]="Eengezinswoning",1, IF(Rekenblad1[[#This Row],[1 Type gebouw]]="Portieketage",2, IF(Rekenblad1[[#This Row],[1 Type gebouw]]="Galerijflat",3,0))) -> 1 | F38: Ja | G38: Hellend dak | H38: Nee | I38: Eerste verdieping of hoger (EGW) | J38: Ja | K38: Ja | T38: 1 | W38: 1 | Z38: 1 | AC38: 1 | AJ38: 1 | AL38: 2
C39: 22 | D39: Eengezinswoning | E39: =IF(Rekenblad1[[#This Row],[1 Type gebouw]]="Eengezinswoning",1, IF(Rekenblad1[[#This Row],[1 Type gebouw]]="Portieketage",2, IF(Rekenblad1[[#This Row],[1 Type gebouw]]="Galerijflat",3,0))) -> 1 | F39: Ja | G39: Hellend dak | H39: Nee | I39: Eerste verdieping of hoger (EGW) | J39: Ja | K39: Nee | T39: 1 | W39: 1 | AJ39: 1 | AL39: 2
C40: 23 | D40: Eengezinswoning | E40: =IF(Rekenblad1[[#This Row],[1 Type gebouw]]="Eengezinswoning",1, IF(Rekenblad1[[#This Row],[1 Type gebouw]]="Portieketage",2, IF(Rekenblad1[[#This Row],[1 Type gebouw]]="Galerijflat",3,0))) -> 1 | F40: Ja | G40: Hellend dak | H40: Nee | I40: Eerste verdieping of hoger (EGW) | J40: Nee | K40: Ja | T40: 1 | Z40: 1 | AC40: 1 | AJ40: 1 | AL40: 2
C41: 24 | D41: Eengezinswoning | E41: =IF(Rekenblad1[[#This Row],[1 Type gebouw]]="Eengezinswoning",1, IF(Rekenblad1[[#This Row],[1 Type gebouw]]="Portieketage",2, IF(Rekenblad1[[#This Row],[1 Type gebouw]]="Galerijflat",3,0))) -> 1 | F41: Ja | G41: Hellend dak | H41: Nee | I41: Eerste verdieping of hoger (EGW) | J41: Nee | K41: Nee | T41: 1 | AJ41: 1 | AL41: 2
C42: 25 | D42: Eengezinswoning | E42: =IF(Rekenblad1[[#This Row],[1 Type gebouw]]="Eengezinswoning",1, IF(Rekenblad1[[#This Row],[1 Type gebouw]]="Portieketage",2, IF(Rekenblad1[[#This Row],[1 Type gebouw]]="Galerijflat",3,0))) -> 1 | F42: Ja | G42: Hellend dak | H42: Ja | I42: Begane grond (EGW) | J42: Ja | K42: Ja | M42: 1 | P42: 1 | S42: 1 | V42: 1 | Y42: 1 | AB42: 1 | AH42: 1 | AJ42: 1 | AK42: 1
C43: 26 | D43: Eengezinswoning | E43: =IF(Rekenblad1[[#This Row],[1 Type gebouw]]="Eengezinswoning",1, IF(Rekenblad1[[#This Row],[1 Type gebouw]]="Portieketage",2, IF(Rekenblad1[[#This Row],[1 Type gebouw]]="Galerijflat",3,0))) -> 1 | F43: Ja | G43: Hellend dak | H43: Ja | I43: Begane grond (EGW) | J43: Ja | K43: Nee | M43: 1 | P43: 1 | S43: 1 | V43: 1 | AJ43: 1 | AK43: 1
C44: 27 | D44: Eengezinswoning | E44: =IF(Rekenblad1[[#This Row],[1 Type gebouw]]="Eengezinswoning",1, IF(Rekenblad1[[#This Row],[1 Type gebouw]]="Portieketage",2, IF(Rekenblad1[[#This Row],[1 Type gebouw]]="Galerijflat",3,0))) -> 1 | F44: Ja | G44: Hellend dak | H44: Ja | I44: Begane grond (EGW) | J44: Nee | K44: Ja | M44: 1 | S44: 1 | Y44: 1 | AB44: 1 | AH44: 1 | AJ44: 1 | AK44: 1
C45: 28 | D45: Eengezinswoning | E45: =IF(Rekenblad1[[#This Row],[1 Type gebouw]]="Eengezinswoning",1, IF(Rekenblad1[[#This Row],[1 Type gebouw]]="Portieketage",2, IF(Rekenblad1[[#This Row],[1 Type gebouw]]="Galerijflat",3,0))) -> 1 | F45: Ja | G45: Hellend dak | H45: Ja | I45: Begane grond (EGW) | J45: Nee | K45: Nee | M45: 1 | S45: 1 | AJ45: 1 | AK45: 1
C46: 29 | D46: Eengezinswoning | E46: =IF(Rekenblad1[[#This Row],[1 Type gebouw]]="Eengezinswoning",1, IF(Rekenblad1[[#This Row],[1 Type gebouw]]="Portieketage",2, IF(Rekenblad1[[#This Row],[1 Type gebouw]]="Galerijflat",3,0))) -> 1 | F46: Ja | G46: Hellend dak | H46: Ja | I46: Eerste verdieping of hoger (EGW) | J46: Ja | K46: Ja | N46: 1 | Q46: 1 | T46: 1 | W46: 1 | Z46: 1 | AC46: 1 | AI46: 1 | AJ46: 1 | AL46: 2
C47: 30 | D47: Eengezinswoning | E47: =IF(Rekenblad1[[#This Row],[1 Type gebouw]]="Eengezinswoning",1, IF(Rekenblad1[[#This Row],[1 Type gebouw]]="Portieketage",2, IF(Rekenblad1[[#This Row],[1 Type gebouw]]="Galerijflat",3,0))) -> 1 | F47: Ja | G47: Hellend dak | H47: Ja | I47: Eerste verdieping of hoger (EGW) | J47: Ja | K47: Nee | N47: 1 | Q47: 1 | T47: 1 | W47: 1 | AJ47: 1 | AL47: 2
C48: 31 | D48: Eengezinswoning | E48: =IF(Rekenblad1[[#This Row],[1 Type gebouw]]="Eengezinswoning",1, IF(Rekenblad1[[#This Row],[1 Type gebouw]]="Portieketage",2, IF(Rekenblad1[[#This Row],[1 Type gebouw]]="Galerijflat",3,0))) -> 1 | F48: Ja | G48: Hellend dak | H48: Ja | I48: Eerste verdieping of hoger (EGW) | J48: Nee | K48: Ja | N48: 1 | T48: 1 | Z48: 1 | AC48: 1 | AI48: 1 | AJ48: 1 | AL48: 2
C49: 32 | D49: Eengezinswoning | E49: =IF(Rekenblad1[[#This Row],[1 Type gebouw]]="Eengezinswoning",1, IF(Rekenblad1[[#This Row],[1 Type gebouw]]="Portieketage",2, IF(Rekenblad1[[#This Row],[1 Type gebouw]]="Galerijflat",3,0))) -> 1 | F49: Ja | G49: Hellend dak | H49: Ja | I49: Eerste verdieping of hoger (EGW) | J49: Nee | K49: Nee | N49: 1 | T49: 1 | AJ49: 1 | AL49: 2
C50: 33 | D50: Eengezinswoning | E50: =IF(Rekenblad1[[#This Row],[1 Type gebouw]]="Eengezinswoning",1, IF(Rekenblad1[[#This Row],[1 Type gebouw]]="Portieketage",2, IF(Rekenblad1[[#This Row],[1 Type gebouw]]="Galerijflat",3,0))) -> 1 | F50: Nee | G50: Plat dak | H50: Nee | I50: Begane grond (EGW) | J50: Ja | K50: Ja | S50: 1 | V50: 1 | AB50: 1 | AE50: 1 | AJ50: 1 | AK50: 1
C51: 34 | D51: Eengezinswoning | E51: =IF(Rekenblad1[[#This Row],[1 Type gebouw]]="Eengezinswoning",1, IF(Rekenblad1[[#This Row],[1 Type gebouw]]="Portieketage",2, IF(Rekenblad1[[#This Row],[1 Type gebouw]]="Galerijflat",3,0))) -> 1 | F51: Nee | G51: Plat dak | H51: Nee | I51: Begane grond (EGW) | J51: Ja | K51: Nee | S51: 1 | V51: 1 | AJ51: 1 | AK51: 1
C52: 35 | D52: Eengezinswoning | E52: =IF(Rekenblad1[[#This Row],[1 Type gebouw]]="Eengezinswoning",1, IF(Rekenblad1[[#This Row],[1 Type gebouw]]="Portieketage",2, IF(Rekenblad1[[#This Row],[1 Type gebouw]]="Galerijflat",3,0))) -> 1 | F52: Nee | G52: Plat dak | H52: Nee | I52: Begane grond (EGW) | J52: Nee | K52: Ja | S52: 1 | AB52: 1 | AE52: 1 | AJ52: 1 | AK52: 1
C53: 36 | D53: Eengezinswoning | E53: =IF(Rekenblad1[[#This Row],[1 Type gebouw]]="Eengezinswoning",1, IF(Rekenblad1[[#This Row],[1 Type gebouw]]="Portieketage",2, IF(Rekenblad1[[#This Row],[1 Type gebouw]]="Galerijflat",3,0))) -> 1 | F53: Nee | G53: Plat dak | H53: Nee | I53: Begane grond (EGW) | J53: Nee | K53: Nee | S53: 1 | AJ53: 1 | AK53: 1
C54: 37 | D54: Eengezinswoning | E54: =IF(Rekenblad1[[#This Row],[1 Type gebouw]]="Eengezinswoning",1, IF(Rekenblad1[[#This Row],[1 Type gebouw]]="Portieketage",2, IF(Rekenblad1[[#This Row],[1 Type gebouw]]="Galerijflat",3,0))) -> 1 | F54: Nee | G54: Plat dak | H54: Nee | I54: Eerste verdieping of hoger (EGW) | J54: Ja | K54: Ja | T54: 1 | W54: 1 | AC54: 1 | AF54: 1 | AJ54: 1 | AL54: 2
C55: 38 | D55: Eengezinswoning | E55: =IF(Rekenblad1[[#This Row],[1 Type gebouw]]="Eengezinswoning",1, IF(Rekenblad1[[#This Row],[1 Type gebouw]]="Portieketage",2, IF(Rekenblad1[[#This Row],[1 Type gebouw]]="Galerijflat",3,0))) -> 1 | F55: Nee | G55: Plat dak | H55: Nee | I55: Eerste verdieping of hoger (EGW) | J55: Ja | K55: Nee | T55: 1 | W55: 1 | AJ55: 1 | AL55: 2
C56: 39 | D56: Eengezinswoning | E56: =IF(Rekenblad1[[#This Row],[1 Type gebouw]]="Eengezinswoning",1, IF(Rekenblad1[[#This Row],[1 Type gebouw]]="Portieketage",2, IF(Rekenblad1[[#This Row],[1 Type gebouw]]="Galerijflat",3,0))) -> 1 | F56: Nee | G56: Plat dak | H56: Nee | I56: Eerste verdieping of hoger (EGW) | J56: Nee | K56: Ja | T56: 1 | AC56: 1 | AF56: 1 | AJ56: 1 | AL56: 2
C57: 40 | D57: Eengezinswoning | E57: =IF(Rekenblad1[[#This Row],[1 Type gebouw]]="Eengezinswoning",1, IF(Rekenblad1[[#This Row],[1 Type gebouw]]="Portieketage",2, IF(Rekenblad1[[#This Row],[1 Type gebouw]]="Galerijflat",3,0))) -> 1 | F57: Nee | G57: Plat dak | H57: Nee | I57: Eerste verdieping of hoger (EGW) | J57: Nee | K57: Nee | T57: 1 | AJ57: 1 | AL57: 2
C58: 41 | D58: Eengezinswoning | E58: =IF(Rekenblad1[[#This Row],[1 Type gebouw]]="Eengezinswoning",1, IF(Rekenblad1[[#This Row],[1 Type gebouw]]="Portieketage",2, IF(Rekenblad1[[#This Row],[1 Type gebouw]]="Galerijflat",3,0))) -> 1 | F58: Nee | G58: Plat dak | H58: Ja | I58: Begane grond (EGW) | J58: Ja | K58: Ja | M58: 1 | P58: 1 | S58: 1 | V58: 1 | AB58: 1 | AE58: 1 | AJ58: 1 | AK58: 1
C59: 42 | D59: Eengezinswoning | E59: =IF(Rekenblad1[[#This Row],[1 Type gebouw]]="Eengezinswoning",1, IF(Rekenblad1[[#This Row],[1 Type gebouw]]="Portieketage",2, IF(Rekenblad1[[#This Row],[1 Type gebouw]]="Galerijflat",3,0))) -> 1 | F59: Nee | G59: Plat dak | H59: Ja | I59: Begane grond (EGW) | J59: Ja | K59: Nee | M59: 1 | P59: 1 | S59: 1 | V59: 1 | AJ59: 1 | AK59: 1
C60: 43 | D60: Eengezinswoning | E60: =IF(Rekenblad1[[#This Row],[1 Type gebouw]]="Eengezinswoning",1, IF(Rekenblad1[[#This Row],[1 Type gebouw]]="Portieketage",2, IF(Rekenblad1[[#This Row],[1 Type gebouw]]="Galerijflat",3,0))) -> 1 | F60: Nee | G60: Plat dak | H60: Ja | I60: Begane grond (EGW) | J60: Nee | K60: Ja | M60: 1 | S60: 1 | AB60: 1 | AE60: 1 | AJ60: 1 | AK60: 1
C61: 44 | D61: Eengezinswoning | E61: =IF(Rekenblad1[[#This Row],[1 Type gebouw]]="Eengezinswoning",1, IF(Rekenblad1[[#This Row],[1 Type gebouw]]="Portieketage",2, IF(Rekenblad1[[#This Row],[1 Type gebouw]]="Galerijflat",3,0))) -> 1 | F61: Nee | G61: Plat dak | H61: Ja | I61: Begane grond (EGW) | J61: Nee | K61: Nee | M61: 1 | S61: 1 | AJ61: 1 | AK61: 1
C62: 45 | D62: Eengezinswoning | E62: =IF(Rekenblad1[[#This Row],[1 Type gebouw]]="Eengezinswoning",1, IF(Rekenblad1[[#This Row],[1 Type gebouw]]="Portieketage",2, IF(Rekenblad1[[#This Row],[1 Type gebouw]]="Galerijflat",3,0))) -> 1 | F62: Nee | G62: Plat dak | H62: Ja | I62: Eerste verdieping of hoger (EGW) | J62: Ja | K62: Ja | N62: 1 | Q62: 1 | T62: 1 | W62: 1 | AC62: 1 | AF62: 1 | AJ62: 1 | AL62: 2
C63: 46 | D63: Eengezinswoning | E63: =IF(Rekenblad1[[#This Row],[1 Type gebouw]]="Eengezinswoning",1, IF(Rekenblad1[[#This Row],[1 Type gebouw]]="Portieketage",2, IF(Rekenblad1[[#This Row],[1 Type gebouw]]="Galerijflat",3,0))) -> 1 | F63: Nee | G63: Plat dak | H63: Ja | I63: Eerste verdieping of hoger (EGW) | J63: Ja | K63: Nee | N63: 1 | Q63: 1 | T63: 1 | W63: 1 | AJ63: 1 | AL63: 2
C64: 47 | D64: Eengezinswoning | E64: =IF(Rekenblad1[[#This Row],[1 Type gebouw]]="Eengezinswoning",1, IF(Rekenblad1[[#This Row],[1 Type gebouw]]="Portieketage",2, IF(Rekenblad1[[#This Row],[1 Type gebouw]]="Galerijflat",3,0))) -> 1 | F64: Nee | G64: Plat dak | H64: Ja | I64: Eerste verdieping of hoger (EGW) | J64: Nee | K64: Ja | N64: 1 | T64: 1 | AC64: 1 | AF64: 1 | AJ64: 1 | AL64: 2
C65: 48 | D65: Eengezinswoning | E65: =IF(Rekenblad1[[#This Row],[1 Type gebouw]]="Eengezinswoning",1, IF(Rekenblad1[[#This Row],[1 Type gebouw]]="Portieketage",2, IF(Rekenblad1[[#This Row],[1 Type gebouw]]="Galerijflat",3,0))) -> 1 | F65: Nee | G65: Plat dak | H65: Ja | I65: Eerste verdieping of hoger (EGW) | J65: Nee | K65: Nee | N65: 1 | T65: 1 | AJ65: 1 | AL65: 2
C66: 49 | D66: Eengezinswoning | E66: =IF(Rekenblad1[[#This Row],[1 Type gebouw]]="Eengezinswoning",1, IF(Rekenblad1[[#This Row],[1 Type gebouw]]="Portieketage",2, IF(Rekenblad1[[#This Row],[1 Type gebouw]]="Galerijflat",3,0))) -> 1 | F66: Nee | G66: Hellend dak | H66: Nee | I66: Begane grond (EGW) | J66: Ja | K66: Ja | S66: 1 | V66: 1 | Y66: 1 | AB66: 1 | AJ66: 1 | AK66: 1
C67: 50 | D67: Eengezinswoning | E67: =IF(Rekenblad1[[#This Row],[1 Type gebouw]]="Eengezinswoning",1, IF(Rekenblad1[[#This Row],[1 Type gebouw]]="Portieketage",2, IF(Rekenblad1[[#This Row],[1 Type gebouw]]="Galerijflat",3,0))) -> 1 | F67: Nee | G67: Hellend dak | H67: Nee | I67: Begane grond (EGW) | J67: Ja | K67: Nee | S67: 1 | V67: 1 | AJ67: 1 | AK67: 1
C68: 51 | D68: Eengezinswoning | E68: =IF(Rekenblad1[[#This Row],[1 Type gebouw]]="Eengezinswoning",1, IF(Rekenblad1[[#This Row],[1 Type gebouw]]="Portieketage",2, IF(Rekenblad1[[#This Row],[1 Type gebouw]]="Galerijflat",3,0))) -> 1 | F68: Nee | G68: Hellend dak | H68: Nee | I68: Begane grond (EGW) | J68: Nee | K68: Ja | S68: 1 | Y68: 1 | AB68: 1 | AJ68: 1 | AK68: 1
C69: 52 | D69: Eengezinswoning | E69: =IF(Rekenblad1[[#This Row],[1 Type gebouw]]="Eengezinswoning",1, IF(Rekenblad1[[#This Row],[1 Type gebouw]]="Portieketage",2, IF(Rekenblad1[[#This Row],[1 Type gebouw]]="Galerijflat",3,0))) -> 1 | F69: Nee | G69: Hellend dak | H69: Nee | I69: Begane grond (EGW) | J69: Nee | K69: Nee | S69: 1 | AJ69: 1 | AK69: 1
C70: 53 | D70: Eengezinswoning | E70: =IF(Rekenblad1[[#This Row],[1 Type gebouw]]="Eengezinswoning",1, IF(Rekenblad1[[#This Row],[1 Type gebouw]]="Portieketage",2, IF(Rekenblad1[[#This Row],[1 Type gebouw]]="Galerijflat",3,0))) -> 1 | F70: Nee | G70: Hellend dak | H70: Nee | I70: Eerste verdieping of hoger (EGW) | J70: Ja | K70: Ja | T70: 1 | W70: 1 | Z70: 1 | AC70: 1 | AJ70: 1 | AL70: 2
C71: 54 | D71: Eengezinswoning | E71: =IF(Rekenblad1[[#This Row],[1 Type gebouw]]="Eengezinswoning",1, IF(Rekenblad1[[#This Row],[1 Type gebouw]]="Portieketage",2, IF(Rekenblad1[[#This Row],[1 Type gebouw]]="Galerijflat",3,0))) -> 1 | F71: Nee | G71: Hellend dak | H71: Nee | I71: Eerste verdieping of hoger (EGW) | J71: Ja | K71: Nee | T71: 1 | W71: 1 | AJ71: 1 | AL71: 2
C72: 55 | D72: Eengezinswoning | E72: =IF(Rekenblad1[[#This Row],[1 Type gebouw]]="Eengezinswoning",1, IF(Rekenblad1[[#This Row],[1 Type gebouw]]="Portieketage",2, IF(Rekenblad1[[#This Row],[1 Type gebouw]]="Galerijflat",3,0))) -> 1 | F72: Nee | G72: Hellend dak | H72: Nee | I72: Eerste verdieping of hoger (EGW) | J72: Nee | K72: Ja | T72: 1 | Z72: 1 | AC72: 1 | AJ72: 1 | AL72: 2
C73: 56 | D73: Eengezinswoning | E73: =IF(Rekenblad1[[#This Row],[1 Type gebouw]]="Eengezinswoning",1, IF(Rekenblad1[[#This Row],[1 Type gebouw]]="Portieketage",2, IF(Rekenblad1[[#This Row],[1 Type gebouw]]="Galerijflat",3,0))) -> 1 | F73: Nee | G73: Hellend dak | H73: Nee | I73: Eerste verdieping of hoger (EGW) | J73: Nee | K73: Nee | T73: 1 | AJ73: 1 | AL73: 2
C74: 57 | D74: Eengezinswoning | E74: =IF(Rekenblad1[[#This Row],[1 Type gebouw]]="Eengezinswoning",1, IF(Rekenblad1[[#This Row],[1 Type gebouw]]="Portieketage",2, IF(Rekenblad1[[#This Row],[1 Type gebouw]]="Galerijflat",3,0))) -> 1 | F74: Nee | G74: Hellend dak | H74: Ja | I74: Begane grond (EGW) | J74: Ja | K74: Ja | M74: 1 | P74: 1 | S74: 1 | V74: 1 | Y74: 1 | AB74: 1 | AJ74: 1 | AK74: 1
C75: 58 | D75: Eengezinswoning | E75: =IF(Rekenblad1[[#This Row],[1 Type gebouw]]="Eengezinswoning",1, IF(Rekenblad1[[#This Row],[1 Type gebouw]]="Portieketage",2, IF(Rekenblad1[[#This Row],[1 Type gebouw]]="Galerijflat",3,0))) -> 1 | F75: Nee | G75: Hellend dak | H75: Ja | I75: Begane grond (EGW) | J75: Ja | K75: Nee | M75: 1 | P75: 1 | S75: 1 | V75: 1 | AJ75: 1 | AK75: 1
C76: 59 | D76: Eengezinswoning | E76: =IF(Rekenblad1[[#This Row],[1 Type gebouw]]="Eengezinswoning",1, IF(Rekenblad1[[#This Row],[1 Type gebouw]]="Portieketage",2, IF(Rekenblad1[[#This Row],[1 Type gebouw]]="Galerijflat",3,0))) -> 1 | F76: Nee | G76: Hellend dak | H76: Ja | I76: Begane grond (EGW) | J76: Nee | K76: Ja | M76: 1 | S76: 1 | Y76: 1 | AB76: 1 | AJ76: 1 | AK76: 1
C77: 60 | D77: Eengezinswoning | E77: =IF(Rekenblad1[[#This Row],[1 Type gebouw]]="Eengezinswoning",1, IF(Rekenblad1[[#This Row],[1 Type gebouw]]="Portieketage",2, IF(Rekenblad1[[#This Row],[1 Type gebouw]]="Galerijflat",3,0))) -> 1 | F77: Nee | G77: Hellend dak | H77: Ja | I77: Begane grond (EGW) | J77: Nee | K77: Nee | M77: 1 | S77: 1 | AJ77: 1 | AK77: 1
C78: 61 | D78: Eengezinswoning | E78: =IF(Rekenblad1[[#This Row],[1 Type gebouw]]="Eengezinswoning",1, IF(Rekenblad1[[#This Row],[1 Type gebouw]]="Portieketage",2, IF(Rekenblad1[[#This Row],[1 Type gebouw]]="Galerijflat",3,0))) -> 1 | F78: Nee | G78: Hellend dak | H78: Ja | I78: Eerste verdieping of hoger (EGW) | J78: Ja | K78: Ja | N78: 1 | Q78: 1 | T78: 1 | W78: 1 | Z78: 1 | AC78: 1 | AJ78: 1 | AL78: 2
C79: 62 | D79: Eengezinswoning | E79: =IF(Rekenblad1[[#This Row],[1 Type gebouw]]="Eengezinswoning",1, IF(Rekenblad1[[#This Row],[1 Type gebouw]]="Portieketage",2, IF(Rekenblad1[[#This Row],[1 Type gebouw]]="Galerijflat",3,0))) -> 1 | F79: Nee | G79: Hellend dak | H79: Ja | I79: Eerste verdieping of hoger (EGW) | J79: Ja | K79: Nee | N79: 1 | Q79: 1 | T79: 1 | W79: 1 | AJ79: 1 | AL79: 2
C80: 63 | D80: Eengezinswoning | E80: =IF(Rekenblad1[[#This Row],[1 Type gebouw]]="Eengezinswoning",1, IF(Rekenblad1[[#This Row],[1 Type gebouw]]="Portieketage",2, IF(Rekenblad1[[#This Row],[1 Type gebouw]]="Galerijflat",3,0))) -> 1 | F80: Nee | G80: Hellend dak | H80: Ja | I80: Eerste verdieping of hoger (EGW) | J80: Nee | K80: Ja | N80: 1 | T80: 1 | Z80: 1 | AC80: 1 | AJ80: 1 | AL80: 2
C81: 64 | D81: Eengezinswoning | E81: =IF(Rekenblad1[[#This Row],[1 Type gebouw]]="Eengezinswoning",1, IF(Rekenblad1[[#This Row],[1 Type gebouw]]="Portieketage",2, IF(Rekenblad1[[#This Row],[1 Type gebouw]]="Galerijflat",3,0))) -> 1 | F81: Nee | G81: Hellend dak | H81: Ja | I81: Eerste verdieping of hoger (EGW) | J81: Nee | K81: Nee | N81: 1 | T81: 1 | AJ81: 1 | AL81: 2
C82: 65 | D82: Portieketage | E82: =IF(Rekenblad1[[#This Row],[1 Type gebouw]]="Eengezinswoning",1, IF(Rekenblad1[[#This Row],[1 Type gebouw]]="Portieketage",2, IF(Rekenblad1[[#This Row],[1 Type gebouw]]="Galerijflat",3,0))) -> 2 | F82: Ja | G82: Plat dak | H82: Nee | I82: In de woning (portiek/Galerij) | J82: Ja | K82: Ja | AD82: 1 | AG82: 1 | AJ82: 1
C83: 66 | D83: Portieketage | E83: =IF(Rekenblad1[[#This Row],[1 Type gebouw]]="Eengezinswoning",1, IF(Rekenblad1[[#This Row],[1 Type gebouw]]="Portieketage",2, IF(Rekenblad1[[#This Row],[1 Type gebouw]]="Galerijflat",3,0))) -> 2 | F83: Ja | G83: Plat dak | H83: Nee | I83: In de woning (portiek/Galerij) | J83: Ja | K83: Ja | AD83: 1 | AG83: 1 | AJ83: 1
C84: 67 | D84: Portieketage | E84: =IF(Rekenblad1[[#This Row],[1 Type gebouw]]="Eengezinswoning",1, IF(Rekenblad1[[#This Row],[1 Type gebouw]]="Portieketage",2, IF(Rekenblad1[[#This Row],[1 Type gebouw]]="Galerijflat",3,0))) -> 2 | F84: Ja | G84: Plat dak | H84: Nee | I84: In de woning (portiek/Galerij) | J84: Ja | K84: Ja | AD84: 1 | AG84: 1 | AJ84: 1
C85: 68 | D85: Portieketage | E85: =IF(Rekenblad1[[#This Row],[1 Type gebouw]]="Eengezinswoning",1, IF(Rekenblad1[[#This Row],[1 Type gebouw]]="Portieketage",2, IF(Rekenblad1[[#This Row],[1 Type gebouw]]="Galerijflat",3,0))) -> 2 | F85: Ja | G85: Plat dak | H85: Nee | I85: In de woning (portiek/Galerij) | J85: Ja | K85: Ja | AD85: 1 | AG85: 1 | AJ85: 1
C86: 69 | D86: Portieketage | E86: =IF(Rekenblad1[[#This Row],[1 Type gebouw]]="Eengezinswoning",1, IF(Rekenblad1[[#This Row],[1 Type gebouw]]="Portieketage",2, IF(Rekenblad1[[#This Row],[1 Type gebouw]]="Galerijflat",3,0))) -> 2 | F86: Ja | G86: Plat dak | H86: Nee | I86: In de woning (portiek/Galerij) | J86: Ja | K86: Ja | AD86: 1 | AG86: 1 | AJ86: 1
C87: 70 | D87: Portieketage | E87: =IF(Rekenblad1[[#This Row],[1 Type gebouw]]="Eengezinswoning",1, IF(Rekenblad1[[#This Row],[1 Type gebouw]]="Portieketage",2, IF(Rekenblad1[[#This Row],[1 Type gebouw]]="Galerijflat",3,0))) -> 2 | F87: Ja | G87: Plat dak | H87: Nee | I87: In de woning (portiek/Galerij) | J87: Ja | K87: Ja | AD87: 1 | AG87: 1 | AJ87: 1
C88: 71 | D88: Portieketage | E88: =IF(Rekenblad1[[#This Row],[1 Type gebouw]]="Eengezinswoning",1, IF(Rekenblad1[[#This Row],[1 Type gebouw]]="Portieketage",2, IF(Rekenblad1[[#This Row],[1 Type gebouw]]="Galerijflat",3,0))) -> 2 | F88: Ja | G88: Plat dak | H88: Nee | I88: In de woning (portiek/Galerij) | J88: Ja | K88: Ja | AD88: 1 | AG88: 1 | AJ88: 1
C89: 72 | D89: Portieketage | E89: =IF(Rekenblad1[[#This Row],[1 Type gebouw]]="Eengezinswoning",1, IF(Rekenblad1[[#This Row],[1 Type gebouw]]="Portieketage",2, IF(Rekenblad1[[#This Row],[1 Type gebouw]]="Galerijflat",3,0))) -> 2 | F89: Ja | G89: Plat dak | H89: Nee | I89: In de woning (portiek/Galerij) | J89: Ja | K89: Ja | AD89: 1 | AG89: 1 | AJ89: 1
C90: 73 | D90: Portieketage | E90: =IF(Rekenblad1[[#This Row],[1 Type gebouw]]="Eengezinswoning",1, IF(Rekenblad1[[#This Row],[1 Type gebouw]]="Portieketage",2, IF(Rekenblad1[[#This Row],[1 Type gebouw]]="Galerijflat",3,0))) -> 2 | F90: Ja | G90: Plat dak | H90: Ja | I90: In de woning (portiek/Galerij) | J90: Ja | K90: Ja | L90: 1 | O90: 1 | R90: 1 | U90: 1 | AA90: 1 | AD90: 1 | AG90: 1 | AJ90: 1
C91: 74 | D91: Portieketage | E91: =IF(Rekenblad1[[#This Row],[1 Type gebouw]]="Eengezinswoning",1, IF(Rekenblad1[[#This Row],[1 Type gebouw]]="Portieketage",2, IF(Rekenblad1[[#This Row],[1 Type gebouw]]="Galerijflat",3,0))) -> 2 | F91: Ja | G91: Plat dak | H91: Ja | I91: In de woning (portiek/Galerij) | J91: Ja | K91: Ja | L91: 1 | O91: 1 | R91: 1 | U91: 1 | AA91: 1 | AD91: 1 | AG91: 1 | AJ91: 1
C92: 75 | D92: Portieketage | E92: =IF(Rekenblad1[[#This Row],[1 Type gebouw]]="Eengezinswoning",1, IF(Rekenblad1[[#This Row],[1 Type gebouw]]="Portieketage",2, IF(Rekenblad1[[#This Row],[1 Type gebouw]]="Galerijflat",3,0))) -> 2 | F92: Ja | G92: Plat dak | H92: Ja | I92: In de woning (portiek/Galerij) | J92: Ja | K92: Ja | L92: 1 | O92: 1 | R92: 1 | U92: 1 | AA92: 1 | AD92: 1 | AG92: 1 | AJ92: 1
C93: 76 | D93: Portieketage | E93: =IF(Rekenblad1[[#This Row],[1 Type gebouw]]="Eengezinswoning",1, IF(Rekenblad1[[#This Row],[1 Type gebouw]]="Portieketage",2, IF(Rekenblad1[[#This Row],[1 Type gebouw]]="Galerijflat",3,0))) -> 2 | F93: Ja | G93: Plat dak | H93: Ja | I93: In de woning (portiek/Galerij) | J93: Ja | K93: Ja | L93: 1 | O93: 1 | R93: 1 | U93: 1 | AA93: 1 | AD93: 1 | AG93: 1 | AJ93: 1
C94: 77 | D94: Portieketage | E94: =IF(Rekenblad1[[#This Row],[1 Type gebouw]]="Eengezinswoning",1, IF(Rekenblad1[[#This Row],[1 Type gebouw]]="Portieketage",2, IF(Rekenblad1[[#This Row],[1 Type gebouw]]="Galerijflat",3,0))) -> 2 | F94: Ja | G94: Plat dak | H94: Ja | I94: In de woning (portiek/Galerij) | J94: Ja | K94: Ja | L94: 1 | O94: 1 | R94: 1 | U94: 1 | AA94: 1 | AD94: 1 | AG94: 1 | AJ94: 1
C95: 78 | D95: Portieketage | E95: =IF(Rekenblad1[[#This Row],[1 Type gebouw]]="Eengezinswoning",1, IF(Rekenblad1[[#This Row],[1 Type gebouw]]="Portieketage",2, IF(Rekenblad1[[#This Row],[1 Type gebouw]]="Galerijflat",3,0))) -> 2 | F95: Ja | G95: Plat dak | H95: Ja | I95: In de woning (portiek/Galerij) | J95: Ja | K95: Ja | L95: 1 | O95: 1 | R95: 1 | U95: 1 | AA95: 1 | AD95: 1 | AG95: 1 | AJ95: 1
C96: 79 | D96: Portieketage | E96: =IF(Rekenblad1[[#This Row],[1 Type gebouw]]="Eengezinswoning",1, IF(Rekenblad1[[#This Row],[1 Type gebouw]]="Portieketage",2, IF(Rekenblad1[[#This Row],[1 Type gebouw]]="Galerijflat",3,0))) -> 2 | F96: Ja | G96: Plat dak | H96: Ja | I96: In de woning (portiek/Galerij) | J96: Ja | K96: Ja | L96: 1 | O96: 1 | R96: 1 | U96: 1 | AA96: 1 | AD96: 1 | AG96: 1 | AJ96: 1
C97: 80 | D97: Portieketage | E97: =IF(Rekenblad1[[#This Row],[1 Type gebouw]]="Eengezinswoning",1, IF(Rekenblad1[[#This Row],[1 Type gebouw]]="Portieketage",2, IF(Rekenblad1[[#This Row],[1 Type gebouw]]="Galerijflat",3,0))) -> 2 | F97: Ja | G97: Plat dak | H97: Ja | I97: In de woning (portiek/Galerij) | J97: Ja | K97: Ja | L97: 1 | O97: 1 | R97: 1 | U97: 1 | AA97: 1 | AD97: 1 | AG97: 1 | AJ97: 1
C98: 81 | D98: Portieketage | E98: =IF(Rekenblad1[[#This Row],[1 Type gebouw]]="Eengezinswoning",1, IF(Rekenblad1[[#This Row],[1 Type gebouw]]="Portieketage",2, IF(Rekenblad1[[#This Row],[1 Type gebouw]]="Galerijflat",3,0))) -> 2 | F98: Ja | G98: Hellend dak | H98: Nee | I98: In de woning (portiek/Galerij) | J98: Ja | K98: Ja | X98: 1 | AG98: 1 | AJ98: 1
C99: 82 | D99: Portieketage | E99: =IF(Rekenblad1[[#This Row],[1 Type gebouw]]="Eengezinswoning",1, IF(Rekenblad1[[#This Row],[1 Type gebouw]]="Portieketage",2, IF(Rekenblad1[[#This Row],[1 Type gebouw]]="Galerijflat",3,0))) -> 2 | F99: Ja | G99: Hellend dak | H99: Nee | I99: In de woning (portiek/Galerij) | J99: Ja | K99: Ja | X99: 1 | AG99: 1 | AJ99: 1
C100: 83 | D100: Portieketage | E100: =IF(Rekenblad1[[#This Row],[1 Type gebouw]]="Eengezinswoning",1, IF(Rekenblad1[[#This Row],[1 Type gebouw]]="Portieketage",2, IF(Rekenblad1[[#This Row],[1 Type gebouw]]="Galerijflat",3,0))) -> 2 | F100: Ja | G100: Hellend dak | H100: Nee | I100: In de woning (portiek/Galerij) | J100: Ja | K100: Ja | X100: 1 | AG100: 1 | AJ100: 1
C101: 84 | D101: Portieketage | E101: =IF(Rekenblad1[[#This Row],[1 Type gebouw]]="Eengezinswoning",1, IF(Rekenblad1[[#This Row],[1 Type gebouw]]="Portieketage",2, IF(Rekenblad1[[#This Row],[1 Type gebouw]]="Galerijflat",3,0))) -> 2 | F101: Ja | G101: Hellend dak | H101: Nee | I101: In de woning (portiek/Galerij) | J101: Ja | K101: Ja | X101: 1 | AG101: 1 | AJ101: 1
C102: 85 | D102: Portieketage | E102: =IF(Rekenblad1[[#This Row],[1 Type gebouw]]="Eengezinswoning",1, IF(Rekenblad1[[#This Row],[1 Type gebouw]]="Portieketage",2, IF(Rekenblad1[[#This Row],[1 Type gebouw]]="Galerijflat",3,0))) -> 2 | F102: Ja | G102: Hellend dak | H102: Nee | I102: In de woning (portiek/Galerij) | J102: Ja | K102: Ja | X102: 1 | AG102: 1 | AJ102: 1
C103: 86 | D103: Portieketage | E103: =IF(Rekenblad1[[#This Row],[1 Type gebouw]]="Eengezinswoning",1, IF(Rekenblad1[[#This Row],[1 Type gebouw]]="Portieketage",2, IF(Rekenblad1[[#This Row],[1 Type gebouw]]="Galerijflat",3,0))) -> 2 | F103: Ja | G103: Hellend dak | H103: Nee | I103: In de woning (portiek/Galerij) | J103: Ja | K103: Ja | X103: 1 | AG103: 1 | AJ103: 1
C104: 87 | D104: Portieketage | E104: =IF(Rekenblad1[[#This Row],[1 Type gebouw]]="Eengezinswoning",1, IF(Rekenblad1[[#This Row],[1 Type gebouw]]="Portieketage",2, IF(Rekenblad1[[#This Row],[1 Type gebouw]]="Galerijflat",3,0))) -> 2 | F104: Ja | G104: Hellend dak | H104: Nee | I104: In de woning (portiek/Galerij) | J104: Ja | K104: Ja | X104: 1 | AG104: 1 | AJ104: 1
C105: 88 | D105: Portieketage | E105: =IF(Rekenblad1[[#This Row],[1 Type gebouw]]="Eengezinswoning",1, IF(Rekenblad1[[#This Row],[1 Type gebouw]]="Portieketage",2, IF(Rekenblad1[[#This Row],[1 Type gebouw]]="Galerijflat",3,0))) -> 2 | F105: Ja | G105: Hellend dak | H105: Nee | I105: In de woning (portiek/Galerij) | J105: Ja | K105: Ja | X105: 1 | AG105: 1 | AJ105: 1
C106: 89 | D106: Portieketage | E106: =IF(Rekenblad1[[#This Row],[1 Type gebouw]]="Eengezinswoning",1, IF(Rekenblad1[[#This Row],[1 Type gebouw]]="Portieketage",2, IF(Rekenblad1[[#This Row],[1 Type gebouw]]="Galerijflat",3,0))) -> 2 | F106: Ja | G106: Hellend dak | H106: Ja | I106: In de woning (portiek/Galerij) | J106: Ja | K106: Ja | L106: 1 | O106: 1 | R106: 1 | U106: 1 | X106: 1 | AA106: 1 | AG106: 1 | AJ106: 1
C107: 90 | D107: Portieketage | E107: =IF(Rekenblad1[[#This Row],[1 Type gebouw]]="Eengezinswoning",1, IF(Rekenblad1[[#This Row],[1 Type gebouw]]="Portieketage",2, IF(Rekenblad1[[#This Row],[1 Type gebouw]]="Galerijflat",3,0))) -> 2 | F107: Ja | G107: Hellend dak | H107: Ja | I107: In de woning (portiek/Galerij) | J107: Ja | K107: Ja | L107: 1 | O107: 1 | R107: 1 | U107: 1 | X107: 1 | AA107: 1 | AG107: 1 | AJ107: 1
C108: 91 | D108: Portieketage | E108: =IF(Rekenblad1[[#This Row],[1 Type gebouw]]="Eengezinswoning",1, IF(Rekenblad1[[#This Row],[1 Type gebouw]]="Portieketage",2, IF(Rekenblad1[[#This Row],[1 Type gebouw]]="Galerijflat",3,0))) -> 2 | F108: Ja | G108: Hellend dak | H108: Ja | I108: In de woning (portiek/Galerij) | J108: Ja | K108: Ja | L108: 1 | O108: 1 | R108: 1 | U108: 1 | X108: 1 | AA108: 1 | AG108: 1 | AJ108: 1
C109: 92 | D109: Portieketage | E109: =IF(Rekenblad1[[#This Row],[1 Type gebouw]]="Eengezinswoning",1, IF(Rekenblad1[[#This Row],[1 Type gebouw]]="Portieketage",2, IF(Rekenblad1[[#This Row],[1 Type gebouw]]="Galerijflat",3,0))) -> 2 | F109: Ja | G109: Hellend dak | H109: Ja | I109: In de woning (portiek/Galerij) | J109: Ja | K109: Ja | L109: 1 | O109: 1 | R109: 1 | U109: 1 | X109: 1 | AA109: 1 | AG109: 1 | AJ109: 1
C110: 93 | D110: Portieketage | E110: =IF(Rekenblad1[[#This Row],[1 Type gebouw]]="Eengezinswoning",1, IF(Rekenblad1[[#This Row],[1 Type gebouw]]="Portieketage",2, IF(Rekenblad1[[#This Row],[1 Type gebouw]]="Galerijflat",3,0))) -> 2 | F110: Ja | G110: Hellend dak | H110: Ja | I110: In de woning (portiek/Galerij) | J110: Ja | K110: Ja | L110: 1 | O110: 1 | R110: 1 | U110: 1 | X110: 1 | AA110: 1 | AG110: 1 | AJ110: 1
C111: 94 | D111: Portieketage | E111: =IF(Rekenblad1[[#This Row],[1 Type gebouw]]="Eengezinswoning",1, IF(Rekenblad1[[#This Row],[1 Type gebouw]]="Portieketage",2, IF(Rekenblad1[[#This Row],[1 Type gebouw]]="Galerijflat",3,0))) -> 2 | F111: Ja | G111: Hellend dak | H111: Ja | I111: In de woning (portiek/Galerij) | J111: Ja | K111: Ja | L111: 1 | O111: 1 | R111: 1 | U111: 1 | X111: 1 | AA111: 1 | AG111: 1 | AJ111: 1
C112: 95 | D112: Portieketage | E112: =IF(Rekenblad1[[#This Row],[1 Type gebouw]]="Eengezinswoning",1, IF(Rekenblad1[[#This Row],[1 Type gebouw]]="Portieketage",2, IF(Rekenblad1[[#This Row],[1 Type gebouw]]="Galerijflat",3,0))) -> 2 | F112: Ja | G112: Hellend dak | H112: Ja | I112: In de woning (portiek/Galerij) | J112: Ja | K112: Ja | L112: 1 | O112: 1 | R112: 1 | U112: 1 | X112: 1 | AA112: 1 | AG112: 1 | AJ112: 1
C113: 96 | D113: Portieketage | E113: =IF(Rekenblad1[[#This Row],[1 Type gebouw]]="Eengezinswoning",1, IF(Rekenblad1[[#This Row],[1 Type gebouw]]="Portieketage",2, IF(Rekenblad1[[#This Row],[1 Type gebouw]]="Galerijflat",3,0))) -> 2 | F113: Ja | G113: Hellend dak | H113: Ja | I113: In de woning (portiek/Galerij) | J113: Ja | K113: Ja | L113: 1 | O113: 1 | R113: 1 | U113: 1 | X113: 1 | AA113: 1 | AG113: 1 | AJ113: 1
C114: 97 | D114: Portieketage | E114: =IF(Rekenblad1[[#This Row],[1 Type gebouw]]="Eengezinswoning",1, IF(Rekenblad1[[#This Row],[1 Type gebouw]]="Portieketage",2, IF(Rekenblad1[[#This Row],[1 Type gebouw]]="Galerijflat",3,0))) -> 2 | F114: Nee | G114: Plat dak | H114: Nee | I114: In de woning (portiek/Galerij) | J114: Ja | K114: Ja | AD114: 1 | AJ114: 1
C115: 98 | D115: Portieketage | E115: =IF(Rekenblad1[[#This Row],[1 Type gebouw]]="Eengezinswoning",1, IF(Rekenblad1[[#This Row],[1 Type gebouw]]="Portieketage",2, IF(Rekenblad1[[#This Row],[1 Type gebouw]]="Galerijflat",3,0))) -> 2 | F115: Nee | G115: Plat dak | H115: Nee | I115: In de woning (portiek/Galerij) | J115: Ja | K115: Ja | AD115: 1 | AJ115: 1
C116: 99 | D116: Portieketage | E116: =IF(Rekenblad1[[#This Row],[1 Type gebouw]]="Eengezinswoning",1, IF(Rekenblad1[[#This Row],[1 Type gebouw]]="Portieketage",2, IF(Rekenblad1[[#This Row],[1 Type gebouw]]="Galerijflat",3,0))) -> 2 | F116: Nee | G116: Plat dak | H116: Nee | I116: In de woning (portiek/Galerij) | J116: Ja | K116: Ja | AD116: 1 | AJ116: 1
C117: 100 | D117: Portieketage | E117: =IF(Rekenblad1[[#This Row],[1 Type gebouw]]="Eengezinswoning",1, IF(Rekenblad1[[#This Row],[1 Type gebouw]]="Portieketage",2, IF(Rekenblad1[[#This Row],[1 Type gebouw]]="Galerijflat",3,0))) -> 2 | F117: Nee | G117: Plat dak | H117: Nee | I117: In de woning (portiek/Galerij) | J117: Ja | K117: Ja | AD117: 1 | AJ117: 1
C118: 101 | D118: Portieketage | E118: =IF(Rekenblad1[[#This Row],[1 Type gebouw]]="Eengezinswoning",1, IF(Rekenblad1[[#This Row],[1 Type gebouw]]="Portieketage",2, IF(Rekenblad1[[#This Row],[1 Type gebouw]]="Galerijflat",3,0))) -> 2 | F118: Nee | G118: Plat dak | H118: Nee | I118: In de woning (portiek/Galerij) | J118: Ja | K118: Ja | AD118: 1 | AJ118: 1
C119: 102 | D119: Portieketage | E119: =IF(Rekenblad1[[#This Row],[1 Type gebouw]]="Eengezinswoning",1, IF(Rekenblad1[[#This Row],[1 Type gebouw]]="Portieketage",2, IF(Rekenblad1[[#This Row],[1 Type gebouw]]="Galerijflat",3,0))) -> 2 | F119: Nee | G119: Plat dak | H119: Nee | I119: In de woning (portiek/Galerij) | J119: Ja | K119: Ja | AD119: 1 | AJ119: 1
C120: 103 | D120: Portieketage | E120: =IF(Rekenblad1[[#This Row],[1 Type gebouw]]="Eengezinswoning",1, IF(Rekenblad1[[#This Row],[1 Type gebouw]]="Portieketage",2, IF(Rekenblad1[[#This Row],[1 Type gebouw]]="Galerijflat",3,0))) -> 2 | F120: Nee | G120: Plat dak | H120: Nee | I120: In de woning (portiek/Galerij) | J120: Ja | K120: Ja | AD120: 1 | AJ120: 1
C121: 104 | D121: Portieketage | E121: =IF(Rekenblad1[[#This Row],[1 Type gebouw]]="Eengezinswoning",1, IF(Rekenblad1[[#This Row],[1 Type gebouw]]="Portieketage",2, IF(Rekenblad1[[#This Row],[1 Type gebouw]]="Galerijflat",3,0))) -> 2 | F121: Nee | G121: Plat dak | H121: Nee | I121: In de woning (portiek/Galerij) | J121: Ja | K121: Ja | AD121: 1 | AJ121: 1
C122: 105 | D122: Portieketage | E122: =IF(Rekenblad1[[#This Row],[1 Type gebouw]]="Eengezinswoning",1, IF(Rekenblad1[[#This Row],[1 Type gebouw]]="Portieketage",2, IF(Rekenblad1[[#This Row],[1 Type gebouw]]="Galerijflat",3,0))) -> 2 | F122: Nee | G122: Plat dak | H122: Ja | I122: In de woning (portiek/Galerij) | J122: Ja | K122: Ja | L122: 1 | O122: 1 | R122: 1 | U122: 1 | AA122: 1 | AD122: 1 | AJ122: 1
C123: 106 | D123: Portieketage | E123: =IF(Rekenblad1[[#This Row],[1 Type gebouw]]="Eengezinswoning",1, IF(Rekenblad1[[#This Row],[1 Type gebouw]]="Portieketage",2, IF(Rekenblad1[[#This Row],[1 Type gebouw]]="Galerijflat",3,0))) -> 2 | F123: Nee | G123: Plat dak | H123: Ja | I123: In de woning (portiek/Galerij) | J123: Ja | K123: Ja | L123: 1 | O123: 1 | R123: 1 | U123: 1 | AA123: 1 | AD123: 1 | AJ123: 1
C124: 107 | D124: Portieketage | E124: =IF(Rekenblad1[[#This Row],[1 Type gebouw]]="Eengezinswoning",1, IF(Rekenblad1[[#This Row],[1 Type gebouw]]="Portieketage",2, IF(Rekenblad1[[#This Row],[1 Type gebouw]]="Galerijflat",3,0))) -> 2 | F124: Nee | G124: Plat dak | H124: Ja | I124: In de woning (portiek/Galerij) | J124: Ja | K124: Ja | L124: 1 | O124: 1 | R124: 1 | U124: 1 | AA124: 1 | AD124: 1 | AJ124: 1
C125: 108 | D125: Portieketage | E125: =IF(Rekenblad1[[#This Row],[1 Type gebouw]]="Eengezinswoning",1, IF(Rekenblad1[[#This Row],[1 Type gebouw]]="Portieketage",2, IF(Rekenblad1[[#This Row],[1 Type gebouw]]="Galerijflat",3,0))) -> 2 | F125: Nee | G125: Plat dak | H125: Ja | I125: In de woning (portiek/Galerij) | J125: Ja | K125: Ja | L125: 1 | O125: 1 | R125: 1 | U125: 1 | AA125: 1 | AD125: 1 | AJ125: 1
C126: 109 | D126: Portieketage | E126: =IF(Rekenblad1[[#This Row],[1 Type gebouw]]="Eengezinswoning",1, IF(Rekenblad1[[#This Row],[1 Type gebouw]]="Portieketage",2, IF(Rekenblad1[[#This Row],[1 Type gebouw]]="Galerijflat",3,0))) -> 2 | F126: Nee | G126: Plat dak | H126: Ja | I126: In de woning (portiek/Galerij) | J126: Ja | K126: Ja | L126: 1 | O126: 1 | R126: 1 | U126: 1 | AA126: 1 | AD126: 1 | AJ126: 1
C127: 110 | D127: Portieketage | E127: =IF(Rekenblad1[[#This Row],[1 Type gebouw]]="Eengezinswoning",1, IF(Rekenblad1[[#This Row],[1 Type gebouw]]="Portieketage",2, IF(Rekenblad1[[#This Row],[1 Type gebouw]]="Galerijflat",3,0))) -> 2 | F127: Nee | G127: Plat dak | H127: Ja | I127: In de woning (portiek/Galerij) | J127: Ja | K127: Ja | L127: 1 | O127: 1 | R127: 1 | U127: 1 | AA127: 1 | AD127: 1 | AJ127: 1
C128: 111 | D128: Portieketage | E128: =IF(Rekenblad1[[#This Row],[1 Type gebouw]]="Eengezinswoning",1, IF(Rekenblad1[[#This Row],[1 Type gebouw]]="Portieketage",2, IF(Rekenblad1[[#This Row],[1 Type gebouw]]="Galerijflat",3,0))) -> 2 | F128: Nee | G128: Plat dak | H128: Ja | I128: In de woning (portiek/Galerij) | J128: Ja | K128: Ja | L128: 1 | O128: 1 | R128: 1 | U128: 1 | AA128: 1 | AD128: 1 | AJ128: 1
C129: 112 | D129: Portieketage | E129: =IF(Rekenblad1[[#This Row],[1 Type gebouw]]="Eengezinswoning",1, IF(Rekenblad1[[#This Row],[1 Type gebouw]]="Portieketage",2, IF(Rekenblad1[[#This Row],[1 Type gebouw]]="Galerijflat",3,0))) -> 2 | F129: Nee | G129: Plat dak | H129: Ja | I129: In de woning (portiek/Galerij) | J129: Ja | K129: Ja | L129: 1 | O129: 1 | R129: 1 | U129: 1 | AA129: 1 | AD129: 1 | AJ129: 1
C130: 113 | D130: Portieketage | E130: =IF(Rekenblad1[[#This Row],[1 Type gebouw]]="Eengezinswoning",1, IF(Rekenblad1[[#This Row],[1 Type gebouw]]="Portieketage",2, IF(Rekenblad1[[#This Row],[1 Type gebouw]]="Galerijflat",3,0))) -> 2 | F130: Nee | G130: Hellend dak | H130: Nee | I130: In de woning (portiek/Galerij) | J130: Ja | K130: Ja | X130: 1 | AJ130: 1
C131: 114 | D131: Portieketage | E131: =IF(Rekenblad1[[#This Row],[1 Type gebouw]]="Eengezinswoning",1, IF(Rekenblad1[[#This Row],[1 Type gebouw]]="Portieketage",2, IF(Rekenblad1[[#This Row],[1 Type gebouw]]="Galerijflat",3,0))) -> 2 | F131: Nee | G131: Hellend dak | H131: Nee | I131: In de woning (portiek/Galerij) | J131: Ja | K131: Ja | X131: 1 | AJ131: 1
C132: 115 | D132: Portieketage | E132: =IF(Rekenblad1[[#This Row],[1 Type gebouw]]="Eengezinswoning",1, IF(Rekenblad1[[#This Row],[1 Type gebouw]]="Portieketage",2, IF(Rekenblad1[[#This Row],[1 Type gebouw]]="Galerijflat",3,0))) -> 2 | F132: Nee | G132: Hellend dak | H132: Nee | I132: In de woning (portiek/Galerij) | J132: Ja | K132: Ja | X132: 1 | AJ132: 1
C133: 116 | D133: Portieketage | E133: =IF(Rekenblad1[[#This Row],[1 Type gebouw]]="Eengezinswoning",1, IF(Rekenblad1[[#This Row],[1 Type gebouw]]="Portieketage",2, IF(Rekenblad1[[#This Row],[1 Type gebouw]]="Galerijflat",3,0))) -> 2 | F133: Nee | G133: Hellend dak | H133: Nee | I133: In de woning (portiek/Galerij) | J133: Ja | K133: Ja | X133: 1 | AJ133: 1
C134: 117 | D134: Portieketage | E134: =IF(Rekenblad1[[#This Row],[1 Type gebouw]]="Eengezinswoning",1, IF(Rekenblad1[[#This Row],[1 Type gebouw]]="Portieketage",2, IF(Rekenblad1[[#This Row],[1 Type gebouw]]="Galerijflat",3,0))) -> 2 | F134: Nee | G134: Hellend dak | H134: Nee | I134: In de woning (portiek/Galerij) | J134: Ja | K134: Ja | X134: 1 | AJ134: 1
C135: 118 | D135: Portieketage | E135: =IF(Rekenblad1[[#This Row],[1 Type gebouw]]="Eengezinswoning",1, IF(Rekenblad1[[#This Row],[1 Type gebouw]]="Portieketage",2, IF(Rekenblad1[[#This Row],[1 Type gebouw]]="Galerijflat",3,0))) -> 2 | F135: Nee | G135: Hellend dak | H135: Nee | I135: In de woning (portiek/Galerij) | J135: Ja | K135: Ja | X135: 1 | AJ135: 1
C136: 119 | D136: Portieketage | E136: =IF(Rekenblad1[[#This Row],[1 Type gebouw]]="Eengezinswoning",1, IF(Rekenblad1[[#This Row],[1 Type gebouw]]="Portieketage",2, IF(Rekenblad1[[#This Row],[1 Type gebouw]]="Galerijflat",3,0))) -> 2 | F136: Nee | G136: Hellend dak | H136: Nee | I136: In de woning (portiek/Galerij) | J136: Ja | K136: Ja | X136: 1 | AJ136: 1
C137: 120 | D137: Portieketage | E137: =IF(Rekenblad1[[#This Row],[1 Type gebouw]]="Eengezinswoning",1, IF(Rekenblad1[[#This Row],[1 Type gebouw]]="Portieketage",2, IF(Rekenblad1[[#This Row],[1 Type gebouw]]="Galerijflat",3,0))) -> 2 | F137: Nee | G137: Hellend dak | H137: Nee | I137: In de woning (portiek/Galerij) | J137: Ja | K137: Ja | X137: 1 | AJ137: 1
C138: 121 | D138: Portieketage | E138: =IF(Rekenblad1[[#This Row],[1 Type gebouw]]="Eengezinswoning",1, IF(Rekenblad1[[#This Row],[1 Type gebouw]]="Portieketage",2, IF(Rekenblad1[[#This Row],[1 Type gebouw]]="Galerijflat",3,0))) -> 2 | F138: Nee | G138: Hellend dak | H138: Ja | I138: In de woning (portiek/Galerij) | J138: Ja | K138: Ja | L138: 1 | O138: 1 | R138: 1 | U138: 1 | X138: 1 | AA138: 1 | AJ138: 1
C139: 122 | D139: Portieketage | E139: =IF(Rekenblad1[[#This Row],[1 Type gebouw]]="Eengezinswoning",1, IF(Rekenblad1[[#This Row],[1 Type gebouw]]="Portieketage",2, IF(Rekenblad1[[#This Row],[1 Type gebouw]]="Galerijflat",3,0))) -> 2 | F139: Nee | G139: Hellend dak | H139: Ja | I139: In de woning (portiek/Galerij) | J139: Ja | K139: Ja | L139: 1 | O139: 1 | R139: 1 | U139: 1 | X139: 1 | AA139: 1 | AJ139: 1
C140: 123 | D140: Portieketage | E140: =IF(Rekenblad1[[#This Row],[1 Type gebouw]]="Eengezinswoning",1, IF(Rekenblad1[[#This Row],[1 Type gebouw]]="Portieketage",2, IF(Rekenblad1[[#This Row],[1 Type gebouw]]="Galerijflat",3,0))) -> 2 | F140: Nee | G140: Hellend dak | H140: Ja | I140: In de woning (portiek/Galerij) | J140: Ja | K140: Ja | L140: 1 | O140: 1 | R140: 1 | U140: 1 | X140: 1 | AA140: 1 | AJ140: 1
C141: 124 | D141: Portieketage | E141: =IF(Rekenblad1[[#This Row],[1 Type gebouw]]="Eengezinswoning",1, IF(Rekenblad1[[#This Row],[1 Type gebouw]]="Portieketage",2, IF(Rekenblad1[[#This Row],[1 Type gebouw]]="Galerijflat",3,0))) -> 2 | F141: Nee | G141: Hellend dak | H141: Ja | I141: In de woning (portiek/Galerij) | J141: Ja | K141: Ja | L141: 1 | O141: 1 | R141: 1 | U141: 1 | X141: 1 | AA141: 1 | AJ141: 1
C142: 125 | D142: Portieketage | E142: =IF(Rekenblad1[[#This Row],[1 Type gebouw]]="Eengezinswoning",1, IF(Rekenblad1[[#This Row],[1 Type gebouw]]="Portieketage",2, IF(Rekenblad1[[#This Row],[1 Type gebouw]]="Galerijflat",3,0))) -> 2 | F142: Nee | G142: Hellend dak | H142: Ja | I142: In de woning (portiek/Galerij) | J142: Ja | K142: Ja | L142: 1 | O142: 1 | R142: 1 | U142: 1 | X142: 1 | AA142: 1 | AJ142: 1
C143: 126 | D143: Portieketage | E143: =IF(Rekenblad1[[#This Row],[1 Type gebouw]]="Eengezinswoning",1, IF(Rekenblad1[[#This Row],[1 Type gebouw]]="Portieketage",2, IF(Rekenblad1[[#This Row],[1 Type gebouw]]="Galerijflat",3,0))) -> 2 | F143: Nee | G143: Hellend dak | H143: Ja | I143: In de woning (portiek/Galerij) | J143: Ja | K143: Ja | L143: 1 | O143: 1 | R143: 1 | U143: 1 | X143: 1 | AA143: 1 | AJ143: 1
C144: 127 | D144: Portieketage | E144: =IF(Rekenblad1[[#This Row],[1 Type gebouw]]="Eengezinswoning",1, IF(Rekenblad1[[#This Row],[1 Type gebouw]]="Portieketage",2, IF(Rekenblad1[[#This Row],[1 Type gebouw]]="Galerijflat",3,0))) -> 2 | F144: Nee | G144: Hellend dak | H144: Ja | I144: In de woning (portiek/Galerij) | J144: Ja | K144: Ja | L144: 1 | O144: 1 | R144: 1 | U144: 1 | X144: 1 | AA144: 1 | AJ144: 1
C145: 128 | D145: Portieketage | E145: =IF(Rekenblad1[[#This Row],[1 Type gebouw]]="Eengezinswoning",1, IF(Rekenblad1[[#This Row],[1 Type gebouw]]="Portieketage",2, IF(Rekenblad1[[#This Row],[1 Type gebouw]]="Galerijflat",3,0))) -> 2 | F145: Nee | G145: Hellend dak | H145: Ja | I145: In de woning (portiek/Galerij) | J145: Ja | K145: Ja | L145: 1 | O145: 1 | R145: 1 | U145: 1 | X145: 1 | AA145: 1 | AJ145: 1
C146: 129 | D146: Galerijflat | E146: =IF(Rekenblad1[[#This Row],[1 Type gebouw]]="Eengezinswoning",1, IF(Rekenblad1[[#This Row],[1 Type gebouw]]="Portieketage",2, IF(Rekenblad1[[#This Row],[1 Type gebouw]]="Galerijflat",3,0))) -> 3 | F146: Ja | G146: Plat dak | H146: Nee | I146: In de woning (portiek/Galerij) | J146: Ja | K146: Ja | AD146: 1 | AG146: 1 | AJ146: 1
C147: 130 | D147: Galerijflat | E147: =IF(Rekenblad1[[#This Row],[1 Type gebouw]]="Eengezinswoning",1, IF(Rekenblad1[[#This Row],[1 Type gebouw]]="Portieketage",2, IF(Rekenblad1[[#This Row],[1 Type gebouw]]="Galerijflat",3,0))) -> 3 | F147: Ja | G147: Plat dak | H147: Nee | I147: In de woning (portiek/Galerij) | J147: Ja | K147: Ja | AD147: 1 | AG147: 1 | AJ147: 1
C148: 131 | D148: Galerijflat | E148: =IF(Rekenblad1[[#This Row],[1 Type gebouw]]="Eengezinswoning",1, IF(Rekenblad1[[#This Row],[1 Type gebouw]]="Portieketage",2, IF(Rekenblad1[[#This Row],[1 Type gebouw]]="Galerijflat",3,0))) -> 3 | F148: Ja | G148: Plat dak | H148: Nee | I148: In de woning (portiek/Galerij) | J148: Nee | K148: Ja | AD148: 1 | AG148: 1 | AJ148: 1
C149: 132 | D149: Galerijflat | E149: =IF(Rekenblad1[[#This Row],[1 Type gebouw]]="Eengezinswoning",1, IF(Rekenblad1[[#This Row],[1 Type gebouw]]="Portieketage",2, IF(Rekenblad1[[#This Row],[1 Type gebouw]]="Galerijflat",3,0))) -> 3 | F149: Ja | G149: Plat dak | H149: Nee | I149: In de woning (portiek/Galerij) | J149: Nee | K149: Ja | AD149: 1 | AG149: 1 | AJ149: 1
C150: 133 | D150: Galerijflat | E150: =IF(Rekenblad1[[#This Row],[1 Type gebouw]]="Eengezinswoning",1, IF(Rekenblad1[[#This Row],[1 Type gebouw]]="Portieketage",2, IF(Rekenblad1[[#This Row],[1 Type gebouw]]="Galerijflat",3,0))) -> 3 | F150: Ja | G150: Plat dak | H150: Nee | I150: In de woning (portiek/Galerij) | J150: Ja | K150: Ja | AD150: 1 | AG150: 1 | AJ150: 1
C151: 134 | D151: Galerijflat | E151: =IF(Rekenblad1[[#This Row],[1 Type gebouw]]="Eengezinswoning",1, IF(Rekenblad1[[#This Row],[1 Type gebouw]]="Portieketage",2, IF(Rekenblad1[[#This Row],[1 Type gebouw]]="Galerijflat",3,0))) -> 3 | F151: Ja | G151: Plat dak | H151: Nee | I151: In de woning (portiek/Galerij) | J151: Ja | K151: Ja | AD151: 1 | AG151: 1 | AJ151: 1
C152: 135 | D152: Galerijflat | E152: =IF(Rekenblad1[[#This Row],[1 Type gebouw]]="Eengezinswoning",1, IF(Rekenblad1[[#This Row],[1 Type gebouw]]="Portieketage",2, IF(Rekenblad1[[#This Row],[1 Type gebouw]]="Galerijflat",3,0))) -> 3 | F152: Ja | G152: Plat dak | H152: Nee | I152: In de woning (portiek/Galerij) | J152: Nee | K152: Ja | AD152: 1 | AG152: 1 | AJ152: 1
C153: 136 | D153: Galerijflat | E153: =IF(Rekenblad1[[#This Row],[1 Type gebouw]]="Eengezinswoning",1, IF(Rekenblad1[[#This Row],[1 Type gebouw]]="Portieketage",2, IF(Rekenblad1[[#This Row],[1 Type gebouw]]="Galerijflat",3,0))) -> 3 | F153: Ja | G153: Plat dak | H153: Nee | I153: In de woning (portiek/Galerij) | J153: Nee | K153: Ja | AD153: 1 | AG153: 1 | AJ153: 1
C154: 137 | D154: Galerijflat | E154: =IF(Rekenblad1[[#This Row],[1 Type gebouw]]="Eengezinswoning",1, IF(Rekenblad1[[#This Row],[1 Type gebouw]]="Portieketage",2, IF(Rekenblad1[[#This Row],[1 Type gebouw]]="Galerijflat",3,0))) -> 3 | F154: Ja | G154: Plat dak | H154: Ja | I154: In de woning (portiek/Galerij) | J154: Ja | K154: Ja | L154: 1 | O154: 1 | R154: 1 | U154: 1 | AA154: 1 | AD154: 1 | AG154: 1 | AJ154: 1
C155: 138 | D155: Galerijflat | E155: =IF(Rekenblad1[[#This Row],[1 Type gebouw]]="Eengezinswoning",1, IF(Rekenblad1[[#This Row],[1 Type gebouw]]="Portieketage",2, IF(Rekenblad1[[#This Row],[1 Type gebouw]]="Galerijflat",3,0))) -> 3 | F155: Ja | G155: Plat dak | H155: Ja | I155: In de woning (portiek/Galerij) | J155: Ja | K155: Ja | L155: 1 | O155: 1 | R155: 1 | U155: 1 | AA155: 1 | AD155: 1 | AG155: 1 | AJ155: 1
C156: 139 | D156: Galerijflat | E156: =IF(Rekenblad1[[#This Row],[1 Type gebouw]]="Eengezinswoning",1, IF(Rekenblad1[[#This Row],[1 Type gebouw]]="Portieketage",2, IF(Rekenblad1[[#This Row],[1 Type gebouw]]="Galerijflat",3,0))) -> 3 | F156: Ja | G156: Plat dak | H156: Ja | I156: In de woning (portiek/Galerij) | J156: Nee | K156: Ja | L156: 1 | R156: 1 | AA156: 1 | AD156: 1 | AG156: 1 | AJ156: 1
C157: 140 | D157: Galerijflat | E157: =IF(Rekenblad1[[#This Row],[1 Type gebouw]]="Eengezinswoning",1, IF(Rekenblad1[[#This Row],[1 Type gebouw]]="Portieketage",2, IF(Rekenblad1[[#This Row],[1 Type gebouw]]="Galerijflat",3,0))) -> 3 | F157: Ja | G157: Plat dak | H157: Ja | I157: In de woning (portiek/Galerij) | J157: Nee | K157: Ja | L157: 1 | R157: 1 | AA157: 1 | AD157: 1 | AG157: 1 | AJ157: 1
C158: 141 | D158: Galerijflat | E158: =IF(Rekenblad1[[#This Row],[1 Type gebouw]]="Eengezinswoning",1, IF(Rekenblad1[[#This Row],[1 Type gebouw]]="Portieketage",2, IF(Rekenblad1[[#This Row],[1 Type gebouw]]="Galerijflat",3,0))) -> 3 | F158: Ja | G158: Plat dak | H158: Ja | I158: In de woning (portiek/Galerij) | J158: Ja | K158: Ja | L158: 1 | O158: 1 | R158: 1 | U158: 1 | AA158: 1 | AD158: 1 | AG158: 1 | AJ158: 1
C159: 142 | D159: Galerijflat | E159: =IF(Rekenblad1[[#This Row],[1 Type gebouw]]="Eengezinswoning",1, IF(Rekenblad1[[#This Row],[1 Type gebouw]]="Portieketage",2, IF(Rekenblad1[[#This Row],[1 Type gebouw]]="Galerijflat",3,0))) -> 3 | F159: Ja | G159: Plat dak | H159: Ja | I159: In de woning (portiek/Galerij) | J159: Ja | K159: Ja | L159: 1 | O159: 1 | R159: 1 | U159: 1 | AA159: 1 | AD159: 1 | AG159: 1 | AJ159: 1
C160: 143 | D160: Galerijflat | E160: =IF(Rekenblad1[[#This Row],[1 Type gebouw]]="Eengezinswoning",1, IF(Rekenblad1[[#This Row],[1 Type gebouw]]="Portieketage",2, IF(Rekenblad1[[#This Row],[1 Type gebouw]]="Galerijflat",3,0))) -> 3 | F160: Ja | G160: Plat dak | H160: Ja | I160: In de woning (portiek/Galerij) | J160: Nee | K160: Ja | L160: 1 | R160: 1 | AA160: 1 | AD160: 1 | AG160: 1 | AJ160: 1
C161: 144 | D161: Galerijflat | E161: =IF(Rekenblad1[[#This Row],[1 Type gebouw]]="Eengezinswoning",1, IF(Rekenblad1[[#This Row],[1 Type gebouw]]="Portieketage",2, IF(Rekenblad1[[#This Row],[1 Type gebouw]]="Galerijflat",3,0))) -> 3 | F161: Ja | G161: Plat dak | H161: Ja | I161: In de woning (portiek/Galerij) | J161: Nee | K161: Ja | L161: 1 | R161: 1 | AA161: 1 | AD161: 1 | AG161: 1 | AJ161: 1
C162: 145 | D162: Galerijflat | E162: =IF(Rekenblad1[[#This Row],[1 Type gebouw]]="Eengezinswoning",1, IF(Rekenblad1[[#This Row],[1 Type gebouw]]="Portieketage",2, IF(Rekenblad1[[#This Row],[1 Type gebouw]]="Galerijflat",3,0))) -> 3 | F162: Ja | G162: Hellend dak | H162: Nee | I162: In de woning (portiek/Galerij) | J162: Ja | K162: Ja | X162: 1 | AG162: 1 | AJ162: 1
C163: 146 | D163: Galerijflat | E163: =IF(Rekenblad1[[#This Row],[1 Type gebouw]]="Eengezinswoning",1, IF(Rekenblad1[[#This Row],[1 Type gebouw]]="Portieketage",2, IF(Rekenblad1[[#This Row],[1 Type gebouw]]="Galerijflat",3,0))) -> 3 | F163: Ja | G163: Hellend dak | H163: Nee | I163: In de woning (portiek/Galerij) | J163: Ja | K163: Ja | X163: 1 | AG163: 1 | AJ163: 1
C164: 147 | D164: Galerijflat | E164: =IF(Rekenblad1[[#This Row],[1 Type gebouw]]="Eengezinswoning",1, IF(Rekenblad1[[#This Row],[1 Type gebouw]]="Portieketage",2, IF(Rekenblad1[[#This Row],[1 Type gebouw]]="Galerijflat",3,0))) -> 3 | F164: Ja | G164: Hellend dak | H164: Nee | I164: In de woning (portiek/Galerij) | J164: Nee | K164: Ja | X164: 1 | AG164: 1 | AJ164: 1
C165: 148 | D165: Galerijflat | E165: =IF(Rekenblad1[[#This Row],[1 Type gebouw]]="Eengezinswoning",1, IF(Rekenblad1[[#This Row],[1 Type gebouw]]="Portieketage",2, IF(Rekenblad1[[#This Row],[1 Type gebouw]]="Galerijflat",3,0))) -> 3 | F165: Ja | G165: Hellend dak | H165: Nee | I165: In de woning (portiek/Galerij) | J165: Nee | K165: Ja | X165: 1 | AG165: 1 | AJ165: 1
C166: 149 | D166: Galerijflat | E166: =IF(Rekenblad1[[#This Row],[1 Type gebouw]]="Eengezinswoning",1, IF(Rekenblad1[[#This Row],[1 Type gebouw]]="Portieketage",2, IF(Rekenblad1[[#This Row],[1 Type gebouw]]="Galerijflat",3,0))) -> 3 | F166: Ja | G166: Hellend dak | H166: Nee | I166: In de woning (portiek/Galerij) | J166: Ja | K166: Ja | X166: 1 | AG166: 1 | AJ166: 1
C167: 150 | D167: Galerijflat | E167: =IF(Rekenblad1[[#This Row],[1 Type gebouw]]="Eengezinswoning",1, IF(Rekenblad1[[#This Row],[1 Type gebouw]]="Portieketage",2, IF(Rekenblad1[[#This Row],[1 Type gebouw]]="Galerijflat",3,0))) -> 3 | F167: Ja | G167: Hellend dak | H167: Nee | I167: In de woning (portiek/Galerij) | J167: Ja | K167: Ja | X167: 1 | AG167: 1 | AJ167: 1
C168: 151 | D168: Galerijflat | E168: =IF(Rekenblad1[[#This Row],[1 Type gebouw]]="Eengezinswoning",1, IF(Rekenblad1[[#This Row],[1 Type gebouw]]="Portieketage",2, IF(Rekenblad1[[#This Row],[1 Type gebouw]]="Galerijflat",3,0))) -> 3 | F168: Ja | G168: Hellend dak | H168: Nee | I168: In de woning (portiek/Galerij) | J168: Nee | K168: Ja | X168: 1 | AG168: 1 | AJ168: 1
C169: 152 | D169: Galerijflat | E169: =IF(Rekenblad1[[#This Row],[1 Type gebouw]]="Eengezinswoning",1, IF(Rekenblad1[[#This Row],[1 Type gebouw]]="Portieketage",2, IF(Rekenblad1[[#This Row],[1 Type gebouw]]="Galerijflat",3,0))) -> 3 | F169: Ja | G169: Hellend dak | H169: Nee | I169: In de woning (portiek/Galerij) | J169: Nee | K169: Ja | X169: 1 | AG169: 1 | AJ169: 1
C170: 153 | D170: Galerijflat | E170: =IF(Rekenblad1[[#This Row],[1 Type gebouw]]="Eengezinswoning",1, IF(Rekenblad1[[#This Row],[1 Type gebouw]]="Portieketage",2, IF(Rekenblad1[[#This Row],[1 Type gebouw]]="Galerijflat",3,0))) -> 3 | F170: Ja | G170: Hellend dak | H170: Ja | I170: In de woning (portiek/Galerij) | J170: Ja | K170: Ja | L170: 1 | O170: 1 | R170: 1 | U170: 1 | X170: 1 | AA170: 1 | AG170: 1 | AJ170: 1
C171: 154 | D171: Galerijflat | E171: =IF(Rekenblad1[[#This Row],[1 Type gebouw]]="Eengezinswoning",1, IF(Rekenblad1[[#This Row],[1 Type gebouw]]="Portieketage",2, IF(Rekenblad1[[#This Row],[1 Type gebouw]]="Galerijflat",3,0))) -> 3 | F171: Ja | G171: Hellend dak | H171: Ja | I171: In de woning (portiek/Galerij) | J171: Ja | K171: Ja | L171: 1 | O171: 1 | R171: 1 | U171: 1 | X171: 1 | AA171: 1 | AG171: 1 | AJ171: 1
C172: 155 | D172: Galerijflat | E172: =IF(Rekenblad1[[#This Row],[1 Type gebouw]]="Eengezinswoning",1, IF(Rekenblad1[[#This Row],[1 Type gebouw]]="Portieketage",2, IF(Rekenblad1[[#This Row],[1 Type gebouw]]="Galerijflat",3,0))) -> 3 | F172: Ja | G172: Hellend dak | H172: Ja | I172: In de woning (portiek/Galerij) | J172: Nee | K172: Ja | L172: 1 | R172: 1 | X172: 1 | AA172: 1 | AG172: 1 | AJ172: 1
C173: 156 | D173: Galerijflat | E173: =IF(Rekenblad1[[#This Row],[1 Type gebouw]]="Eengezinswoning",1, IF(Rekenblad1[[#This Row],[1 Type gebouw]]="Portieketage",2, IF(Rekenblad1[[#This Row],[1 Type gebouw]]="Galerijflat",3,0))) -> 3 | F173: Ja | G173: Hellend dak | H173: Ja | I173: In de woning (portiek/Galerij) | J173: Nee | K173: Ja | L173: 1 | R173: 1 | X173: 1 | AA173: 1 | AG173: 1 | AJ173: 1
C174: 157 | D174: Galerijflat | E174: =IF(Rekenblad1[[#This Row],[1 Type gebouw]]="Eengezinswoning",1, IF(Rekenblad1[[#This Row],[1 Type gebouw]]="Portieketage",2, IF(Rekenblad1[[#This Row],[1 Type gebouw]]="Galerijflat",3,0))) -> 3 | F174: Ja | G174: Hellend dak | H174: Ja | I174: In de woning (portiek/Galerij) | J174: Ja | K174: Ja | L174: 1 | O174: 1 | R174: 1 | U174: 1 | X174: 1 | AA174: 1 | AG174: 1 | AJ174: 1
C175: 158 | D175: Galerijflat | E175: =IF(Rekenblad1[[#This Row],[1 Type gebouw]]="Eengezinswoning",1, IF(Rekenblad1[[#This Row],[1 Type gebouw]]="Portieketage",2, IF(Rekenblad1[[#This Row],[1 Type gebouw]]="Galerijflat",3,0))) -> 3 | F175: Ja | G175: Hellend dak | H175: Ja | I175: In de woning (portiek/Galerij) | J175: Ja | K175: Ja | L175: 1 | O175: 1 | R175: 1 | U175: 1 | X175: 1 | AA175: 1 | AG175: 1 | AJ175: 1
C176: 159 | D176: Galerijflat | E176: =IF(Rekenblad1[[#This Row],[1 Type gebouw]]="Eengezinswoning",1, IF(Rekenblad1[[#This Row],[1 Type gebouw]]="Portieketage",2, IF(Rekenblad1[[#This Row],[1 Type gebouw]]="Galerijflat",3,0))) -> 3 | F176: Ja | G176: Hellend dak | H176: Ja | I176: In de woning (portiek/Galerij) | J176: Nee | K176: Ja | L176: 1 | R176: 1 | X176: 1 | AA176: 1 | AG176: 1 | AJ176: 1
C177: 160 | D177: Galerijflat | E177: =IF(Rekenblad1[[#This Row],[1 Type gebouw]]="Eengezinswoning",1, IF(Rekenblad1[[#This Row],[1 Type gebouw]]="Portieketage",2, IF(Rekenblad1[[#This Row],[1 Type gebouw]]="Galerijflat",3,0))) -> 3 | F177: Ja | G177: Hellend dak | H177: Ja | I177: In de woning (portiek/Galerij) | J177: Nee | K177: Ja | L177: 1 | R177: 1 | X177: 1 | AA177: 1 | AG177: 1 | AJ177: 1
C178: 161 | D178: Galerijflat | E178: =IF(Rekenblad1[[#This Row],[1 Type gebouw]]="Eengezinswoning",1, IF(Rekenblad1[[#This Row],[1 Type gebouw]]="Portieketage",2, IF(Rekenblad1[[#This Row],[1 Type gebouw]]="Galerijflat",3,0))) -> 3 | F178: Nee | G178: Plat dak | H178: Nee | I178: In de woning (portiek/Galerij) | J178: Ja | K178: Ja | AD178: 1 | AJ178: 1
C179: 162 | D179: Galerijflat | E179: =IF(Rekenblad1[[#This Row],[1 Type gebouw]]="Eengezinswoning",1, IF(Rekenblad1[[#This Row],[1 Type gebouw]]="Portieketage",2, IF(Rekenblad1[[#This Row],[1 Type gebouw]]="Galerijflat",3,0))) -> 3 | F179: Nee | G179: Plat dak | H179: Nee | I179: In de woning (portiek/Galerij) | J179: Ja | K179: Ja | AD179: 1 | AJ179: 1
C180: 163 | D180: Galerijflat | E180: =IF(Rekenblad1[[#This Row],[1 Type gebouw]]="Eengezinswoning",1, IF(Rekenblad1[[#This Row],[1 Type gebouw]]="Portieketage",2, IF(Rekenblad1[[#This Row],[1 Type gebouw]]="Galerijflat",3,0))) -> 3 | F180: Nee | G180: Plat dak | H180: Nee | I180: In de woning (portiek/Galerij) | J180: Nee | K180: Ja | AD180: 1 | AJ180: 1
C181: 164 | D181: Galerijflat | E181: =IF(Rekenblad1[[#This Row],[1 Type gebouw]]="Eengezinswoning",1, IF(Rekenblad1[[#This Row],[1 Type gebouw]]="Portieketage",2, IF(Rekenblad1[[#This Row],[1 Type gebouw]]="Galerijflat",3,0))) -> 3 | F181: Nee | G181: Plat dak | H181: Nee | I181: In de woning (portiek/Galerij) | J181: Nee | K181: Ja | AD181: 1 | AJ181: 1
C182: 165 | D182: Galerijflat | E182: =IF(Rekenblad1[[#This Row],[1 Type gebouw]]="Eengezinswoning",1, IF(Rekenblad1[[#This Row],[1 Type gebouw]]="Portieketage",2, IF(Rekenblad1[[#This Row],[1 Type gebouw]]="Galerijflat",3,0))) -> 3 | F182: Nee | G182: Plat dak | H182: Nee | I182: In de woning (portiek/Galerij) | J182: Ja | K182: Ja | AD182: 1 | AJ182: 1
C183: 166 | D183: Galerijflat | E183: =IF(Rekenblad1[[#This Row],[1 Type gebouw]]="Eengezinswoning",1, IF(Rekenblad1[[#This Row],[1 Type gebouw]]="Portieketage",2, IF(Rekenblad1[[#This Row],[1 Type gebouw]]="Galerijflat",3,0))) -> 3 | F183: Nee | G183: Plat dak | H183: Nee | I183: In de woning (portiek/Galerij) | J183: Ja | K183: Ja | AD183: 1 | AJ183: 1
C184: 167 | D184: Galerijflat | E184: =IF(Rekenblad1[[#This Row],[1 Type gebouw]]="Eengezinswoning",1, IF(Rekenblad1[[#This Row],[1 Type gebouw]]="Portieketage",2, IF(Rekenblad1[[#This Row],[1 Type gebouw]]="Galerijflat",3,0))) -> 3 | F184: Nee | G184: Plat dak | H184: Nee | I184: In de woning (portiek/Galerij) | J184: Nee | K184: Ja | AD184: 1 | AJ184: 1
C185: 168 | D185: Galerijflat | E185: =IF(Rekenblad1[[#This Row],[1 Type gebouw]]="Eengezinswoning",1, IF(Rekenblad1[[#This Row],[1 Type gebouw]]="Portieketage",2, IF(Rekenblad1[[#This Row],[1 Type gebouw]]="Galerijflat",3,0))) -> 3 | F185: Nee | G185: Plat dak | H185: Nee | I185: In de woning (portiek/Galerij) | J185: Nee | K185: Ja | AD185: 1 | AJ185: 1
C186: 169 | D186: Galerijflat | E186: =IF(Rekenblad1[[#This Row],[1 Type gebouw]]="Eengezinswoning",1, IF(Rekenblad1[[#This Row],[1 Type gebouw]]="Portieketage",2, IF(Rekenblad1[[#This Row],[1 Type gebouw]]="Galerijflat",3,0))) -> 3 | F186: Nee | G186: Plat dak | H186: Ja | I186: In de woning (portiek/Galerij) | J186: Ja | K186: Ja | L186: 1 | O186: 1 | R186: 1 | U186: 1 | AA186: 1 | AD186: 1 | AJ186: 1
C187: 170 | D187: Galerijflat | E187: =IF(Rekenblad1[[#This Row],[1 Type gebouw]]="Eengezinswoning",1, IF(Rekenblad1[[#This Row],[1 Type gebouw]]="Portieketage",2, IF(Rekenblad1[[#This Row],[1 Type gebouw]]="Galerijflat",3,0))) -> 3 | F187: Nee | G187: Plat dak | H187: Ja | I187: In de woning (portiek/Galerij) | J187: Ja | K187: Ja | L187: 1 | O187: 1 | R187: 1 | U187: 1 | AA187: 1 | AD187: 1 | AJ187: 1
C188: 171 | D188: Galerijflat | E188: =IF(Rekenblad1[[#This Row],[1 Type gebouw]]="Eengezinswoning",1, IF(Rekenblad1[[#This Row],[1 Type gebouw]]="Portieketage",2, IF(Rekenblad1[[#This Row],[1 Type gebouw]]="Galerijflat",3,0))) -> 3 | F188: Nee | G188: Plat dak | H188: Ja | I188: In de woning (portiek/Galerij) | J188: Nee | K188: Ja | L188: 1 | R188: 1 | AA188: 1 | AD188: 1 | AJ188: 1
C189: 172 | D189: Galerijflat | E189: =IF(Rekenblad1[[#This Row],[1 Type gebouw]]="Eengezinswoning",1, IF(Rekenblad1[[#This Row],[1 Type gebouw]]="Portieketage",2, IF(Rekenblad1[[#This Row],[1 Type gebouw]]="Galerijflat",3,0))) -> 3 | F189: Nee | G189: Plat dak | H189: Ja | I189: In de woning (portiek/Galerij) | J189: Nee | K189: Ja | L189: 1 | R189: 1 | AA189: 1 | AD189: 1 | AJ189: 1
C190: 173 | D190: Galerijflat | E190: =IF(Rekenblad1[[#This Row],[1 Type gebouw]]="Eengezinswoning",1, IF(Rekenblad1[[#This Row],[1 Type gebouw]]="Portieketage",2, IF(Rekenblad1[[#This Row],[1 Type gebouw]]="Galerijflat",3,0))) -> 3 | F190: Nee | G190: Plat dak | H190: Ja | I190: In de woning (portiek/Galerij) | J190: Ja | K190: Ja | L190: 1 | O190: 1 | R190: 1 | U190: 1 | AA190: 1 | AD190: 1 | AJ190: 1
C191: 174 | D191: Galerijflat | E191: =IF(Rekenblad1[[#This Row],[1 Type gebouw]]="Eengezinswoning",1, IF(Rekenblad1[[#This Row],[1 Type gebouw]]="Portieketage",2, IF(Rekenblad1[[#This Row],[1 Type gebouw]]="Galerijflat",3,0))) -> 3 | F191: Nee | G191: Plat dak | H191: Ja | I191: In de woning (portiek/Galerij) | J191: Ja | K191: Ja | L191: 1 | O191: 1 | R191: 1 | U191: 1 | AA191: 1 | AD191: 1 | AJ191: 1
C192: 175 | D192: Galerijflat | E192: =IF(Rekenblad1[[#This Row],[1 Type gebouw]]="Eengezinswoning",1, IF(Rekenblad1[[#This Row],[1 Type gebouw]]="Portieketage",2, IF(Rekenblad1[[#This Row],[1 Type gebouw]]="Galerijflat",3,0))) -> 3 | F192: Nee | G192: Plat dak | H192: Ja | I192: In de woning (portiek/Galerij) | J192: Nee | K192: Ja | L192: 1 | R192: 1 | AA192: 1 | AD192: 1 | AJ192: 1
C193: 176 | D193: Galerijflat | E193: =IF(Rekenblad1[[#This Row],[1 Type gebouw]]="Eengezinswoning",1, IF(Rekenblad1[[#This Row],[1 Type gebouw]]="Portieketage",2, IF(Rekenblad1[[#This Row],[1 Type gebouw]]="Galerijflat",3,0))) -> 3 | F193: Nee | G193: Plat dak | H193: Ja | I193: In de woning (portiek/Galerij) | J193: Nee | K193: Ja | L193: 1 | R193: 1 | AA193: 1 | AD193: 1 | AJ193: 1
C194: 177 | D194: Galerijflat | E194: =IF(Rekenblad1[[#This Row],[1 Type gebouw]]="Eengezinswoning",1, IF(Rekenblad1[[#This Row],[1 Type gebouw]]="Portieketage",2, IF(Rekenblad1[[#This Row],[1 Type gebouw]]="Galerijflat",3,0))) -> 3 | F194: Nee | G194: Hellend dak | H194: Nee | I194: In de woning (portiek/Galerij) | J194: Ja | K194: Ja | X194: 1 | AJ194: 1
C195: 178 | D195: Galerijflat | E195: =IF(Rekenblad1[[#This Row],[1 Type gebouw]]="Eengezinswoning",1, IF(Rekenblad1[[#This Row],[1 Type gebouw]]="Portieketage",2, IF(Rekenblad1[[#This Row],[1 Type gebouw]]="Galerijflat",3,0))) -> 3 | F195: Nee | G195: Hellend dak | H195: Nee | I195: In de woning (portiek/Galerij) | J195: Ja | K195: Ja | X195: 1 | AJ195: 1
C196: 179 | D196: Galerijflat | E196: =IF(Rekenblad1[[#This Row],[1 Type gebouw]]="Eengezinswoning",1, IF(Rekenblad1[[#This Row],[1 Type gebouw]]="Portieketage",2, IF(Rekenblad1[[#This Row],[1 Type gebouw]]="Galerijflat",3,0))) -> 3 | F196: Nee | G196: Hellend dak | H196: Nee | I196: In de woning (portiek/Galerij) | J196: Nee | K196: Ja | X196: 1 | AJ196: 1
C197: 180 | D197: Galerijflat | E197: =IF(Rekenblad1[[#This Row],[1 Type gebouw]]="Eengezinswoning",1, IF(Rekenblad1[[#This Row],[1 Type gebouw]]="Portieketage",2, IF(Rekenblad1[[#This Row],[1 Type gebouw]]="Galerijflat",3,0))) -> 3 | F197: Nee | G197: Hellend dak | H197: Nee | I197: In de woning (portiek/Galerij) | J197: Nee | K197: Ja | X197: 1 | AJ197: 1
C198: 181 | D198: Galerijflat | E198: =IF(Rekenblad1[[#This Row],[1 Type gebouw]]="Eengezinswoning",1, IF(Rekenblad1[[#This Row],[1 Type gebouw]]="Portieketage",2, IF(Rekenblad1[[#This Row],[1 Type gebouw]]="Galerijflat",3,0))) -> 3 | F198: Nee | G198: Hellend dak | H198: Nee | I198: In de woning (portiek/Galerij) | J198: Ja | K198: Ja | X198: 1 | AJ198: 1
C199: 182 | D199: Galerijflat | E199: =IF(Rekenblad1[[#This Row],[1 Type gebouw]]="Eengezinswoning",1, IF(Rekenblad1[[#This Row],[1 Type gebouw]]="Portieketage",2, IF(Rekenblad1[[#This Row],[1 Type gebouw]]="Galerijflat",3,0))) -> 3 | F199: Nee | G199: Hellend dak | H199: Nee | I199: In de woning (portiek/Galerij) | J199: Ja | K199: Ja | X199: 1 | AJ199: 1
C200: 183 | D200: Galerijflat | E200: =IF(Rekenblad1[[#This Row],[1 Type gebouw]]="Eengezinswoning",1, IF(Rekenblad1[[#This Row],[1 Type gebouw]]="Portieketage",2, IF(Rekenblad1[[#This Row],[1 Type gebouw]]="Galerijflat",3,0))) -> 3 | F200: Nee | G200: Hellend dak | H200: Nee | I200: In de woning (portiek/Galerij) | J200: Nee | K200: Ja | X200: 1 | AJ200: 1
C201: 184 | D201: Galerijflat | E201: =IF(Rekenblad1[[#This Row],[1 Type gebouw]]="Eengezinswoning",1, IF(Rekenblad1[[#This Row],[1 Type gebouw]]="Portieketage",2, IF(Rekenblad1[[#This Row],[1 Type gebouw]]="Galerijflat",3,0))) -> 3 | F201: Nee | G201: Hellend dak | H201: Nee | I201: In de woning (portiek/Galerij) | J201: Nee | K201: Ja | X201: 1 | AJ201: 1
C202: 185 | D202: Galerijflat | E202: =IF(Rekenblad1[[#This Row],[1 Type gebouw]]="Eengezinswoning",1, IF(Rekenblad1[[#This Row],[1 Type gebouw]]="Portieketage",2, IF(Rekenblad1[[#This Row],[1 Type gebouw]]="Galerijflat",3,0))) -> 3 | F202: Nee | G202: Hellend dak | H202: Ja | I202: In de woning (portiek/Galerij) | J202: Ja | K202: Ja | L202: 1 | O202: 1 | R202: 1 | U202: 1 | X202: 1 | AA202: 1 | AJ202: 1
C203: 186 | D203: Galerijflat | E203: =IF(Rekenblad1[[#This Row],[1 Type gebouw]]="Eengezinswoning",1, IF(Rekenblad1[[#This Row],[1 Type gebouw]]="Portieketage",2, IF(Rekenblad1[[#This Row],[1 Type gebouw]]="Galerijflat",3,0))) -> 3 | F203: Nee | G203: Hellend dak | H203: Ja | I203: In de woning (portiek/Galerij) | J203: Ja | K203: Ja | L203: 1 | O203: 1 | R203: 1 | U203: 1 | X203: 1 | AA203: 1 | AJ203: 1
C204: 187 | D204: Galerijflat | E204: =IF(Rekenblad1[[#This Row],[1 Type gebouw]]="Eengezinswoning",1, IF(Rekenblad1[[#This Row],[1 Type gebouw]]="Portieketage",2, IF(Rekenblad1[[#This Row],[1 Type gebouw]]="Galerijflat",3,0))) -> 3 | F204: Nee | G204: Hellend dak | H204: Ja | I204: In de woning (portiek/Galerij) | J204: Nee | K204: Ja | L204: 1 | R204: 1 | X204: 1 | AA204: 1 | AJ204: 1
C205: 188 | D205: Galerijflat | E205: =IF(Rekenblad1[[#This Row],[1 Type gebouw]]="Eengezinswoning",1, IF(Rekenblad1[[#This Row],[1 Type gebouw]]="Portieketage",2, IF(Rekenblad1[[#This Row],[1 Type gebouw]]="Galerijflat",3,0))) -> 3 | F205: Nee | G205: Hellend dak | H205: Ja | I205: In de woning (portiek/Galerij) | J205: Nee | K205: Ja | L205: 1 | R205: 1 | X205: 1 | AA205: 1 | AJ205: 1
C206: 189 | D206: Galerijflat | E206: =IF(Rekenblad1[[#This Row],[1 Type gebouw]]="Eengezinswoning",1, IF(Rekenblad1[[#This Row],[1 Type gebouw]]="Portieketage",2, IF(Rekenblad1[[#This Row],[1 Type gebouw]]="Galerijflat",3,0))) -> 3 | F206: Nee | G206: Hellend dak | H206: Ja | I206: In de woning (portiek/Galerij) | J206: Ja | K206: Ja | L206: 1 | O206: 1 | R206: 1 | U206: 1 | X206: 1 | AA206: 1 | AJ206: 1
C207: 190 | D207: Galerijflat | E207: =IF(Rekenblad1[[#This Row],[1 Type gebouw]]="Eengezinswoning",1, IF(Rekenblad1[[#This Row],[1 Type gebouw]]="Portieketage",2, IF(Rekenblad1[[#This Row],[1 Type gebouw]]="Galerijflat",3,0))) -> 3 | F207: Nee | G207: Hellend dak | H207: Ja | I207: In de woning (portiek/Galerij) | J207: Ja | K207: Ja | L207: 1 | O207: 1 | R207: 1 | U207: 1 | X207: 1 | AA207: 1 | AJ207: 1
C208: 191 | D208: Galerijflat | E208: =IF(Rekenblad1[[#This Row],[1 Type gebouw]]="Eengezinswoning",1, IF(Rekenblad1[[#This Row],[1 Type gebouw]]="Portieketage",2, IF(Rekenblad1[[#This Row],[1 Type gebouw]]="Galerijflat",3,0))) -> 3 | F208: Nee | G208: Hellend dak | H208: Ja | I208: In de woning (portiek/Galerij) | J208: Nee | K208: Ja | L208: 1 | R208: 1 | X208: 1 | AA208: 1 | AJ208: 1
C209: 192 | D209: Galerijflat | E209: =IF(Rekenblad1[[#This Row],[1 Type gebouw]]="Eengezinswoning",1, IF(Rekenblad1[[#This Row],[1 Type gebouw]]="Portieketage",2, IF(Rekenblad1[[#This Row],[1 Type gebouw]]="Galerijflat",3,0))) -> 3 | F209: Nee | G209: Hellend dak | H209: Ja | I209: In de woning (portiek/Galerij) | J209: Nee | K209: Ja | L209: 1 | R209: 1 | X209: 1 | AA209: 1 | AJ209: 1
C210: Totaal | E210: =IF(SUBTOTAL(104,Rekenblad1[Type (2)])=SUBTOTAL(105,Rekenblad1[Type (2)]),SUBTOTAL(104,Rekenblad1[Type (2)]),"") -> 1 | L210: =IF(SUBTOTAL(4,Rekenblad1[A1 Iedere woning afzonderlijk rechtstreeks van buiten cq portiek cq voor de galerijen met afleverset in of nabij de entreehal in het bouwblok zelf])=0,"","A1") ->  | M210: =IF(SUBTOTAL(4,Rekenblad1[A1.1 Iedere woning afzonderlijk rechtstreeks van buiten cq portiek cq voor de galerijen met afleverset in of nabij de entreehal in het bouwblok zelf])=0,"","A1.1") -> A1.1 | N210: =IF(SUBTOTAL(4,Rekenblad1[A1.2 Iedere woning afzonderlijk rechtstreeks van buiten cq portiek cq voor de galerijen met afleverset in of nabij de entreehal in het bouwblok zelf])=0,"","A1.2") -> A1.2 | O210: =IF(SUBTOTAL(4,Rekenblad1[A2 Per 2 woningen rechtstreeks van buiten cq portiek cq voor de galerijen met afleverset in of nabij de entreehal in het bouwblok zelf])=0,"","A2") ->  | P210: =IF(SUBTOTAL(4,Rekenblad1[A2.1 Per 2 woningen rechtstreeks van buiten cq portiek cq voor de galerijen met afleverset in of nabij de entreehal in het bouwblok zelf])=0,"","A2.1") -> A2.1 | Q210: =IF(SUBTOTAL(4,Rekenblad1[A2.2 Per 2 woningen rechtstreeks van buiten cq portiek cq voor de galerijen met afleverset in of nabij de entreehal in het bouwblok zel])=0,"","A2.2") -> A2.2 | R210: =IF(SUBTOTAL(4,Rekenblad1[A3 Per woning via verticale leidingen op voor- of achtergevel naar afleverset ])=0,"","A3") ->  | S210: =IF(SUBTOTAL(4,Rekenblad1[A3.1 Per woning via verticale leidingen op voor- of achtergevel naar afleverset ])=0,"","A3.1") -> A3.1 | T210: =IF(SUBTOTAL(4,Rekenblad1[A3.2 Per woning via verticale leidingen op voor- of achtergevel naar afleverset ])=0,"","A3.2") -> A3.2 | U210: =IF(SUBTOTAL(4,Rekenblad1[A4 Per 2 woningen via verticale leidingen op voor- of achtergevel naar afleverset ])=0,"","A4") ->  | V210: =IF(SUBTOTAL(4,Rekenblad1[A4.1 Per 2 woningen via verticale leidingen op voor- of achtergevel naar afleverset ])=0,"","A4.1") -> A4.1 | W210: =IF(SUBTOTAL(4,Rekenblad1[A4.2 Per 2 woningen via verticale leidingen op voor- of achtergevel naar afleverset ])=0,"","A4.2") -> A4.2 | X210: =IF(SUBTOTAL(4,Rekenblad1[B1 In de lengterichting van het volledige blok door de kapruimte])=0,"","B1") ->  | Y210: =IF(SUBTOTAL(4,Rekenblad1[B1.1 In de lengterichting van het volledige blok door de kapruimte])=0,"","B1.1") -> B1.1 | Z210: =IF(SUBTOTAL(4,Rekenblad1[B1.2 In de lengterichting van het volledige blok door de kapruimte])=0,"","B1.2") -> B1.2 | AA210: =IF(SUBTOTAL(4,Rekenblad1[B2 In de lengterichting van het volledige blok over de gevel ])=0,"","B2") ->  | AB210: =IF(SUBTOTAL(4,Rekenblad1[B2.1 In de lengterichting van het volledige blok over de gevel ])=0,"","B2.1") -> B2.1 | AC210: =IF(SUBTOTAL(4,Rekenblad1[B2.2 In de lengterichting van het volledige blok over de gevel ])=0,"","B2.2") -> B2.2 | AD210: =IF(SUBTOTAL(4,Rekenblad1[B3 In de lengterichting van het volledige blok over het dak ])=0,"","B3") ->  | AE210: =IF(SUBTOTAL(4,Rekenblad1[B3.1 In de lengterichting van het volledige blok over het dak ])=0,"","B3.1") -> B3.1 | AF210: =IF(SUBTOTAL(4,Rekenblad1[B3.2 In de lengterichting van het volledige blok over het dak ])=0,"","B3.2") -> B3.2 | AG210: =IF(SUBTOTAL(4,Rekenblad1[B4 In de lengterichting van het volledige blok onder de onderste woonlaag door])=0,"","B4") ->  | AH210: =IF(SUBTOTAL(4,Rekenblad1[B4.1 In de lengterichting van het volledige blok onder de onderste woonlaag door])=0,"","B4.1") -> B4.1 | AI210: =IF(SUBTOTAL(4,Rekenblad1[B4.2 In de lengterichting van het volledige blok onder de onderste woonlaag door])=0,"","B4.2") -> B4.2 | AJ210: =IF(SUBTOTAL(4,Rekenblad1[C De individuele afleverset buiten de woning])=0,"","C1") -> C1 | AK210: =IF(SUBTOTAL(104,Rekenblad1[Locatie CV (0)])=0,"",SUBTOTAL(104,Rekenblad1[Locatie CV (0)])) -> 1 | AL210: =IF(SUBTOTAL(104,Rekenblad1[Locatie CV (1+)])=0,"",SUBTOTAL(104,Rekenblad1[Locatie CV (1+)])) -> 2

Sheet Rekenblad 2
C6: Rekenblad 1 | D6: Type gebouw | E6: Omschrijving | F6: Kosten warmteleverancier | G6: Kosten woningeigenaar | H6: Kosten totaal | I6: Praktisch haalbaarheid | J6: Overlast uitvoering | K6: Impact woning | L6: Onderhoud
C7: =Rekenblad1[[#Totals],[A1 Iedere woning afzonderlijk rechtstreeks van buiten cq portiek cq voor de galerijen met afleverset in of nabij de entreehal in het bouwblok zelf]] ->  | D7: =Rekenblad1[[#Totals],[Type (2)]] -> 1 | E7: =IFERROR(VLOOKUP(Mogelijkheden[[#This Row],[Rekenblad 1]],$C$35:$E$70,3,0),"") ->  | F7: =IFERROR( IF(Mogelijkheden[[#This Row],[Type gebouw]]=1,HLOOKUP(Mogelijkheden[[#This Row],[Rekenblad 1]],StaatEGW[[#All],[A1.1]:[C1.2]],40,0), IF(Mogelijkheden[[#This Row],[Type gebouw]]=2,HLOOKUP(Mogelijkheden[[#This Row],[Rekenblad 1]],StaatPortiek[[#All],[A1]:[C1]],40,0), IF(Mogelijkheden[[#This Row],[Type gebouw]]=3,HLOOKUP(Mogelijkheden[[#This Row],[Rekenblad 1]],StaatGalerij[[#All],[A1]:[C1]],40,0), "Onbekende fout"))),"") ->  | G7: =IFERROR( IF(Mogelijkheden[[#This Row],[Type gebouw]]=1,HLOOKUP(Mogelijkheden[[#This Row],[Rekenblad 1]],StaatEGW[[#All],[A1.1]:[C1.2]],41,0), IF(Mogelijkheden[[#This Row],[Type gebouw]]=2,HLOOKUP(Mogelijkheden[[#This Row],[Rekenblad 1]],StaatPortiek[[#All],[A1]:[C1]],41,0), IF(Mogelijkheden[[#This Row],[Type gebouw]]=3,HLOOKUP(Mogelijkheden[[#This Row],[Rekenblad 1]],StaatGalerij[[#All],[A1]:[C1]],41,0), "Onbekende fout"))),"") ->  | H7: =SUM(Mogelijkheden[[#This Row],[Kosten warmteleverancier]:[Kosten woningeigenaar]]) -> 0 | I7: =IFERROR(IF(Mogelijkheden[[#This Row],[Type gebouw]]=1,HLOOKUP(Mogelijkheden[[#This Row],[Rekenblad 1]],KwaliteitEGW[#All],2,0), IF(Mogelijkheden[[#This Row],[Type gebouw]]=2,HLOOKUP(Mogelijkheden[[#This Row],[Rekenblad 1]],KwaliteitPortiek[#All],2,0), IF(Mogelijkheden[[#This Row],[Type gebouw]]=3,HLOOKUP(Mogelijkheden[[#This Row],[Rekenblad 1]],KwaliteitGalerij[#All],2,0),""))),"") ->  | J7: =IFERROR(IF(Mogelijkheden[[#This Row],[Type gebouw]]=1,HLOOKUP(Mogelijkheden[[#This Row],[Rekenblad 1]],KwaliteitEGW[#All],6,0), IF(Mogelijkheden[[#This Row],[Type gebouw]]=2,HLOOKUP(Mogelijkheden[[#This Row],[Rekenblad 1]],KwaliteitPortiek[#All],5,0), IF(Mogelijkheden[[#This Row],[Type gebouw]]=3,HLOOKUP(Mogelijkheden[[#This Row],[Rekenblad 1]],KwaliteitGalerij[#All],5,0),""))),"") ->  | K7: =IFERROR(IF(Mogelijkheden[[#This Row],[Type gebouw]]=1,HLOOKUP(Mogelijkheden[[#This Row],[Rekenblad 1]],KwaliteitEGW[#All],10,0), IF(Mogelijkheden[[#This Row],[Type gebouw]]=2,HLOOKUP(Mogelijkheden[[#This Row],[Rekenblad 1]],KwaliteitPortiek[#All],9,0), IF(Mogelijkheden[[#This Row],[Type gebouw]]=3,HLOOKUP(Mogelijkheden[[#This Row],[Rekenblad 1]],KwaliteitGalerij[#All],9,0),""))),"") ->  | L7: =IFERROR(IF(Mogelijkheden[[#This Row],[Type gebouw]]=1,HLOOKUP(Mogelijkheden[[#This Row],[Rekenblad 1]],KwaliteitEGW[#All],14,0), IF(Mogelijkheden[[#This Row],[Type gebouw]]=2,HLOOKUP(Mogelijkheden[[#This Row],[Rekenblad 1]],KwaliteitPortiek[#All],13,0), IF(Mogelijkheden[[#This Row],[Type gebouw]]=3,HLOOKUP(Mogelijkheden[[#This Row],[Rekenblad 1]],KwaliteitGalerij[#All],13,0),""))),"") -> 
C8: =Rekenblad1[[#Totals],[A1.1 Iedere woning afzonderlijk rechtstreeks van buiten cq portiek cq voor de galerijen met afleverset in of nabij de entreehal in het bouwblok zelf]] -> A1.1 | D8: =Rekenblad1[[#Totals],[Type (2)]] -> 1 | E8: =IFERROR(VLOOKUP(Mogelijkheden[[#This Row],[Rekenblad 1]],$C$35:$E$70,3,0),"") -> Iedere woning afzonderlijk rechtstreeks van buiten cq portiek cq voor de galerijen met afleverset in of nabij de entreehal in het bouwblok zelf | F8: =IFERROR( IF(Mogelijkheden[[#This Row],[Type gebouw]]=1,HLOOKUP(Mogelijkheden[[#This Row],[Rekenblad 1]],StaatEGW[[#All],[A1.1]:[C1.2]],40,0), IF(Mogelijkheden[[#This Row],[Type gebouw]]=2,HLOOKUP(Mogelijkheden[[#This Row],[Rekenblad 1]],StaatPortiek[[#All],[A1]:[C1]],40,0), IF(Mogelijkheden[[#This Row],[Type gebouw]]=3,HLOOKUP(Mogelijkheden[[#This Row],[Rekenblad 1]],StaatGalerij[[#All],[A1]:[C1]],40,0), "Onbekende fout"))),"") -> 3000 | G8: =IFERROR( IF(Mogelijkheden[[#This Row],[Type gebouw]]=1,HLOOKUP(Mogelijkheden[[#This Row],[Rekenblad 1]],StaatEGW[[#All],[A1.1]:[C1.2]],41,0), IF(Mogelijkheden[[#This Row],[Type gebouw]]=2,HLOOKUP(Mogelijkheden[[#This Row],[Rekenblad 1]],StaatPortiek[[#All],[A1]:[C1]],41,0), IF(Mogelijkheden[[#This Row],[Type gebouw]]=3,HLOOKUP(Mogelijkheden[[#This Row],[Rekenblad 1]],StaatGalerij[[#All],[A1]:[C1]],41,0), "Onbekende fout"))),"") -> 4500 | H8: =SUM(Mogelijkheden[[#This Row],[Kosten warmteleverancier]:[Kosten woningeigenaar]]) -> 7500 | I8: =IFERROR(IF(Mogelijkheden[[#This Row],[Type gebouw]]=1,HLOOKUP(Mogelijkheden[[#This Row],[Rekenblad 1]],KwaliteitEGW[#All],2,0), IF(Mogelijkheden[[#This Row],[Type gebouw]]=2,HLOOKUP(Mogelijkheden[[#This Row],[Rekenblad 1]],KwaliteitPortiek[#All],2,0), IF(Mogelijkheden[[#This Row],[Type gebouw]]=3,HLOOKUP(Mogelijkheden[[#This Row],[Rekenblad 1]],KwaliteitGalerij[#All],2,0),""))),"") -> 5 | J8: =IFERROR(IF(Mogelijkheden[[#This Row],[Type gebouw]]=1,HLOOKUP(Mogelijkheden[[#This Row],[Rekenblad 1]],KwaliteitEGW[#All],6,0), IF(Mogelijkheden[[#This Row],[Type gebouw]]=2,HLOOKUP(Mogelijkheden[[#This Row],[Rekenblad 1]],KwaliteitPortiek[#All],5,0), IF(Mogelijkheden[[#This Row],[Type gebouw]]=3,HLOOKUP(Mogelijkheden[[#This Row],[Rekenblad 1]],KwaliteitGalerij[#All],5,0),""))),"") -> 2 | K8: =IFERROR(IF(Mogelijkheden[[#This Row],[Type gebouw]]=1,HLOOKUP(Mogelijkheden[[#This Row],[Rekenblad 1]],KwaliteitEGW[#All],10,0), IF(Mogelijkheden[[#This Row],[Type gebouw]]=2,HLOOKUP(Mogelijkheden[[#This Row],[Rekenblad 1]],KwaliteitPortiek[#All],9,0), IF(Mogelijkheden[[#This Row],[Type gebouw]]=3,HLOOKUP(Mogelijkheden[[#This Row],[Rekenblad 1]],KwaliteitGalerij[#All],9,0),""))),"") -> 4 | L8: =IFERROR(IF(Mogelijkheden[[#This Row],[Type gebouw]]=1,HLOOKUP(Mogelijkheden[[#This Row],[Rekenblad 1]],KwaliteitEGW[#All],14,0), IF(Mogelijkheden[[#This Row],[Type gebouw]]=2,HLOOKUP(Mogelijkheden[[#This Row],[Rekenblad 1]],KwaliteitPortiek[#All],13,0), IF(Mogelijkheden[[#This Row],[Type gebouw]]=3,HLOOKUP(Mogelijkheden[[#This Row],[Rekenblad 1]],KwaliteitGalerij[#All],13,0),""))),"") -> 3
C9: =Rekenblad1[[#Totals],[A1.2 Iedere woning afzonderlijk rechtstreeks van buiten cq portiek cq voor de galerijen met afleverset in of nabij de entreehal in het bouwblok zelf]] -> A1.2 | D9: =Rekenblad1[[#Totals],[Type (2)]] -> 1 | E9: =IFERROR(VLOOKUP(Mogelijkheden[[#This Row],[Rekenblad 1]],$C$35:$E$70,3,0),"") -> Iedere woning afzonderlijk rechtstreeks van buiten cq portiek cq voor de galerijen met afleverset in of nabij de entreehal in het bouwblok zelf | F9: =IFERROR( IF(Mogelijkheden[[#This Row],[Type gebouw]]=1,HLOOKUP(Mogelijkheden[[#This Row],[Rekenblad 1]],StaatEGW[[#All],[A1.1]:[C1.2]],40,0), IF(Mogelijkheden[[#This Row],[Type gebouw]]=2,HLOOKUP(Mogelijkheden[[#This Row],[Rekenblad 1]],StaatPortiek[[#All],[A1]:[C1]],40,0), IF(Mogelijkheden[[#This Row],[Type gebouw]]=3,HLOOKUP(Mogelijkheden[[#This Row],[Rekenblad 1]],StaatGalerij[[#All],[A1]:[C1]],40,0), "Onbekende fout"))),"") -> 3000 | G9: =IFERROR( IF(Mogelijkheden[[#This Row],[Type gebouw]]=1,HLOOKUP(Mogelijkheden[[#This Row],[Rekenblad 1]],StaatEGW[[#All],[A1.1]:[C1.2]],41,0), IF(Mogelijkheden[[#This Row],[Type gebouw]]=2,HLOOKUP(Mogelijkheden[[#This Row],[Rekenblad 1]],StaatPortiek[[#All],[A1]:[C1]],41,0), IF(Mogelijkheden[[#This Row],[Type gebouw]]=3,HLOOKUP(Mogelijkheden[[#This Row],[Rekenblad 1]],StaatGalerij[[#All],[A1]:[C1]],41,0), "Onbekende fout"))),"") -> 5500 | H9: =SUM(Mogelijkheden[[#This Row],[Kosten warmteleverancier]:[Kosten woningeigenaar]]) -> 8500 | I9: =IFERROR(IF(Mogelijkheden[[#This Row],[Type gebouw]]=1,HLOOKUP(Mogelijkheden[[#This Row],[Rekenblad 1]],KwaliteitEGW[#All],2,0), IF(Mogelijkheden[[#This Row],[Type gebouw]]=2,HLOOKUP(Mogelijkheden[[#This Row],[Rekenblad 1]],KwaliteitPortiek[#All],2,0), IF(Mogelijkheden[[#This Row],[Type gebouw]]=3,HLOOKUP(Mogelijkheden[[#This Row],[Rekenblad 1]],KwaliteitGalerij[#All],2,0),""))),"") -> 4 | J9: =IFERROR(IF(Mogelijkheden[[#This Row],[Type gebouw]]=1,HLOOKUP(Mogelijkheden[[#This Row],[Rekenblad 1]],KwaliteitEGW[#All],6,0), IF(Mogelijkheden[[#This Row],[Type gebouw]]=2,HLOOKUP(Mogelijkheden[[#This Row],[Rekenblad 1]],KwaliteitPortiek[#All],5,0), IF(Mogelijkheden[[#This Row],[Type gebouw]]=3,HLOOKUP(Mogelijkheden[[#This Row],[Rekenblad 1]],KwaliteitGalerij[#All],5,0),""))),"") -> 1 | K9: =IFERROR(IF(Mogelijkheden[[#This Row],[Type gebouw]]=1,HLOOKUP(Mogelijkheden[[#This Row],[Rekenblad 1]],KwaliteitEGW[#All],10,0), IF(Mogelijkheden[[#This Row],[Type gebouw]]=2,HLOOKUP(Mogelijkheden[[#This Row],[Rekenblad 1]],KwaliteitPortiek[#All],9,0), IF(Mogelijkheden[[#This Row],[Type gebouw]]=3,HLOOKUP(Mogelijkheden[[#This Row],[Rekenblad 1]],KwaliteitGalerij[#All],9,0),""))),"") -> 2 | L9: =IFERROR(IF(Mogelijkheden[[#This Row],[Type gebouw]]=1,HLOOKUP(Mogelijkheden[[#This Row],[Rekenblad 1]],KwaliteitEGW[#All],14,0), IF(Mogelijkheden[[#This Row],[Type gebouw]]=2,HLOOKUP(Mogelijkheden[[#This Row],[Rekenblad 1]],KwaliteitPortiek[#All],13,0), IF(Mogelijkheden[[#This Row],[Type gebouw]]=3,HLOOKUP(Mogelijkheden[[#This Row],[Rekenblad 1]],KwaliteitGalerij[#All],13,0),""))),"") -> 2
C10: =Rekenblad1[[#Totals],[A2 Per 2 woningen rechtstreeks van buiten cq portiek cq voor de galerijen met afleverset in of nabij de entreehal in het bouwblok zelf]] ->  | D10: =Rekenblad1[[#Totals],[Type (2)]] -> 1 | E10: =IFERROR(VLOOKUP(Mogelijkheden[[#This Row],[Rekenblad 1]],$C$35:$E$70,3,0),"") ->  | F10: =IFERROR( IF(Mogelijkheden[[#This Row],[Type gebouw]]=1,HLOOKUP(Mogelijkheden[[#This Row],[Rekenblad 1]],StaatEGW[[#All],[A1.1]:[C1.2]],40,0), IF(Mogelijkheden[[#This Row],[Type gebouw]]=2,HLOOKUP(Mogelijkheden[[#This Row],[Rekenblad 1]],StaatPortiek[[#All],[A1]:[C1]],40,0), IF(Mogelijkheden[[#This Row],[Type gebouw]]=3,HLOOKUP(Mogelijkheden[[#This Row],[Rekenblad 1]],StaatGalerij[[#All],[A1]:[C1]],40,0), "Onbekende fout"))),"") ->  | G10: =IFERROR( IF(Mogelijkheden[[#This Row],[Type gebouw]]=1,HLOOKUP(Mogelijkheden[[#This Row],[Rekenblad 1]],StaatEGW[[#All],[A1.1]:[C1.2]],41,0), IF(Mogelijkheden[[#This Row],[Type gebouw]]=2,HLOOKUP(Mogelijkheden[[#This Row],[Rekenblad 1]],StaatPortiek[[#All],[A1]:[C1]],41,0), IF(Mogelijkheden[[#This Row],[Type gebouw]]=3,HLOOKUP(Mogelijkheden[[#This Row],[Rekenblad 1]],StaatGalerij[[#All],[A1]:[C1]],41,0), "Onbekende fout"))),"") ->  | H10: =SUM(Mogelijkheden[[#This Row],[Kosten warmteleverancier]:[Kosten woningeigenaar]]) -> 0 | I10: =IFERROR(IF(Mogelijkheden[[#This Row],[Type gebouw]]=1,HLOOKUP(Mogelijkheden[[#This Row],[Rekenblad 1]],KwaliteitEGW[#All],2,0), IF(Mogelijkheden[[#This Row],[Type gebouw]]=2,HLOOKUP(Mogelijkheden[[#This Row],[Rekenblad 1]],KwaliteitPortiek[#All],2,0), IF(Mogelijkheden[[#This Row],[Type gebouw]]=3,HLOOKUP(Mogelijkheden[[#This Row],[Rekenblad 1]],KwaliteitGalerij[#All],2,0),""))),"") ->  | J10: =IFERROR(IF(Mogelijkheden[[#This Row],[Type gebouw]]=1,HLOOKUP(Mogelijkheden[[#This Row],[Rekenblad 1]],KwaliteitEGW[#All],6,0), IF(Mogelijkheden[[#This Row],[Type gebouw]]=2,HLOOKUP(Mogelijkheden[[#This Row],[Rekenblad 1]],KwaliteitPortiek[#All],5,0), IF(Mogelijkheden[[#This Row],[Type gebouw]]=3,HLOOKUP(Mogelijkheden[[#This Row],[Rekenblad 1]],KwaliteitGalerij[#All],5,0),""))),"") ->  | K10: =IFERROR(IF(Mogelijkheden[[#This Row],[Type gebouw]]=1,HLOOKUP(Mogelijkheden[[#This Row],[Rekenblad 1]],KwaliteitEGW[#All],10,0), IF(Mogelijkheden[[#This Row],[Type gebouw]]=2,HLOOKUP(Mogelijkheden[[#This Row],[Rekenblad 1]],KwaliteitPortiek[#All],9,0), IF(Mogelijkheden[[#This Row],[Type gebouw]]=3,HLOOKUP(Mogelijkheden[[#This Row],[Rekenblad 1]],KwaliteitGalerij[#All],9,0),""))),"") ->  | L10: =IFERROR(IF(Mogelijkheden[[#This Row],[Type gebouw]]=1,HLOOKUP(Mogelijkheden[[#This Row],[Rekenblad 1]],KwaliteitEGW[#All],14,0), IF(Mogelijkheden[[#This Row],[Type gebouw]]=2,HLOOKUP(Mogelijkheden[[#This Row],[Rekenblad 1]],KwaliteitPortiek[#All],13,0), IF(Mogelijkheden[[#This Row],[Type gebouw]]=3,HLOOKUP(Mogelijkheden[[#This Row],[Rekenblad 1]],KwaliteitGalerij[#All],13,0),""))),"") -> 
C11: =Rekenblad1[[#Totals],[A2.1 Per 2 woningen rechtstreeks van buiten cq portiek cq voor de galerijen met afleverset in of nabij de entreehal in het bouwblok zelf]] -> A2.1 | D11: =Rekenblad1[[#Totals],[Type (2)]] -> 1 | E11: =IFERROR(VLOOKUP(Mogelijkheden[[#This Row],[Rekenblad 1]],$C$35:$E$70,3,0),"") -> Per 2 woningen rechtstreeks van buiten cq portiek cq voor de galerijen met afleverset in of nabij de entreehal in het bouwblok zelf | F11: =IFERROR( IF(Mogelijkheden[[#This Row],[Type gebouw]]=1,HLOOKUP(Mogelijkheden[[#This Row],[Rekenblad 1]],StaatEGW[[#All],[A1.1]:[C1.2]],40,0), IF(Mogelijkheden[[#This Row],[Type gebouw]]=2,HLOOKUP(Mogelijkheden[[#This Row],[Rekenblad 1]],StaatPortiek[[#All],[A1]:[C1]],40,0), IF(Mogelijkheden[[#This Row],[Type gebouw]]=3,HLOOKUP(Mogelijkheden[[#This Row],[Rekenblad 1]],StaatGalerij[[#All],[A1]:[C1]],40,0), "Onbekende fout"))),"") -> 1500 | G11: =IFERROR( IF(Mogelijkheden[[#This Row],[Type gebouw]]=1,HLOOKUP(Mogelijkheden[[#This Row],[Rekenblad 1]],StaatEGW[[#All],[A1.1]:[C1.2]],41,0), IF(Mogelijkheden[[#This Row],[Type gebouw]]=2,HLOOKUP(Mogelijkheden[[#This Row],[Rekenblad 1]],StaatPortiek[[#All],[A1]:[C1]],41,0), IF(Mogelijkheden[[#This Row],[Type gebouw]]=3,HLOOKUP(Mogelijkheden[[#This Row],[Rekenblad 1]],StaatGalerij[[#All],[A1]:[C1]],41,0), "Onbekende fout"))),"") -> 4500 | H11: =SUM(Mogelijkheden[[#This Row],[Kosten warmteleverancier]:[Kosten woningeigenaar]]) -> 6000 | I11: =IFERROR(IF(Mogelijkheden[[#This Row],[Type gebouw]]=1,HLOOKUP(Mogelijkheden[[#This Row],[Rekenblad 1]],KwaliteitEGW[#All],2,0), IF(Mogelijkheden[[#This Row],[Type gebouw]]=2,HLOOKUP(Mogelijkheden[[#This Row],[Rekenblad 1]],KwaliteitPortiek[#All],2,0), IF(Mogelijkheden[[#This Row],[Type gebouw]]=3,HLOOKUP(Mogelijkheden[[#This Row],[Rekenblad 1]],KwaliteitGalerij[#All],2,0),""))),"") -> 4 | J11: =IFERROR(IF(Mogelijkheden[[#This Row],[Type gebouw]]=1,HLOOKUP(Mogelijkheden[[#This Row],[Rekenblad 1]],KwaliteitEGW[#All],6,0), IF(Mogelijkheden[[#This Row],[Type gebouw]]=2,HLOOKUP(Mogelijkheden[[#This Row],[Rekenblad 1]],KwaliteitPortiek[#All],5,0), IF(Mogelijkheden[[#This Row],[Type gebouw]]=3,HLOOKUP(Mogelijkheden[[#This Row],[Rekenblad 1]],KwaliteitGalerij[#All],5,0),""))),"") -> 3 | K11: =IFERROR(IF(Mogelijkheden[[#This Row],[Type gebouw]]=1,HLOOKUP(Mogelijkheden[[#This Row],[Rekenblad 1]],KwaliteitEGW[#All],10,0), IF(Mogelijkheden[[#This Row],[Type gebouw]]=2,HLOOKUP(Mogelijkheden[[#This Row],[Rekenblad 1]],KwaliteitPortiek[#All],9,0), IF(Mogelijkheden[[#This Row],[Type gebouw]]=3,HLOOKUP(Mogelijkheden[[#This Row],[Rekenblad 1]],KwaliteitGalerij[#All],9,0),""))),"") -> 4 | L11: =IFERROR(IF(Mogelijkheden[[#This Row],[Type gebouw]]=1,HLOOKUP(Mogelijkheden[[#This Row],[Rekenblad 1]],KwaliteitEGW[#All],14,0), IF(Mogelijkheden[[#This Row],[Type gebouw]]=2,HLOOKUP(Mogelijkheden[[#This Row],[Rekenblad 1]],KwaliteitPortiek[#All],13,0), IF(Mogelijkheden[[#This Row],[Type gebouw]]=3,HLOOKUP(Mogelijkheden[[#This Row],[Rekenblad 1]],KwaliteitGalerij[#All],13,0),""))),"") -> 3
C12: =Rekenblad1[[#Totals],[A2.2 Per 2 woningen rechtstreeks van buiten cq portiek cq voor de galerijen met afleverset in of nabij de entreehal in het bouwblok zel]] -> A2.2 | D12: =Rekenblad1[[#Totals],[Type (2)]] -> 1 | E12: =IFERROR(VLOOKUP(Mogelijkheden[[#This Row],[Rekenblad 1]],$C$35:$E$70,3,0),"") -> Per 2 woningen rechtstreeks van buiten cq portiek cq voor de galerijen met afleverset in of nabij de entreehal in het bouwblok zelf | F12: =IFERROR( IF(Mogelijkheden[[#This Row],[Type gebouw]]=1,HLOOKUP(Mogelijkheden[[#This Row],[Rekenblad 1]],StaatEGW[[#All],[A1.1]:[C1.2]],40,0), IF(Mogelijkheden[[#This Row],[Type gebouw]]=2,HLOOKUP(Mogelijkheden[[#This Row],[Rekenblad 1]],StaatPortiek[[#All],[A1]:[C1]],40,0), IF(Mogelijkheden[[#This Row],[Type gebouw]]=3,HLOOKUP(Mogelijkheden[[#This Row],[Rekenblad 1]],StaatGalerij[[#All],[A1]:[C1]],40,0), "Onbekende fout"))),"") -> 1500 | G12: =IFERROR( IF(Mogelijkheden[[#This Row],[Type gebouw]]=1,HLOOKUP(Mogelijkheden[[#This Row],[Rekenblad 1]],StaatEGW[[#All],[A1.1]:[C1.2]],41,0), IF(Mogelijkheden[[#This Row],[Type gebouw]]=2,HLOOKUP(Mogelijkheden[[#This Row],[Rekenblad 1]],StaatPortiek[[#All],[A1]:[C1]],41,0), IF(Mogelijkheden[[#This Row],[Type gebouw]]=3,HLOOKUP(Mogelijkheden[[#This Row],[Rekenblad 1]],StaatGalerij[[#All],[A1]:[C1]],41,0), "Onbekende fout"))),"") -> 5500 | H12: =SUM(Mogelijkheden[[#This Row],[Kosten warmteleverancier]:[Kosten woningeigenaar]]) -> 7000 | I12: =IFERROR(IF(Mogelijkheden[[#This Row],[Type gebouw]]=1,HLOOKUP(Mogelijkheden[[#This Row],[Rekenblad 1]],KwaliteitEGW[#All],2,0), IF(Mogelijkheden[[#This Row],[Type gebouw]]=2,HLOOKUP(Mogelijkheden[[#This Row],[Rekenblad 1]],KwaliteitPortiek[#All],2,0), IF(Mogelijkheden[[#This Row],[Type gebouw]]=3,HLOOKUP(Mogelijkheden[[#This Row],[Rekenblad 1]],KwaliteitGalerij[#All],2,0),""))),"") -> 4 | J12: =IFERROR(IF(Mogelijkheden[[#This Row],[Type gebouw]]=1,HLOOKUP(Mogelijkheden[[#This Row],[Rekenblad 1]],KwaliteitEGW[#All],6,0), IF(Mogelijkheden[[#This Row],[Type gebouw]]=2,HLOOKUP(Mogelijkheden[[#This Row],[Rekenblad 1]],KwaliteitPortiek[#All],5,0), IF(Mogelijkheden[[#This Row],[Type gebouw]]=3,HLOOKUP(Mogelijkheden[[#This Row],[Rekenblad 1]],KwaliteitGalerij[#All],5,0),""))),"") -> 1 | K12: =IFERROR(IF(Mogelijkheden[[#This Row],[Type gebouw]]=1,HLOOKUP(Mogelijkheden[[#This Row],[Rekenblad 1]],KwaliteitEGW[#All],10,0), IF(Mogelijkheden[[#This Row],[Type gebouw]]=2,HLOOKUP(Mogelijkheden[[#This Row],[Rekenblad 1]],KwaliteitPortiek[#All],9,0), IF(Mogelijkheden[[#This Row],[Type gebouw]]=3,HLOOKUP(Mogelijkheden[[#This Row],[Rekenblad 1]],KwaliteitGalerij[#All],9,0),""))),"") -> 2 | L12: =IFERROR(IF(Mogelijkheden[[#This Row],[Type gebouw]]=1,HLOOKUP(Mogelijkheden[[#This Row],[Rekenblad 1]],KwaliteitEGW[#All],14,0), IF(Mogelijkheden[[#This Row],[Type gebouw]]=2,HLOOKUP(Mogelijkheden[[#This Row],[Rekenblad 1]],KwaliteitPortiek[#All],13,0), IF(Mogelijkheden[[#This Row],[Type gebouw]]=3,HLOOKUP(Mogelijkheden[[#This Row],[Rekenblad 1]],KwaliteitGalerij[#All],13,0),""))),"") -> 2
C13: =Rekenblad1[[#Totals],[A3 Per woning via verticale leidingen op voor- of achtergevel naar afleverset ]] ->  | D13: =Rekenblad1[[#Totals],[Type (2)]] -> 1 | E13: =IFERROR(VLOOKUP(Mogelijkheden[[#This Row],[Rekenblad 1]],$C$35:$E$70,3,0),"") ->  | F13: =IFERROR( IF(Mogelijkheden[[#This Row],[Type gebouw]]=1,HLOOKUP(Mogelijkheden[[#This Row],[Rekenblad 1]],StaatEGW[[#All],[A1.1]:[C1.2]],40,0), IF(Mogelijkheden[[#This Row],[Type gebouw]]=2,HLOOKUP(Mogelijkheden[[#This Row],[Rekenblad 1]],StaatPortiek[[#All],[A1]:[C1]],40,0), IF(Mogelijkheden[[#This Row],[Type gebouw]]=3,HLOOKUP(Mogelijkheden[[#This Row],[Rekenblad 1]],StaatGalerij[[#All],[A1]:[C1]],40,0), "Onbekende fout"))),"") ->  | G13: =IFERROR( IF(Mogelijkheden[[#This Row],[Type gebouw]]=1,HLOOKUP(Mogelijkheden[[#This Row],[Rekenblad 1]],StaatEGW[[#All],[A1.1]:[C1.2]],41,0), IF(Mogelijkheden[[#This Row],[Type gebouw]]=2,HLOOKUP(Mogelijkheden[[#This Row],[Rekenblad 1]],StaatPortiek[[#All],[A1]:[C1]],41,0), IF(Mogelijkheden[[#This Row],[Type gebouw]]=3,HLOOKUP(Mogelijkheden[[#This Row],[Rekenblad 1]],StaatGalerij[[#All],[A1]:[C1]],41,0), "Onbekende fout"))),"") ->  | H13: =SUM(Mogelijkheden[[#This Row],[Kosten warmteleverancier]:[Kosten woningeigenaar]]) -> 0 | I13: =IFERROR(IF(Mogelijkheden[[#This Row],[Type gebouw]]=1,HLOOKUP(Mogelijkheden[[#This Row],[Rekenblad 1]],KwaliteitEGW[#All],2,0), IF(Mogelijkheden[[#This Row],[Type gebouw]]=2,HLOOKUP(Mogelijkheden[[#This Row],[Rekenblad 1]],KwaliteitPortiek[#All],2,0), IF(Mogelijkheden[[#This Row],[Type gebouw]]=3,HLOOKUP(Mogelijkheden[[#This Row],[Rekenblad 1]],KwaliteitGalerij[#All],2,0),""))),"") ->  | J13: =IFERROR(IF(Mogelijkheden[[#This Row],[Type gebouw]]=1,HLOOKUP(Mogelijkheden[[#This Row],[Rekenblad 1]],KwaliteitEGW[#All],6,0), IF(Mogelijkheden[[#This Row],[Type gebouw]]=2,HLOOKUP(Mogelijkheden[[#This Row],[Rekenblad 1]],KwaliteitPortiek[#All],5,0), IF(Mogelijkheden[[#This Row],[Type gebouw]]=3,HLOOKUP(Mogelijkheden[[#This Row],[Rekenblad 1]],KwaliteitGalerij[#All],5,0),""))),"") ->  | K13: =IFERROR(IF(Mogelijkheden[[#This Row],[Type gebouw]]=1,HLOOKUP(Mogelijkheden[[#This Row],[Rekenblad 1]],KwaliteitEGW[#All],10,0), IF(Mogelijkheden[[#This Row],[Type gebouw]]=2,HLOOKUP(Mogelijkheden[[#This Row],[Rekenblad 1]],KwaliteitPortiek[#All],9,0), IF(Mogelijkheden[[#This Row],[Type gebouw]]=3,HLOOKUP(Mogelijkheden[[#This Row],[Rekenblad 1]],KwaliteitGalerij[#All],9,0),""))),"") ->  | L13: =IFERROR(IF(Mogelijkheden[[#This Row],[Type gebouw]]=1,HLOOKUP(Mogelijkheden[[#This Row],[Rekenblad 1]],KwaliteitEGW[#All],14,0), IF(Mogelijkheden[[#This Row],[Type gebouw]]=2,HLOOKUP(Mogelijkheden[[#This Row],[Rekenblad 1]],KwaliteitPortiek[#All],13,0), IF(Mogelijkheden[[#This Row],[Type gebouw]]=3,HLOOKUP(Mogelijkheden[[#This Row],[Rekenblad 1]],KwaliteitGalerij[#All],13,0),""))),"") -> 
C14: =Rekenblad1[[#Totals],[A3.1 Per woning via verticale leidingen op voor- of achtergevel naar afleverset ]] -> A3.1 | D14: =Rekenblad1[[#Totals],[Type (2)]] -> 1 | E14: =IFERROR(VLOOKUP(Mogelijkheden[[#This Row],[Rekenblad 1]],$C$35:$E$70,3,0),"") -> Per woning via verticale leidingen op voor- of achtergevel naar afleverset | F14: =IFERROR( IF(Mogelijkheden[[#This Row],[Type gebouw]]=1,HLOOKUP(Mogelijkheden[[#This Row],[Rekenblad 1]],StaatEGW[[#All],[A1.1]:[C1.2]],40,0), IF(Mogelijkheden[[#This Row],[Type gebouw]]=2,HLOOKUP(Mogelijkheden[[#This Row],[Rekenblad 1]],StaatPortiek[[#All],[A1]:[C1]],40,0), IF(Mogelijkheden[[#This Row],[Type gebouw]]=3,HLOOKUP(Mogelijkheden[[#This Row],[Rekenblad 1]],StaatGalerij[[#All],[A1]:[C1]],40,0), "Onbekende fout"))),"") -> 5500 | G14: =IFERROR( IF(Mogelijkheden[[#This Row],[Type gebouw]]=1,HLOOKUP(Mogelijkheden[[#This Row],[Rekenblad 1]],StaatEGW[[#All],[A1.1]:[C1.2]],41,0), IF(Mogelijkheden[[#This Row],[Type gebouw]]=2,HLOOKUP(Mogelijkheden[[#This Row],[Rekenblad 1]],StaatPortiek[[#All],[A1]:[C1]],41,0), IF(Mogelijkheden[[#This Row],[Type gebouw]]=3,HLOOKUP(Mogelijkheden[[#This Row],[Rekenblad 1]],StaatGalerij[[#All],[A1]:[C1]],41,0), "Onbekende fout"))),"") -> 5000 | H14: =SUM(Mogelijkheden[[#This Row],[Kosten warmteleverancier]:[Kosten woningeigenaar]]) -> 10500 | I14: =IFERROR(IF(Mogelijkheden[[#This Row],[Type gebouw]]=1,HLOOKUP(Mogelijkheden[[#This Row],[Rekenblad 1]],KwaliteitEGW[#All],2,0), IF(Mogelijkheden[[#This Row],[Type gebouw]]=2,HLOOKUP(Mogelijkheden[[#This Row],[Rekenblad 1]],KwaliteitPortiek[#All],2,0), IF(Mogelijkheden[[#This Row],[Type gebouw]]=3,HLOOKUP(Mogelijkheden[[#This Row],[Rekenblad 1]],KwaliteitGalerij[#All],2,0),""))),"") -> 2 | J14: =IFERROR(IF(Mogelijkheden[[#This Row],[Type gebouw]]=1,HLOOKUP(Mogelijkheden[[#This Row],[Rekenblad 1]],KwaliteitEGW[#All],6,0), IF(Mogelijkheden[[#This Row],[Type gebouw]]=2,HLOOKUP(Mogelijkheden[[#This Row],[Rekenblad 1]],KwaliteitPortiek[#All],5,0), IF(Mogelijkheden[[#This Row],[Type gebouw]]=3,HLOOKUP(Mogelijkheden[[#This Row],[Rekenblad 1]],KwaliteitGalerij[#All],5,0),""))),"") -> 2 | K14: =IFERROR(IF(Mogelijkheden[[#This Row],[Type gebouw]]=1,HLOOKUP(Mogelijkheden[[#This Row],[Rekenblad 1]],KwaliteitEGW[#All],10,0), IF(Mogelijkheden[[#This Row],[Type gebouw]]=2,HLOOKUP(Mogelijkheden[[#This Row],[Rekenblad 1]],KwaliteitPortiek[#All],9,0), IF(Mogelijkheden[[#This Row],[Type gebouw]]=3,HLOOKUP(Mogelijkheden[[#This Row],[Rekenblad 1]],KwaliteitGalerij[#All],9,0),""))),"") -> 2 | L14: =IFERROR(IF(Mogelijkheden[[#This Row],[Type gebouw]]=1,HLOOKUP(Mogelijkheden[[#This Row],[Rekenblad 1]],KwaliteitEGW[#All],14,0), IF(Mogelijkheden[[#This Row],[Type gebouw]]=2,HLOOKUP(Mogelijkheden[[#This Row],[Rekenblad 1]],KwaliteitPortiek[#All],13,0), IF(Mogelijkheden[[#This Row],[Type gebouw]]=3,HLOOKUP(Mogelijkheden[[#This Row],[Rekenblad 1]],KwaliteitGalerij[#All],13,0),""))),"") -> 2
C15: =Rekenblad1[[#Totals],[A3.2 Per woning via verticale leidingen op voor- of achtergevel naar afleverset ]] -> A3.2 | D15: =Rekenblad1[[#Totals],[Type (2)]] -> 1 | E15: =IFERROR(VLOOKUP(Mogelijkheden[[#This Row],[Rekenblad 1]],$C$35:$E$70,3,0),"") -> Per woning via verticale leidingen op voor- of achtergevel naar afleverset | F15: =IFERROR( IF(Mogelijkheden[[#This Row],[Type gebouw]]=1,HLOOKUP(Mogelijkheden[[#This Row],[Rekenblad 1]],StaatEGW[[#All],[A1.1]:[C1.2]],40,0), IF(Mogelijkheden[[#This Row],[Type gebouw]]=2,HLOOKUP(Mogelijkheden[[#This Row],[Rekenblad 1]],StaatPortiek[[#All],[A1]:[C1]],40,0), IF(Mogelijkheden[[#This Row],[Type gebouw]]=3,HLOOKUP(Mogelijkheden[[#This Row],[Rekenblad 1]],StaatGalerij[[#All],[A1]:[C1]],40,0), "Onbekende fout"))),"") -> 5500 | G15: =IFERROR( IF(Mogelijkheden[[#This Row],[Type gebouw]]=1,HLOOKUP(Mogelijkheden[[#This Row],[Rekenblad 1]],StaatEGW[[#All],[A1.1]:[C1.2]],41,0), IF(Mogelijkheden[[#This Row],[Type gebouw]]=2,HLOOKUP(Mogelijkheden[[#This Row],[Rekenblad 1]],StaatPortiek[[#All],[A1]:[C1]],41,0), IF(Mogelijkheden[[#This Row],[Type gebouw]]=3,HLOOKUP(Mogelijkheden[[#This Row],[Rekenblad 1]],StaatGalerij[[#All],[A1]:[C1]],41,0), "Onbekende fout"))),"") -> 4000 | H15: =SUM(Mogelijkheden[[#This Row],[Kosten warmteleverancier]:[Kosten woningeigenaar]]) -> 9500 | I15: =IFERROR(IF(Mogelijkheden[[#This Row],[Type gebouw]]=1,HLOOKUP(Mogelijkheden[[#This Row],[Rekenblad 1]],KwaliteitEGW[#All],2,0), IF(Mogelijkheden[[#This Row],[Type gebouw]]=2,HLOOKUP(Mogelijkheden[[#This Row],[Rekenblad 1]],KwaliteitPortiek[#All],2,0), IF(Mogelijkheden[[#This Row],[Type gebouw]]=3,HLOOKUP(Mogelijkheden[[#This Row],[Rekenblad 1]],KwaliteitGalerij[#All],2,0),""))),"") -> 1 | J15: =IFERROR(IF(Mogelijkheden[[#This Row],[Type gebouw]]=1,HLOOKUP(Mogelijkheden[[#This Row],[Rekenblad 1]],KwaliteitEGW[#All],6,0), IF(Mogelijkheden[[#This Row],[Type gebouw]]=2,HLOOKUP(Mogelijkheden[[#This Row],[Rekenblad 1]],KwaliteitPortiek[#All],5,0), IF(Mogelijkheden[[#This Row],[Type gebouw]]=3,HLOOKUP(Mogelijkheden[[#This Row],[Rekenblad 1]],KwaliteitGalerij[#All],5,0),""))),"") -> 2 | K15: =IFERROR(IF(Mogelijkheden[[#This Row],[Type gebouw]]=1,HLOOKUP(Mogelijkheden[[#This Row],[Rekenblad 1]],KwaliteitEGW[#All],10,0), IF(Mogelijkheden[[#This Row],[Type gebouw]]=2,HLOOKUP(Mogelijkheden[[#This Row],[Rekenblad 1]],KwaliteitPortiek[#All],9,0), IF(Mogelijkheden[[#This Row],[Type gebouw]]=3,HLOOKUP(Mogelijkheden[[#This Row],[Rekenblad 1]],KwaliteitGalerij[#All],9,0),""))),"") -> 3 | L15: =IFERROR(IF(Mogelijkheden[[#This Row],[Type gebouw]]=1,HLOOKUP(Mogelijkheden[[#This Row],[Rekenblad 1]],KwaliteitEGW[#All],14,0), IF(Mogelijkheden[[#This Row],[Type gebouw]]=2,HLOOKUP(Mogelijkheden[[#This Row],[Rekenblad 1]],KwaliteitPortiek[#All],13,0), IF(Mogelijkheden[[#This Row],[Type gebouw]]=3,HLOOKUP(Mogelijkheden[[#This Row],[Rekenblad 1]],KwaliteitGalerij[#All],13,0),""))),"") -> 2
C16: =Rekenblad1[[#Totals],[A4 Per 2 woningen via verticale leidingen op voor- of achtergevel naar afleverset ]] ->  | D16: =Rekenblad1[[#Totals],[Type (2)]] -> 1 | E16: =IFERROR(VLOOKUP(Mogelijkheden[[#This Row],[Rekenblad 1]],$C$35:$E$70,3,0),"") ->  | F16: =IFERROR( IF(Mogelijkheden[[#This Row],[Type gebouw]]=1,HLOOKUP(Mogelijkheden[[#This Row],[Rekenblad 1]],StaatEGW[[#All],[A1.1]:[C1.2]],40,0), IF(Mogelijkheden[[#This Row],[Type gebouw]]=2,HLOOKUP(Mogelijkheden[[#This Row],[Rekenblad 1]],StaatPortiek[[#All],[A1]:[C1]],40,0), IF(Mogelijkheden[[#This Row],[Type gebouw]]=3,HLOOKUP(Mogelijkheden[[#This Row],[Rekenblad 1]],StaatGalerij[[#All],[A1]:[C1]],40,0), "Onbekende fout"))),"") ->  | G16: =IFERROR( IF(Mogelijkheden[[#This Row],[Type gebouw]]=1,HLOOKUP(Mogelijkheden[[#This Row],[Rekenblad 1]],StaatEGW[[#All],[A1.1]:[C1.2]],41,0), IF(Mogelijkheden[[#This Row],[Type gebouw]]=2,HLOOKUP(Mogelijkheden[[#This Row],[Rekenblad 1]],StaatPortiek[[#All],[A1]:[C1]],41,0), IF(Mogelijkheden[[#This Row],[Type gebouw]]=3,HLOOKUP(Mogelijkheden[[#This Row],[Rekenblad 1]],StaatGalerij[[#All],[A1]:[C1]],41,0), "Onbekende fout"))),"") ->  | H16: =SUM(Mogelijkheden[[#This Row],[Kosten warmteleverancier]:[Kosten woningeigenaar]]) -> 0 | I16: =IFERROR(IF(Mogelijkheden[[#This Row],[Type gebouw]]=1,HLOOKUP(Mogelijkheden[[#This Row],[Rekenblad 1]],KwaliteitEGW[#All],2,0), IF(Mogelijkheden[[#This Row],[Type gebouw]]=2,HLOOKUP(Mogelijkheden[[#This Row],[Rekenblad 1]],KwaliteitPortiek[#All],2,0), IF(Mogelijkheden[[#This Row],[Type gebouw]]=3,HLOOKUP(Mogelijkheden[[#This Row],[Rekenblad 1]],KwaliteitGalerij[#All],2,0),""))),"") ->  | J16: =IFERROR(IF(Mogelijkheden[[#This Row],[Type gebouw]]=1,HLOOKUP(Mogelijkheden[[#This Row],[Rekenblad 1]],KwaliteitEGW[#All],6,0), IF(Mogelijkheden[[#This Row],[Type gebouw]]=2,HLOOKUP(Mogelijkheden[[#This Row],[Rekenblad 1]],KwaliteitPortiek[#All],5,0), IF(Mogelijkheden[[#This Row],[Type gebouw]]=3,HLOOKUP(Mogelijkheden[[#This Row],[Rekenblad 1]],KwaliteitGalerij[#All],5,0),""))),"") ->  | K16: =IFERROR(IF(Mogelijkheden[[#This Row],[Type gebouw]]=1,HLOOKUP(Mogelijkheden[[#This Row],[Rekenblad 1]],KwaliteitEGW[#All],10,0), IF(Mogelijkheden[[#This Row],[Type gebouw]]=2,HLOOKUP(Mogelijkheden[[#This Row],[Rekenblad 1]],KwaliteitPortiek[#All],9,0), IF(Mogelijkheden[[#This Row],[Type gebouw]]=3,HLOOKUP(Mogelijkheden[[#This Row],[Rekenblad 1]],KwaliteitGalerij[#All],9,0),""))),"") ->  | L16: =IFERROR(IF(Mogelijkheden[[#This Row],[Type gebouw]]=1,HLOOKUP(Mogelijkheden[[#This Row],[Rekenblad 1]],KwaliteitEGW[#All],14,0), IF(Mogelijkheden[[#This Row],[Type gebouw]]=2,HLOOKUP(Mogelijkheden[[#This Row],[Rekenblad 1]],KwaliteitPortiek[#All],13,0), IF(Mogelijkheden[[#This Row],[Type gebouw]]=3,HLOOKUP(Mogelijkheden[[#This Row],[Rekenblad 1]],KwaliteitGalerij[#All],13,0),""))),"") -> 
C17: =Rekenblad1[[#Totals],[A4.1 Per 2 woningen via verticale leidingen op voor- of achtergevel naar afleverset ]] -> A4.1 | D17: =Rekenblad1[[#Totals],[Type (2)]] -> 1 | E17: =IFERROR(VLOOKUP(Mogelijkheden[[#This Row],[Rekenblad 1]],$C$35:$E$70,3,0),"") -> Per 2 woningen via verticale leidingen op voor- of achtergevel naar afleverset | F17: =IFERROR( IF(Mogelijkheden[[#This Row],[Type gebouw]]=1,HLOOKUP(Mogelijkheden[[#This Row],[Rekenblad 1]],StaatEGW[[#All],[A1.1]:[C1.2]],40,0), IF(Mogelijkheden[[#This Row],[Type gebouw]]=2,HLOOKUP(Mogelijkheden[[#This Row],[Rekenblad 1]],StaatPortiek[[#All],[A1]:[C1]],40,0), IF(Mogelijkheden[[#This Row],[Type gebouw]]=3,HLOOKUP(Mogelijkheden[[#This Row],[Rekenblad 1]],StaatGalerij[[#All],[A1]:[C1]],40,0), "Onbekende fout"))),"") -> 2500 | G17: =IFERROR( IF(Mogelijkheden[[#This Row],[Type gebouw]]=1,HLOOKUP(Mogelijkheden[[#This Row],[Rekenblad 1]],StaatEGW[[#All],[A1.1]:[C1.2]],41,0), IF(Mogelijkheden[[#This Row],[Type gebouw]]=2,HLOOKUP(Mogelijkheden[[#This Row],[Rekenblad 1]],StaatPortiek[[#All],[A1]:[C1]],41,0), IF(Mogelijkheden[[#This Row],[Type gebouw]]=3,HLOOKUP(Mogelijkheden[[#This Row],[Rekenblad 1]],StaatGalerij[[#All],[A1]:[C1]],41,0), "Onbekende fout"))),"") -> 5000 | H17: =SUM(Mogelijkheden[[#This Row],[Kosten warmteleverancier]:[Kosten woningeigenaar]]) -> 7500 | I17: =IFERROR(IF(Mogelijkheden[[#This Row],[Type gebouw]]=1,HLOOKUP(Mogelijkheden[[#This Row],[Rekenblad 1]],KwaliteitEGW[#All],2,0), IF(Mogelijkheden[[#This Row],[Type gebouw]]=2,HLOOKUP(Mogelijkheden[[#This Row],[Rekenblad 1]],KwaliteitPortiek[#All],2,0), IF(Mogelijkheden[[#This Row],[Type gebouw]]=3,HLOOKUP(Mogelijkheden[[#This Row],[Rekenblad 1]],KwaliteitGalerij[#All],2,0),""))),"") -> 2 | J17: =IFERROR(IF(Mogelijkheden[[#This Row],[Type gebouw]]=1,HLOOKUP(Mogelijkheden[[#This Row],[Rekenblad 1]],KwaliteitEGW[#All],6,0), IF(Mogelijkheden[[#This Row],[Type gebouw]]=2,HLOOKUP(Mogelijkheden[[#This Row],[Rekenblad 1]],KwaliteitPortiek[#All],5,0), IF(Mogelijkheden[[#This Row],[Type gebouw]]=3,HLOOKUP(Mogelijkheden[[#This Row],[Rekenblad 1]],KwaliteitGalerij[#All],5,0),""))),"") -> 2 | K17: =IFERROR(IF(Mogelijkheden[[#This Row],[Type gebouw]]=1,HLOOKUP(Mogelijkheden[[#This Row],[Rekenblad 1]],KwaliteitEGW[#All],10,0), IF(Mogelijkheden[[#This Row],[Type gebouw]]=2,HLOOKUP(Mogelijkheden[[#This Row],[Rekenblad 1]],KwaliteitPortiek[#All],9,0), IF(Mogelijkheden[[#This Row],[Type gebouw]]=3,HLOOKUP(Mogelijkheden[[#This Row],[Rekenblad 1]],KwaliteitGalerij[#All],9,0),""))),"") -> 2 | L17: =IFERROR(IF(Mogelijkheden[[#This Row],[Type gebouw]]=1,HLOOKUP(Mogelijkheden[[#This Row],[Rekenblad 1]],KwaliteitEGW[#All],14,0), IF(Mogelijkheden[[#This Row],[Type gebouw]]=2,HLOOKUP(Mogelijkheden[[#This Row],[Rekenblad 1]],KwaliteitPortiek[#All],13,0), IF(Mogelijkheden[[#This Row],[Type gebouw]]=3,HLOOKUP(Mogelijkheden[[#This Row],[Rekenblad 1]],KwaliteitGalerij[#All],13,0),""))),"") -> 2
C18: =Rekenblad1[[#Totals],[A4.2 Per 2 woningen via verticale leidingen op voor- of achtergevel naar afleverset ]] -> A4.2 | D18: =Rekenblad1[[#Totals],[Type (2)]] -> 1 | E18: =IFERROR(VLOOKUP(Mogelijkheden[[#This Row],[Rekenblad 1]],$C$35:$E$70,3,0),"") -> Per 2 woningen via verticale leidingen op voor- of achtergevel naar afleverset | F18: =IFERROR( IF(Mogelijkheden[[#This Row],[Type gebouw]]=1,HLOOKUP(Mogelijkheden[[#This Row],[Rekenblad 1]],StaatEGW[[#All],[A1.1]:[C1.2]],40,0), IF(Mogelijkheden[[#This Row],[Type gebouw]]=2,HLOOKUP(Mogelijkheden[[#This Row],[Rekenblad 1]],StaatPortiek[[#All],[A1]:[C1]],40,0), IF(Mogelijkheden[[#This Row],[Type gebouw]]=3,HLOOKUP(Mogelijkheden[[#This Row],[Rekenblad 1]],StaatGalerij[[#All],[A1]:[C1]],40,0), "Onbekende fout"))),"") -> 2500 | G18: =IFERROR( IF(Mogelijkheden[[#This Row],[Type gebouw]]=1,HLOOKUP(Mogelijkheden[[#This Row],[Rekenblad 1]],StaatEGW[[#All],[A1.1]:[C1.2]],41,0), IF(Mogelijkheden[[#This Row],[Type gebouw]]=2,HLOOKUP(Mogelijkheden[[#This Row],[Rekenblad 1]],StaatPortiek[[#All],[A1]:[C1]],41,0), IF(Mogelijkheden[[#This Row],[Type gebouw]]=3,HLOOKUP(Mogelijkheden[[#This Row],[Rekenblad 1]],StaatGalerij[[#All],[A1]:[C1]],41,0), "Onbekende fout"))),"") -> 4000 | H18: =SUM(Mogelijkheden[[#This Row],[Kosten warmteleverancier]:[Kosten woningeigenaar]]) -> 6500 | I18: =IFERROR(IF(Mogelijkheden[[#This Row],[Type gebouw]]=1,HLOOKUP(Mogelijkheden[[#This Row],[Rekenblad 1]],KwaliteitEGW[#All],2,0), IF(Mogelijkheden[[#This Row],[Type gebouw]]=2,HLOOKUP(Mogelijkheden[[#This Row],[Rekenblad 1]],KwaliteitPortiek[#All],2,0), IF(Mogelijkheden[[#This Row],[Type gebouw]]=3,HLOOKUP(Mogelijkheden[[#This Row],[Rekenblad 1]],KwaliteitGalerij[#All],2,0),""))),"") -> 2 | J18: =IFERROR(IF(Mogelijkheden[[#This Row],[Type gebouw]]=1,HLOOKUP(Mogelijkheden[[#This Row],[Rekenblad 1]],KwaliteitEGW[#All],6,0), IF(Mogelijkheden[[#This Row],[Type gebouw]]=2,HLOOKUP(Mogelijkheden[[#This Row],[Rekenblad 1]],KwaliteitPortiek[#All],5,0), IF(Mogelijkheden[[#This Row],[Type gebouw]]=3,HLOOKUP(Mogelijkheden[[#This Row],[Rekenblad 1]],KwaliteitGalerij[#All],5,0),""))),"") -> 2 | K18: =IFERROR(IF(Mogelijkheden[[#This Row],[Type gebouw]]=1,HLOOKUP(Mogelijkheden[[#This Row],[Rekenblad 1]],KwaliteitEGW[#All],10,0), IF(Mogelijkheden[[#This Row],[Type gebouw]]=2,HLOOKUP(Mogelijkheden[[#This Row],[Rekenblad 1]],KwaliteitPortiek[#All],9,0), IF(Mogelijkheden[[#This Row],[Type gebouw]]=3,HLOOKUP(Mogelijkheden[[#This Row],[Rekenblad 1]],KwaliteitGalerij[#All],9,0),""))),"") -> 4 | L18: =IFERROR(IF(Mogelijkheden[[#This Row],[Type gebouw]]=1,HLOOKUP(Mogelijkheden[[#This Row],[Rekenblad 1]],KwaliteitEGW[#All],14,0), IF(Mogelijkheden[[#This Row],[Type gebouw]]=2,HLOOKUP(Mogelijkheden[[#This Row],[Rekenblad 1]],KwaliteitPortiek[#All],13,0), IF(Mogelijkheden[[#This Row],[Type gebouw]]=3,HLOOKUP(Mogelijkheden[[#This Row],[Rekenblad 1]],KwaliteitGalerij[#All],13,0),""))),"") -> 2
C19: =Rekenblad1[[#Totals],[B1 In de lengterichting van het volledige blok door de kapruimte]] ->  | D19: =Rekenblad1[[#Totals],[Type (2)]] -> 1 | E19: =IFERROR(VLOOKUP(Mogelijkheden[[#This Row],[Rekenblad 1]],$C$35:$E$70,3,0),"") ->  | F19: =IFERROR( IF(Mogelijkheden[[#This Row],[Type gebouw]]=1,HLOOKUP(Mogelijkheden[[#This Row],[Rekenblad 1]],StaatEGW[[#All],[A1.1]:[C1.2]],40,0), IF(Mogelijkheden[[#This Row],[Type gebouw]]=2,HLOOKUP(Mogelijkheden[[#This Row],[Rekenblad 1]],StaatPortiek[[#All],[A1]:[C1]],40,0), IF(Mogelijkheden[[#This Row],[Type gebouw]]=3,HLOOKUP(Mogelijkheden[[#This Row],[Rekenblad 1]],StaatGalerij[[#All],[A1]:[C1]],40,0), "Onbekende fout"))),"") ->  | G19: =IFERROR( IF(Mogelijkheden[[#This Row],[Type gebouw]]=1,HLOOKUP(Mogelijkheden[[#This Row],[Rekenblad 1]],StaatEGW[[#All],[A1.1]:[C1.2]],41,0), IF(Mogelijkheden[[#This Row],[Type gebouw]]=2,HLOOKUP(Mogelijkheden[[#This Row],[Rekenblad 1]],StaatPortiek[[#All],[A1]:[C1]],41,0), IF(Mogelijkheden[[#This Row],[Type gebouw]]=3,HLOOKUP(Mogelijkheden[[#This Row],[Rekenblad 1]],StaatGalerij[[#All],[A1]:[C1]],41,0), "Onbekende fout"))),"") ->  | H19: =SUM(Mogelijkheden[[#This Row],[Kosten warmteleverancier]:[Kosten woningeigenaar]]) -> 0 | I19: =IFERROR(IF(Mogelijkheden[[#This Row],[Type gebouw]]=1,HLOOKUP(Mogelijkheden[[#This Row],[Rekenblad 1]],KwaliteitEGW[#All],2,0), IF(Mogelijkheden[[#This Row],[Type gebouw]]=2,HLOOKUP(Mogelijkheden[[#This Row],[Rekenblad 1]],KwaliteitPortiek[#All],2,0), IF(Mogelijkheden[[#This Row],[Type gebouw]]=3,HLOOKUP(Mogelijkheden[[#This Row],[Rekenblad 1]],KwaliteitGalerij[#All],2,0),""))),"") ->  | J19: =IFERROR(IF(Mogelijkheden[[#This Row],[Type gebouw]]=1,HLOOKUP(Mogelijkheden[[#This Row],[Rekenblad 1]],KwaliteitEGW[#All],6,0), IF(Mogelijkheden[[#This Row],[Type gebouw]]=2,HLOOKUP(Mogelijkheden[[#This Row],[Rekenblad 1]],KwaliteitPortiek[#All],5,0), IF(Mogelijkheden[[#This Row],[Type gebouw]]=3,HLOOKUP(Mogelijkheden[[#This Row],[Rekenblad 1]],KwaliteitGalerij[#All],5,0),""))),"") ->  | K19: =IFERROR(IF(Mogelijkheden[[#This Row],[Type gebouw]]=1,HLOOKUP(Mogelijkheden[[#This Row],[Rekenblad 1]],KwaliteitEGW[#All],10,0), IF(Mogelijkheden[[#This Row],[Type gebouw]]=2,HLOOKUP(Mogelijkheden[[#This Row],[Rekenblad 1]],KwaliteitPortiek[#All],9,0), IF(Mogelijkheden[[#This Row],[Type gebouw]]=3,HLOOKUP(Mogelijkheden[[#This Row],[Rekenblad 1]],KwaliteitGalerij[#All],9,0),""))),"") ->  | L19: =IFERROR(IF(Mogelijkheden[[#This Row],[Type gebouw]]=1,HLOOKUP(Mogelijkheden[[#This Row],[Rekenblad 1]],KwaliteitEGW[#All],14,0), IF(Mogelijkheden[[#This Row],[Type gebouw]]=2,HLOOKUP(Mogelijkheden[[#This Row],[Rekenblad 1]],KwaliteitPortiek[#All],13,0), IF(Mogelijkheden[[#This Row],[Type gebouw]]=3,HLOOKUP(Mogelijkheden[[#This Row],[Rekenblad 1]],KwaliteitGalerij[#All],13,0),""))),"") -> 
C20: =Rekenblad1[[#Totals],[B1.1 In de lengterichting van het volledige blok door de kapruimte]] -> B1.1 | D20: =Rekenblad1[[#Totals],[Type (2)]] -> 1 | E20: =IFERROR(VLOOKUP(Mogelijkheden[[#This Row],[Rekenblad 1]],$C$35:$E$70,3,0),"") -> In de lengterichting van het volledige blok door de kapruimte | F20: =IFERROR( IF(Mogelijkheden[[#This Row],[Type gebouw]]=1,HLOOKUP(Mogelijkheden[[#This Row],[Rekenblad 1]],StaatEGW[[#All],[A1.1]:[C1.2]],40,0), IF(Mogelijkheden[[#This Row],[Type gebouw]]=2,HLOOKUP(Mogelijkheden[[#This Row],[Rekenblad 1]],StaatPortiek[[#All],[A1]:[C1]],40,0), IF(Mogelijkheden[[#This Row],[Type gebouw]]=3,HLOOKUP(Mogelijkheden[[#This Row],[Rekenblad 1]],StaatGalerij[[#All],[A1]:[C1]],40,0), "Onbekende fout"))),"") -> 5000 | G20: =IFERROR( IF(Mogelijkheden[[#This Row],[Type gebouw]]=1,HLOOKUP(Mogelijkheden[[#This Row],[Rekenblad 1]],StaatEGW[[#All],[A1.1]:[C1.2]],41,0), IF(Mogelijkheden[[#This Row],[Type gebouw]]=2,HLOOKUP(Mogelijkheden[[#This Row],[Rekenblad 1]],StaatPortiek[[#All],[A1]:[C1]],41,0), IF(Mogelijkheden[[#This Row],[Type gebouw]]=3,HLOOKUP(Mogelijkheden[[#This Row],[Rekenblad 1]],StaatGalerij[[#All],[A1]:[C1]],41,0), "Onbekende fout"))),"") -> 5000 | H20: =SUM(Mogelijkheden[[#This Row],[Kosten warmteleverancier]:[Kosten woningeigenaar]]) -> 10000 | I20: =IFERROR(IF(Mogelijkheden[[#This Row],[Type gebouw]]=1,HLOOKUP(Mogelijkheden[[#This Row],[Rekenblad 1]],KwaliteitEGW[#All],2,0), IF(Mogelijkheden[[#This Row],[Type gebouw]]=2,HLOOKUP(Mogelijkheden[[#This Row],[Rekenblad 1]],KwaliteitPortiek[#All],2,0), IF(Mogelijkheden[[#This Row],[Type gebouw]]=3,HLOOKUP(Mogelijkheden[[#This Row],[Rekenblad 1]],KwaliteitGalerij[#All],2,0),""))),"") -> 2 | J20: =IFERROR(IF(Mogelijkheden[[#This Row],[Type gebouw]]=1,HLOOKUP(Mogelijkheden[[#This Row],[Rekenblad 1]],KwaliteitEGW[#All],6,0), IF(Mogelijkheden[[#This Row],[Type gebouw]]=2,HLOOKUP(Mogelijkheden[[#This Row],[Rekenblad 1]],KwaliteitPortiek[#All],5,0), IF(Mogelijkheden[[#This Row],[Type gebouw]]=3,HLOOKUP(Mogelijkheden[[#This Row],[Rekenblad 1]],KwaliteitGalerij[#All],5,0),""))),"") -> 2 | K20: =IFERROR(IF(Mogelijkheden[[#This Row],[Type gebouw]]=1,HLOOKUP(Mogelijkheden[[#This Row],[Rekenblad 1]],KwaliteitEGW[#All],10,0), IF(Mogelijkheden[[#This Row],[Type gebouw]]=2,HLOOKUP(Mogelijkheden[[#This Row],[Rekenblad 1]],KwaliteitPortiek[#All],9,0), IF(Mogelijkheden[[#This Row],[Type gebouw]]=3,HLOOKUP(Mogelijkheden[[#This Row],[Rekenblad 1]],KwaliteitGalerij[#All],9,0),""))),"") -> 1 | L20: =IFERROR(IF(Mogelijkheden[[#This Row],[Type gebouw]]=1,HLOOKUP(Mogelijkheden[[#This Row],[Rekenblad 1]],KwaliteitEGW[#All],14,0), IF(Mogelijkheden[[#This Row],[Type gebouw]]=2,HLOOKUP(Mogelijkheden[[#This Row],[Rekenblad 1]],KwaliteitPortiek[#All],13,0), IF(Mogelijkheden[[#This Row],[Type gebouw]]=3,HLOOKUP(Mogelijkheden[[#This Row],[Rekenblad 1]],KwaliteitGalerij[#All],13,0),""))),"") -> 1
C21: =Rekenblad1[[#Totals],[B1.2 In de lengterichting van het volledige blok door de kapruimte]] -> B1.2 | D21: =Rekenblad1[[#Totals],[Type (2)]] -> 1 | E21: =IFERROR(VLOOKUP(Mogelijkheden[[#This Row],[Rekenblad 1]],$C$35:$E$70,3,0),"") -> In de lengterichting van het volledige blok door de kapruimte | F21: =IFERROR( IF(Mogelijkheden[[#This Row],[Type gebouw]]=1,HLOOKUP(Mogelijkheden[[#This Row],[Rekenblad 1]],StaatEGW[[#All],[A1.1]:[C1.2]],40,0), IF(Mogelijkheden[[#This Row],[Type gebouw]]=2,HLOOKUP(Mogelijkheden[[#This Row],[Rekenblad 1]],StaatPortiek[[#All],[A1]:[C1]],40,0), IF(Mogelijkheden[[#This Row],[Type gebouw]]=3,HLOOKUP(Mogelijkheden[[#This Row],[Rekenblad 1]],StaatGalerij[[#All],[A1]:[C1]],40,0), "Onbekende fout"))),"") -> 5000 | G21: =IFERROR( IF(Mogelijkheden[[#This Row],[Type gebouw]]=1,HLOOKUP(Mogelijkheden[[#This Row],[Rekenblad 1]],StaatEGW[[#All],[A1.1]:[C1.2]],41,0), IF(Mogelijkheden[[#This Row],[Type gebouw]]=2,HLOOKUP(Mogelijkheden[[#This Row],[Rekenblad 1]],StaatPortiek[[#All],[A1]:[C1]],41,0), IF(Mogelijkheden[[#This Row],[Type gebouw]]=3,HLOOKUP(Mogelijkheden[[#This Row],[Rekenblad 1]],StaatGalerij[[#All],[A1]:[C1]],41,0), "Onbekende fout"))),"") -> 4000 | H21: =SUM(Mogelijkheden[[#This Row],[Kosten warmteleverancier]:[Kosten woningeigenaar]]) -> 9000 | I21: =IFERROR(IF(Mogelijkheden[[#This Row],[Type gebouw]]=1,HLOOKUP(Mogelijkheden[[#This Row],[Rekenblad 1]],KwaliteitEGW[#All],2,0), IF(Mogelijkheden[[#This Row],[Type gebouw]]=2,HLOOKUP(Mogelijkheden[[#This Row],[Rekenblad 1]],KwaliteitPortiek[#All],2,0), IF(Mogelijkheden[[#This Row],[Type gebouw]]=3,HLOOKUP(Mogelijkheden[[#This Row],[Rekenblad 1]],KwaliteitGalerij[#All],2,0),""))),"") -> 2 | J21: =IFERROR(IF(Mogelijkheden[[#This Row],[Type gebouw]]=1,HLOOKUP(Mogelijkheden[[#This Row],[Rekenblad 1]],KwaliteitEGW[#All],6,0), IF(Mogelijkheden[[#This Row],[Type gebouw]]=2,HLOOKUP(Mogelijkheden[[#This Row],[Rekenblad 1]],KwaliteitPortiek[#All],5,0), IF(Mogelijkheden[[#This Row],[Type gebouw]]=3,HLOOKUP(Mogelijkheden[[#This Row],[Rekenblad 1]],KwaliteitGalerij[#All],5,0),""))),"") -> 3 | K21: =IFERROR(IF(Mogelijkheden[[#This Row],[Type gebouw]]=1,HLOOKUP(Mogelijkheden[[#This Row],[Rekenblad 1]],KwaliteitEGW[#All],10,0), IF(Mogelijkheden[[#This Row],[Type gebouw]]=2,HLOOKUP(Mogelijkheden[[#This Row],[Rekenblad 1]],KwaliteitPortiek[#All],9,0), IF(Mogelijkheden[[#This Row],[Type gebouw]]=3,HLOOKUP(Mogelijkheden[[#This Row],[Rekenblad 1]],KwaliteitGalerij[#All],9,0),""))),"") -> 3 | L21: =IFERROR(IF(Mogelijkheden[[#This Row],[Type gebouw]]=1,HLOOKUP(Mogelijkheden[[#This Row],[Rekenblad 1]],KwaliteitEGW[#All],14,0), IF(Mogelijkheden[[#This Row],[Type gebouw]]=2,HLOOKUP(Mogelijkheden[[#This Row],[Rekenblad 1]],KwaliteitPortiek[#All],13,0), IF(Mogelijkheden[[#This Row],[Type gebouw]]=3,HLOOKUP(Mogelijkheden[[#This Row],[Rekenblad 1]],KwaliteitGalerij[#All],13,0),""))),"") -> 2
C22: =Rekenblad1[[#Totals],[B2 In de lengterichting van het volledige blok over de gevel ]] ->  | D22: =Rekenblad1[[#Totals],[Type (2)]] -> 1 | E22: =IFERROR(VLOOKUP(Mogelijkheden[[#This Row],[Rekenblad 1]],$C$35:$E$70,3,0),"") ->  | F22: =IFERROR( IF(Mogelijkheden[[#This Row],[Type gebouw]]=1,HLOOKUP(Mogelijkheden[[#This Row],[Rekenblad 1]],StaatEGW[[#All],[A1.1]:[C1.2]],40,0), IF(Mogelijkheden[[#This Row],[Type gebouw]]=2,HLOOKUP(Mogelijkheden[[#This Row],[Rekenblad 1]],StaatPortiek[[#All],[A1]:[C1]],40,0), IF(Mogelijkheden[[#This Row],[Type gebouw]]=3,HLOOKUP(Mogelijkheden[[#This Row],[Rekenblad 1]],StaatGalerij[[#All],[A1]:[C1]],40,0), "Onbekende fout"))),"") ->  | G22: =IFERROR( IF(Mogelijkheden[[#This Row],[Type gebouw]]=1,HLOOKUP(Mogelijkheden[[#This Row],[Rekenblad 1]],StaatEGW[[#All],[A1.1]:[C1.2]],41,0), IF(Mogelijkheden[[#This Row],[Type gebouw]]=2,HLOOKUP(Mogelijkheden[[#This Row],[Rekenblad 1]],StaatPortiek[[#All],[A1]:[C1]],41,0), IF(Mogelijkheden[[#This Row],[Type gebouw]]=3,HLOOKUP(Mogelijkheden[[#This Row],[Rekenblad 1]],StaatGalerij[[#All],[A1]:[C1]],41,0), "Onbekende fout"))),"") ->  | H22: =SUM(Mogelijkheden[[#This Row],[Kosten warmteleverancier]:[Kosten woningeigenaar]]) -> 0 | I22: =IFERROR(IF(Mogelijkheden[[#This Row],[Type gebouw]]=1,HLOOKUP(Mogelijkheden[[#This Row],[Rekenblad 1]],KwaliteitEGW[#All],2,0), IF(Mogelijkheden[[#This Row],[Type gebouw]]=2,HLOOKUP(Mogelijkheden[[#This Row],[Rekenblad 1]],KwaliteitPortiek[#All],2,0), IF(Mogelijkheden[[#This Row],[Type gebouw]]=3,HLOOKUP(Mogelijkheden[[#This Row],[Rekenblad 1]],KwaliteitGalerij[#All],2,0),""))),"") ->  | J22: =IFERROR(IF(Mogelijkheden[[#This Row],[Type gebouw]]=1,HLOOKUP(Mogelijkheden[[#This Row],[Rekenblad 1]],KwaliteitEGW[#All],6,0), IF(Mogelijkheden[[#This Row],[Type gebouw]]=2,HLOOKUP(Mogelijkheden[[#This Row],[Rekenblad 1]],KwaliteitPortiek[#All],5,0), IF(Mogelijkheden[[#This Row],[Type gebouw]]=3,HLOOKUP(Mogelijkheden[[#This Row],[Rekenblad 1]],KwaliteitGalerij[#All],5,0),""))),"") ->  | K22: =IFERROR(IF(Mogelijkheden[[#This Row],[Type gebouw]]=1,HLOOKUP(Mogelijkheden[[#This Row],[Rekenblad 1]],KwaliteitEGW[#All],10,0), IF(Mogelijkheden[[#This Row],[Type gebouw]]=2,HLOOKUP(Mogelijkheden[[#This Row],[Rekenblad 1]],KwaliteitPortiek[#All],9,0), IF(Mogelijkheden[[#This Row],[Type gebouw]]=3,HLOOKUP(Mogelijkheden[[#This Row],[Rekenblad 1]],KwaliteitGalerij[#All],9,0),""))),"") ->  | L22: =IFERROR(IF(Mogelijkheden[[#This Row],[Type gebouw]]=1,HLOOKUP(Mogelijkheden[[#This Row],[Rekenblad 1]],KwaliteitEGW[#All],14,0), IF(Mogelijkheden[[#This Row],[Type gebouw]]=2,HLOOKUP(Mogelijkheden[[#This Row],[Rekenblad 1]],KwaliteitPortiek[#All],13,0), IF(Mogelijkheden[[#This Row],[Type gebouw]]=3,HLOOKUP(Mogelijkheden[[#This Row],[Rekenblad 1]],KwaliteitGalerij[#All],13,0),""))),"") -> 
C23: =Rekenblad1[[#Totals],[B2.1 In de lengterichting van het volledige blok over de gevel ]] -> B2.1 | D23: =Rekenblad1[[#Totals],[Type (2)]] -> 1 | E23: =IFERROR(VLOOKUP(Mogelijkheden[[#This Row],[Rekenblad 1]],$C$35:$E$70,3,0),"") -> In de lengterichting van het volledige blok over de gevel | F23: =IFERROR( IF(Mogelijkheden[[#This Row],[Type gebouw]]=1,HLOOKUP(Mogelijkheden[[#This Row],[Rekenblad 1]],StaatEGW[[#All],[A1.1]:[C1.2]],40,0), IF(Mogelijkheden[[#This Row],[Type gebouw]]=2,HLOOKUP(Mogelijkheden[[#This Row],[Rekenblad 1]],StaatPortiek[[#All],[A1]:[C1]],40,0), IF(Mogelijkheden[[#This Row],[Type gebouw]]=3,HLOOKUP(Mogelijkheden[[#This Row],[Rekenblad 1]],StaatGalerij[[#All],[A1]:[C1]],40,0), "Onbekende fout"))),"") -> 7500 | G23: =IFERROR( IF(Mogelijkheden[[#This Row],[Type gebouw]]=1,HLOOKUP(Mogelijkheden[[#This Row],[Rekenblad 1]],StaatEGW[[#All],[A1.1]:[C1.2]],41,0), IF(Mogelijkheden[[#This Row],[Type gebouw]]=2,HLOOKUP(Mogelijkheden[[#This Row],[Rekenblad 1]],StaatPortiek[[#All],[A1]:[C1]],41,0), IF(Mogelijkheden[[#This Row],[Type gebouw]]=3,HLOOKUP(Mogelijkheden[[#This Row],[Rekenblad 1]],StaatGalerij[[#All],[A1]:[C1]],41,0), "Onbekende fout"))),"") -> 5000 | H23: =SUM(Mogelijkheden[[#This Row],[Kosten warmteleverancier]:[Kosten woningeigenaar]]) -> 12500 | I23: =IFERROR(IF(Mogelijkheden[[#This Row],[Type gebouw]]=1,HLOOKUP(Mogelijkheden[[#This Row],[Rekenblad 1]],KwaliteitEGW[#All],2,0), IF(Mogelijkheden[[#This Row],[Type gebouw]]=2,HLOOKUP(Mogelijkheden[[#This Row],[Rekenblad 1]],KwaliteitPortiek[#All],2,0), IF(Mogelijkheden[[#This Row],[Type gebouw]]=3,HLOOKUP(Mogelijkheden[[#This Row],[Rekenblad 1]],KwaliteitGalerij[#All],2,0),""))),"") -> 1 | J23: =IFERROR(IF(Mogelijkheden[[#This Row],[Type gebouw]]=1,HLOOKUP(Mogelijkheden[[#This Row],[Rekenblad 1]],KwaliteitEGW[#All],6,0), IF(Mogelijkheden[[#This Row],[Type gebouw]]=2,HLOOKUP(Mogelijkheden[[#This Row],[Rekenblad 1]],KwaliteitPortiek[#All],5,0), IF(Mogelijkheden[[#This Row],[Type gebouw]]=3,HLOOKUP(Mogelijkheden[[#This Row],[Rekenblad 1]],KwaliteitGalerij[#All],5,0),""))),"") -> 3 | K23: =IFERROR(IF(Mogelijkheden[[#This Row],[Type gebouw]]=1,HLOOKUP(Mogelijkheden[[#This Row],[Rekenblad 1]],KwaliteitEGW[#All],10,0), IF(Mogelijkheden[[#This Row],[Type gebouw]]=2,HLOOKUP(Mogelijkheden[[#This Row],[Rekenblad 1]],KwaliteitPortiek[#All],9,0), IF(Mogelijkheden[[#This Row],[Type gebouw]]=3,HLOOKUP(Mogelijkheden[[#This Row],[Rekenblad 1]],KwaliteitGalerij[#All],9,0),""))),"") -> 2 | L23: =IFERROR(IF(Mogelijkheden[[#This Row],[Type gebouw]]=1,HLOOKUP(Mogelijkheden[[#This Row],[Rekenblad 1]],KwaliteitEGW[#All],14,0), IF(Mogelijkheden[[#This Row],[Type gebouw]]=2,HLOOKUP(Mogelijkheden[[#This Row],[Rekenblad 1]],KwaliteitPortiek[#All],13,0), IF(Mogelijkheden[[#This Row],[Type gebouw]]=3,HLOOKUP(Mogelijkheden[[#This Row],[Rekenblad 1]],KwaliteitGalerij[#All],13,0),""))),"") -> 2
C24: =Rekenblad1[[#Totals],[B2.2 In de lengterichting van het volledige blok over de gevel ]] -> B2.2 | D24: =Rekenblad1[[#Totals],[Type (2)]] -> 1 | E24: =IFERROR(VLOOKUP(Mogelijkheden[[#This Row],[Rekenblad 1]],$C$35:$E$70,3,0),"") -> In de lengterichting van het volledige blok over de gevel | F24: =IFERROR( IF(Mogelijkheden[[#This Row],[Type gebouw]]=1,HLOOKUP(Mogelijkheden[[#This Row],[Rekenblad 1]],StaatEGW[[#All],[A1.1]:[C1.2]],40,0), IF(Mogelijkheden[[#This Row],[Type gebouw]]=2,HLOOKUP(Mogelijkheden[[#This Row],[Rekenblad 1]],StaatPortiek[[#All],[A1]:[C1]],40,0), IF(Mogelijkheden[[#This Row],[Type gebouw]]=3,HLOOKUP(Mogelijkheden[[#This Row],[Rekenblad 1]],StaatGalerij[[#All],[A1]:[C1]],40,0), "Onbekende fout"))),"") -> 7500 | G24: =IFERROR( IF(Mogelijkheden[[#This Row],[Type gebouw]]=1,HLOOKUP(Mogelijkheden[[#This Row],[Rekenblad 1]],StaatEGW[[#All],[A1.1]:[C1.2]],41,0), IF(Mogelijkheden[[#This Row],[Type gebouw]]=2,HLOOKUP(Mogelijkheden[[#This Row],[Rekenblad 1]],StaatPortiek[[#All],[A1]:[C1]],41,0), IF(Mogelijkheden[[#This Row],[Type gebouw]]=3,HLOOKUP(Mogelijkheden[[#This Row],[Rekenblad 1]],StaatGalerij[[#All],[A1]:[C1]],41,0), "Onbekende fout"))),"") -> 4000 | H24: =SUM(Mogelijkheden[[#This Row],[Kosten warmteleverancier]:[Kosten woningeigenaar]]) -> 11500 | I24: =IFERROR(IF(Mogelijkheden[[#This Row],[Type gebouw]]=1,HLOOKUP(Mogelijkheden[[#This Row],[Rekenblad 1]],KwaliteitEGW[#All],2,0), IF(Mogelijkheden[[#This Row],[Type gebouw]]=2,HLOOKUP(Mogelijkheden[[#This Row],[Rekenblad 1]],KwaliteitPortiek[#All],2,0), IF(Mogelijkheden[[#This Row],[Type gebouw]]=3,HLOOKUP(Mogelijkheden[[#This Row],[Rekenblad 1]],KwaliteitGalerij[#All],2,0),""))),"") -> 1 | J24: =IFERROR(IF(Mogelijkheden[[#This Row],[Type gebouw]]=1,HLOOKUP(Mogelijkheden[[#This Row],[Rekenblad 1]],KwaliteitEGW[#All],6,0), IF(Mogelijkheden[[#This Row],[Type gebouw]]=2,HLOOKUP(Mogelijkheden[[#This Row],[Rekenblad 1]],KwaliteitPortiek[#All],5,0), IF(Mogelijkheden[[#This Row],[Type gebouw]]=3,HLOOKUP(Mogelijkheden[[#This Row],[Rekenblad 1]],KwaliteitGalerij[#All],5,0),""))),"") -> 4 | K24: =IFERROR(IF(Mogelijkheden[[#This Row],[Type gebouw]]=1,HLOOKUP(Mogelijkheden[[#This Row],[Rekenblad 1]],KwaliteitEGW[#All],10,0), IF(Mogelijkheden[[#This Row],[Type gebouw]]=2,HLOOKUP(Mogelijkheden[[#This Row],[Rekenblad 1]],KwaliteitPortiek[#All],9,0), IF(Mogelijkheden[[#This Row],[Type gebouw]]=3,HLOOKUP(Mogelijkheden[[#This Row],[Rekenblad 1]],KwaliteitGalerij[#All],9,0),""))),"") -> 4 | L24: =IFERROR(IF(Mogelijkheden[[#This Row],[Type gebouw]]=1,HLOOKUP(Mogelijkheden[[#This Row],[Rekenblad 1]],KwaliteitEGW[#All],14,0), IF(Mogelijkheden[[#This Row],[Type gebouw]]=2,HLOOKUP(Mogelijkheden[[#This Row],[Rekenblad 1]],KwaliteitPortiek[#All],13,0), IF(Mogelijkheden[[#This Row],[Type gebouw]]=3,HLOOKUP(Mogelijkheden[[#This Row],[Rekenblad 1]],KwaliteitGalerij[#All],13,0),""))),"") -> 2
C25: =Rekenblad1[[#Totals],[B3 In de lengterichting van het volledige blok over het dak ]] ->  | D25: =Rekenblad1[[#Totals],[Type (2)]] -> 1 | E25: =IFERROR(VLOOKUP(Mogelijkheden[[#This Row],[Rekenblad 1]],$C$35:$E$70,3,0),"") ->  | F25: =IFERROR( IF(Mogelijkheden[[#This Row],[Type gebouw]]=1,HLOOKUP(Mogelijkheden[[#This Row],[Rekenblad 1]],StaatEGW[[#All],[A1.1]:[C1.2]],40,0), IF(Mogelijkheden[[#This Row],[Type gebouw]]=2,HLOOKUP(Mogelijkheden[[#This Row],[Rekenblad 1]],StaatPortiek[[#All],[A1]:[C1]],40,0), IF(Mogelijkheden[[#This Row],[Type gebouw]]=3,HLOOKUP(Mogelijkheden[[#This Row],[Rekenblad 1]],StaatGalerij[[#All],[A1]:[C1]],40,0), "Onbekende fout"))),"") ->  | G25: =IFERROR( IF(Mogelijkheden[[#This Row],[Type gebouw]]=1,HLOOKUP(Mogelijkheden[[#This Row],[Rekenblad 1]],StaatEGW[[#All],[A1.1]:[C1.2]],41,0), IF(Mogelijkheden[[#This Row],[Type gebouw]]=2,HLOOKUP(Mogelijkheden[[#This Row],[Rekenblad 1]],StaatPortiek[[#All],[A1]:[C1]],41,0), IF(Mogelijkheden[[#This Row],[Type gebouw]]=3,HLOOKUP(Mogelijkheden[[#This Row],[Rekenblad 1]],StaatGalerij[[#All],[A1]:[C1]],41,0), "Onbekende fout"))),"") ->  | H25: =SUM(Mogelijkheden[[#This Row],[Kosten warmteleverancier]:[Kosten woningeigenaar]]) -> 0 | I25: =IFERROR(IF(Mogelijkheden[[#This Row],[Type gebouw]]=1,HLOOKUP(Mogelijkheden[[#This Row],[Rekenblad 1]],KwaliteitEGW[#All],2,0), IF(Mogelijkheden[[#This Row],[Type gebouw]]=2,HLOOKUP(Mogelijkheden[[#This Row],[Rekenblad 1]],KwaliteitPortiek[#All],2,0), IF(Mogelijkheden[[#This Row],[Type gebouw]]=3,HLOOKUP(Mogelijkheden[[#This Row],[Rekenblad 1]],KwaliteitGalerij[#All],2,0),""))),"") ->  | J25: =IFERROR(IF(Mogelijkheden[[#This Row],[Type gebouw]]=1,HLOOKUP(Mogelijkheden[[#This Row],[Rekenblad 1]],KwaliteitEGW[#All],6,0), IF(Mogelijkheden[[#This Row],[Type gebouw]]=2,HLOOKUP(Mogelijkheden[[#This Row],[Rekenblad 1]],KwaliteitPortiek[#All],5,0), IF(Mogelijkheden[[#This Row],[Type gebouw]]=3,HLOOKUP(Mogelijkheden[[#This Row],[Rekenblad 1]],KwaliteitGalerij[#All],5,0),""))),"") ->  | K25: =IFERROR(IF(Mogelijkheden[[#This Row],[Type gebouw]]=1,HLOOKUP(Mogelijkheden[[#This Row],[Rekenblad 1]],KwaliteitEGW[#All],10,0), IF(Mogelijkheden[[#This Row],[Type gebouw]]=2,HLOOKUP(Mogelijkheden[[#This Row],[Rekenblad 1]],KwaliteitPortiek[#All],9,0), IF(Mogelijkheden[[#This Row],[Type gebouw]]=3,HLOOKUP(Mogelijkheden[[#This Row],[Rekenblad 1]],KwaliteitGalerij[#All],9,0),""))),"") ->  | L25: =IFERROR(IF(Mogelijkheden[[#This Row],[Type gebouw]]=1,HLOOKUP(Mogelijkheden[[#This Row],[Rekenblad 1]],KwaliteitEGW[#All],14,0), IF(Mogelijkheden[[#This Row],[Type gebouw]]=2,HLOOKUP(Mogelijkheden[[#This Row],[Rekenblad 1]],KwaliteitPortiek[#All],13,0), IF(Mogelijkheden[[#This Row],[Type gebouw]]=3,HLOOKUP(Mogelijkheden[[#This Row],[Rekenblad 1]],KwaliteitGalerij[#All],13,0),""))),"") -> 
C26: =Rekenblad1[[#Totals],[B3.1 In de lengterichting van het volledige blok over het dak ]] -> B3.1 | D26: =Rekenblad1[[#Totals],[Type (2)]] -> 1 | E26: =IFERROR(VLOOKUP(Mogelijkheden[[#This Row],[Rekenblad 1]],$C$35:$E$70,3,0),"") -> In de lengterichting van het volledige blok over het dak | F26: =IFERROR( IF(Mogelijkheden[[#This Row],[Type gebouw]]=1,HLOOKUP(Mogelijkheden[[#This Row],[Rekenblad 1]],StaatEGW[[#All],[A1.1]:[C1.2]],40,0), IF(Mogelijkheden[[#This Row],[Type gebouw]]=2,HLOOKUP(Mogelijkheden[[#This Row],[Rekenblad 1]],StaatPortiek[[#All],[A1]:[C1]],40,0), IF(Mogelijkheden[[#This Row],[Type gebouw]]=3,HLOOKUP(Mogelijkheden[[#This Row],[Rekenblad 1]],StaatGalerij[[#All],[A1]:[C1]],40,0), "Onbekende fout"))),"") -> 4000 | G26: =IFERROR( IF(Mogelijkheden[[#This Row],[Type gebouw]]=1,HLOOKUP(Mogelijkheden[[#This Row],[Rekenblad 1]],StaatEGW[[#All],[A1.1]:[C1.2]],41,0), IF(Mogelijkheden[[#This Row],[Type gebouw]]=2,HLOOKUP(Mogelijkheden[[#This Row],[Rekenblad 1]],StaatPortiek[[#All],[A1]:[C1]],41,0), IF(Mogelijkheden[[#This Row],[Type gebouw]]=3,HLOOKUP(Mogelijkheden[[#This Row],[Rekenblad 1]],StaatGalerij[[#All],[A1]:[C1]],41,0), "Onbekende fout"))),"") -> 5000 | H26: =SUM(Mogelijkheden[[#This Row],[Kosten warmteleverancier]:[Kosten woningeigenaar]]) -> 9000 | I26: =IFERROR(IF(Mogelijkheden[[#This Row],[Type gebouw]]=1,HLOOKUP(Mogelijkheden[[#This Row],[Rekenblad 1]],KwaliteitEGW[#All],2,0), IF(Mogelijkheden[[#This Row],[Type gebouw]]=2,HLOOKUP(Mogelijkheden[[#This Row],[Rekenblad 1]],KwaliteitPortiek[#All],2,0), IF(Mogelijkheden[[#This Row],[Type gebouw]]=3,HLOOKUP(Mogelijkheden[[#This Row],[Rekenblad 1]],KwaliteitGalerij[#All],2,0),""))),"") -> 1 | J26: =IFERROR(IF(Mogelijkheden[[#This Row],[Type gebouw]]=1,HLOOKUP(Mogelijkheden[[#This Row],[Rekenblad 1]],KwaliteitEGW[#All],6,0), IF(Mogelijkheden[[#This Row],[Type gebouw]]=2,HLOOKUP(Mogelijkheden[[#This Row],[Rekenblad 1]],KwaliteitPortiek[#All],5,0), IF(Mogelijkheden[[#This Row],[Type gebouw]]=3,HLOOKUP(Mogelijkheden[[#This Row],[Rekenblad 1]],KwaliteitGalerij[#All],5,0),""))),"") -> 2 | K26: =IFERROR(IF(Mogelijkheden[[#This Row],[Type gebouw]]=1,HLOOKUP(Mogelijkheden[[#This Row],[Rekenblad 1]],KwaliteitEGW[#All],10,0), IF(Mogelijkheden[[#This Row],[Type gebouw]]=2,HLOOKUP(Mogelijkheden[[#This Row],[Rekenblad 1]],KwaliteitPortiek[#All],9,0), IF(Mogelijkheden[[#This Row],[Type gebouw]]=3,HLOOKUP(Mogelijkheden[[#This Row],[Rekenblad 1]],KwaliteitGalerij[#All],9,0),""))),"") -> 2 | L26: =IFERROR(IF(Mogelijkheden[[#This Row],[Type gebouw]]=1,HLOOKUP(Mogelijkheden[[#This Row],[Rekenblad 1]],KwaliteitEGW[#All],14,0), IF(Mogelijkheden[[#This Row],[Type gebouw]]=2,HLOOKUP(Mogelijkheden[[#This Row],[Rekenblad 1]],KwaliteitPortiek[#All],13,0), IF(Mogelijkheden[[#This Row],[Type gebouw]]=3,HLOOKUP(Mogelijkheden[[#This Row],[Rekenblad 1]],KwaliteitGalerij[#All],13,0),""))),"") -> 3
C27: =Rekenblad1[[#Totals],[B3.2 In de lengterichting van het volledige blok over het dak ]] -> B3.2 | D27: =Rekenblad1[[#Totals],[Type (2)]] -> 1 | E27: =IFERROR(VLOOKUP(Mogelijkheden[[#This Row],[Rekenblad 1]],$C$35:$E$70,3,0),"") -> In de lengterichting van het volledige blok over het dak | F27: =IFERROR( IF(Mogelijkheden[[#This Row],[Type gebouw]]=1,HLOOKUP(Mogelijkheden[[#This Row],[Rekenblad 1]],StaatEGW[[#All],[A1.1]:[C1.2]],40,0), IF(Mogelijkheden[[#This Row],[Type gebouw]]=2,HLOOKUP(Mogelijkheden[[#This Row],[Rekenblad 1]],StaatPortiek[[#All],[A1]:[C1]],40,0), IF(Mogelijkheden[[#This Row],[Type gebouw]]=3,HLOOKUP(Mogelijkheden[[#This Row],[Rekenblad 1]],StaatGalerij[[#All],[A1]:[C1]],40,0), "Onbekende fout"))),"") -> 4000 | G27: =IFERROR( IF(Mogelijkheden[[#This Row],[Type gebouw]]=1,HLOOKUP(Mogelijkheden[[#This Row],[Rekenblad 1]],StaatEGW[[#All],[A1.1]:[C1.2]],41,0), IF(Mogelijkheden[[#This Row],[Type gebouw]]=2,HLOOKUP(Mogelijkheden[[#This Row],[Rekenblad 1]],StaatPortiek[[#All],[A1]:[C1]],41,0), IF(Mogelijkheden[[#This Row],[Type gebouw]]=3,HLOOKUP(Mogelijkheden[[#This Row],[Rekenblad 1]],StaatGalerij[[#All],[A1]:[C1]],41,0), "Onbekende fout"))),"") -> 4000 | H27: =SUM(Mogelijkheden[[#This Row],[Kosten warmteleverancier]:[Kosten woningeigenaar]]) -> 8000 | I27: =IFERROR(IF(Mogelijkheden[[#This Row],[Type gebouw]]=1,HLOOKUP(Mogelijkheden[[#This Row],[Rekenblad 1]],KwaliteitEGW[#All],2,0), IF(Mogelijkheden[[#This Row],[Type gebouw]]=2,HLOOKUP(Mogelijkheden[[#This Row],[Rekenblad 1]],KwaliteitPortiek[#All],2,0), IF(Mogelijkheden[[#This Row],[Type gebouw]]=3,HLOOKUP(Mogelijkheden[[#This Row],[Rekenblad 1]],KwaliteitGalerij[#All],2,0),""))),"") -> 1 | J27: =IFERROR(IF(Mogelijkheden[[#This Row],[Type gebouw]]=1,HLOOKUP(Mogelijkheden[[#This Row],[Rekenblad 1]],KwaliteitEGW[#All],6,0), IF(Mogelijkheden[[#This Row],[Type gebouw]]=2,HLOOKUP(Mogelijkheden[[#This Row],[Rekenblad 1]],KwaliteitPortiek[#All],5,0), IF(Mogelijkheden[[#This Row],[Type gebouw]]=3,HLOOKUP(Mogelijkheden[[#This Row],[Rekenblad 1]],KwaliteitGalerij[#All],5,0),""))),"") -> 4 | K27: =IFERROR(IF(Mogelijkheden[[#This Row],[Type gebouw]]=1,HLOOKUP(Mogelijkheden[[#This Row],[Rekenblad 1]],KwaliteitEGW[#All],10,0), IF(Mogelijkheden[[#This Row],[Type gebouw]]=2,HLOOKUP(Mogelijkheden[[#This Row],[Rekenblad 1]],KwaliteitPortiek[#All],9,0), IF(Mogelijkheden[[#This Row],[Type gebouw]]=3,HLOOKUP(Mogelijkheden[[#This Row],[Rekenblad 1]],KwaliteitGalerij[#All],9,0),""))),"") -> 4 | L27: =IFERROR(IF(Mogelijkheden[[#This Row],[Type gebouw]]=1,HLOOKUP(Mogelijkheden[[#This Row],[Rekenblad 1]],KwaliteitEGW[#All],14,0), IF(Mogelijkheden[[#This Row],[Type gebouw]]=2,HLOOKUP(Mogelijkheden[[#This Row],[Rekenblad 1]],KwaliteitPortiek[#All],13,0), IF(Mogelijkheden[[#This Row],[Type gebouw]]=3,HLOOKUP(Mogelijkheden[[#This Row],[Rekenblad 1]],KwaliteitGalerij[#All],13,0),""))),"") -> 3
C28: =Rekenblad1[[#Totals],[B4 In de lengterichting van het volledige blok onder de onderste woonlaag door]] ->  | D28: =Rekenblad1[[#Totals],[Type (2)]] -> 1 | E28: =IFERROR(VLOOKUP(Mogelijkheden[[#This Row],[Rekenblad 1]],$C$35:$E$70,3,0),"") ->  | F28: =IFERROR( IF(Mogelijkheden[[#This Row],[Type gebouw]]=1,HLOOKUP(Mogelijkheden[[#This Row],[Rekenblad 1]],StaatEGW[[#All],[A1.1]:[C1.2]],40,0), IF(Mogelijkheden[[#This Row],[Type gebouw]]=2,HLOOKUP(Mogelijkheden[[#This Row],[Rekenblad 1]],StaatPortiek[[#All],[A1]:[C1]],40,0), IF(Mogelijkheden[[#This Row],[Type gebouw]]=3,HLOOKUP(Mogelijkheden[[#This Row],[Rekenblad 1]],StaatGalerij[[#All],[A1]:[C1]],40,0), "Onbekende fout"))),"") ->  | G28: =IFERROR( IF(Mogelijkheden[[#This Row],[Type gebouw]]=1,HLOOKUP(Mogelijkheden[[#This Row],[Rekenblad 1]],StaatEGW[[#All],[A1.1]:[C1.2]],41,0), IF(Mogelijkheden[[#This Row],[Type gebouw]]=2,HLOOKUP(Mogelijkheden[[#This Row],[Rekenblad 1]],StaatPortiek[[#All],[A1]:[C1]],41,0), IF(Mogelijkheden[[#This Row],[Type gebouw]]=3,HLOOKUP(Mogelijkheden[[#This Row],[Rekenblad 1]],StaatGalerij[[#All],[A1]:[C1]],41,0), "Onbekende fout"))),"") ->  | H28: =SUM(Mogelijkheden[[#This Row],[Kosten warmteleverancier]:[Kosten woningeigenaar]]) -> 0 | I28: =IFERROR(IF(Mogelijkheden[[#This Row],[Type gebouw]]=1,HLOOKUP(Mogelijkheden[[#This Row],[Rekenblad 1]],KwaliteitEGW[#All],2,0), IF(Mogelijkheden[[#This Row],[Type gebouw]]=2,HLOOKUP(Mogelijkheden[[#This Row],[Rekenblad 1]],KwaliteitPortiek[#All],2,0), IF(Mogelijkheden[[#This Row],[Type gebouw]]=3,HLOOKUP(Mogelijkheden[[#This Row],[Rekenblad 1]],KwaliteitGalerij[#All],2,0),""))),"") ->  | J28: =IFERROR(IF(Mogelijkheden[[#This Row],[Type gebouw]]=1,HLOOKUP(Mogelijkheden[[#This Row],[Rekenblad 1]],KwaliteitEGW[#All],6,0), IF(Mogelijkheden[[#This Row],[Type gebouw]]=2,HLOOKUP(Mogelijkheden[[#This Row],[Rekenblad 1]],KwaliteitPortiek[#All],5,0), IF(Mogelijkheden[[#This Row],[Type gebouw]]=3,HLOOKUP(Mogelijkheden[[#This Row],[Rekenblad 1]],KwaliteitGalerij[#All],5,0),""))),"") ->  | K28: =IFERROR(IF(Mogelijkheden[[#This Row],[Type gebouw]]=1,HLOOKUP(Mogelijkheden[[#This Row],[Rekenblad 1]],KwaliteitEGW[#All],10,0), IF(Mogelijkheden[[#This Row],[Type gebouw]]=2,HLOOKUP(Mogelijkheden[[#This Row],[Rekenblad 1]],KwaliteitPortiek[#All],9,0), IF(Mogelijkheden[[#This Row],[Type gebouw]]=3,HLOOKUP(Mogelijkheden[[#This Row],[Rekenblad 1]],KwaliteitGalerij[#All],9,0),""))),"") ->  | L28: =IFERROR(IF(Mogelijkheden[[#This Row],[Type gebouw]]=1,HLOOKUP(Mogelijkheden[[#This Row],[Rekenblad 1]],KwaliteitEGW[#All],14,0), IF(Mogelijkheden[[#This Row],[Type gebouw]]=2,HLOOKUP(Mogelijkheden[[#This Row],[Rekenblad 1]],KwaliteitPortiek[#All],13,0), IF(Mogelijkheden[[#This Row],[Type gebouw]]=3,HLOOKUP(Mogelijkheden[[#This Row],[Rekenblad 1]],KwaliteitGalerij[#All],13,0),""))),"") -> 
C29: =Rekenblad1[[#Totals],[B4.1 In de lengterichting van het volledige blok onder de onderste woonlaag door]] -> B4.1 | D29: =Rekenblad1[[#Totals],[Type (2)]] -> 1 | E29: =IFERROR(VLOOKUP(Mogelijkheden[[#This Row],[Rekenblad 1]],$C$35:$E$70,3,0),"") -> In de lengterichting van het volledige blok onder de onderste woonlaag door | F29: =IFERROR( IF(Mogelijkheden[[#This Row],[Type gebouw]]=1,HLOOKUP(Mogelijkheden[[#This Row],[Rekenblad 1]],StaatEGW[[#All],[A1.1]:[C1.2]],40,0), IF(Mogelijkheden[[#This Row],[Type gebouw]]=2,HLOOKUP(Mogelijkheden[[#This Row],[Rekenblad 1]],StaatPortiek[[#All],[A1]:[C1]],40,0), IF(Mogelijkheden[[#This Row],[Type gebouw]]=3,HLOOKUP(Mogelijkheden[[#This Row],[Rekenblad 1]],StaatGalerij[[#All],[A1]:[C1]],40,0), "Onbekende fout"))),"") -> 7000 | G29: =IFERROR( IF(Mogelijkheden[[#This Row],[Type gebouw]]=1,HLOOKUP(Mogelijkheden[[#This Row],[Rekenblad 1]],StaatEGW[[#All],[A1.1]:[C1.2]],41,0), IF(Mogelijkheden[[#This Row],[Type gebouw]]=2,HLOOKUP(Mogelijkheden[[#This Row],[Rekenblad 1]],StaatPortiek[[#All],[A1]:[C1]],41,0), IF(Mogelijkheden[[#This Row],[Type gebouw]]=3,HLOOKUP(Mogelijkheden[[#This Row],[Rekenblad 1]],StaatGalerij[[#All],[A1]:[C1]],41,0), "Onbekende fout"))),"") -> 4500 | H29: =SUM(Mogelijkheden[[#This Row],[Kosten warmteleverancier]:[Kosten woningeigenaar]]) -> 11500 | I29: =IFERROR(IF(Mogelijkheden[[#This Row],[Type gebouw]]=1,HLOOKUP(Mogelijkheden[[#This Row],[Rekenblad 1]],KwaliteitEGW[#All],2,0), IF(Mogelijkheden[[#This Row],[Type gebouw]]=2,HLOOKUP(Mogelijkheden[[#This Row],[Rekenblad 1]],KwaliteitPortiek[#All],2,0), IF(Mogelijkheden[[#This Row],[Type gebouw]]=3,HLOOKUP(Mogelijkheden[[#This Row],[Rekenblad 1]],KwaliteitGalerij[#All],2,0),""))),"") -> 4 | J29: =IFERROR(IF(Mogelijkheden[[#This Row],[Type gebouw]]=1,HLOOKUP(Mogelijkheden[[#This Row],[Rekenblad 1]],KwaliteitEGW[#All],6,0), IF(Mogelijkheden[[#This Row],[Type gebouw]]=2,HLOOKUP(Mogelijkheden[[#This Row],[Rekenblad 1]],KwaliteitPortiek[#All],5,0), IF(Mogelijkheden[[#This Row],[Type gebouw]]=3,HLOOKUP(Mogelijkheden[[#This Row],[Rekenblad 1]],KwaliteitGalerij[#All],5,0),""))),"") -> 2 | K29: =IFERROR(IF(Mogelijkheden[[#This Row],[Type gebouw]]=1,HLOOKUP(Mogelijkheden[[#This Row],[Rekenblad 1]],KwaliteitEGW[#All],10,0), IF(Mogelijkheden[[#This Row],[Type gebouw]]=2,HLOOKUP(Mogelijkheden[[#This Row],[Rekenblad 1]],KwaliteitPortiek[#All],9,0), IF(Mogelijkheden[[#This Row],[Type gebouw]]=3,HLOOKUP(Mogelijkheden[[#This Row],[Rekenblad 1]],KwaliteitGalerij[#All],9,0),""))),"") -> 5 | L29: =IFERROR(IF(Mogelijkheden[[#This Row],[Type gebouw]]=1,HLOOKUP(Mogelijkheden[[#This Row],[Rekenblad 1]],KwaliteitEGW[#All],14,0), IF(Mogelijkheden[[#This Row],[Type gebouw]]=2,HLOOKUP(Mogelijkheden[[#This Row],[Rekenblad 1]],KwaliteitPortiek[#All],13,0), IF(Mogelijkheden[[#This Row],[Type gebouw]]=3,HLOOKUP(Mogelijkheden[[#This Row],[Rekenblad 1]],KwaliteitGalerij[#All],13,0),""))),"") -> 2
C30: =Rekenblad1[[#Totals],[B4.2 In de lengterichting van het volledige blok onder de onderste woonlaag door]] -> B4.2 | D30: =Rekenblad1[[#Totals],[Type (2)]] -> 1 | E30: =IFERROR(VLOOKUP(Mogelijkheden[[#This Row],[Rekenblad 1]],$C$35:$E$70,3,0),"") -> In de lengterichting van het volledige blok onder de onderste woonlaag door | F30: =IFERROR( IF(Mogelijkheden[[#This Row],[Type gebouw]]=1,HLOOKUP(Mogelijkheden[[#This Row],[Rekenblad 1]],StaatEGW[[#All],[A1.1]:[C1.2]],40,0), IF(Mogelijkheden[[#This Row],[Type gebouw]]=2,HLOOKUP(Mogelijkheden[[#This Row],[Rekenblad 1]],StaatPortiek[[#All],[A1]:[C1]],40,0), IF(Mogelijkheden[[#This Row],[Type gebouw]]=3,HLOOKUP(Mogelijkheden[[#This Row],[Rekenblad 1]],StaatGalerij[[#All],[A1]:[C1]],40,0), "Onbekende fout"))),"") -> 7000 | G30: =IFERROR( IF(Mogelijkheden[[#This Row],[Type gebouw]]=1,HLOOKUP(Mogelijkheden[[#This Row],[Rekenblad 1]],StaatEGW[[#All],[A1.1]:[C1.2]],41,0), IF(Mogelijkheden[[#This Row],[Type gebouw]]=2,HLOOKUP(Mogelijkheden[[#This Row],[Rekenblad 1]],StaatPortiek[[#All],[A1]:[C1]],41,0), IF(Mogelijkheden[[#This Row],[Type gebouw]]=3,HLOOKUP(Mogelijkheden[[#This Row],[Rekenblad 1]],StaatGalerij[[#All],[A1]:[C1]],41,0), "Onbekende fout"))),"") -> 5500 | H30: =SUM(Mogelijkheden[[#This Row],[Kosten warmteleverancier]:[Kosten woningeigenaar]]) -> 12500 | I30: =IFERROR(IF(Mogelijkheden[[#This Row],[Type gebouw]]=1,HLOOKUP(Mogelijkheden[[#This Row],[Rekenblad 1]],KwaliteitEGW[#All],2,0), IF(Mogelijkheden[[#This Row],[Type gebouw]]=2,HLOOKUP(Mogelijkheden[[#This Row],[Rekenblad 1]],KwaliteitPortiek[#All],2,0), IF(Mogelijkheden[[#This Row],[Type gebouw]]=3,HLOOKUP(Mogelijkheden[[#This Row],[Rekenblad 1]],KwaliteitGalerij[#All],2,0),""))),"") -> 4 | J30: =IFERROR(IF(Mogelijkheden[[#This Row],[Type gebouw]]=1,HLOOKUP(Mogelijkheden[[#This Row],[Rekenblad 1]],KwaliteitEGW[#All],6,0), IF(Mogelijkheden[[#This Row],[Type gebouw]]=2,HLOOKUP(Mogelijkheden[[#This Row],[Rekenblad 1]],KwaliteitPortiek[#All],5,0), IF(Mogelijkheden[[#This Row],[Type gebouw]]=3,HLOOKUP(Mogelijkheden[[#This Row],[Rekenblad 1]],KwaliteitGalerij[#All],5,0),""))),"") -> 2 | K30: =IFERROR(IF(Mogelijkheden[[#This Row],[Type gebouw]]=1,HLOOKUP(Mogelijkheden[[#This Row],[Rekenblad 1]],KwaliteitEGW[#All],10,0), IF(Mogelijkheden[[#This Row],[Type gebouw]]=2,HLOOKUP(Mogelijkheden[[#This Row],[Rekenblad 1]],KwaliteitPortiek[#All],9,0), IF(Mogelijkheden[[#This Row],[Type gebouw]]=3,HLOOKUP(Mogelijkheden[[#This Row],[Rekenblad 1]],KwaliteitGalerij[#All],9,0),""))),"") -> 2 | L30: =IFERROR(IF(Mogelijkheden[[#This Row],[Type gebouw]]=1,HLOOKUP(Mogelijkheden[[#This Row],[Rekenblad 1]],KwaliteitEGW[#All],14,0), IF(Mogelijkheden[[#This Row],[Type gebouw]]=2,HLOOKUP(Mogelijkheden[[#This Row],[Rekenblad 1]],KwaliteitPortiek[#All],13,0), IF(Mogelijkheden[[#This Row],[Type gebouw]]=3,HLOOKUP(Mogelijkheden[[#This Row],[Rekenblad 1]],KwaliteitGalerij[#All],13,0),""))),"") -> 2
C31: =Rekenblad1[[#Totals],[C De individuele afleverset buiten de woning]] -> C1 | D31: =Rekenblad1[[#Totals],[Type (2)]] -> 1 | E31: =IFERROR(VLOOKUP(Mogelijkheden[[#This Row],[Rekenblad 1]],$C$35:$E$70,3,0),"") -> De individuele afleverset buiten de woning | F31: =IFERROR( IF(Mogelijkheden[[#This Row],[Type gebouw]]=1,HLOOKUP(Mogelijkheden[[#This Row],[Rekenblad 1]],StaatEGW[[#All],[A1.1]:[C1.2]],40,0), IF(Mogelijkheden[[#This Row],[Type gebouw]]=2,HLOOKUP(Mogelijkheden[[#This Row],[Rekenblad 1]],StaatPortiek[[#All],[A1]:[C1]],40,0), IF(Mogelijkheden[[#This Row],[Type gebouw]]=3,HLOOKUP(Mogelijkheden[[#This Row],[Rekenblad 1]],StaatGalerij[[#All],[A1]:[C1]],40,0), "Onbekende fout"))),"") ->  | G31: =IFERROR( IF(Mogelijkheden[[#This Row],[Type gebouw]]=1,HLOOKUP(Mogelijkheden[[#This Row],[Rekenblad 1]],StaatEGW[[#All],[A1.1]:[C1.2]],41,0), IF(Mogelijkheden[[#This Row],[Type gebouw]]=2,HLOOKUP(Mogelijkheden[[#This Row],[Rekenblad 1]],StaatPortiek[[#All],[A1]:[C1]],41,0), IF(Mogelijkheden[[#This Row],[Type gebouw]]=3,HLOOKUP(Mogelijkheden[[#This Row],[Rekenblad 1]],StaatGalerij[[#All],[A1]:[C1]],41,0), "Onbekende fout"))),"") ->  | H31: =SUM(Mogelijkheden[[#This Row],[Kosten warmteleverancier]:[Kosten woningeigenaar]]) -> 0 | I31: =IFERROR(IF(Mogelijkheden[[#This Row],[Type gebouw]]=1,HLOOKUP(Mogelijkheden[[#This Row],[Rekenblad 1]],KwaliteitEGW[#All],2,0), IF(Mogelijkheden[[#This Row],[Type gebouw]]=2,HLOOKUP(Mogelijkheden[[#This Row],[Rekenblad 1]],KwaliteitPortiek[#All],2,0), IF(Mogelijkheden[[#This Row],[Type gebouw]]=3,HLOOKUP(Mogelijkheden[[#This Row],[Rekenblad 1]],KwaliteitGalerij[#All],2,0),""))),"") ->  | J31: =IFERROR(IF(Mogelijkheden[[#This Row],[Type gebouw]]=1,HLOOKUP(Mogelijkheden[[#This Row],[Rekenblad 1]],KwaliteitEGW[#All],6,0), IF(Mogelijkheden[[#This Row],[Type gebouw]]=2,HLOOKUP(Mogelijkheden[[#This Row],[Rekenblad 1]],KwaliteitPortiek[#All],5,0), IF(Mogelijkheden[[#This Row],[Type gebouw]]=3,HLOOKUP(Mogelijkheden[[#This Row],[Rekenblad 1]],KwaliteitGalerij[#All],5,0),""))),"") ->  | K31: =IFERROR(IF(Mogelijkheden[[#This Row],[Type gebouw]]=1,HLOOKUP(Mogelijkheden[[#This Row],[Rekenblad 1]],KwaliteitEGW[#All],10,0), IF(Mogelijkheden[[#This Row],[Type gebouw]]=2,HLOOKUP(Mogelijkheden[[#This Row],[Rekenblad 1]],KwaliteitPortiek[#All],9,0), IF(Mogelijkheden[[#This Row],[Type gebouw]]=3,HLOOKUP(Mogelijkheden[[#This Row],[Rekenblad 1]],KwaliteitGalerij[#All],9,0),""))),"") ->  | L31: =IFERROR(IF(Mogelijkheden[[#This Row],[Type gebouw]]=1,HLOOKUP(Mogelijkheden[[#This Row],[Rekenblad 1]],KwaliteitEGW[#All],14,0), IF(Mogelijkheden[[#This Row],[Type gebouw]]=2,HLOOKUP(Mogelijkheden[[#This Row],[Rekenblad 1]],KwaliteitPortiek[#All],13,0), IF(Mogelijkheden[[#This Row],[Type gebouw]]=3,HLOOKUP(Mogelijkheden[[#This Row],[Rekenblad 1]],KwaliteitGalerij[#All],13,0),""))),"") -> 
C34: Rekenblad 1 | D34: Type gebouw | E34: Omschrijving | F34: Kosten warmteleverancier | G34: Kosten woningeigenaar | H34: Kosten totaal | I34: Praktisch haalbaarheid | J34: Overlast uitvoering | K34: Impact woning | L34: Onderhoud
C35: A1.1 | D35: 1 | E35: Iedere woning afzonderlijk rechtstreeks van buiten cq portiek cq voor de galerijen met afleverset in of nabij de entreehal in het bouwblok zelf | F35: =MROUND( IF(Rekenblad2[[#This Row],[Type gebouw]]=0,"Voer type gebouw in", IF(Rekenblad2[[#This Row],[Type gebouw]]=1,HLOOKUP(Rekenblad2[[#This Row],[Rekenblad 1]],StaatEGW[[#All],[A1.1]:[C1.2]],40,0), IF(Rekenblad2[[#This Row],[Type gebouw]]=2,HLOOKUP(Rekenblad2[[#This Row],[Rekenblad 1]],StaatPortiek[[#All],[A1]:[C1]],40,0), IF(Rekenblad2[[#This Row],[Type gebouw]]=3,HLOOKUP(Rekenblad2[[#This Row],[Rekenblad 1]],StaatGalerij[[#All],[A1]:[C1]],40,0), "Onbekende fout")))), 500) -> 3000 | G35: =MROUND( IF(Rekenblad2[[#This Row],[Type gebouw]]=0,"Voer type gebouw in", IF(Rekenblad2[[#This Row],[Type gebouw]]=1,HLOOKUP(Rekenblad2[[#This Row],[Rekenblad 1]],StaatEGW[[#All],[A1.1]:[C1.2]],41,0), IF(Rekenblad2[[#This Row],[Type gebouw]]=2,HLOOKUP(Rekenblad2[[#This Row],[Rekenblad 1]],StaatPortiek[[#All],[A1]:[C1]],41,0), IF(Rekenblad2[[#This Row],[Type gebouw]]=3,HLOOKUP(Rekenblad2[[#This Row],[Rekenblad 1]],StaatGalerij[[#All],[A1]:[C1]],41,0), "Onbekende fout")))), 500) -> 4500 | H35: =SUM(Rekenblad2[[#This Row],[Kosten warmteleverancier]:[Kosten woningeigenaar]]) -> 7500 | I35: =IF(Rekenblad2[[#This Row],[Type gebouw]]=1,HLOOKUP(Rekenblad2[[#This Row],[Rekenblad 1]],KwaliteitEGW[#All],2,0), IF(Rekenblad2[[#This Row],[Type gebouw]]=2,HLOOKUP(Rekenblad2[[#This Row],[Rekenblad 1]],KwaliteitPortiek[#All],2,0), IF(Rekenblad2[[#This Row],[Type gebouw]]=3,HLOOKUP(Rekenblad2[[#This Row],[Rekenblad 1]],KwaliteitGalerij[#All],2,0)))) -> 5 | J35: =IF(Rekenblad2[[#This Row],[Type gebouw]]=1,HLOOKUP(Rekenblad2[[#This Row],[Rekenblad 1]],KwaliteitEGW[#All],6,0), IF(Rekenblad2[[#This Row],[Type gebouw]]=2,HLOOKUP(Rekenblad2[[#This Row],[Rekenblad 1]],KwaliteitPortiek[#All],5,0), IF(Rekenblad2[[#This Row],[Type gebouw]]=3,HLOOKUP(Rekenblad2[[#This Row],[Rekenblad 1]],KwaliteitGalerij[#All],5,0)))) -> 2 | K35: =IF(Rekenblad2[[#This Row],[Type gebouw]]=1,HLOOKUP(Rekenblad2[[#This Row],[Rekenblad 1]],KwaliteitEGW[#All],10,0), IF(Rekenblad2[[#This Row],[Type gebouw]]=2,HLOOKUP(Rekenblad2[[#This Row],[Rekenblad 1]],KwaliteitPortiek[#All],9,0), IF(Rekenblad2[[#This Row],[Type gebouw]]=3,HLOOKUP(Rekenblad2[[#This Row],[Rekenblad 1]],KwaliteitGalerij[#All],9,0)))) -> 4 | L35: =IF(Rekenblad2[[#This Row],[Type gebouw]]=1,HLOOKUP(Rekenblad2[[#This Row],[Rekenblad 1]],KwaliteitEGW[#All],14,0), IF(Rekenblad2[[#This Row],[Type gebouw]]=2,HLOOKUP(Rekenblad2[[#This Row],[Rekenblad 1]],KwaliteitPortiek[#All],13,0), IF(Rekenblad2[[#This Row],[Type gebouw]]=3,HLOOKUP(Rekenblad2[[#This Row],[Rekenblad 1]],KwaliteitGalerij[#All],13,0)))) -> 3
C36: A1.2 | D36: 1 | E36: Iedere woning afzonderlijk rechtstreeks van buiten cq portiek cq voor de galerijen met afleverset in of nabij de entreehal in het bouwblok zelf | F36: =MROUND( IF(Rekenblad2[[#This Row],[Type gebouw]]=0,"Voer type gebouw in", IF(Rekenblad2[[#This Row],[Type gebouw]]=1,HLOOKUP(Rekenblad2[[#This Row],[Rekenblad 1]],StaatEGW[[#All],[A1.1]:[C1.2]],40,0), IF(Rekenblad2[[#This Row],[Type gebouw]]=2,HLOOKUP(Rekenblad2[[#This Row],[Rekenblad 1]],StaatPortiek[[#All],[A1]:[C1]],40,0), IF(Rekenblad2[[#This Row],[Type gebouw]]=3,HLOOKUP(Rekenblad2[[#This Row],[Rekenblad 1]],StaatGalerij[[#All],[A1]:[C1]],40,0), "Onbekende fout")))), 500) -> 3000 | G36: =MROUND( IF(Rekenblad2[[#This Row],[Type gebouw]]=0,"Voer type gebouw in", IF(Rekenblad2[[#This Row],[Type gebouw]]=1,HLOOKUP(Rekenblad2[[#This Row],[Rekenblad 1]],StaatEGW[[#All],[A1.1]:[C1.2]],41,0), IF(Rekenblad2[[#This Row],[Type gebouw]]=2,HLOOKUP(Rekenblad2[[#This Row],[Rekenblad 1]],StaatPortiek[[#All],[A1]:[C1]],41,0), IF(Rekenblad2[[#This Row],[Type gebouw]]=3,HLOOKUP(Rekenblad2[[#This Row],[Rekenblad 1]],StaatGalerij[[#All],[A1]:[C1]],41,0), "Onbekende fout")))), 500) -> 5500 | H36: =SUM(Rekenblad2[[#This Row],[Kosten warmteleverancier]:[Kosten woningeigenaar]]) -> 8500 | I36: =IF(Rekenblad2[[#This Row],[Type gebouw]]=1,HLOOKUP(Rekenblad2[[#This Row],[Rekenblad 1]],KwaliteitEGW[#All],2,0), IF(Rekenblad2[[#This Row],[Type gebouw]]=2,HLOOKUP(Rekenblad2[[#This Row],[Rekenblad 1]],KwaliteitPortiek[#All],2,0), IF(Rekenblad2[[#This Row],[Type gebouw]]=3,HLOOKUP(Rekenblad2[[#This Row],[Rekenblad 1]],KwaliteitGalerij[#All],2,0)))) -> 4 | J36: =IF(Rekenblad2[[#This Row],[Type gebouw]]=1,HLOOKUP(Rekenblad2[[#This Row],[Rekenblad 1]],KwaliteitEGW[#All],6,0), IF(Rekenblad2[[#This Row],[Type gebouw]]=2,HLOOKUP(Rekenblad2[[#This Row],[Rekenblad 1]],KwaliteitPortiek[#All],5,0), IF(Rekenblad2[[#This Row],[Type gebouw]]=3,HLOOKUP(Rekenblad2[[#This Row],[Rekenblad 1]],KwaliteitGalerij[#All],5,0)))) -> 1 | K36: =IF(Rekenblad2[[#This Row],[Type gebouw]]=1,HLOOKUP(Rekenblad2[[#This Row],[Rekenblad 1]],KwaliteitEGW[#All],10,0), IF(Rekenblad2[[#This Row],[Type gebouw]]=2,HLOOKUP(Rekenblad2[[#This Row],[Rekenblad 1]],KwaliteitPortiek[#All],9,0), IF(Rekenblad2[[#This Row],[Type gebouw]]=3,HLOOKUP(Rekenblad2[[#This Row],[Rekenblad 1]],KwaliteitGalerij[#All],9,0)))) -> 2 | L36: =IF(Rekenblad2[[#This Row],[Type gebouw]]=1,HLOOKUP(Rekenblad2[[#This Row],[Rekenblad 1]],KwaliteitEGW[#All],14,0), IF(Rekenblad2[[#This Row],[Type gebouw]]=2,HLOOKUP(Rekenblad2[[#This Row],[Rekenblad 1]],KwaliteitPortiek[#All],13,0), IF(Rekenblad2[[#This Row],[Type gebouw]]=3,HLOOKUP(Rekenblad2[[#This Row],[Rekenblad 1]],KwaliteitGalerij[#All],13,0)))) -> 2
C37: A2.1 | D37: 1 | E37: Per 2 woningen rechtstreeks van buiten cq portiek cq voor de galerijen met afleverset in of nabij de entreehal in het bouwblok zelf | F37: =MROUND( IF(Rekenblad2[[#This Row],[Type gebouw]]=0,"Voer type gebouw in", IF(Rekenblad2[[#This Row],[Type gebouw]]=1,HLOOKUP(Rekenblad2[[#This Row],[Rekenblad 1]],StaatEGW[[#All],[A1.1]:[C1.2]],40,0), IF(Rekenblad2[[#This Row],[Type gebouw]]=2,HLOOKUP(Rekenblad2[[#This Row],[Rekenblad 1]],StaatPortiek[[#All],[A1]:[C1]],40,0), IF(Rekenblad2[[#This Row],[Type gebouw]]=3,HLOOKUP(Rekenblad2[[#This Row],[Rekenblad 1]],StaatGalerij[[#All],[A1]:[C1]],40,0), "Onbekende fout")))), 500) -> 1500 | G37: =MROUND( IF(Rekenblad2[[#This Row],[Type gebouw]]=0,"Voer type gebouw in", IF(Rekenblad2[[#This Row],[Type gebouw]]=1,HLOOKUP(Rekenblad2[[#This Row],[Rekenblad 1]],StaatEGW[[#All],[A1.1]:[C1.2]],41,0), IF(Rekenblad2[[#This Row],[Type gebouw]]=2,HLOOKUP(Rekenblad2[[#This Row],[Rekenblad 1]],StaatPortiek[[#All],[A1]:[C1]],41,0), IF(Rekenblad2[[#This Row],[Type gebouw]]=3,HLOOKUP(Rekenblad2[[#This Row],[Rekenblad 1]],StaatGalerij[[#All],[A1]:[C1]],41,0), "Onbekende fout")))), 500) -> 4500 | H37: =SUM(Rekenblad2[[#This Row],[Kosten warmteleverancier]:[Kosten woningeigenaar]]) -> 6000 | I37: =IF(Rekenblad2[[#This Row],[Type gebouw]]=1,HLOOKUP(Rekenblad2[[#This Row],[Rekenblad 1]],KwaliteitEGW[#All],2,0), IF(Rekenblad2[[#This Row],[Type gebouw]]=2,HLOOKUP(Rekenblad2[[#This Row],[Rekenblad 1]],KwaliteitPortiek[#All],2,0), IF(Rekenblad2[[#This Row],[Type gebouw]]=3,HLOOKUP(Rekenblad2[[#This Row],[Rekenblad 1]],KwaliteitGalerij[#All],2,0)))) -> 4 | J37: =IF(Rekenblad2[[#This Row],[Type gebouw]]=1,HLOOKUP(Rekenblad2[[#This Row],[Rekenblad 1]],KwaliteitEGW[#All],6,0), IF(Rekenblad2[[#This Row],[Type gebouw]]=2,HLOOKUP(Rekenblad2[[#This Row],[Rekenblad 1]],KwaliteitPortiek[#All],5,0), IF(Rekenblad2[[#This Row],[Type gebouw]]=3,HLOOKUP(Rekenblad2[[#This Row],[Rekenblad 1]],KwaliteitGalerij[#All],5,0)))) -> 3 | K37: =IF(Rekenblad2[[#This Row],[Type gebouw]]=1,HLOOKUP(Rekenblad2[[#This Row],[Rekenblad 1]],KwaliteitEGW[#All],10,0), IF(Rekenblad2[[#This Row],[Type gebouw]]=2,HLOOKUP(Rekenblad2[[#This Row],[Rekenblad 1]],KwaliteitPortiek[#All],9,0), IF(Rekenblad2[[#This Row],[Type gebouw]]=3,HLOOKUP(Rekenblad2[[#This Row],[Rekenblad 1]],KwaliteitGalerij[#All],9,0)))) -> 4 | L37: =IF(Rekenblad2[[#This Row],[Type gebouw]]=1,HLOOKUP(Rekenblad2[[#This Row],[Rekenblad 1]],KwaliteitEGW[#All],14,0), IF(Rekenblad2[[#This Row],[Type gebouw]]=2,HLOOKUP(Rekenblad2[[#This Row],[Rekenblad 1]],KwaliteitPortiek[#All],13,0), IF(Rekenblad2[[#This Row],[Type gebouw]]=3,HLOOKUP(Rekenblad2[[#This Row],[Rekenblad 1]],KwaliteitGalerij[#All],13,0)))) -> 3
C38: A2.2 | D38: 1 | E38: Per 2 woningen rechtstreeks van buiten cq portiek cq voor de galerijen met afleverset in of nabij de entreehal in het bouwblok zelf | F38: =MROUND( IF(Rekenblad2[[#This Row],[Type gebouw]]=0,"Voer type gebouw in", IF(Rekenblad2[[#This Row],[Type gebouw]]=1,HLOOKUP(Rekenblad2[[#This Row],[Rekenblad 1]],StaatEGW[[#All],[A1.1]:[C1.2]],40,0), IF(Rekenblad2[[#This Row],[Type gebouw]]=2,HLOOKUP(Rekenblad2[[#This Row],[Rekenblad 1]],StaatPortiek[[#All],[A1]:[C1]],40,0), IF(Rekenblad2[[#This Row],[Type gebouw]]=3,HLOOKUP(Rekenblad2[[#This Row],[Rekenblad 1]],StaatGalerij[[#All],[A1]:[C1]],40,0), "Onbekende fout")))), 500) -> 1500 | G38: =MROUND( IF(Rekenblad2[[#This Row],[Type gebouw]]=0,"Voer type gebouw in", IF(Rekenblad2[[#This Row],[Type gebouw]]=1,HLOOKUP(Rekenblad2[[#This Row],[Rekenblad 1]],StaatEGW[[#All],[A1.1]:[C1.2]],41,0), IF(Rekenblad2[[#This Row],[Type gebouw]]=2,HLOOKUP(Rekenblad2[[#This Row],[Rekenblad 1]],StaatPortiek[[#All],[A1]:[C1]],41,0), IF(Rekenblad2[[#This Row],[Type gebouw]]=3,HLOOKUP(Rekenblad2[[#This Row],[Rekenblad 1]],StaatGalerij[[#All],[A1]:[C1]],41,0), "Onbekende fout")))), 500) -> 5500 | H38: =SUM(Rekenblad2[[#This Row],[Kosten warmteleverancier]:[Kosten woningeigenaar]]) -> 7000 | I38: =IF(Rekenblad2[[#This Row],[Type gebouw]]=1,HLOOKUP(Rekenblad2[[#This Row],[Rekenblad 1]],KwaliteitEGW[#All],2,0), IF(Rekenblad2[[#This Row],[Type gebouw]]=2,HLOOKUP(Rekenblad2[[#This Row],[Rekenblad 1]],KwaliteitPortiek[#All],2,0), IF(Rekenblad2[[#This Row],[Type gebouw]]=3,HLOOKUP(Rekenblad2[[#This Row],[Rekenblad 1]],KwaliteitGalerij[#All],2,0)))) -> 4 | J38: =IF(Rekenblad2[[#This Row],[Type gebouw]]=1,HLOOKUP(Rekenblad2[[#This Row],[Rekenblad 1]],KwaliteitEGW[#All],6,0), IF(Rekenblad2[[#This Row],[Type gebouw]]=2,HLOOKUP(Rekenblad2[[#This Row],[Rekenblad 1]],KwaliteitPortiek[#All],5,0), IF(Rekenblad2[[#This Row],[Type gebouw]]=3,HLOOKUP(Rekenblad2[[#This Row],[Rekenblad 1]],KwaliteitGalerij[#All],5,0)))) -> 1 | K38: =IF(Rekenblad2[[#This Row],[Type gebouw]]=1,HLOOKUP(Rekenblad2[[#This Row],[Rekenblad 1]],KwaliteitEGW[#All],10,0), IF(Rekenblad2[[#This Row],[Type gebouw]]=2,HLOOKUP(Rekenblad2[[#This Row],[Rekenblad 1]],KwaliteitPortiek[#All],9,0), IF(Rekenblad2[[#This Row],[Type gebouw]]=3,HLOOKUP(Rekenblad2[[#This Row],[Rekenblad 1]],KwaliteitGalerij[#All],9,0)))) -> 2 | L38: =IF(Rekenblad2[[#This Row],[Type gebouw]]=1,HLOOKUP(Rekenblad2[[#This Row],[Rekenblad 1]],KwaliteitEGW[#All],14,0), IF(Rekenblad2[[#This Row],[Type gebouw]]=2,HLOOKUP(Rekenblad2[[#This Row],[Rekenblad 1]],KwaliteitPortiek[#All],13,0), IF(Rekenblad2[[#This Row],[Type gebouw]]=3,HLOOKUP(Rekenblad2[[#This Row],[Rekenblad 1]],KwaliteitGalerij[#All],13,0)))) -> 2
C39: A3.1 | D39: 1 | E39: Per woning via verticale leidingen op voor- of achtergevel naar afleverset | F39: =MROUND( IF(Rekenblad2[[#This Row],[Type gebouw]]=0,"Voer type gebouw in", IF(Rekenblad2[[#This Row],[Type gebouw]]=1,HLOOKUP(Rekenblad2[[#This Row],[Rekenblad 1]],StaatEGW[[#All],[A1.1]:[C1.2]],40,0), IF(Rekenblad2[[#This Row],[Type gebouw]]=2,HLOOKUP(Rekenblad2[[#This Row],[Rekenblad 1]],StaatPortiek[[#All],[A1]:[C1]],40,0), IF(Rekenblad2[[#This Row],[Type gebouw]]=3,HLOOKUP(Rekenblad2[[#This Row],[Rekenblad 1]],StaatGalerij[[#All],[A1]:[C1]],40,0), "Onbekende fout")))), 500) -> 5500 | G39: =MROUND( IF(Rekenblad2[[#This Row],[Type gebouw]]=0,"Voer type gebouw in", IF(Rekenblad2[[#This Row],[Type gebouw]]=1,HLOOKUP(Rekenblad2[[#This Row],[Rekenblad 1]],StaatEGW[[#All],[A1.1]:[C1.2]],41,0), IF(Rekenblad2[[#This Row],[Type gebouw]]=2,HLOOKUP(Rekenblad2[[#This Row],[Rekenblad 1]],StaatPortiek[[#All],[A1]:[C1]],41,0), IF(Rekenblad2[[#This Row],[Type gebouw]]=3,HLOOKUP(Rekenblad2[[#This Row],[Rekenblad 1]],StaatGalerij[[#All],[A1]:[C1]],41,0), "Onbekende fout")))), 500) -> 5000 | H39: =SUM(Rekenblad2[[#This Row],[Kosten warmteleverancier]:[Kosten woningeigenaar]]) -> 10500 | I39: =IF(Rekenblad2[[#This Row],[Type gebouw]]=1,HLOOKUP(Rekenblad2[[#This Row],[Rekenblad 1]],KwaliteitEGW[#All],2,0), IF(Rekenblad2[[#This Row],[Type gebouw]]=2,HLOOKUP(Rekenblad2[[#This Row],[Rekenblad 1]],KwaliteitPortiek[#All],2,0), IF(Rekenblad2[[#This Row],[Type gebouw]]=3,HLOOKUP(Rekenblad2[[#This Row],[Rekenblad 1]],KwaliteitGalerij[#All],2,0)))) -> 2 | J39: =IF(Rekenblad2[[#This Row],[Type gebouw]]=1,HLOOKUP(Rekenblad2[[#This Row],[Rekenblad 1]],KwaliteitEGW[#All],6,0), IF(Rekenblad2[[#This Row],[Type gebouw]]=2,HLOOKUP(Rekenblad2[[#This Row],[Rekenblad 1]],KwaliteitPortiek[#All],5,0), IF(Rekenblad2[[#This Row],[Type gebouw]]=3,HLOOKUP(Rekenblad2[[#This Row],[Rekenblad 1]],KwaliteitGalerij[#All],5,0)))) -> 2 | K39: =IF(Rekenblad2[[#This Row],[Type gebouw]]=1,HLOOKUP(Rekenblad2[[#This Row],[Rekenblad 1]],KwaliteitEGW[#All],10,0), IF(Rekenblad2[[#This Row],[Type gebouw]]=2,HLOOKUP(Rekenblad2[[#This Row],[Rekenblad 1]],KwaliteitPortiek[#All],9,0), IF(Rekenblad2[[#This Row],[Type gebouw]]=3,HLOOKUP(Rekenblad2[[#This Row],[Rekenblad 1]],KwaliteitGalerij[#All],9,0)))) -> 2 | L39: =IF(Rekenblad2[[#This Row],[Type gebouw]]=1,HLOOKUP(Rekenblad2[[#This Row],[Rekenblad 1]],KwaliteitEGW[#All],14,0), IF(Rekenblad2[[#This Row],[Type gebouw]]=2,HLOOKUP(Rekenblad2[[#This Row],[Rekenblad 1]],KwaliteitPortiek[#All],13,0), IF(Rekenblad2[[#This Row],[Type gebouw]]=3,HLOOKUP(Rekenblad2[[#This Row],[Rekenblad 1]],KwaliteitGalerij[#All],13,0)))) -> 2
C40: A3.2 | D40: 1 | E40: Per woning via verticale leidingen op voor- of achtergevel naar afleverset | F40: =MROUND( IF(Rekenblad2[[#This Row],[Type gebouw]]=0,"Voer type gebouw in", IF(Rekenblad2[[#This Row],[Type gebouw]]=1,HLOOKUP(Rekenblad2[[#This Row],[Rekenblad 1]],StaatEGW[[#All],[A1.1]:[C1.2]],40,0), IF(Rekenblad2[[#This Row],[Type gebouw]]=2,HLOOKUP(Rekenblad2[[#This Row],[Rekenblad 1]],StaatPortiek[[#All],[A1]:[C1]],40,0), IF(Rekenblad2[[#This Row],[Type gebouw]]=3,HLOOKUP(Rekenblad2[[#This Row],[Rekenblad 1]],StaatGalerij[[#All],[A1]:[C1]],40,0), "Onbekende fout")))), 500) -> 5500 | G40: =MROUND( IF(Rekenblad2[[#This Row],[Type gebouw]]=0,"Voer type gebouw in", IF(Rekenblad2[[#This Row],[Type gebouw]]=1,HLOOKUP(Rekenblad2[[#This Row],[Rekenblad 1]],StaatEGW[[#All],[A1.1]:[C1.2]],41,0), IF(Rekenblad2[[#This Row],[Type gebouw]]=2,HLOOKUP(Rekenblad2[[#This Row],[Rekenblad 1]],StaatPortiek[[#All],[A1]:[C1]],41,0), IF(Rekenblad2[[#This Row],[Type gebouw]]=3,HLOOKUP(Rekenblad2[[#This Row],[Rekenblad 1]],StaatGalerij[[#All],[A1]:[C1]],41,0), "Onbekende fout")))), 500) -> 4000 | H40: =SUM(Rekenblad2[[#This Row],[Kosten warmteleverancier]:[Kosten woningeigenaar]]) -> 9500 | I40: =IF(Rekenblad2[[#This Row],[Type gebouw]]=1,HLOOKUP(Rekenblad2[[#This Row],[Rekenblad 1]],KwaliteitEGW[#All],2,0), IF(Rekenblad2[[#This Row],[Type gebouw]]=2,HLOOKUP(Rekenblad2[[#This Row],[Rekenblad 1]],KwaliteitPortiek[#All],2,0), IF(Rekenblad2[[#This Row],[Type gebouw]]=3,HLOOKUP(Rekenblad2[[#This Row],[Rekenblad 1]],KwaliteitGalerij[#All],2,0)))) -> 1 | J40: =IF(Rekenblad2[[#This Row],[Type gebouw]]=1,HLOOKUP(Rekenblad2[[#This Row],[Rekenblad 1]],KwaliteitEGW[#All],6,0), IF(Rekenblad2[[#This Row],[Type gebouw]]=2,HLOOKUP(Rekenblad2[[#This Row],[Rekenblad 1]],KwaliteitPortiek[#All],5,0), IF(Rekenblad2[[#This Row],[Type gebouw]]=3,HLOOKUP(Rekenblad2[[#This Row],[Rekenblad 1]],KwaliteitGalerij[#All],5,0)))) -> 2 | K40: =IF(Rekenblad2[[#This Row],[Type gebouw]]=1,HLOOKUP(Rekenblad2[[#This Row],[Rekenblad 1]],KwaliteitEGW[#All],10,0), IF(Rekenblad2[[#This Row],[Type gebouw]]=2,HLOOKUP(Rekenblad2[[#This Row],[Rekenblad 1]],KwaliteitPortiek[#All],9,0), IF(Rekenblad2[[#This Row],[Type gebouw]]=3,HLOOKUP(Rekenblad2[[#This Row],[Rekenblad 1]],KwaliteitGalerij[#All],9,0)))) -> 3 | L40: =IF(Rekenblad2[[#This Row],[Type gebouw]]=1,HLOOKUP(Rekenblad2[[#This Row],[Rekenblad 1]],KwaliteitEGW[#All],14,0), IF(Rekenblad2[[#This Row],[Type gebouw]]=2,HLOOKUP(Rekenblad2[[#This Row],[Rekenblad 1]],KwaliteitPortiek[#All],13,0), IF(Rekenblad2[[#This Row],[Type gebouw]]=3,HLOOKUP(Rekenblad2[[#This Row],[Rekenblad 1]],KwaliteitGalerij[#All],13,0)))) -> 2
C41: A4.1 | D41: 1 | E41: Per 2 woningen via verticale leidingen op voor- of achtergevel naar afleverset | F41: =MROUND( IF(Rekenblad2[[#This Row],[Type gebouw]]=0,"Voer type gebouw in", IF(Rekenblad2[[#This Row],[Type gebouw]]=1,HLOOKUP(Rekenblad2[[#This Row],[Rekenblad 1]],StaatEGW[[#All],[A1.1]:[C1.2]],40,0), IF(Rekenblad2[[#This Row],[Type gebouw]]=2,HLOOKUP(Rekenblad2[[#This Row],[Rekenblad 1]],StaatPortiek[[#All],[A1]:[C1]],40,0), IF(Rekenblad2[[#This Row],[Type gebouw]]=3,HLOOKUP(Rekenblad2[[#This Row],[Rekenblad 1]],StaatGalerij[[#All],[A1]:[C1]],40,0), "Onbekende fout")))), 500) -> 2500 | G41: =MROUND( IF(Rekenblad2[[#This Row],[Type gebouw]]=0,"Voer type gebouw in", IF(Rekenblad2[[#This Row],[Type gebouw]]=1,HLOOKUP(Rekenblad2[[#This Row],[Rekenblad 1]],StaatEGW[[#All],[A1.1]:[C1.2]],41,0), IF(Rekenblad2[[#This Row],[Type gebouw]]=2,HLOOKUP(Rekenblad2[[#This Row],[Rekenblad 1]],StaatPortiek[[#All],[A1]:[C1]],41,0), IF(Rekenblad2[[#This Row],[Type gebouw]]=3,HLOOKUP(Rekenblad2[[#This Row],[Rekenblad 1]],StaatGalerij[[#All],[A1]:[C1]],41,0), "Onbekende fout")))), 500) -> 5000 | H41: =SUM(Rekenblad2[[#This Row],[Kosten warmteleverancier]:[Kosten woningeigenaar]]) -> 7500 | I41: =IF(Rekenblad2[[#This Row],[Type gebouw]]=1,HLOOKUP(Rekenblad2[[#This Row],[Rekenblad 1]],KwaliteitEGW[#All],2,0), IF(Rekenblad2[[#This Row],[Type gebouw]]=2,HLOOKUP(Rekenblad2[[#This Row],[Rekenblad 1]],KwaliteitPortiek[#All],2,0), IF(Rekenblad2[[#This Row],[Type gebouw]]=3,HLOOKUP(Rekenblad2[[#This Row],[Rekenblad 1]],KwaliteitGalerij[#All],2,0)))) -> 2 | J41: =IF(Rekenblad2[[#This Row],[Type gebouw]]=1,HLOOKUP(Rekenblad2[[#This Row],[Rekenblad 1]],KwaliteitEGW[#All],6,0), IF(Rekenblad2[[#This Row],[Type gebouw]]=2,HLOOKUP(Rekenblad2[[#This Row],[Rekenblad 1]],KwaliteitPortiek[#All],5,0), IF(Rekenblad2[[#This Row],[Type gebouw]]=3,HLOOKUP(Rekenblad2[[#This Row],[Rekenblad 1]],KwaliteitGalerij[#All],5,0)))) -> 2 | K41: =IF(Rekenblad2[[#This Row],[Type gebouw]]=1,HLOOKUP(Rekenblad2[[#This Row],[Rekenblad 1]],KwaliteitEGW[#All],10,0), IF(Rekenblad2[[#This Row],[Type gebouw]]=2,HLOOKUP(Rekenblad2[[#This Row],[Rekenblad 1]],KwaliteitPortiek[#All],9,0), IF(Rekenblad2[[#This Row],[Type gebouw]]=3,HLOOKUP(Rekenblad2[[#This Row],[Rekenblad 1]],KwaliteitGalerij[#All],9,0)))) -> 2 | L41: =IF(Rekenblad2[[#This Row],[Type gebouw]]=1,HLOOKUP(Rekenblad2[[#This Row],[Rekenblad 1]],KwaliteitEGW[#All],14,0), IF(Rekenblad2[[#This Row],[Type gebouw]]=2,HLOOKUP(Rekenblad2[[#This Row],[Rekenblad 1]],KwaliteitPortiek[#All],13,0), IF(Rekenblad2[[#This Row],[Type gebouw]]=3,HLOOKUP(Rekenblad2[[#This Row],[Rekenblad 1]],KwaliteitGalerij[#All],13,0)))) -> 2
C42: A4.2 | D42: 1 | E42: Per 2 woningen via verticale leidingen op voor- of achtergevel naar afleverset | F42: =MROUND( IF(Rekenblad2[[#This Row],[Type gebouw]]=0,"Voer type gebouw in", IF(Rekenblad2[[#This Row],[Type gebouw]]=1,HLOOKUP(Rekenblad2[[#This Row],[Rekenblad 1]],StaatEGW[[#All],[A1.1]:[C1.2]],40,0), IF(Rekenblad2[[#This Row],[Type gebouw]]=2,HLOOKUP(Rekenblad2[[#This Row],[Rekenblad 1]],StaatPortiek[[#All],[A1]:[C1]],40,0), IF(Rekenblad2[[#This Row],[Type gebouw]]=3,HLOOKUP(Rekenblad2[[#This Row],[Rekenblad 1]],StaatGalerij[[#All],[A1]:[C1]],40,0), "Onbekende fout")))), 500) -> 2500 | G42: =MROUND( IF(Rekenblad2[[#This Row],[Type gebouw]]=0,"Voer type gebouw in", IF(Rekenblad2[[#This Row],[Type gebouw]]=1,HLOOKUP(Rekenblad2[[#This Row],[Rekenblad 1]],StaatEGW[[#All],[A1.1]:[C1.2]],41,0), IF(Rekenblad2[[#This Row],[Type gebouw]]=2,HLOOKUP(Rekenblad2[[#This Row],[Rekenblad 1]],StaatPortiek[[#All],[A1]:[C1]],41,0), IF(Rekenblad2[[#This Row],[Type gebouw]]=3,HLOOKUP(Rekenblad2[[#This Row],[Rekenblad 1]],StaatGalerij[[#All],[A1]:[C1]],41,0), "Onbekende fout")))), 500) -> 4000 | H42: =SUM(Rekenblad2[[#This Row],[Kosten warmteleverancier]:[Kosten woningeigenaar]]) -> 6500 | I42: =IF(Rekenblad2[[#This Row],[Type gebouw]]=1,HLOOKUP(Rekenblad2[[#This Row],[Rekenblad 1]],KwaliteitEGW[#All],2,0), IF(Rekenblad2[[#This Row],[Type gebouw]]=2,HLOOKUP(Rekenblad2[[#This Row],[Rekenblad 1]],KwaliteitPortiek[#All],2,0), IF(Rekenblad2[[#This Row],[Type gebouw]]=3,HLOOKUP(Rekenblad2[[#This Row],[Rekenblad 1]],KwaliteitGalerij[#All],2,0)))) -> 2 | J42: =IF(Rekenblad2[[#This Row],[Type gebouw]]=1,HLOOKUP(Rekenblad2[[#This Row],[Rekenblad 1]],KwaliteitEGW[#All],6,0), IF(Rekenblad2[[#This Row],[Type gebouw]]=2,HLOOKUP(Rekenblad2[[#This Row],[Rekenblad 1]],KwaliteitPortiek[#All],5,0), IF(Rekenblad2[[#This Row],[Type gebouw]]=3,HLOOKUP(Rekenblad2[[#This Row],[Rekenblad 1]],KwaliteitGalerij[#All],5,0)))) -> 2 | K42: =IF(Rekenblad2[[#This Row],[Type gebouw]]=1,HLOOKUP(Rekenblad2[[#This Row],[Rekenblad 1]],KwaliteitEGW[#All],10,0), IF(Rekenblad2[[#This Row],[Type gebouw]]=2,HLOOKUP(Rekenblad2[[#This Row],[Rekenblad 1]],KwaliteitPortiek[#All],9,0), IF(Rekenblad2[[#This Row],[Type gebouw]]=3,HLOOKUP(Rekenblad2[[#This Row],[Rekenblad 1]],KwaliteitGalerij[#All],9,0)))) -> 4 | L42: =IF(Rekenblad2[[#This Row],[Type gebouw]]=1,HLOOKUP(Rekenblad2[[#This Row],[Rekenblad 1]],KwaliteitEGW[#All],14,0), IF(Rekenblad2[[#This Row],[Type gebouw]]=2,HLOOKUP(Rekenblad2[[#This Row],[Rekenblad 1]],KwaliteitPortiek[#All],13,0), IF(Rekenblad2[[#This Row],[Type gebouw]]=3,HLOOKUP(Rekenblad2[[#This Row],[Rekenblad 1]],KwaliteitGalerij[#All],13,0)))) -> 2
C43: B1.1 | D43: 1 | E43: In de lengterichting van het volledige blok door de kapruimte | F43: =MROUND( IF(Rekenblad2[[#This Row],[Type gebouw]]=0,"Voer type gebouw in", IF(Rekenblad2[[#This Row],[Type gebouw]]=1,HLOOKUP(Rekenblad2[[#This Row],[Rekenblad 1]],StaatEGW[[#All],[A1.1]:[C1.2]],40,0), IF(Rekenblad2[[#This Row],[Type gebouw]]=2,HLOOKUP(Rekenblad2[[#This Row],[Rekenblad 1]],StaatPortiek[[#All],[A1]:[C1]],40,0), IF(Rekenblad2[[#This Row],[Type gebouw]]=3,HLOOKUP(Rekenblad2[[#This Row],[Rekenblad 1]],StaatGalerij[[#All],[A1]:[C1]],40,0), "Onbekende fout")))), 500) -> 5000 | G43: =MROUND( IF(Rekenblad2[[#This Row],[Type gebouw]]=0,"Voer type gebouw in", IF(Rekenblad2[[#This Row],[Type gebouw]]=1,HLOOKUP(Rekenblad2[[#This Row],[Rekenblad 1]],StaatEGW[[#All],[A1.1]:[C1.2]],41,0), IF(Rekenblad2[[#This Row],[Type gebouw]]=2,HLOOKUP(Rekenblad2[[#This Row],[Rekenblad 1]],StaatPortiek[[#All],[A1]:[C1]],41,0), IF(Rekenblad2[[#This Row],[Type gebouw]]=3,HLOOKUP(Rekenblad2[[#This Row],[Rekenblad 1]],StaatGalerij[[#All],[A1]:[C1]],41,0), "Onbekende fout")))), 500) -> 5000 | H43: =SUM(Rekenblad2[[#This Row],[Kosten warmteleverancier]:[Kosten woningeigenaar]]) -> 10000 | I43: =IF(Rekenblad2[[#This Row],[Type gebouw]]=1,HLOOKUP(Rekenblad2[[#This Row],[Rekenblad 1]],KwaliteitEGW[#All],2,0), IF(Rekenblad2[[#This Row],[Type gebouw]]=2,HLOOKUP(Rekenblad2[[#This Row],[Rekenblad 1]],KwaliteitPortiek[#All],2,0), IF(Rekenblad2[[#This Row],[Type gebouw]]=3,HLOOKUP(Rekenblad2[[#This Row],[Rekenblad 1]],KwaliteitGalerij[#All],2,0)))) -> 2 | J43: =IF(Rekenblad2[[#This Row],[Type gebouw]]=1,HLOOKUP(Rekenblad2[[#This Row],[Rekenblad 1]],KwaliteitEGW[#All],6,0), IF(Rekenblad2[[#This Row],[Type gebouw]]=2,HLOOKUP(Rekenblad2[[#This Row],[Rekenblad 1]],KwaliteitPortiek[#All],5,0), IF(Rekenblad2[[#This Row],[Type gebouw]]=3,HLOOKUP(Rekenblad2[[#This Row],[Rekenblad 1]],KwaliteitGalerij[#All],5,0)))) -> 2 | K43: =IF(Rekenblad2[[#This Row],[Type gebouw]]=1,HLOOKUP(Rekenblad2[[#This Row],[Rekenblad 1]],KwaliteitEGW[#All],10,0), IF(Rekenblad2[[#This Row],[Type gebouw]]=2,HLOOKUP(Rekenblad2[[#This Row],[Rekenblad 1]],KwaliteitPortiek[#All],9,0), IF(Rekenblad2[[#This Row],[Type gebouw]]=3,HLOOKUP(Rekenblad2[[#This Row],[Rekenblad 1]],KwaliteitGalerij[#All],9,0)))) -> 1 | L43: =IF(Rekenblad2[[#This Row],[Type gebouw]]=1,HLOOKUP(Rekenblad2[[#This Row],[Rekenblad 1]],KwaliteitEGW[#All],14,0), IF(Rekenblad2[[#This Row],[Type gebouw]]=2,HLOOKUP(Rekenblad2[[#This Row],[Rekenblad 1]],KwaliteitPortiek[#All],13,0), IF(Rekenblad2[[#This Row],[Type gebouw]]=3,HLOOKUP(Rekenblad2[[#This Row],[Rekenblad 1]],KwaliteitGalerij[#All],13,0)))) -> 1
C44: B1.2 | D44: 1 | E44: In de lengterichting van het volledige blok door de kapruimte | F44: =MROUND( IF(Rekenblad2[[#This Row],[Type gebouw]]=0,"Voer type gebouw in", IF(Rekenblad2[[#This Row],[Type gebouw]]=1,HLOOKUP(Rekenblad2[[#This Row],[Rekenblad 1]],StaatEGW[[#All],[A1.1]:[C1.2]],40,0), IF(Rekenblad2[[#This Row],[Type gebouw]]=2,HLOOKUP(Rekenblad2[[#This Row],[Rekenblad 1]],StaatPortiek[[#All],[A1]:[C1]],40,0), IF(Rekenblad2[[#This Row],[Type gebouw]]=3,HLOOKUP(Rekenblad2[[#This Row],[Rekenblad 1]],StaatGalerij[[#All],[A1]:[C1]],40,0), "Onbekende fout")))), 500) -> 5000 | G44: =MROUND( IF(Rekenblad2[[#This Row],[Type gebouw]]=0,"Voer type gebouw in", IF(Rekenblad2[[#This Row],[Type gebouw]]=1,HLOOKUP(Rekenblad2[[#This Row],[Rekenblad 1]],StaatEGW[[#All],[A1.1]:[C1.2]],41,0), IF(Rekenblad2[[#This Row],[Type gebouw]]=2,HLOOKUP(Rekenblad2[[#This Row],[Rekenblad 1]],StaatPortiek[[#All],[A1]:[C1]],41,0), IF(Rekenblad2[[#This Row],[Type gebouw]]=3,HLOOKUP(Rekenblad2[[#This Row],[Rekenblad 1]],StaatGalerij[[#All],[A1]:[C1]],41,0), "Onbekende fout")))), 500) -> 4000 | H44: =SUM(Rekenblad2[[#This Row],[Kosten warmteleverancier]:[Kosten woningeigenaar]]) -> 9000 | I44: =IF(Rekenblad2[[#This Row],[Type gebouw]]=1,HLOOKUP(Rekenblad2[[#This Row],[Rekenblad 1]],KwaliteitEGW[#All],2,0), IF(Rekenblad2[[#This Row],[Type gebouw]]=2,HLOOKUP(Rekenblad2[[#This Row],[Rekenblad 1]],KwaliteitPortiek[#All],2,0), IF(Rekenblad2[[#This Row],[Type gebouw]]=3,HLOOKUP(Rekenblad2[[#This Row],[Rekenblad 1]],KwaliteitGalerij[#All],2,0)))) -> 2 | J44: =IF(Rekenblad2[[#This Row],[Type gebouw]]=1,HLOOKUP(Rekenblad2[[#This Row],[Rekenblad 1]],KwaliteitEGW[#All],6,0), IF(Rekenblad2[[#This Row],[Type gebouw]]=2,HLOOKUP(Rekenblad2[[#This Row],[Rekenblad 1]],KwaliteitPortiek[#All],5,0), IF(Rekenblad2[[#This Row],[Type gebouw]]=3,HLOOKUP(Rekenblad2[[#This Row],[Rekenblad 1]],KwaliteitGalerij[#All],5,0)))) -> 3 | K44: =IF(Rekenblad2[[#This Row],[Type gebouw]]=1,HLOOKUP(Rekenblad2[[#This Row],[Rekenblad 1]],KwaliteitEGW[#All],10,0), IF(Rekenblad2[[#This Row],[Type gebouw]]=2,HLOOKUP(Rekenblad2[[#This Row],[Rekenblad 1]],KwaliteitPortiek[#All],9,0), IF(Rekenblad2[[#This Row],[Type gebouw]]=3,HLOOKUP(Rekenblad2[[#This Row],[Rekenblad 1]],KwaliteitGalerij[#All],9,0)))) -> 3 | L44: =IF(Rekenblad2[[#This Row],[Type gebouw]]=1,HLOOKUP(Rekenblad2[[#This Row],[Rekenblad 1]],KwaliteitEGW[#All],14,0), IF(Rekenblad2[[#This Row],[Type gebouw]]=2,HLOOKUP(Rekenblad2[[#This Row],[Rekenblad 1]],KwaliteitPortiek[#All],13,0), IF(Rekenblad2[[#This Row],[Type gebouw]]=3,HLOOKUP(Rekenblad2[[#This Row],[Rekenblad 1]],KwaliteitGalerij[#All],13,0)))) -> 2
C45: B2.1 | D45: 1 | E45: In de lengterichting van het volledige blok over de gevel | F45: =MROUND( IF(Rekenblad2[[#This Row],[Type gebouw]]=0,"Voer type gebouw in", IF(Rekenblad2[[#This Row],[Type gebouw]]=1,HLOOKUP(Rekenblad2[[#This Row],[Rekenblad 1]],StaatEGW[[#All],[A1.1]:[C1.2]],40,0), IF(Rekenblad2[[#This Row],[Type gebouw]]=2,HLOOKUP(Rekenblad2[[#This Row],[Rekenblad 1]],StaatPortiek[[#All],[A1]:[C1]],40,0), IF(Rekenblad2[[#This Row],[Type gebouw]]=3,HLOOKUP(Rekenblad2[[#This Row],[Rekenblad 1]],StaatGalerij[[#All],[A1]:[C1]],40,0), "Onbekende fout")))), 500) -> 7500 | G45: =MROUND( IF(Rekenblad2[[#This Row],[Type gebouw]]=0,"Voer type gebouw in", IF(Rekenblad2[[#This Row],[Type gebouw]]=1,HLOOKUP(Rekenblad2[[#This Row],[Rekenblad 1]],StaatEGW[[#All],[A1.1]:[C1.2]],41,0), IF(Rekenblad2[[#This Row],[Type gebouw]]=2,HLOOKUP(Rekenblad2[[#This Row],[Rekenblad 1]],StaatPortiek[[#All],[A1]:[C1]],41,0), IF(Rekenblad2[[#This Row],[Type gebouw]]=3,HLOOKUP(Rekenblad2[[#This Row],[Rekenblad 1]],StaatGalerij[[#All],[A1]:[C1]],41,0), "Onbekende fout")))), 500) -> 5000 | H45: =SUM(Rekenblad2[[#This Row],[Kosten warmteleverancier]:[Kosten woningeigenaar]]) -> 12500 | I45: =IF(Rekenblad2[[#This Row],[Type gebouw]]=1,HLOOKUP(Rekenblad2[[#This Row],[Rekenblad 1]],KwaliteitEGW[#All],2,0), IF(Rekenblad2[[#This Row],[Type gebouw]]=2,HLOOKUP(Rekenblad2[[#This Row],[Rekenblad 1]],KwaliteitPortiek[#All],2,0), IF(Rekenblad2[[#This Row],[Type gebouw]]=3,HLOOKUP(Rekenblad2[[#This Row],[Rekenblad 1]],KwaliteitGalerij[#All],2,0)))) -> 1 | J45: =IF(Rekenblad2[[#This Row],[Type gebouw]]=1,HLOOKUP(Rekenblad2[[#This Row],[Rekenblad 1]],KwaliteitEGW[#All],6,0), IF(Rekenblad2[[#This Row],[Type gebouw]]=2,HLOOKUP(Rekenblad2[[#This Row],[Rekenblad 1]],KwaliteitPortiek[#All],5,0), IF(Rekenblad2[[#This Row],[Type gebouw]]=3,HLOOKUP(Rekenblad2[[#This Row],[Rekenblad 1]],KwaliteitGalerij[#All],5,0)))) -> 3 | K45: =IF(Rekenblad2[[#This Row],[Type gebouw]]=1,HLOOKUP(Rekenblad2[[#This Row],[Rekenblad 1]],KwaliteitEGW[#All],10,0), IF(Rekenblad2[[#This Row],[Type gebouw]]=2,HLOOKUP(Rekenblad2[[#This Row],[Rekenblad 1]],KwaliteitPortiek[#All],9,0), IF(Rekenblad2[[#This Row],[Type gebouw]]=3,HLOOKUP(Rekenblad2[[#This Row],[Rekenblad 1]],KwaliteitGalerij[#All],9,0)))) -> 2 | L45: =IF(Rekenblad2[[#This Row],[Type gebouw]]=1,HLOOKUP(Rekenblad2[[#This Row],[Rekenblad 1]],KwaliteitEGW[#All],14,0), IF(Rekenblad2[[#This Row],[Type gebouw]]=2,HLOOKUP(Rekenblad2[[#This Row],[Rekenblad 1]],KwaliteitPortiek[#All],13,0), IF(Rekenblad2[[#This Row],[Type gebouw]]=3,HLOOKUP(Rekenblad2[[#This Row],[Rekenblad 1]],KwaliteitGalerij[#All],13,0)))) -> 2
C46: B2.2 | D46: 1 | E46: In de lengterichting van het volledige blok over de gevel | F46: =MROUND( IF(Rekenblad2[[#This Row],[Type gebouw]]=0,"Voer type gebouw in", IF(Rekenblad2[[#This Row],[Type gebouw]]=1,HLOOKUP(Rekenblad2[[#This Row],[Rekenblad 1]],StaatEGW[[#All],[A1.1]:[C1.2]],40,0), IF(Rekenblad2[[#This Row],[Type gebouw]]=2,HLOOKUP(Rekenblad2[[#This Row],[Rekenblad 1]],StaatPortiek[[#All],[A1]:[C1]],40,0), IF(Rekenblad2[[#This Row],[Type gebouw]]=3,HLOOKUP(Rekenblad2[[#This Row],[Rekenblad 1]],StaatGalerij[[#All],[A1]:[C1]],40,0), "Onbekende fout")))), 500) -> 7500 | G46: =MROUND( IF(Rekenblad2[[#This Row],[Type gebouw]]=0,"Voer type gebouw in", IF(Rekenblad2[[#This Row],[Type gebouw]]=1,HLOOKUP(Rekenblad2[[#This Row],[Rekenblad 1]],StaatEGW[[#All],[A1.1]:[C1.2]],41,0), IF(Rekenblad2[[#This Row],[Type gebouw]]=2,HLOOKUP(Rekenblad2[[#This Row],[Rekenblad 1]],StaatPortiek[[#All],[A1]:[C1]],41,0), IF(Rekenblad2[[#This Row],[Type gebouw]]=3,HLOOKUP(Rekenblad2[[#This Row],[Rekenblad 1]],StaatGalerij[[#All],[A1]:[C1]],41,0), "Onbekende fout")))), 500) -> 4000 | H46: =SUM(Rekenblad2[[#This Row],[Kosten warmteleverancier]:[Kosten woningeigenaar]]) -> 11500 | I46: =IF(Rekenblad2[[#This Row],[Type gebouw]]=1,HLOOKUP(Rekenblad2[[#This Row],[Rekenblad 1]],KwaliteitEGW[#All],2,0), IF(Rekenblad2[[#This Row],[Type gebouw]]=2,HLOOKUP(Rekenblad2[[#This Row],[Rekenblad 1]],KwaliteitPortiek[#All],2,0), IF(Rekenblad2[[#This Row],[Type gebouw]]=3,HLOOKUP(Rekenblad2[[#This Row],[Rekenblad 1]],KwaliteitGalerij[#All],2,0)))) -> 1 | J46: =IF(Rekenblad2[[#This Row],[Type gebouw]]=1,HLOOKUP(Rekenblad2[[#This Row],[Rekenblad 1]],KwaliteitEGW[#All],6,0), IF(Rekenblad2[[#This Row],[Type gebouw]]=2,HLOOKUP(Rekenblad2[[#This Row],[Rekenblad 1]],KwaliteitPortiek[#All],5,0), IF(Rekenblad2[[#This Row],[Type gebouw]]=3,HLOOKUP(Rekenblad2[[#This Row],[Rekenblad 1]],KwaliteitGalerij[#All],5,0)))) -> 4 | K46: =IF(Rekenblad2[[#This Row],[Type gebouw]]=1,HLOOKUP(Rekenblad2[[#This Row],[Rekenblad 1]],KwaliteitEGW[#All],10,0), IF(Rekenblad2[[#This Row],[Type gebouw]]=2,HLOOKUP(Rekenblad2[[#This Row],[Rekenblad 1]],KwaliteitPortiek[#All],9,0), IF(Rekenblad2[[#This Row],[Type gebouw]]=3,HLOOKUP(Rekenblad2[[#This Row],[Rekenblad 1]],KwaliteitGalerij[#All],9,0)))) -> 4 | L46: =IF(Rekenblad2[[#This Row],[Type gebouw]]=1,HLOOKUP(Rekenblad2[[#This Row],[Rekenblad 1]],KwaliteitEGW[#All],14,0), IF(Rekenblad2[[#This Row],[Type gebouw]]=2,HLOOKUP(Rekenblad2[[#This Row],[Rekenblad 1]],KwaliteitPortiek[#All],13,0), IF(Rekenblad2[[#This Row],[Type gebouw]]=3,HLOOKUP(Rekenblad2[[#This Row],[Rekenblad 1]],KwaliteitGalerij[#All],13,0)))) -> 2
C47: B3.1 | D47: 1 | E47: In de lengterichting van het volledige blok over het dak | F47: =MROUND( IF(Rekenblad2[[#This Row],[Type gebouw]]=0,"Voer type gebouw in", IF(Rekenblad2[[#This Row],[Type gebouw]]=1,HLOOKUP(Rekenblad2[[#This Row],[Rekenblad 1]],StaatEGW[[#All],[A1.1]:[C1.2]],40,0), IF(Rekenblad2[[#This Row],[Type gebouw]]=2,HLOOKUP(Rekenblad2[[#This Row],[Rekenblad 1]],StaatPortiek[[#All],[A1]:[C1]],40,0), IF(Rekenblad2[[#This Row],[Type gebouw]]=3,HLOOKUP(Rekenblad2[[#This Row],[Rekenblad 1]],StaatGalerij[[#All],[A1]:[C1]],40,0), "Onbekende fout")))), 500) -> 4000 | G47: =MROUND( IF(Rekenblad2[[#This Row],[Type gebouw]]=0,"Voer type gebouw in", IF(Rekenblad2[[#This Row],[Type gebouw]]=1,HLOOKUP(Rekenblad2[[#This Row],[Rekenblad 1]],StaatEGW[[#All],[A1.1]:[C1.2]],41,0), IF(Rekenblad2[[#This Row],[Type gebouw]]=2,HLOOKUP(Rekenblad2[[#This Row],[Rekenblad 1]],StaatPortiek[[#All],[A1]:[C1]],41,0), IF(Rekenblad2[[#This Row],[Type gebouw]]=3,HLOOKUP(Rekenblad2[[#This Row],[Rekenblad 1]],StaatGalerij[[#All],[A1]:[C1]],41,0), "Onbekende fout")))), 500) -> 5000 | H47: =SUM(Rekenblad2[[#This Row],[Kosten warmteleverancier]:[Kosten woningeigenaar]]) -> 9000 | I47: =IF(Rekenblad2[[#This Row],[Type gebouw]]=1,HLOOKUP(Rekenblad2[[#This Row],[Rekenblad 1]],KwaliteitEGW[#All],2,0), IF(Rekenblad2[[#This Row],[Type gebouw]]=2,HLOOKUP(Rekenblad2[[#This Row],[Rekenblad 1]],KwaliteitPortiek[#All],2,0), IF(Rekenblad2[[#This Row],[Type gebouw]]=3,HLOOKUP(Rekenblad2[[#This Row],[Rekenblad 1]],KwaliteitGalerij[#All],2,0)))) -> 1 | J47: =IF(Rekenblad2[[#This Row],[Type gebouw]]=1,HLOOKUP(Rekenblad2[[#This Row],[Rekenblad 1]],KwaliteitEGW[#All],6,0), IF(Rekenblad2[[#This Row],[Type gebouw]]=2,HLOOKUP(Rekenblad2[[#This Row],[Rekenblad 1]],KwaliteitPortiek[#All],5,0), IF(Rekenblad2[[#This Row],[Type gebouw]]=3,HLOOKUP(Rekenblad2[[#This Row],[Rekenblad 1]],KwaliteitGalerij[#All],5,0)))) -> 2 | K47: =IF(Rekenblad2[[#This Row],[Type gebouw]]=1,HLOOKUP(Rekenblad2[[#This Row],[Rekenblad 1]],KwaliteitEGW[#All],10,0), IF(Rekenblad2[[#This Row],[Type gebouw]]=2,HLOOKUP(Rekenblad2[[#This Row],[Rekenblad 1]],KwaliteitPortiek[#All],9,0), IF(Rekenblad2[[#This Row],[Type gebouw]]=3,HLOOKUP(Rekenblad2[[#This Row],[Rekenblad 1]],KwaliteitGalerij[#All],9,0)))) -> 2 | L47: =IF(Rekenblad2[[#This Row],[Type gebouw]]=1,HLOOKUP(Rekenblad2[[#This Row],[Rekenblad 1]],KwaliteitEGW[#All],14,0), IF(Rekenblad2[[#This Row],[Type gebouw]]=2,HLOOKUP(Rekenblad2[[#This Row],[Rekenblad 1]],KwaliteitPortiek[#All],13,0), IF(Rekenblad2[[#This Row],[Type gebouw]]=3,HLOOKUP(Rekenblad2[[#This Row],[Rekenblad 1]],KwaliteitGalerij[#All],13,0)))) -> 3
C48: B3.2 | D48: 1 | E48: In de lengterichting van het volledige blok over het dak | F48: =MROUND( IF(Rekenblad2[[#This Row],[Type gebouw]]=0,"Voer type gebouw in", IF(Rekenblad2[[#This Row],[Type gebouw]]=1,HLOOKUP(Rekenblad2[[#This Row],[Rekenblad 1]],StaatEGW[[#All],[A1.1]:[C1.2]],40,0), IF(Rekenblad2[[#This Row],[Type gebouw]]=2,HLOOKUP(Rekenblad2[[#This Row],[Rekenblad 1]],StaatPortiek[[#All],[A1]:[C1]],40,0), IF(Rekenblad2[[#This Row],[Type gebouw]]=3,HLOOKUP(Rekenblad2[[#This Row],[Rekenblad 1]],StaatGalerij[[#All],[A1]:[C1]],40,0), "Onbekende fout")))), 500) -> 4000 | G48: =MROUND( IF(Rekenblad2[[#This Row],[Type gebouw]]=0,"Voer type gebouw in", IF(Rekenblad2[[#This Row],[Type gebouw]]=1,HLOOKUP(Rekenblad2[[#This Row],[Rekenblad 1]],StaatEGW[[#All],[A1.1]:[C1.2]],41,0), IF(Rekenblad2[[#This Row],[Type gebouw]]=2,HLOOKUP(Rekenblad2[[#This Row],[Rekenblad 1]],StaatPortiek[[#All],[A1]:[C1]],41,0), IF(Rekenblad2[[#This Row],[Type gebouw]]=3,HLOOKUP(Rekenblad2[[#This Row],[Rekenblad 1]],StaatGalerij[[#All],[A1]:[C1]],41,0), "Onbekende fout")))), 500) -> 4000 | H48: =SUM(Rekenblad2[[#This Row],[Kosten warmteleverancier]:[Kosten woningeigenaar]]) -> 8000 | I48: =IF(Rekenblad2[[#This Row],[Type gebouw]]=1,HLOOKUP(Rekenblad2[[#This Row],[Rekenblad 1]],KwaliteitEGW[#All],2,0), IF(Rekenblad2[[#This Row],[Type gebouw]]=2,HLOOKUP(Rekenblad2[[#This Row],[Rekenblad 1]],KwaliteitPortiek[#All],2,0), IF(Rekenblad2[[#This Row],[Type gebouw]]=3,HLOOKUP(Rekenblad2[[#This Row],[Rekenblad 1]],KwaliteitGalerij[#All],2,0)))) -> 1 | J48: =IF(Rekenblad2[[#This Row],[Type gebouw]]=1,HLOOKUP(Rekenblad2[[#This Row],[Rekenblad 1]],KwaliteitEGW[#All],6,0), IF(Rekenblad2[[#This Row],[Type gebouw]]=2,HLOOKUP(Rekenblad2[[#This Row],[Rekenblad 1]],KwaliteitPortiek[#All],5,0), IF(Rekenblad2[[#This Row],[Type gebouw]]=3,HLOOKUP(Rekenblad2[[#This Row],[Rekenblad 1]],KwaliteitGalerij[#All],5,0)))) -> 4 | K48: =IF(Rekenblad2[[#This Row],[Type gebouw]]=1,HLOOKUP(Rekenblad2[[#This Row],[Rekenblad 1]],KwaliteitEGW[#All],10,0), IF(Rekenblad2[[#This Row],[Type gebouw]]=2,HLOOKUP(Rekenblad2[[#This Row],[Rekenblad 1]],KwaliteitPortiek[#All],9,0), IF(Rekenblad2[[#This Row],[Type gebouw]]=3,HLOOKUP(Rekenblad2[[#This Row],[Rekenblad 1]],KwaliteitGalerij[#All],9,0)))) -> 4 | L48: =IF(Rekenblad2[[#This Row],[Type gebouw]]=1,HLOOKUP(Rekenblad2[[#This Row],[Rekenblad 1]],KwaliteitEGW[#All],14,0), IF(Rekenblad2[[#This Row],[Type gebouw]]=2,HLOOKUP(Rekenblad2[[#This Row],[Rekenblad 1]],KwaliteitPortiek[#All],13,0), IF(Rekenblad2[[#This Row],[Type gebouw]]=3,HLOOKUP(Rekenblad2[[#This Row],[Rekenblad 1]],KwaliteitGalerij[#All],13,0)))) -> 3
C49: B4.1 | D49: 1 | E49: In de lengterichting van het volledige blok onder de onderste woonlaag door | F49: =MROUND( IF(Rekenblad2[[#This Row],[Type gebouw]]=0,"Voer type gebouw in", IF(Rekenblad2[[#This Row],[Type gebouw]]=1,HLOOKUP(Rekenblad2[[#This Row],[Rekenblad 1]],StaatEGW[[#All],[A1.1]:[C1.2]],40,0), IF(Rekenblad2[[#This Row],[Type gebouw]]=2,HLOOKUP(Rekenblad2[[#This Row],[Rekenblad 1]],StaatPortiek[[#All],[A1]:[C1]],40,0), IF(Rekenblad2[[#This Row],[Type gebouw]]=3,HLOOKUP(Rekenblad2[[#This Row],[Rekenblad 1]],StaatGalerij[[#All],[A1]:[C1]],40,0), "Onbekende fout")))), 500) -> 7000 | G49: =MROUND( IF(Rekenblad2[[#This Row],[Type gebouw]]=0,"Voer type gebouw in", IF(Rekenblad2[[#This Row],[Type gebouw]]=1,HLOOKUP(Rekenblad2[[#This Row],[Rekenblad 1]],StaatEGW[[#All],[A1.1]:[C1.2]],41,0), IF(Rekenblad2[[#This Row],[Type gebouw]]=2,HLOOKUP(Rekenblad2[[#This Row],[Rekenblad 1]],StaatPortiek[[#All],[A1]:[C1]],41,0), IF(Rekenblad2[[#This Row],[Type gebouw]]=3,HLOOKUP(Rekenblad2[[#This Row],[Rekenblad 1]],StaatGalerij[[#All],[A1]:[C1]],41,0), "Onbekende fout")))), 500) -> 4500 | H49: =SUM(Rekenblad2[[#This Row],[Kosten warmteleverancier]:[Kosten woningeigenaar]]) -> 11500 | I49: =IF(Rekenblad2[[#This Row],[Type gebouw]]=1,HLOOKUP(Rekenblad2[[#This Row],[Rekenblad 1]],KwaliteitEGW[#All],2,0), IF(Rekenblad2[[#This Row],[Type gebouw]]=2,HLOOKUP(Rekenblad2[[#This Row],[Rekenblad 1]],KwaliteitPortiek[#All],2,0), IF(Rekenblad2[[#This Row],[Type gebouw]]=3,HLOOKUP(Rekenblad2[[#This Row],[Rekenblad 1]],KwaliteitGalerij[#All],2,0)))) -> 4 | J49: =IF(Rekenblad2[[#This Row],[Type gebouw]]=1,HLOOKUP(Rekenblad2[[#This Row],[Rekenblad 1]],KwaliteitEGW[#All],6,0), IF(Rekenblad2[[#This Row],[Type gebouw]]=2,HLOOKUP(Rekenblad2[[#This Row],[Rekenblad 1]],KwaliteitPortiek[#All],5,0), IF(Rekenblad2[[#This Row],[Type gebouw]]=3,HLOOKUP(Rekenblad2[[#This Row],[Rekenblad 1]],KwaliteitGalerij[#All],5,0)))) -> 2 | K49: =IF(Rekenblad2[[#This Row],[Type gebouw]]=1,HLOOKUP(Rekenblad2[[#This Row],[Rekenblad 1]],KwaliteitEGW[#All],10,0), IF(Rekenblad2[[#This Row],[Type gebouw]]=2,HLOOKUP(Rekenblad2[[#This Row],[Rekenblad 1]],KwaliteitPortiek[#All],9,0), IF(Rekenblad2[[#This Row],[Type gebouw]]=3,HLOOKUP(Rekenblad2[[#This Row],[Rekenblad 1]],KwaliteitGalerij[#All],9,0)))) -> 5 | L49: =IF(Rekenblad2[[#This Row],[Type gebouw]]=1,HLOOKUP(Rekenblad2[[#This Row],[Rekenblad 1]],KwaliteitEGW[#All],14,0), IF(Rekenblad2[[#This Row],[Type gebouw]]=2,HLOOKUP(Rekenblad2[[#This Row],[Rekenblad 1]],KwaliteitPortiek[#All],13,0), IF(Rekenblad2[[#This Row],[Type gebouw]]=3,HLOOKUP(Rekenblad2[[#This Row],[Rekenblad 1]],KwaliteitGalerij[#All],13,0)))) -> 2
C50: B4.2 | D50: 1 | E50: In de lengterichting van het volledige blok onder de onderste woonlaag door | F50: =MROUND( IF(Rekenblad2[[#This Row],[Type gebouw]]=0,"Voer type gebouw in", IF(Rekenblad2[[#This Row],[Type gebouw]]=1,HLOOKUP(Rekenblad2[[#This Row],[Rekenblad 1]],StaatEGW[[#All],[A1.1]:[C1.2]],40,0), IF(Rekenblad2[[#This Row],[Type gebouw]]=2,HLOOKUP(Rekenblad2[[#This Row],[Rekenblad 1]],StaatPortiek[[#All],[A1]:[C1]],40,0), IF(Rekenblad2[[#This Row],[Type gebouw]]=3,HLOOKUP(Rekenblad2[[#This Row],[Rekenblad 1]],StaatGalerij[[#All],[A1]:[C1]],40,0), "Onbekende fout")))), 500) -> 7000 | G50: =MROUND( IF(Rekenblad2[[#This Row],[Type gebouw]]=0,"Voer type gebouw in", IF(Rekenblad2[[#This Row],[Type gebouw]]=1,HLOOKUP(Rekenblad2[[#This Row],[Rekenblad 1]],StaatEGW[[#All],[A1.1]:[C1.2]],41,0), IF(Rekenblad2[[#This Row],[Type gebouw]]=2,HLOOKUP(Rekenblad2[[#This Row],[Rekenblad 1]],StaatPortiek[[#All],[A1]:[C1]],41,0), IF(Rekenblad2[[#This Row],[Type gebouw]]=3,HLOOKUP(Rekenblad2[[#This Row],[Rekenblad 1]],StaatGalerij[[#All],[A1]:[C1]],41,0), "Onbekende fout")))), 500) -> 5500 | H50: =SUM(Rekenblad2[[#This Row],[Kosten warmteleverancier]:[Kosten woningeigenaar]]) -> 12500 | I50: =IF(Rekenblad2[[#This Row],[Type gebouw]]=1,HLOOKUP(Rekenblad2[[#This Row],[Rekenblad 1]],KwaliteitEGW[#All],2,0), IF(Rekenblad2[[#This Row],[Type gebouw]]=2,HLOOKUP(Rekenblad2[[#This Row],[Rekenblad 1]],KwaliteitPortiek[#All],2,0), IF(Rekenblad2[[#This Row],[Type gebouw]]=3,HLOOKUP(Rekenblad2[[#This Row],[Rekenblad 1]],KwaliteitGalerij[#All],2,0)))) -> 4 | J50: =IF(Rekenblad2[[#This Row],[Type gebouw]]=1,HLOOKUP(Rekenblad2[[#This Row],[Rekenblad 1]],KwaliteitEGW[#All],6,0), IF(Rekenblad2[[#This Row],[Type gebouw]]=2,HLOOKUP(Rekenblad2[[#This Row],[Rekenblad 1]],KwaliteitPortiek[#All],5,0), IF(Rekenblad2[[#This Row],[Type gebouw]]=3,HLOOKUP(Rekenblad2[[#This Row],[Rekenblad 1]],KwaliteitGalerij[#All],5,0)))) -> 2 | K50: =IF(Rekenblad2[[#This Row],[Type gebouw]]=1,HLOOKUP(Rekenblad2[[#This Row],[Rekenblad 1]],KwaliteitEGW[#All],10,0), IF(Rekenblad2[[#This Row],[Type gebouw]]=2,HLOOKUP(Rekenblad2[[#This Row],[Rekenblad 1]],KwaliteitPortiek[#All],9,0), IF(Rekenblad2[[#This Row],[Type gebouw]]=3,HLOOKUP(Rekenblad2[[#This Row],[Rekenblad 1]],KwaliteitGalerij[#All],9,0)))) -> 2 | L50: =IF(Rekenblad2[[#This Row],[Type gebouw]]=1,HLOOKUP(Rekenblad2[[#This Row],[Rekenblad 1]],KwaliteitEGW[#All],14,0), IF(Rekenblad2[[#This Row],[Type gebouw]]=2,HLOOKUP(Rekenblad2[[#This Row],[Rekenblad 1]],KwaliteitPortiek[#All],13,0), IF(Rekenblad2[[#This Row],[Type gebouw]]=3,HLOOKUP(Rekenblad2[[#This Row],[Rekenblad 1]],KwaliteitGalerij[#All],13,0)))) -> 2
C51: C1.1 | D51: 1 | E51: De individuele afleverset buiten de woning | F51: =MROUND( IF(Rekenblad2[[#This Row],[Type gebouw]]=0,"Voer type gebouw in", IF(Rekenblad2[[#This Row],[Type gebouw]]=1,HLOOKUP(Rekenblad2[[#This Row],[Rekenblad 1]],StaatEGW[[#All],[A1.1]:[C1.2]],40,0), IF(Rekenblad2[[#This Row],[Type gebouw]]=2,HLOOKUP(Rekenblad2[[#This Row],[Rekenblad 1]],StaatPortiek[[#All],[A1]:[C1]],40,0), IF(Rekenblad2[[#This Row],[Type gebouw]]=3,HLOOKUP(Rekenblad2[[#This Row],[Rekenblad 1]],StaatGalerij[[#All],[A1]:[C1]],40,0), "Onbekende fout")))), 500) -> 3500 | G51: =MROUND( IF(Rekenblad2[[#This Row],[Type gebouw]]=0,"Voer type gebouw in", IF(Rekenblad2[[#This Row],[Type gebouw]]=1,HLOOKUP(Rekenblad2[[#This Row],[Rekenblad 1]],StaatEGW[[#All],[A1.1]:[C1.2]],41,0), IF(Rekenblad2[[#This Row],[Type gebouw]]=2,HLOOKUP(Rekenblad2[[#This Row],[Rekenblad 1]],StaatPortiek[[#All],[A1]:[C1]],41,0), IF(Rekenblad2[[#This Row],[Type gebouw]]=3,HLOOKUP(Rekenblad2[[#This Row],[Rekenblad 1]],StaatGalerij[[#All],[A1]:[C1]],41,0), "Onbekende fout")))), 500) -> 4500 | H51: =SUM(Rekenblad2[[#This Row],[Kosten warmteleverancier]:[Kosten woningeigenaar]]) -> 8000 | I51: =IF(Rekenblad2[[#This Row],[Type gebouw]]=1,HLOOKUP(Rekenblad2[[#This Row],[Rekenblad 1]],KwaliteitEGW[#All],2,0), IF(Rekenblad2[[#This Row],[Type gebouw]]=2,HLOOKUP(Rekenblad2[[#This Row],[Rekenblad 1]],KwaliteitPortiek[#All],2,0), IF(Rekenblad2[[#This Row],[Type gebouw]]=3,HLOOKUP(Rekenblad2[[#This Row],[Rekenblad 1]],KwaliteitGalerij[#All],2,0)))) -> 4 | J51: =IF(Rekenblad2[[#This Row],[Type gebouw]]=1,HLOOKUP(Rekenblad2[[#This Row],[Rekenblad 1]],KwaliteitEGW[#All],6,0), IF(Rekenblad2[[#This Row],[Type gebouw]]=2,HLOOKUP(Rekenblad2[[#This Row],[Rekenblad 1]],KwaliteitPortiek[#All],5,0), IF(Rekenblad2[[#This Row],[Type gebouw]]=3,HLOOKUP(Rekenblad2[[#This Row],[Rekenblad 1]],KwaliteitGalerij[#All],5,0)))) -> 2 | K51: =IF(Rekenblad2[[#This Row],[Type gebouw]]=1,HLOOKUP(Rekenblad2[[#This Row],[Rekenblad 1]],KwaliteitEGW[#All],10,0), IF(Rekenblad2[[#This Row],[Type gebouw]]=2,HLOOKUP(Rekenblad2[[#This Row],[Rekenblad 1]],KwaliteitPortiek[#All],9,0), IF(Rekenblad2[[#This Row],[Type gebouw]]=3,HLOOKUP(Rekenblad2[[#This Row],[Rekenblad 1]],KwaliteitGalerij[#All],9,0)))) -> 5 | L51: =IF(Rekenblad2[[#This Row],[Type gebouw]]=1,HLOOKUP(Rekenblad2[[#This Row],[Rekenblad 1]],KwaliteitEGW[#All],14,0), IF(Rekenblad2[[#This Row],[Type gebouw]]=2,HLOOKUP(Rekenblad2[[#This Row],[Rekenblad 1]],KwaliteitPortiek[#All],13,0), IF(Rekenblad2[[#This Row],[Type gebouw]]=3,HLOOKUP(Rekenblad2[[#This Row],[Rekenblad 1]],KwaliteitGalerij[#All],13,0)))) -> 3
C52: C1.2 | D52: 1 | E52: De individuele afleverset buiten de woning | F52: =MROUND( IF(Rekenblad2[[#This Row],[Type gebouw]]=0,"Voer type gebouw in", IF(Rekenblad2[[#This Row],[Type gebouw]]=1,HLOOKUP(Rekenblad2[[#This Row],[Rekenblad 1]],StaatEGW[[#All],[A1.1]:[C1.2]],40,0), IF(Rekenblad2[[#This Row],[Type gebouw]]=2,HLOOKUP(Rekenblad2[[#This Row],[Rekenblad 1]],StaatPortiek[[#All],[A1]:[C1]],40,0), IF(Rekenblad2[[#This Row],[Type gebouw]]=3,HLOOKUP(Rekenblad2[[#This Row],[Rekenblad 1]],StaatGalerij[[#All],[A1]:[C1]],40,0), "Onbekende fout")))), 500) -> 3500 | G52: =MROUND( IF(Rekenblad2[[#This Row],[Type gebouw]]=0,"Voer type gebouw in", IF(Rekenblad2[[#This Row],[Type gebouw]]=1,HLOOKUP(Rekenblad2[[#This Row],[Rekenblad 1]],StaatEGW[[#All],[A1.1]:[C1.2]],41,0), IF(Rekenblad2[[#This Row],[Type gebouw]]=2,HLOOKUP(Rekenblad2[[#This Row],[Rekenblad 1]],StaatPortiek[[#All],[A1]:[C1]],41,0), IF(Rekenblad2[[#This Row],[Type gebouw]]=3,HLOOKUP(Rekenblad2[[#This Row],[Rekenblad 1]],StaatGalerij[[#All],[A1]:[C1]],41,0), "Onbekende fout")))), 500) -> 5500 | H52: =SUM(Rekenblad2[[#This Row],[Kosten warmteleverancier]:[Kosten woningeigenaar]]) -> 9000 | I52: =IF(Rekenblad2[[#This Row],[Type gebouw]]=1,HLOOKUP(Rekenblad2[[#This Row],[Rekenblad 1]],KwaliteitEGW[#All],2,0), IF(Rekenblad2[[#This Row],[Type gebouw]]=2,HLOOKUP(Rekenblad2[[#This Row],[Rekenblad 1]],KwaliteitPortiek[#All],2,0), IF(Rekenblad2[[#This Row],[Type gebouw]]=3,HLOOKUP(Rekenblad2[[#This Row],[Rekenblad 1]],KwaliteitGalerij[#All],2,0)))) -> 4 | J52: =IF(Rekenblad2[[#This Row],[Type gebouw]]=1,HLOOKUP(Rekenblad2[[#This Row],[Rekenblad 1]],KwaliteitEGW[#All],6,0), IF(Rekenblad2[[#This Row],[Type gebouw]]=2,HLOOKUP(Rekenblad2[[#This Row],[Rekenblad 1]],KwaliteitPortiek[#All],5,0), IF(Rekenblad2[[#This Row],[Type gebouw]]=3,HLOOKUP(Rekenblad2[[#This Row],[Rekenblad 1]],KwaliteitGalerij[#All],5,0)))) -> 1 | K52: =IF(Rekenblad2[[#This Row],[Type gebouw]]=1,HLOOKUP(Rekenblad2[[#This Row],[Rekenblad 1]],KwaliteitEGW[#All],10,0), IF(Rekenblad2[[#This Row],[Type gebouw]]=2,HLOOKUP(Rekenblad2[[#This Row],[Rekenblad 1]],KwaliteitPortiek[#All],9,0), IF(Rekenblad2[[#This Row],[Type gebouw]]=3,HLOOKUP(Rekenblad2[[#This Row],[Rekenblad 1]],KwaliteitGalerij[#All],9,0)))) -> 2 | L52: =IF(Rekenblad2[[#This Row],[Type gebouw]]=1,HLOOKUP(Rekenblad2[[#This Row],[Rekenblad 1]],KwaliteitEGW[#All],14,0), IF(Rekenblad2[[#This Row],[Type gebouw]]=2,HLOOKUP(Rekenblad2[[#This Row],[Rekenblad 1]],KwaliteitPortiek[#All],13,0), IF(Rekenblad2[[#This Row],[Type gebouw]]=3,HLOOKUP(Rekenblad2[[#This Row],[Rekenblad 1]],KwaliteitGalerij[#All],13,0)))) -> 3
C53: A1 | D53: 2 | E53: Iedere woning afzonderlijk rechtstreeks van buiten cq portiek cq voor de galerijen met afleverset in of nabij de entreehal in het bouwblok zelf | F53: =MROUND( IF(Rekenblad2[[#This Row],[Type gebouw]]=0,"Voer type gebouw in", IF(Rekenblad2[[#This Row],[Type gebouw]]=1,HLOOKUP(Rekenblad2[[#This Row],[Rekenblad 1]],StaatEGW[[#All],[A1.1]:[C1.2]],40,0), IF(Rekenblad2[[#This Row],[Type gebouw]]=2,HLOOKUP(Rekenblad2[[#This Row],[Rekenblad 1]],StaatPortiek[[#All],[A1]:[C1]],40,0), IF(Rekenblad2[[#This Row],[Type gebouw]]=3,HLOOKUP(Rekenblad2[[#This Row],[Rekenblad 1]],StaatGalerij[[#All],[A1]:[C1]],40,0), "Onbekende fout")))), 500) -> 1500 | G53: =MROUND( IF(Rekenblad2[[#This Row],[Type gebouw]]=0,"Voer type gebouw in", IF(Rekenblad2[[#This Row],[Type gebouw]]=1,HLOOKUP(Rekenblad2[[#This Row],[Rekenblad 1]],StaatEGW[[#All],[A1.1]:[C1.2]],41,0), IF(Rekenblad2[[#This Row],[Type gebouw]]=2,HLOOKUP(Rekenblad2[[#This Row],[Rekenblad 1]],StaatPortiek[[#All],[A1]:[C1]],41,0), IF(Rekenblad2[[#This Row],[Type gebouw]]=3,HLOOKUP(Rekenblad2[[#This Row],[Rekenblad 1]],StaatGalerij[[#All],[A1]:[C1]],41,0), "Onbekende fout")))), 500) -> 5500 | H53: =SUM(Rekenblad2[[#This Row],[Kosten warmteleverancier]:[Kosten woningeigenaar]]) -> 7000 | I53: =IF(Rekenblad2[[#This Row],[Type gebouw]]=1,HLOOKUP(Rekenblad2[[#This Row],[Rekenblad 1]],KwaliteitEGW[#All],2,0), IF(Rekenblad2[[#This Row],[Type gebouw]]=2,HLOOKUP(Rekenblad2[[#This Row],[Rekenblad 1]],KwaliteitPortiek[#All],2,0), IF(Rekenblad2[[#This Row],[Type gebouw]]=3,HLOOKUP(Rekenblad2[[#This Row],[Rekenblad 1]],KwaliteitGalerij[#All],2,0)))) -> 3 | J53: =IF(Rekenblad2[[#This Row],[Type gebouw]]=1,HLOOKUP(Rekenblad2[[#This Row],[Rekenblad 1]],KwaliteitEGW[#All],6,0), IF(Rekenblad2[[#This Row],[Type gebouw]]=2,HLOOKUP(Rekenblad2[[#This Row],[Rekenblad 1]],KwaliteitPortiek[#All],5,0), IF(Rekenblad2[[#This Row],[Type gebouw]]=3,HLOOKUP(Rekenblad2[[#This Row],[Rekenblad 1]],KwaliteitGalerij[#All],5,0)))) -> 2 | K53: =IF(Rekenblad2[[#This Row],[Type gebouw]]=1,HLOOKUP(Rekenblad2[[#This Row],[Rekenblad 1]],KwaliteitEGW[#All],10,0), IF(Rekenblad2[[#This Row],[Type gebouw]]=2,HLOOKUP(Rekenblad2[[#This Row],[Rekenblad 1]],KwaliteitPortiek[#All],9,0), IF(Rekenblad2[[#This Row],[Type gebouw]]=3,HLOOKUP(Rekenblad2[[#This Row],[Rekenblad 1]],KwaliteitGalerij[#All],9,0)))) -> 2 | L53: =IF(Rekenblad2[[#This Row],[Type gebouw]]=1,HLOOKUP(Rekenblad2[[#This Row],[Rekenblad 1]],KwaliteitEGW[#All],14,0), IF(Rekenblad2[[#This Row],[Type gebouw]]=2,HLOOKUP(Rekenblad2[[#This Row],[Rekenblad 1]],KwaliteitPortiek[#All],13,0), IF(Rekenblad2[[#This Row],[Type gebouw]]=3,HLOOKUP(Rekenblad2[[#This Row],[Rekenblad 1]],KwaliteitGalerij[#All],13,0)))) -> 3
C54: A2 | D54: 2 | E54: Per 2 woningen rechtstreeks van buiten cq portiek cq voor de galerijen met afleverset in of nabij de entreehal in het bouwblok zelf | F54: =MROUND( IF(Rekenblad2[[#This Row],[Type gebouw]]=0,"Voer type gebouw in", IF(Rekenblad2[[#This Row],[Type gebouw]]=1,HLOOKUP(Rekenblad2[[#This Row],[Rekenblad 1]],StaatEGW[[#All],[A1.1]:[C1.2]],40,0), IF(Rekenblad2[[#This Row],[Type gebouw]]=2,HLOOKUP(Rekenblad2[[#This Row],[Rekenblad 1]],StaatPortiek[[#All],[A1]:[C1]],40,0), IF(Rekenblad2[[#This Row],[Type gebouw]]=3,HLOOKUP(Rekenblad2[[#This Row],[Rekenblad 1]],StaatGalerij[[#All],[A1]:[C1]],40,0), "Onbekende fout")))), 500) -> 1500 | G54: =MROUND( IF(Rekenblad2[[#This Row],[Type gebouw]]=0,"Voer type gebouw in", IF(Rekenblad2[[#This Row],[Type gebouw]]=1,HLOOKUP(Rekenblad2[[#This Row],[Rekenblad 1]],StaatEGW[[#All],[A1.1]:[C1.2]],41,0), IF(Rekenblad2[[#This Row],[Type gebouw]]=2,HLOOKUP(Rekenblad2[[#This Row],[Rekenblad 1]],StaatPortiek[[#All],[A1]:[C1]],41,0), IF(Rekenblad2[[#This Row],[Type gebouw]]=3,HLOOKUP(Rekenblad2[[#This Row],[Rekenblad 1]],StaatGalerij[[#All],[A1]:[C1]],41,0), "Onbekende fout")))), 500) -> 5500 | H54: =SUM(Rekenblad2[[#This Row],[Kosten warmteleverancier]:[Kosten woningeigenaar]]) -> 7000 | I54: =IF(Rekenblad2[[#This Row],[Type gebouw]]=1,HLOOKUP(Rekenblad2[[#This Row],[Rekenblad 1]],KwaliteitEGW[#All],2,0), IF(Rekenblad2[[#This Row],[Type gebouw]]=2,HLOOKUP(Rekenblad2[[#This Row],[Rekenblad 1]],KwaliteitPortiek[#All],2,0), IF(Rekenblad2[[#This Row],[Type gebouw]]=3,HLOOKUP(Rekenblad2[[#This Row],[Rekenblad 1]],KwaliteitGalerij[#All],2,0)))) -> 3 | J54: =IF(Rekenblad2[[#This Row],[Type gebouw]]=1,HLOOKUP(Rekenblad2[[#This Row],[Rekenblad 1]],KwaliteitEGW[#All],6,0), IF(Rekenblad2[[#This Row],[Type gebouw]]=2,HLOOKUP(Rekenblad2[[#This Row],[Rekenblad 1]],KwaliteitPortiek[#All],5,0), IF(Rekenblad2[[#This Row],[Type gebouw]]=3,HLOOKUP(Rekenblad2[[#This Row],[Rekenblad 1]],KwaliteitGalerij[#All],5,0)))) -> 2 | K54: =IF(Rekenblad2[[#This Row],[Type gebouw]]=1,HLOOKUP(Rekenblad2[[#This Row],[Rekenblad 1]],KwaliteitEGW[#All],10,0), IF(Rekenblad2[[#This Row],[Type gebouw]]=2,HLOOKUP(Rekenblad2[[#This Row],[Rekenblad 1]],KwaliteitPortiek[#All],9,0), IF(Rekenblad2[[#This Row],[Type gebouw]]=3,HLOOKUP(Rekenblad2[[#This Row],[Rekenblad 1]],KwaliteitGalerij[#All],9,0)))) -> 2 | L54: =IF(Rekenblad2[[#This Row],[Type gebouw]]=1,HLOOKUP(Rekenblad2[[#This Row],[Rekenblad 1]],KwaliteitEGW[#All],14,0), IF(Rekenblad2[[#This Row],[Type gebouw]]=2,HLOOKUP(Rekenblad2[[#This Row],[Rekenblad 1]],KwaliteitPortiek[#All],13,0), IF(Rekenblad2[[#This Row],[Type gebouw]]=3,HLOOKUP(Rekenblad2[[#This Row],[Rekenblad 1]],KwaliteitGalerij[#All],13,0)))) -> 3
C55: A3 | D55: 2 | E55: Per woning via verticale leidingen op voor- of achtergevel naar afleverset | F55: =MROUND( IF(Rekenblad2[[#This Row],[Type gebouw]]=0,"Voer type gebouw in", IF(Rekenblad2[[#This Row],[Type gebouw]]=1,HLOOKUP(Rekenblad2[[#This Row],[Rekenblad 1]],StaatEGW[[#All],[A1.1]:[C1.2]],40,0), IF(Rekenblad2[[#This Row],[Type gebouw]]=2,HLOOKUP(Rekenblad2[[#This Row],[Rekenblad 1]],StaatPortiek[[#All],[A1]:[C1]],40,0), IF(Rekenblad2[[#This Row],[Type gebouw]]=3,HLOOKUP(Rekenblad2[[#This Row],[Rekenblad 1]],StaatGalerij[[#All],[A1]:[C1]],40,0), "Onbekende fout")))), 500) -> 2000 | G55: =MROUND( IF(Rekenblad2[[#This Row],[Type gebouw]]=0,"Voer type gebouw in", IF(Rekenblad2[[#This Row],[Type gebouw]]=1,HLOOKUP(Rekenblad2[[#This Row],[Rekenblad 1]],StaatEGW[[#All],[A1.1]:[C1.2]],41,0), IF(Rekenblad2[[#This Row],[Type gebouw]]=2,HLOOKUP(Rekenblad2[[#This Row],[Rekenblad 1]],StaatPortiek[[#All],[A1]:[C1]],41,0), IF(Rekenblad2[[#This Row],[Type gebouw]]=3,HLOOKUP(Rekenblad2[[#This Row],[Rekenblad 1]],StaatGalerij[[#All],[A1]:[C1]],41,0), "Onbekende fout")))), 500) -> 5500 | H55: =SUM(Rekenblad2[[#This Row],[Kosten warmteleverancier]:[Kosten woningeigenaar]]) -> 7500 | I55: =IF(Rekenblad2[[#This Row],[Type gebouw]]=1,HLOOKUP(Rekenblad2[[#This Row],[Rekenblad 1]],KwaliteitEGW[#All],2,0), IF(Rekenblad2[[#This Row],[Type gebouw]]=2,HLOOKUP(Rekenblad2[[#This Row],[Rekenblad 1]],KwaliteitPortiek[#All],2,0), IF(Rekenblad2[[#This Row],[Type gebouw]]=3,HLOOKUP(Rekenblad2[[#This Row],[Rekenblad 1]],KwaliteitGalerij[#All],2,0)))) -> 2 | J55: =IF(Rekenblad2[[#This Row],[Type gebouw]]=1,HLOOKUP(Rekenblad2[[#This Row],[Rekenblad 1]],KwaliteitEGW[#All],6,0), IF(Rekenblad2[[#This Row],[Type gebouw]]=2,HLOOKUP(Rekenblad2[[#This Row],[Rekenblad 1]],KwaliteitPortiek[#All],5,0), IF(Rekenblad2[[#This Row],[Type gebouw]]=3,HLOOKUP(Rekenblad2[[#This Row],[Rekenblad 1]],KwaliteitGalerij[#All],5,0)))) -> 2 | K55: =IF(Rekenblad2[[#This Row],[Type gebouw]]=1,HLOOKUP(Rekenblad2[[#This Row],[Rekenblad 1]],KwaliteitEGW[#All],10,0), IF(Rekenblad2[[#This Row],[Type gebouw]]=2,HLOOKUP(Rekenblad2[[#This Row],[Rekenblad 1]],KwaliteitPortiek[#All],9,0), IF(Rekenblad2[[#This Row],[Type gebouw]]=3,HLOOKUP(Rekenblad2[[#This Row],[Rekenblad 1]],KwaliteitGalerij[#All],9,0)))) -> 2 | L55: =IF(Rekenblad2[[#This Row],[Type gebouw]]=1,HLOOKUP(Rekenblad2[[#This Row],[Rekenblad 1]],KwaliteitEGW[#All],14,0), IF(Rekenblad2[[#This Row],[Type gebouw]]=2,HLOOKUP(Rekenblad2[[#This Row],[Rekenblad 1]],KwaliteitPortiek[#All],13,0), IF(Rekenblad2[[#This Row],[Type gebouw]]=3,HLOOKUP(Rekenblad2[[#This Row],[Rekenblad 1]],KwaliteitGalerij[#All],13,0)))) -> 2
C56: A4 | D56: 2 | E56: Per 2 woningen via verticale leidingen op voor- of achtergevel naar afleverset | F56: =MROUND( IF(Rekenblad2[[#This Row],[Type gebouw]]=0,"Voer type gebouw in", IF(Rekenblad2[[#This Row],[Type gebouw]]=1,HLOOKUP(Rekenblad2[[#This Row],[Rekenblad 1]],StaatEGW[[#All],[A1.1]:[C1.2]],40,0), IF(Rekenblad2[[#This Row],[Type gebouw]]=2,HLOOKUP(Rekenblad2[[#This Row],[Rekenblad 1]],StaatPortiek[[#All],[A1]:[C1]],40,0), IF(Rekenblad2[[#This Row],[Type gebouw]]=3,HLOOKUP(Rekenblad2[[#This Row],[Rekenblad 1]],StaatGalerij[[#All],[A1]:[C1]],40,0), "Onbekende fout")))), 500) -> 2000 | G56: =MROUND( IF(Rekenblad2[[#This Row],[Type gebouw]]=0,"Voer type gebouw in", IF(Rekenblad2[[#This Row],[Type gebouw]]=1,HLOOKUP(Rekenblad2[[#This Row],[Rekenblad 1]],StaatEGW[[#All],[A1.1]:[C1.2]],41,0), IF(Rekenblad2[[#This Row],[Type gebouw]]=2,HLOOKUP(Rekenblad2[[#This Row],[Rekenblad 1]],StaatPortiek[[#All],[A1]:[C1]],41,0), IF(Rekenblad2[[#This Row],[Type gebouw]]=3,HLOOKUP(Rekenblad2[[#This Row],[Rekenblad 1]],StaatGalerij[[#All],[A1]:[C1]],41,0), "Onbekende fout")))), 500) -> 5500 | H56: =SUM(Rekenblad2[[#This Row],[Kosten warmteleverancier]:[Kosten woningeigenaar]]) -> 7500 | I56: =IF(Rekenblad2[[#This Row],[Type gebouw]]=1,HLOOKUP(Rekenblad2[[#This Row],[Rekenblad 1]],KwaliteitEGW[#All],2,0), IF(Rekenblad2[[#This Row],[Type gebouw]]=2,HLOOKUP(Rekenblad2[[#This Row],[Rekenblad 1]],KwaliteitPortiek[#All],2,0), IF(Rekenblad2[[#This Row],[Type gebouw]]=3,HLOOKUP(Rekenblad2[[#This Row],[Rekenblad 1]],KwaliteitGalerij[#All],2,0)))) -> 2 | J56: =IF(Rekenblad2[[#This Row],[Type gebouw]]=1,HLOOKUP(Rekenblad2[[#This Row],[Rekenblad 1]],KwaliteitEGW[#All],6,0), IF(Rekenblad2[[#This Row],[Type gebouw]]=2,HLOOKUP(Rekenblad2[[#This Row],[Rekenblad 1]],KwaliteitPortiek[#All],5,0), IF(Rekenblad2[[#This Row],[Type gebouw]]=3,HLOOKUP(Rekenblad2[[#This Row],[Rekenblad 1]],KwaliteitGalerij[#All],5,0)))) -> 2 | K56: =IF(Rekenblad2[[#This Row],[Type gebouw]]=1,HLOOKUP(Rekenblad2[[#This Row],[Rekenblad 1]],KwaliteitEGW[#All],10,0), IF(Rekenblad2[[#This Row],[Type gebouw]]=2,HLOOKUP(Rekenblad2[[#This Row],[Rekenblad 1]],KwaliteitPortiek[#All],9,0), IF(Rekenblad2[[#This Row],[Type gebouw]]=3,HLOOKUP(Rekenblad2[[#This Row],[Rekenblad 1]],KwaliteitGalerij[#All],9,0)))) -> 2 | L56: =IF(Rekenblad2[[#This Row],[Type gebouw]]=1,HLOOKUP(Rekenblad2[[#This Row],[Rekenblad 1]],KwaliteitEGW[#All],14,0), IF(Rekenblad2[[#This Row],[Type gebouw]]=2,HLOOKUP(Rekenblad2[[#This Row],[Rekenblad 1]],KwaliteitPortiek[#All],13,0), IF(Rekenblad2[[#This Row],[Type gebouw]]=3,HLOOKUP(Rekenblad2[[#This Row],[Rekenblad 1]],KwaliteitGalerij[#All],13,0)))) -> 2
C57: B1 | D57: 2 | E57: In de lengterichting van het volledige blok door de kapruimte | F57: =MROUND( IF(Rekenblad2[[#This Row],[Type gebouw]]=0,"Voer type gebouw in", IF(Rekenblad2[[#This Row],[Type gebouw]]=1,HLOOKUP(Rekenblad2[[#This Row],[Rekenblad 1]],StaatEGW[[#All],[A1.1]:[C1.2]],40,0), IF(Rekenblad2[[#This Row],[Type gebouw]]=2,HLOOKUP(Rekenblad2[[#This Row],[Rekenblad 1]],StaatPortiek[[#All],[A1]:[C1]],40,0), IF(Rekenblad2[[#This Row],[Type gebouw]]=3,HLOOKUP(Rekenblad2[[#This Row],[Rekenblad 1]],StaatGalerij[[#All],[A1]:[C1]],40,0), "Onbekende fout")))), 500) -> 3000 | G57: =MROUND( IF(Rekenblad2[[#This Row],[Type gebouw]]=0,"Voer type gebouw in", IF(Rekenblad2[[#This Row],[Type gebouw]]=1,HLOOKUP(Rekenblad2[[#This Row],[Rekenblad 1]],StaatEGW[[#All],[A1.1]:[C1.2]],41,0), IF(Rekenblad2[[#This Row],[Type gebouw]]=2,HLOOKUP(Rekenblad2[[#This Row],[Rekenblad 1]],StaatPortiek[[#All],[A1]:[C1]],41,0), IF(Rekenblad2[[#This Row],[Type gebouw]]=3,HLOOKUP(Rekenblad2[[#This Row],[Rekenblad 1]],StaatGalerij[[#All],[A1]:[C1]],41,0), "Onbekende fout")))), 500) -> 4500 | H57: =SUM(Rekenblad2[[#This Row],[Kosten warmteleverancier]:[Kosten woningeigenaar]]) -> 7500 | I57: =IF(Rekenblad2[[#This Row],[Type gebouw]]=1,HLOOKUP(Rekenblad2[[#This Row],[Rekenblad 1]],KwaliteitEGW[#All],2,0), IF(Rekenblad2[[#This Row],[Type gebouw]]=2,HLOOKUP(Rekenblad2[[#This Row],[Rekenblad 1]],KwaliteitPortiek[#All],2,0), IF(Rekenblad2[[#This Row],[Type gebouw]]=3,HLOOKUP(Rekenblad2[[#This Row],[Rekenblad 1]],KwaliteitGalerij[#All],2,0)))) -> 4 | J57: =IF(Rekenblad2[[#This Row],[Type gebouw]]=1,HLOOKUP(Rekenblad2[[#This Row],[Rekenblad 1]],KwaliteitEGW[#All],6,0), IF(Rekenblad2[[#This Row],[Type gebouw]]=2,HLOOKUP(Rekenblad2[[#This Row],[Rekenblad 1]],KwaliteitPortiek[#All],5,0), IF(Rekenblad2[[#This Row],[Type gebouw]]=3,HLOOKUP(Rekenblad2[[#This Row],[Rekenblad 1]],KwaliteitGalerij[#All],5,0)))) -> 3 | K57: =IF(Rekenblad2[[#This Row],[Type gebouw]]=1,HLOOKUP(Rekenblad2[[#This Row],[Rekenblad 1]],KwaliteitEGW[#All],10,0), IF(Rekenblad2[[#This Row],[Type gebouw]]=2,HLOOKUP(Rekenblad2[[#This Row],[Rekenblad 1]],KwaliteitPortiek[#All],9,0), IF(Rekenblad2[[#This Row],[Type gebouw]]=3,HLOOKUP(Rekenblad2[[#This Row],[Rekenblad 1]],KwaliteitGalerij[#All],9,0)))) -> 4 | L57: =IF(Rekenblad2[[#This Row],[Type gebouw]]=1,HLOOKUP(Rekenblad2[[#This Row],[Rekenblad 1]],KwaliteitEGW[#All],14,0), IF(Rekenblad2[[#This Row],[Type gebouw]]=2,HLOOKUP(Rekenblad2[[#This Row],[Rekenblad 1]],KwaliteitPortiek[#All],13,0), IF(Rekenblad2[[#This Row],[Type gebouw]]=3,HLOOKUP(Rekenblad2[[#This Row],[Rekenblad 1]],KwaliteitGalerij[#All],13,0)))) -> 2
C58: B2 | D58: 2 | E58: In de lengterichting van het volledige blok over de gevel | F58: =MROUND( IF(Rekenblad2[[#This Row],[Type gebouw]]=0,"Voer type gebouw in", IF(Rekenblad2[[#This Row],[Type gebouw]]=1,HLOOKUP(Rekenblad2[[#This Row],[Rekenblad 1]],StaatEGW[[#All],[A1.1]:[C1.2]],40,0), IF(Rekenblad2[[#This Row],[Type gebouw]]=2,HLOOKUP(Rekenblad2[[#This Row],[Rekenblad 1]],StaatPortiek[[#All],[A1]:[C1]],40,0), IF(Rekenblad2[[#This Row],[Type gebouw]]=3,HLOOKUP(Rekenblad2[[#This Row],[Rekenblad 1]],StaatGalerij[[#All],[A1]:[C1]],40,0), "Onbekende fout")))), 500) -> 2000 | G58: =MROUND( IF(Rekenblad2[[#This Row],[Type gebouw]]=0,"Voer type gebouw in", IF(Rekenblad2[[#This Row],[Type gebouw]]=1,HLOOKUP(Rekenblad2[[#This Row],[Rekenblad 1]],StaatEGW[[#All],[A1.1]:[C1.2]],41,0), IF(Rekenblad2[[#This Row],[Type gebouw]]=2,HLOOKUP(Rekenblad2[[#This Row],[Rekenblad 1]],StaatPortiek[[#All],[A1]:[C1]],41,0), IF(Rekenblad2[[#This Row],[Type gebouw]]=3,HLOOKUP(Rekenblad2[[#This Row],[Rekenblad 1]],StaatGalerij[[#All],[A1]:[C1]],41,0), "Onbekende fout")))), 500) -> 5500 | H58: =SUM(Rekenblad2[[#This Row],[Kosten warmteleverancier]:[Kosten woningeigenaar]]) -> 7500 | I58: =IF(Rekenblad2[[#This Row],[Type gebouw]]=1,HLOOKUP(Rekenblad2[[#This Row],[Rekenblad 1]],KwaliteitEGW[#All],2,0), IF(Rekenblad2[[#This Row],[Type gebouw]]=2,HLOOKUP(Rekenblad2[[#This Row],[Rekenblad 1]],KwaliteitPortiek[#All],2,0), IF(Rekenblad2[[#This Row],[Type gebouw]]=3,HLOOKUP(Rekenblad2[[#This Row],[Rekenblad 1]],KwaliteitGalerij[#All],2,0)))) -> 2 | J58: =IF(Rekenblad2[[#This Row],[Type gebouw]]=1,HLOOKUP(Rekenblad2[[#This Row],[Rekenblad 1]],KwaliteitEGW[#All],6,0), IF(Rekenblad2[[#This Row],[Type gebouw]]=2,HLOOKUP(Rekenblad2[[#This Row],[Rekenblad 1]],KwaliteitPortiek[#All],5,0), IF(Rekenblad2[[#This Row],[Type gebouw]]=3,HLOOKUP(Rekenblad2[[#This Row],[Rekenblad 1]],KwaliteitGalerij[#All],5,0)))) -> 3 | K58: =IF(Rekenblad2[[#This Row],[Type gebouw]]=1,HLOOKUP(Rekenblad2[[#This Row],[Rekenblad 1]],KwaliteitEGW[#All],10,0), IF(Rekenblad2[[#This Row],[Type gebouw]]=2,HLOOKUP(Rekenblad2[[#This Row],[Rekenblad 1]],KwaliteitPortiek[#All],9,0), IF(Rekenblad2[[#This Row],[Type gebouw]]=3,HLOOKUP(Rekenblad2[[#This Row],[Rekenblad 1]],KwaliteitGalerij[#All],9,0)))) -> 2 | L58: =IF(Rekenblad2[[#This Row],[Type gebouw]]=1,HLOOKUP(Rekenblad2[[#This Row],[Rekenblad 1]],KwaliteitEGW[#All],14,0), IF(Rekenblad2[[#This Row],[Type gebouw]]=2,HLOOKUP(Rekenblad2[[#This Row],[Rekenblad 1]],KwaliteitPortiek[#All],13,0), IF(Rekenblad2[[#This Row],[Type gebouw]]=3,HLOOKUP(Rekenblad2[[#This Row],[Rekenblad 1]],KwaliteitGalerij[#All],13,0)))) -> 1
C59: B3 | D59: 2 | E59: In de lengterichting van het volledige blok over het dak | F59: =MROUND( IF(Rekenblad2[[#This Row],[Type gebouw]]=0,"Voer type gebouw in", IF(Rekenblad2[[#This Row],[Type gebouw]]=1,HLOOKUP(Rekenblad2[[#This Row],[Rekenblad 1]],StaatEGW[[#All],[A1.1]:[C1.2]],40,0), IF(Rekenblad2[[#This Row],[Type gebouw]]=2,HLOOKUP(Rekenblad2[[#This Row],[Rekenblad 1]],StaatPortiek[[#All],[A1]:[C1]],40,0), IF(Rekenblad2[[#This Row],[Type gebouw]]=3,HLOOKUP(Rekenblad2[[#This Row],[Rekenblad 1]],StaatGalerij[[#All],[A1]:[C1]],40,0), "Onbekende fout")))), 500) -> 2000 | G59: =MROUND( IF(Rekenblad2[[#This Row],[Type gebouw]]=0,"Voer type gebouw in", IF(Rekenblad2[[#This Row],[Type gebouw]]=1,HLOOKUP(Rekenblad2[[#This Row],[Rekenblad 1]],StaatEGW[[#All],[A1.1]:[C1.2]],41,0), IF(Rekenblad2[[#This Row],[Type gebouw]]=2,HLOOKUP(Rekenblad2[[#This Row],[Rekenblad 1]],StaatPortiek[[#All],[A1]:[C1]],41,0), IF(Rekenblad2[[#This Row],[Type gebouw]]=3,HLOOKUP(Rekenblad2[[#This Row],[Rekenblad 1]],StaatGalerij[[#All],[A1]:[C1]],41,0), "Onbekende fout")))), 500) -> 4500 | H59: =SUM(Rekenblad2[[#This Row],[Kosten warmteleverancier]:[Kosten woningeigenaar]]) -> 6500 | I59: =IF(Rekenblad2[[#This Row],[Type gebouw]]=1,HLOOKUP(Rekenblad2[[#This Row],[Rekenblad 1]],KwaliteitEGW[#All],2,0), IF(Rekenblad2[[#This Row],[Type gebouw]]=2,HLOOKUP(Rekenblad2[[#This Row],[Rekenblad 1]],KwaliteitPortiek[#All],2,0), IF(Rekenblad2[[#This Row],[Type gebouw]]=3,HLOOKUP(Rekenblad2[[#This Row],[Rekenblad 1]],KwaliteitGalerij[#All],2,0)))) -> 5 | J59: =IF(Rekenblad2[[#This Row],[Type gebouw]]=1,HLOOKUP(Rekenblad2[[#This Row],[Rekenblad 1]],KwaliteitEGW[#All],6,0), IF(Rekenblad2[[#This Row],[Type gebouw]]=2,HLOOKUP(Rekenblad2[[#This Row],[Rekenblad 1]],KwaliteitPortiek[#All],5,0), IF(Rekenblad2[[#This Row],[Type gebouw]]=3,HLOOKUP(Rekenblad2[[#This Row],[Rekenblad 1]],KwaliteitGalerij[#All],5,0)))) -> 3 | K59: =IF(Rekenblad2[[#This Row],[Type gebouw]]=1,HLOOKUP(Rekenblad2[[#This Row],[Rekenblad 1]],KwaliteitEGW[#All],10,0), IF(Rekenblad2[[#This Row],[Type gebouw]]=2,HLOOKUP(Rekenblad2[[#This Row],[Rekenblad 1]],KwaliteitPortiek[#All],9,0), IF(Rekenblad2[[#This Row],[Type gebouw]]=3,HLOOKUP(Rekenblad2[[#This Row],[Rekenblad 1]],KwaliteitGalerij[#All],9,0)))) -> 4 | L59: =IF(Rekenblad2[[#This Row],[Type gebouw]]=1,HLOOKUP(Rekenblad2[[#This Row],[Rekenblad 1]],KwaliteitEGW[#All],14,0), IF(Rekenblad2[[#This Row],[Type gebouw]]=2,HLOOKUP(Rekenblad2[[#This Row],[Rekenblad 1]],KwaliteitPortiek[#All],13,0), IF(Rekenblad2[[#This Row],[Type gebouw]]=3,HLOOKUP(Rekenblad2[[#This Row],[Rekenblad 1]],KwaliteitGalerij[#All],13,0)))) -> 2
C60: B4 | D60: 2 | E60: In de lengterichting van het volledige blok onder de onderste woonlaag door | F60: =MROUND( IF(Rekenblad2[[#This Row],[Type gebouw]]=0,"Voer type gebouw in", IF(Rekenblad2[[#This Row],[Type gebouw]]=1,HLOOKUP(Rekenblad2[[#This Row],[Rekenblad 1]],StaatEGW[[#All],[A1.1]:[C1.2]],40,0), IF(Rekenblad2[[#This Row],[Type gebouw]]=2,HLOOKUP(Rekenblad2[[#This Row],[Rekenblad 1]],StaatPortiek[[#All],[A1]:[C1]],40,0), IF(Rekenblad2[[#This Row],[Type gebouw]]=3,HLOOKUP(Rekenblad2[[#This Row],[Rekenblad 1]],StaatGalerij[[#All],[A1]:[C1]],40,0), "Onbekende fout")))), 500) -> 5000 | G60: =MROUND( IF(Rekenblad2[[#This Row],[Type gebouw]]=0,"Voer type gebouw in", IF(Rekenblad2[[#This Row],[Type gebouw]]=1,HLOOKUP(Rekenblad2[[#This Row],[Rekenblad 1]],StaatEGW[[#All],[A1.1]:[C1.2]],41,0), IF(Rekenblad2[[#This Row],[Type gebouw]]=2,HLOOKUP(Rekenblad2[[#This Row],[Rekenblad 1]],StaatPortiek[[#All],[A1]:[C1]],41,0), IF(Rekenblad2[[#This Row],[Type gebouw]]=3,HLOOKUP(Rekenblad2[[#This Row],[Rekenblad 1]],StaatGalerij[[#All],[A1]:[C1]],41,0), "Onbekende fout")))), 500) -> 4500 | H60: =SUM(Rekenblad2[[#This Row],[Kosten warmteleverancier]:[Kosten woningeigenaar]]) -> 9500 | I60: =IF(Rekenblad2[[#This Row],[Type gebouw]]=1,HLOOKUP(Rekenblad2[[#This Row],[Rekenblad 1]],KwaliteitEGW[#All],2,0), IF(Rekenblad2[[#This Row],[Type gebouw]]=2,HLOOKUP(Rekenblad2[[#This Row],[Rekenblad 1]],KwaliteitPortiek[#All],2,0), IF(Rekenblad2[[#This Row],[Type gebouw]]=3,HLOOKUP(Rekenblad2[[#This Row],[Rekenblad 1]],KwaliteitGalerij[#All],2,0)))) -> 5 | J60: =IF(Rekenblad2[[#This Row],[Type gebouw]]=1,HLOOKUP(Rekenblad2[[#This Row],[Rekenblad 1]],KwaliteitEGW[#All],6,0), IF(Rekenblad2[[#This Row],[Type gebouw]]=2,HLOOKUP(Rekenblad2[[#This Row],[Rekenblad 1]],KwaliteitPortiek[#All],5,0), IF(Rekenblad2[[#This Row],[Type gebouw]]=3,HLOOKUP(Rekenblad2[[#This Row],[Rekenblad 1]],KwaliteitGalerij[#All],5,0)))) -> 2 | K60: =IF(Rekenblad2[[#This Row],[Type gebouw]]=1,HLOOKUP(Rekenblad2[[#This Row],[Rekenblad 1]],KwaliteitEGW[#All],10,0), IF(Rekenblad2[[#This Row],[Type gebouw]]=2,HLOOKUP(Rekenblad2[[#This Row],[Rekenblad 1]],KwaliteitPortiek[#All],9,0), IF(Rekenblad2[[#This Row],[Type gebouw]]=3,HLOOKUP(Rekenblad2[[#This Row],[Rekenblad 1]],KwaliteitGalerij[#All],9,0)))) -> 4 | L60: =IF(Rekenblad2[[#This Row],[Type gebouw]]=1,HLOOKUP(Rekenblad2[[#This Row],[Rekenblad 1]],KwaliteitEGW[#All],14,0), IF(Rekenblad2[[#This Row],[Type gebouw]]=2,HLOOKUP(Rekenblad2[[#This Row],[Rekenblad 1]],KwaliteitPortiek[#All],13,0), IF(Rekenblad2[[#This Row],[Type gebouw]]=3,HLOOKUP(Rekenblad2[[#This Row],[Rekenblad 1]],KwaliteitGalerij[#All],13,0)))) -> 2
C61: C1 | D61: 2 | E61: De individuele afleverset buiten de woning | F61: =MROUND( IF(Rekenblad2[[#This Row],[Type gebouw]]=0,"Voer type gebouw in", IF(Rekenblad2[[#This Row],[Type gebouw]]=1,HLOOKUP(Rekenblad2[[#This Row],[Rekenblad 1]],StaatEGW[[#All],[A1.1]:[C1.2]],40,0), IF(Rekenblad2[[#This Row],[Type gebouw]]=2,HLOOKUP(Rekenblad2[[#This Row],[Rekenblad 1]],StaatPortiek[[#All],[A1]:[C1]],40,0), IF(Rekenblad2[[#This Row],[Type gebouw]]=3,HLOOKUP(Rekenblad2[[#This Row],[Rekenblad 1]],StaatGalerij[[#All],[A1]:[C1]],40,0), "Onbekende fout")))), 500) -> 1500 | G61: =MROUND( IF(Rekenblad2[[#This Row],[Type gebouw]]=0,"Voer type gebouw in", IF(Rekenblad2[[#This Row],[Type gebouw]]=1,HLOOKUP(Rekenblad2[[#This Row],[Rekenblad 1]],StaatEGW[[#All],[A1.1]:[C1.2]],41,0), IF(Rekenblad2[[#This Row],[Type gebouw]]=2,HLOOKUP(Rekenblad2[[#This Row],[Rekenblad 1]],StaatPortiek[[#All],[A1]:[C1]],41,0), IF(Rekenblad2[[#This Row],[Type gebouw]]=3,HLOOKUP(Rekenblad2[[#This Row],[Rekenblad 1]],StaatGalerij[[#All],[A1]:[C1]],41,0), "Onbekende fout")))), 500) -> 5500 | H61: =SUM(Rekenblad2[[#This Row],[Kosten warmteleverancier]:[Kosten woningeigenaar]]) -> 7000 | I61: =IF(Rekenblad2[[#This Row],[Type gebouw]]=1,HLOOKUP(Rekenblad2[[#This Row],[Rekenblad 1]],KwaliteitEGW[#All],2,0), IF(Rekenblad2[[#This Row],[Type gebouw]]=2,HLOOKUP(Rekenblad2[[#This Row],[Rekenblad 1]],KwaliteitPortiek[#All],2,0), IF(Rekenblad2[[#This Row],[Type gebouw]]=3,HLOOKUP(Rekenblad2[[#This Row],[Rekenblad 1]],KwaliteitGalerij[#All],2,0)))) -> 4 | J61: =IF(Rekenblad2[[#This Row],[Type gebouw]]=1,HLOOKUP(Rekenblad2[[#This Row],[Rekenblad 1]],KwaliteitEGW[#All],6,0), IF(Rekenblad2[[#This Row],[Type gebouw]]=2,HLOOKUP(Rekenblad2[[#This Row],[Rekenblad 1]],KwaliteitPortiek[#All],5,0), IF(Rekenblad2[[#This Row],[Type gebouw]]=3,HLOOKUP(Rekenblad2[[#This Row],[Rekenblad 1]],KwaliteitGalerij[#All],5,0)))) -> 1 | K61: =IF(Rekenblad2[[#This Row],[Type gebouw]]=1,HLOOKUP(Rekenblad2[[#This Row],[Rekenblad 1]],KwaliteitEGW[#All],10,0), IF(Rekenblad2[[#This Row],[Type gebouw]]=2,HLOOKUP(Rekenblad2[[#This Row],[Rekenblad 1]],KwaliteitPortiek[#All],9,0), IF(Rekenblad2[[#This Row],[Type gebouw]]=3,HLOOKUP(Rekenblad2[[#This Row],[Rekenblad 1]],KwaliteitGalerij[#All],9,0)))) -> 2 | L61: =IF(Rekenblad2[[#This Row],[Type gebouw]]=1,HLOOKUP(Rekenblad2[[#This Row],[Rekenblad 1]],KwaliteitEGW[#All],14,0), IF(Rekenblad2[[#This Row],[Type gebouw]]=2,HLOOKUP(Rekenblad2[[#This Row],[Rekenblad 1]],KwaliteitPortiek[#All],13,0), IF(Rekenblad2[[#This Row],[Type gebouw]]=3,HLOOKUP(Rekenblad2[[#This Row],[Rekenblad 1]],KwaliteitGalerij[#All],13,0)))) -> 3
C62: A1 | D62: 3 | E62: Iedere woning afzonderlijk rechtstreeks van buiten cq portiek cq voor de galerijen met afleverset in of nabij de entreehal in het bouwblok zelf | F62: =MROUND( IF(Rekenblad2[[#This Row],[Type gebouw]]=0,"Voer type gebouw in", IF(Rekenblad2[[#This Row],[Type gebouw]]=1,HLOOKUP(Rekenblad2[[#This Row],[Rekenblad 1]],StaatEGW[[#All],[A1.1]:[C1.2]],40,0), IF(Rekenblad2[[#This Row],[Type gebouw]]=2,HLOOKUP(Rekenblad2[[#This Row],[Rekenblad 1]],StaatPortiek[[#All],[A1]:[C1]],40,0), IF(Rekenblad2[[#This Row],[Type gebouw]]=3,HLOOKUP(Rekenblad2[[#This Row],[Rekenblad 1]],StaatGalerij[[#All],[A1]:[C1]],40,0), "Onbekende fout")))), 500) -> 2000 | G62: =MROUND( IF(Rekenblad2[[#This Row],[Type gebouw]]=0,"Voer type gebouw in", IF(Rekenblad2[[#This Row],[Type gebouw]]=1,HLOOKUP(Rekenblad2[[#This Row],[Rekenblad 1]],StaatEGW[[#All],[A1.1]:[C1.2]],41,0), IF(Rekenblad2[[#This Row],[Type gebouw]]=2,HLOOKUP(Rekenblad2[[#This Row],[Rekenblad 1]],StaatPortiek[[#All],[A1]:[C1]],41,0), IF(Rekenblad2[[#This Row],[Type gebouw]]=3,HLOOKUP(Rekenblad2[[#This Row],[Rekenblad 1]],StaatGalerij[[#All],[A1]:[C1]],41,0), "Onbekende fout")))), 500) -> 4500 | H62: =SUM(Rekenblad2[[#This Row],[Kosten warmteleverancier]:[Kosten woningeigenaar]]) -> 6500 | I62: =IF(Rekenblad2[[#This Row],[Type gebouw]]=1,HLOOKUP(Rekenblad2[[#This Row],[Rekenblad 1]],KwaliteitEGW[#All],2,0), IF(Rekenblad2[[#This Row],[Type gebouw]]=2,HLOOKUP(Rekenblad2[[#This Row],[Rekenblad 1]],KwaliteitPortiek[#All],2,0), IF(Rekenblad2[[#This Row],[Type gebouw]]=3,HLOOKUP(Rekenblad2[[#This Row],[Rekenblad 1]],KwaliteitGalerij[#All],2,0)))) -> 2 | J62: =IF(Rekenblad2[[#This Row],[Type gebouw]]=1,HLOOKUP(Rekenblad2[[#This Row],[Rekenblad 1]],KwaliteitEGW[#All],6,0), IF(Rekenblad2[[#This Row],[Type gebouw]]=2,HLOOKUP(Rekenblad2[[#This Row],[Rekenblad 1]],KwaliteitPortiek[#All],5,0), IF(Rekenblad2[[#This Row],[Type gebouw]]=3,HLOOKUP(Rekenblad2[[#This Row],[Rekenblad 1]],KwaliteitGalerij[#All],5,0)))) -> 2 | K62: =IF(Rekenblad2[[#This Row],[Type gebouw]]=1,HLOOKUP(Rekenblad2[[#This Row],[Rekenblad 1]],KwaliteitEGW[#All],10,0), IF(Rekenblad2[[#This Row],[Type gebouw]]=2,HLOOKUP(Rekenblad2[[#This Row],[Rekenblad 1]],KwaliteitPortiek[#All],9,0), IF(Rekenblad2[[#This Row],[Type gebouw]]=3,HLOOKUP(Rekenblad2[[#This Row],[Rekenblad 1]],KwaliteitGalerij[#All],9,0)))) -> 2 | L62: =IF(Rekenblad2[[#This Row],[Type gebouw]]=1,HLOOKUP(Rekenblad2[[#This Row],[Rekenblad 1]],KwaliteitEGW[#All],14,0), IF(Rekenblad2[[#This Row],[Type gebouw]]=2,HLOOKUP(Rekenblad2[[#This Row],[Rekenblad 1]],KwaliteitPortiek[#All],13,0), IF(Rekenblad2[[#This Row],[Type gebouw]]=3,HLOOKUP(Rekenblad2[[#This Row],[Rekenblad 1]],KwaliteitGalerij[#All],13,0)))) -> 2
C63: A2 | D63: 3 | E63: Per 2 woningen rechtstreeks van buiten cq portiek cq voor de galerijen met afleverset in of nabij de entreehal in het bouwblok zelf | F63: =MROUND( IF(Rekenblad2[[#This Row],[Type gebouw]]=0,"Voer type gebouw in", IF(Rekenblad2[[#This Row],[Type gebouw]]=1,HLOOKUP(Rekenblad2[[#This Row],[Rekenblad 1]],StaatEGW[[#All],[A1.1]:[C1.2]],40,0), IF(Rekenblad2[[#This Row],[Type gebouw]]=2,HLOOKUP(Rekenblad2[[#This Row],[Rekenblad 1]],StaatPortiek[[#All],[A1]:[C1]],40,0), IF(Rekenblad2[[#This Row],[Type gebouw]]=3,HLOOKUP(Rekenblad2[[#This Row],[Rekenblad 1]],StaatGalerij[[#All],[A1]:[C1]],40,0), "Onbekende fout")))), 500) -> 1500 | G63: =MROUND( IF(Rekenblad2[[#This Row],[Type gebouw]]=0,"Voer type gebouw in", IF(Rekenblad2[[#This Row],[Type gebouw]]=1,HLOOKUP(Rekenblad2[[#This Row],[Rekenblad 1]],StaatEGW[[#All],[A1.1]:[C1.2]],41,0), IF(Rekenblad2[[#This Row],[Type gebouw]]=2,HLOOKUP(Rekenblad2[[#This Row],[Rekenblad 1]],StaatPortiek[[#All],[A1]:[C1]],41,0), IF(Rekenblad2[[#This Row],[Type gebouw]]=3,HLOOKUP(Rekenblad2[[#This Row],[Rekenblad 1]],StaatGalerij[[#All],[A1]:[C1]],41,0), "Onbekende fout")))), 500) -> 4500 | H63: =SUM(Rekenblad2[[#This Row],[Kosten warmteleverancier]:[Kosten woningeigenaar]]) -> 6000 | I63: =IF(Rekenblad2[[#This Row],[Type gebouw]]=1,HLOOKUP(Rekenblad2[[#This Row],[Rekenblad 1]],KwaliteitEGW[#All],2,0), IF(Rekenblad2[[#This Row],[Type gebouw]]=2,HLOOKUP(Rekenblad2[[#This Row],[Rekenblad 1]],KwaliteitPortiek[#All],2,0), IF(Rekenblad2[[#This Row],[Type gebouw]]=3,HLOOKUP(Rekenblad2[[#This Row],[Rekenblad 1]],KwaliteitGalerij[#All],2,0)))) -> 3 | J63: =IF(Rekenblad2[[#This Row],[Type gebouw]]=1,HLOOKUP(Rekenblad2[[#This Row],[Rekenblad 1]],KwaliteitEGW[#All],6,0), IF(Rekenblad2[[#This Row],[Type gebouw]]=2,HLOOKUP(Rekenblad2[[#This Row],[Rekenblad 1]],KwaliteitPortiek[#All],5,0), IF(Rekenblad2[[#This Row],[Type gebouw]]=3,HLOOKUP(Rekenblad2[[#This Row],[Rekenblad 1]],KwaliteitGalerij[#All],5,0)))) -> 3 | K63: =IF(Rekenblad2[[#This Row],[Type gebouw]]=1,HLOOKUP(Rekenblad2[[#This Row],[Rekenblad 1]],KwaliteitEGW[#All],10,0), IF(Rekenblad2[[#This Row],[Type gebouw]]=2,HLOOKUP(Rekenblad2[[#This Row],[Rekenblad 1]],KwaliteitPortiek[#All],9,0), IF(Rekenblad2[[#This Row],[Type gebouw]]=3,HLOOKUP(Rekenblad2[[#This Row],[Rekenblad 1]],KwaliteitGalerij[#All],9,0)))) -> 2 | L63: =IF(Rekenblad2[[#This Row],[Type gebouw]]=1,HLOOKUP(Rekenblad2[[#This Row],[Rekenblad 1]],KwaliteitEGW[#All],14,0), IF(Rekenblad2[[#This Row],[Type gebouw]]=2,HLOOKUP(Rekenblad2[[#This Row],[Rekenblad 1]],KwaliteitPortiek[#All],13,0), IF(Rekenblad2[[#This Row],[Type gebouw]]=3,HLOOKUP(Rekenblad2[[#This Row],[Rekenblad 1]],KwaliteitGalerij[#All],13,0)))) -> 2
C64: A3 | D64: 3 | E64: Per woning via verticale leidingen op voor- of achtergevel naar afleverset | F64: =MROUND( IF(Rekenblad2[[#This Row],[Type gebouw]]=0,"Voer type gebouw in", IF(Rekenblad2[[#This Row],[Type gebouw]]=1,HLOOKUP(Rekenblad2[[#This Row],[Rekenblad 1]],StaatEGW[[#All],[A1.1]:[C1.2]],40,0), IF(Rekenblad2[[#This Row],[Type gebouw]]=2,HLOOKUP(Rekenblad2[[#This Row],[Rekenblad 1]],StaatPortiek[[#All],[A1]:[C1]],40,0), IF(Rekenblad2[[#This Row],[Type gebouw]]=3,HLOOKUP(Rekenblad2[[#This Row],[Rekenblad 1]],StaatGalerij[[#All],[A1]:[C1]],40,0), "Onbekende fout")))), 500) -> 2000 | G64: =MROUND( IF(Rekenblad2[[#This Row],[Type gebouw]]=0,"Voer type gebouw in", IF(Rekenblad2[[#This Row],[Type gebouw]]=1,HLOOKUP(Rekenblad2[[#This Row],[Rekenblad 1]],StaatEGW[[#All],[A1.1]:[C1.2]],41,0), IF(Rekenblad2[[#This Row],[Type gebouw]]=2,HLOOKUP(Rekenblad2[[#This Row],[Rekenblad 1]],StaatPortiek[[#All],[A1]:[C1]],41,0), IF(Rekenblad2[[#This Row],[Type gebouw]]=3,HLOOKUP(Rekenblad2[[#This Row],[Rekenblad 1]],StaatGalerij[[#All],[A1]:[C1]],41,0), "Onbekende fout")))), 500) -> 4500 | H64: =SUM(Rekenblad2[[#This Row],[Kosten warmteleverancier]:[Kosten woningeigenaar]]) -> 6500 | I64: =IF(Rekenblad2[[#This Row],[Type gebouw]]=1,HLOOKUP(Rekenblad2[[#This Row],[Rekenblad 1]],KwaliteitEGW[#All],2,0), IF(Rekenblad2[[#This Row],[Type gebouw]]=2,HLOOKUP(Rekenblad2[[#This Row],[Rekenblad 1]],KwaliteitPortiek[#All],2,0), IF(Rekenblad2[[#This Row],[Type gebouw]]=3,HLOOKUP(Rekenblad2[[#This Row],[Rekenblad 1]],KwaliteitGalerij[#All],2,0)))) -> 3 | J64: =IF(Rekenblad2[[#This Row],[Type gebouw]]=1,HLOOKUP(Rekenblad2[[#This Row],[Rekenblad 1]],KwaliteitEGW[#All],6,0), IF(Rekenblad2[[#This Row],[Type gebouw]]=2,HLOOKUP(Rekenblad2[[#This Row],[Rekenblad 1]],KwaliteitPortiek[#All],5,0), IF(Rekenblad2[[#This Row],[Type gebouw]]=3,HLOOKUP(Rekenblad2[[#This Row],[Rekenblad 1]],KwaliteitGalerij[#All],5,0)))) -> 1 | K64: =IF(Rekenblad2[[#This Row],[Type gebouw]]=1,HLOOKUP(Rekenblad2[[#This Row],[Rekenblad 1]],KwaliteitEGW[#All],10,0), IF(Rekenblad2[[#This Row],[Type gebouw]]=2,HLOOKUP(Rekenblad2[[#This Row],[Rekenblad 1]],KwaliteitPortiek[#All],9,0), IF(Rekenblad2[[#This Row],[Type gebouw]]=3,HLOOKUP(Rekenblad2[[#This Row],[Rekenblad 1]],KwaliteitGalerij[#All],9,0)))) -> 2 | L64: =IF(Rekenblad2[[#This Row],[Type gebouw]]=1,HLOOKUP(Rekenblad2[[#This Row],[Rekenblad 1]],KwaliteitEGW[#All],14,0), IF(Rekenblad2[[#This Row],[Type gebouw]]=2,HLOOKUP(Rekenblad2[[#This Row],[Rekenblad 1]],KwaliteitPortiek[#All],13,0), IF(Rekenblad2[[#This Row],[Type gebouw]]=3,HLOOKUP(Rekenblad2[[#This Row],[Rekenblad 1]],KwaliteitGalerij[#All],13,0)))) -> 3
C65: A4 | D65: 3 | E65: Per 2 woningen via verticale leidingen op voor- of achtergevel naar afleverset | F65: =MROUND( IF(Rekenblad2[[#This Row],[Type gebouw]]=0,"Voer type gebouw in", IF(Rekenblad2[[#This Row],[Type gebouw]]=1,HLOOKUP(Rekenblad2[[#This Row],[Rekenblad 1]],StaatEGW[[#All],[A1.1]:[C1.2]],40,0), IF(Rekenblad2[[#This Row],[Type gebouw]]=2,HLOOKUP(Rekenblad2[[#This Row],[Rekenblad 1]],StaatPortiek[[#All],[A1]:[C1]],40,0), IF(Rekenblad2[[#This Row],[Type gebouw]]=3,HLOOKUP(Rekenblad2[[#This Row],[Rekenblad 1]],StaatGalerij[[#All],[A1]:[C1]],40,0), "Onbekende fout")))), 500) -> 1000 | G65: =MROUND( IF(Rekenblad2[[#This Row],[Type gebouw]]=0,"Voer type gebouw in", IF(Rekenblad2[[#This Row],[Type gebouw]]=1,HLOOKUP(Rekenblad2[[#This Row],[Rekenblad 1]],StaatEGW[[#All],[A1.1]:[C1.2]],41,0), IF(Rekenblad2[[#This Row],[Type gebouw]]=2,HLOOKUP(Rekenblad2[[#This Row],[Rekenblad 1]],StaatPortiek[[#All],[A1]:[C1]],41,0), IF(Rekenblad2[[#This Row],[Type gebouw]]=3,HLOOKUP(Rekenblad2[[#This Row],[Rekenblad 1]],StaatGalerij[[#All],[A1]:[C1]],41,0), "Onbekende fout")))), 500) -> 4500 | H65: =SUM(Rekenblad2[[#This Row],[Kosten warmteleverancier]:[Kosten woningeigenaar]]) -> 5500 | I65: =IF(Rekenblad2[[#This Row],[Type gebouw]]=1,HLOOKUP(Rekenblad2[[#This Row],[Rekenblad 1]],KwaliteitEGW[#All],2,0), IF(Rekenblad2[[#This Row],[Type gebouw]]=2,HLOOKUP(Rekenblad2[[#This Row],[Rekenblad 1]],KwaliteitPortiek[#All],2,0), IF(Rekenblad2[[#This Row],[Type gebouw]]=3,HLOOKUP(Rekenblad2[[#This Row],[Rekenblad 1]],KwaliteitGalerij[#All],2,0)))) -> 4 | J65: =IF(Rekenblad2[[#This Row],[Type gebouw]]=1,HLOOKUP(Rekenblad2[[#This Row],[Rekenblad 1]],KwaliteitEGW[#All],6,0), IF(Rekenblad2[[#This Row],[Type gebouw]]=2,HLOOKUP(Rekenblad2[[#This Row],[Rekenblad 1]],KwaliteitPortiek[#All],5,0), IF(Rekenblad2[[#This Row],[Type gebouw]]=3,HLOOKUP(Rekenblad2[[#This Row],[Rekenblad 1]],KwaliteitGalerij[#All],5,0)))) -> 2 | K65: =IF(Rekenblad2[[#This Row],[Type gebouw]]=1,HLOOKUP(Rekenblad2[[#This Row],[Rekenblad 1]],KwaliteitEGW[#All],10,0), IF(Rekenblad2[[#This Row],[Type gebouw]]=2,HLOOKUP(Rekenblad2[[#This Row],[Rekenblad 1]],KwaliteitPortiek[#All],9,0), IF(Rekenblad2[[#This Row],[Type gebouw]]=3,HLOOKUP(Rekenblad2[[#This Row],[Rekenblad 1]],KwaliteitGalerij[#All],9,0)))) -> 2 | L65: =IF(Rekenblad2[[#This Row],[Type gebouw]]=1,HLOOKUP(Rekenblad2[[#This Row],[Rekenblad 1]],KwaliteitEGW[#All],14,0), IF(Rekenblad2[[#This Row],[Type gebouw]]=2,HLOOKUP(Rekenblad2[[#This Row],[Rekenblad 1]],KwaliteitPortiek[#All],13,0), IF(Rekenblad2[[#This Row],[Type gebouw]]=3,HLOOKUP(Rekenblad2[[#This Row],[Rekenblad 1]],KwaliteitGalerij[#All],13,0)))) -> 2
C66: B1 | D66: 3 | E66: In de lengterichting van het volledige blok door de kapruimte | F66: =MROUND( IF(Rekenblad2[[#This Row],[Type gebouw]]=0,"Voer type gebouw in", IF(Rekenblad2[[#This Row],[Type gebouw]]=1,HLOOKUP(Rekenblad2[[#This Row],[Rekenblad 1]],StaatEGW[[#All],[A1.1]:[C1.2]],40,0), IF(Rekenblad2[[#This Row],[Type gebouw]]=2,HLOOKUP(Rekenblad2[[#This Row],[Rekenblad 1]],StaatPortiek[[#All],[A1]:[C1]],40,0), IF(Rekenblad2[[#This Row],[Type gebouw]]=3,HLOOKUP(Rekenblad2[[#This Row],[Rekenblad 1]],StaatGalerij[[#All],[A1]:[C1]],40,0), "Onbekende fout")))), 500) -> 3500 | G66: =MROUND( IF(Rekenblad2[[#This Row],[Type gebouw]]=0,"Voer type gebouw in", IF(Rekenblad2[[#This Row],[Type gebouw]]=1,HLOOKUP(Rekenblad2[[#This Row],[Rekenblad 1]],StaatEGW[[#All],[A1.1]:[C1.2]],41,0), IF(Rekenblad2[[#This Row],[Type gebouw]]=2,HLOOKUP(Rekenblad2[[#This Row],[Rekenblad 1]],StaatPortiek[[#All],[A1]:[C1]],41,0), IF(Rekenblad2[[#This Row],[Type gebouw]]=3,HLOOKUP(Rekenblad2[[#This Row],[Rekenblad 1]],StaatGalerij[[#All],[A1]:[C1]],41,0), "Onbekende fout")))), 500) -> 3500 | H66: =SUM(Rekenblad2[[#This Row],[Kosten warmteleverancier]:[Kosten woningeigenaar]]) -> 7000 | I66: =IF(Rekenblad2[[#This Row],[Type gebouw]]=1,HLOOKUP(Rekenblad2[[#This Row],[Rekenblad 1]],KwaliteitEGW[#All],2,0), IF(Rekenblad2[[#This Row],[Type gebouw]]=2,HLOOKUP(Rekenblad2[[#This Row],[Rekenblad 1]],KwaliteitPortiek[#All],2,0), IF(Rekenblad2[[#This Row],[Type gebouw]]=3,HLOOKUP(Rekenblad2[[#This Row],[Rekenblad 1]],KwaliteitGalerij[#All],2,0)))) -> 3 | J66: =IF(Rekenblad2[[#This Row],[Type gebouw]]=1,HLOOKUP(Rekenblad2[[#This Row],[Rekenblad 1]],KwaliteitEGW[#All],6,0), IF(Rekenblad2[[#This Row],[Type gebouw]]=2,HLOOKUP(Rekenblad2[[#This Row],[Rekenblad 1]],KwaliteitPortiek[#All],5,0), IF(Rekenblad2[[#This Row],[Type gebouw]]=3,HLOOKUP(Rekenblad2[[#This Row],[Rekenblad 1]],KwaliteitGalerij[#All],5,0)))) -> 3 | K66: =IF(Rekenblad2[[#This Row],[Type gebouw]]=1,HLOOKUP(Rekenblad2[[#This Row],[Rekenblad 1]],KwaliteitEGW[#All],10,0), IF(Rekenblad2[[#This Row],[Type gebouw]]=2,HLOOKUP(Rekenblad2[[#This Row],[Rekenblad 1]],KwaliteitPortiek[#All],9,0), IF(Rekenblad2[[#This Row],[Type gebouw]]=3,HLOOKUP(Rekenblad2[[#This Row],[Rekenblad 1]],KwaliteitGalerij[#All],9,0)))) -> 4 | L66: =IF(Rekenblad2[[#This Row],[Type gebouw]]=1,HLOOKUP(Rekenblad2[[#This Row],[Rekenblad 1]],KwaliteitEGW[#All],14,0), IF(Rekenblad2[[#This Row],[Type gebouw]]=2,HLOOKUP(Rekenblad2[[#This Row],[Rekenblad 1]],KwaliteitPortiek[#All],13,0), IF(Rekenblad2[[#This Row],[Type gebouw]]=3,HLOOKUP(Rekenblad2[[#This Row],[Rekenblad 1]],KwaliteitGalerij[#All],13,0)))) -> 1
C67: B2 | D67: 3 | E67: In de lengterichting van het volledige blok over de gevel | F67: =MROUND( IF(Rekenblad2[[#This Row],[Type gebouw]]=0,"Voer type gebouw in", IF(Rekenblad2[[#This Row],[Type gebouw]]=1,HLOOKUP(Rekenblad2[[#This Row],[Rekenblad 1]],StaatEGW[[#All],[A1.1]:[C1.2]],40,0), IF(Rekenblad2[[#This Row],[Type gebouw]]=2,HLOOKUP(Rekenblad2[[#This Row],[Rekenblad 1]],StaatPortiek[[#All],[A1]:[C1]],40,0), IF(Rekenblad2[[#This Row],[Type gebouw]]=3,HLOOKUP(Rekenblad2[[#This Row],[Rekenblad 1]],StaatGalerij[[#All],[A1]:[C1]],40,0), "Onbekende fout")))), 500) -> 2500 | G67: =MROUND( IF(Rekenblad2[[#This Row],[Type gebouw]]=0,"Voer type gebouw in", IF(Rekenblad2[[#This Row],[Type gebouw]]=1,HLOOKUP(Rekenblad2[[#This Row],[Rekenblad 1]],StaatEGW[[#All],[A1.1]:[C1.2]],41,0), IF(Rekenblad2[[#This Row],[Type gebouw]]=2,HLOOKUP(Rekenblad2[[#This Row],[Rekenblad 1]],StaatPortiek[[#All],[A1]:[C1]],41,0), IF(Rekenblad2[[#This Row],[Type gebouw]]=3,HLOOKUP(Rekenblad2[[#This Row],[Rekenblad 1]],StaatGalerij[[#All],[A1]:[C1]],41,0), "Onbekende fout")))), 500) -> 4500 | H67: =SUM(Rekenblad2[[#This Row],[Kosten warmteleverancier]:[Kosten woningeigenaar]]) -> 7000 | I67: =IF(Rekenblad2[[#This Row],[Type gebouw]]=1,HLOOKUP(Rekenblad2[[#This Row],[Rekenblad 1]],KwaliteitEGW[#All],2,0), IF(Rekenblad2[[#This Row],[Type gebouw]]=2,HLOOKUP(Rekenblad2[[#This Row],[Rekenblad 1]],KwaliteitPortiek[#All],2,0), IF(Rekenblad2[[#This Row],[Type gebouw]]=3,HLOOKUP(Rekenblad2[[#This Row],[Rekenblad 1]],KwaliteitGalerij[#All],2,0)))) -> 2 | J67: =IF(Rekenblad2[[#This Row],[Type gebouw]]=1,HLOOKUP(Rekenblad2[[#This Row],[Rekenblad 1]],KwaliteitEGW[#All],6,0), IF(Rekenblad2[[#This Row],[Type gebouw]]=2,HLOOKUP(Rekenblad2[[#This Row],[Rekenblad 1]],KwaliteitPortiek[#All],5,0), IF(Rekenblad2[[#This Row],[Type gebouw]]=3,HLOOKUP(Rekenblad2[[#This Row],[Rekenblad 1]],KwaliteitGalerij[#All],5,0)))) -> 3 | K67: =IF(Rekenblad2[[#This Row],[Type gebouw]]=1,HLOOKUP(Rekenblad2[[#This Row],[Rekenblad 1]],KwaliteitEGW[#All],10,0), IF(Rekenblad2[[#This Row],[Type gebouw]]=2,HLOOKUP(Rekenblad2[[#This Row],[Rekenblad 1]],KwaliteitPortiek[#All],9,0), IF(Rekenblad2[[#This Row],[Type gebouw]]=3,HLOOKUP(Rekenblad2[[#This Row],[Rekenblad 1]],KwaliteitGalerij[#All],9,0)))) -> 1 | L67: =IF(Rekenblad2[[#This Row],[Type gebouw]]=1,HLOOKUP(Rekenblad2[[#This Row],[Rekenblad 1]],KwaliteitEGW[#All],14,0), IF(Rekenblad2[[#This Row],[Type gebouw]]=2,HLOOKUP(Rekenblad2[[#This Row],[Rekenblad 1]],KwaliteitPortiek[#All],13,0), IF(Rekenblad2[[#This Row],[Type gebouw]]=3,HLOOKUP(Rekenblad2[[#This Row],[Rekenblad 1]],KwaliteitGalerij[#All],13,0)))) -> 2
C68: B3 | D68: 3 | E68: In de lengterichting van het volledige blok over het dak | F68: =MROUND( IF(Rekenblad2[[#This Row],[Type gebouw]]=0,"Voer type gebouw in", IF(Rekenblad2[[#This Row],[Type gebouw]]=1,HLOOKUP(Rekenblad2[[#This Row],[Rekenblad 1]],StaatEGW[[#All],[A1.1]:[C1.2]],40,0), IF(Rekenblad2[[#This Row],[Type gebouw]]=2,HLOOKUP(Rekenblad2[[#This Row],[Rekenblad 1]],StaatPortiek[[#All],[A1]:[C1]],40,0), IF(Rekenblad2[[#This Row],[Type gebouw]]=3,HLOOKUP(Rekenblad2[[#This Row],[Rekenblad 1]],StaatGalerij[[#All],[A1]:[C1]],40,0), "Onbekende fout")))), 500) -> 2500 | G68: =MROUND( IF(Rekenblad2[[#This Row],[Type gebouw]]=0,"Voer type gebouw in", IF(Rekenblad2[[#This Row],[Type gebouw]]=1,HLOOKUP(Rekenblad2[[#This Row],[Rekenblad 1]],StaatEGW[[#All],[A1.1]:[C1.2]],41,0), IF(Rekenblad2[[#This Row],[Type gebouw]]=2,HLOOKUP(Rekenblad2[[#This Row],[Rekenblad 1]],StaatPortiek[[#All],[A1]:[C1]],41,0), IF(Rekenblad2[[#This Row],[Type gebouw]]=3,HLOOKUP(Rekenblad2[[#This Row],[Rekenblad 1]],StaatGalerij[[#All],[A1]:[C1]],41,0), "Onbekende fout")))), 500) -> 3500 | H68: =SUM(Rekenblad2[[#This Row],[Kosten warmteleverancier]:[Kosten woningeigenaar]]) -> 6000 | I68: =IF(Rekenblad2[[#This Row],[Type gebouw]]=1,HLOOKUP(Rekenblad2[[#This Row],[Rekenblad 1]],KwaliteitEGW[#All],2,0), IF(Rekenblad2[[#This Row],[Type gebouw]]=2,HLOOKUP(Rekenblad2[[#This Row],[Rekenblad 1]],KwaliteitPortiek[#All],2,0), IF(Rekenblad2[[#This Row],[Type gebouw]]=3,HLOOKUP(Rekenblad2[[#This Row],[Rekenblad 1]],KwaliteitGalerij[#All],2,0)))) -> 2 | J68: =IF(Rekenblad2[[#This Row],[Type gebouw]]=1,HLOOKUP(Rekenblad2[[#This Row],[Rekenblad 1]],KwaliteitEGW[#All],6,0), IF(Rekenblad2[[#This Row],[Type gebouw]]=2,HLOOKUP(Rekenblad2[[#This Row],[Rekenblad 1]],KwaliteitPortiek[#All],5,0), IF(Rekenblad2[[#This Row],[Type gebouw]]=3,HLOOKUP(Rekenblad2[[#This Row],[Rekenblad 1]],KwaliteitGalerij[#All],5,0)))) -> 3 | K68: =IF(Rekenblad2[[#This Row],[Type gebouw]]=1,HLOOKUP(Rekenblad2[[#This Row],[Rekenblad 1]],KwaliteitEGW[#All],10,0), IF(Rekenblad2[[#This Row],[Type gebouw]]=2,HLOOKUP(Rekenblad2[[#This Row],[Rekenblad 1]],KwaliteitPortiek[#All],9,0), IF(Rekenblad2[[#This Row],[Type gebouw]]=3,HLOOKUP(Rekenblad2[[#This Row],[Rekenblad 1]],KwaliteitGalerij[#All],9,0)))) -> 4 | L68: =IF(Rekenblad2[[#This Row],[Type gebouw]]=1,HLOOKUP(Rekenblad2[[#This Row],[Rekenblad 1]],KwaliteitEGW[#All],14,0), IF(Rekenblad2[[#This Row],[Type gebouw]]=2,HLOOKUP(Rekenblad2[[#This Row],[Rekenblad 1]],KwaliteitPortiek[#All],13,0), IF(Rekenblad2[[#This Row],[Type gebouw]]=3,HLOOKUP(Rekenblad2[[#This Row],[Rekenblad 1]],KwaliteitGalerij[#All],13,0)))) -> 1
C69: B4 | D69: 3 | E69: In de lengterichting van het volledige blok onder de onderste woonlaag door | F69: =MROUND( IF(Rekenblad2[[#This Row],[Type gebouw]]=0,"Voer type gebouw in", IF(Rekenblad2[[#This Row],[Type gebouw]]=1,HLOOKUP(Rekenblad2[[#This Row],[Rekenblad 1]],StaatEGW[[#All],[A1.1]:[C1.2]],40,0), IF(Rekenblad2[[#This Row],[Type gebouw]]=2,HLOOKUP(Rekenblad2[[#This Row],[Rekenblad 1]],StaatPortiek[[#All],[A1]:[C1]],40,0), IF(Rekenblad2[[#This Row],[Type gebouw]]=3,HLOOKUP(Rekenblad2[[#This Row],[Rekenblad 1]],StaatGalerij[[#All],[A1]:[C1]],40,0), "Onbekende fout")))), 500) -> 2500 | G69: =MROUND( IF(Rekenblad2[[#This Row],[Type gebouw]]=0,"Voer type gebouw in", IF(Rekenblad2[[#This Row],[Type gebouw]]=1,HLOOKUP(Rekenblad2[[#This Row],[Rekenblad 1]],StaatEGW[[#All],[A1.1]:[C1.2]],41,0), IF(Rekenblad2[[#This Row],[Type gebouw]]=2,HLOOKUP(Rekenblad2[[#This Row],[Rekenblad 1]],StaatPortiek[[#All],[A1]:[C1]],41,0), IF(Rekenblad2[[#This Row],[Type gebouw]]=3,HLOOKUP(Rekenblad2[[#This Row],[Rekenblad 1]],StaatGalerij[[#All],[A1]:[C1]],41,0), "Onbekende fout")))), 500) -> 3500 | H69: =SUM(Rekenblad2[[#This Row],[Kosten warmteleverancier]:[Kosten woningeigenaar]]) -> 6000 | I69: =IF(Rekenblad2[[#This Row],[Type gebouw]]=1,HLOOKUP(Rekenblad2[[#This Row],[Rekenblad 1]],KwaliteitEGW[#All],2,0), IF(Rekenblad2[[#This Row],[Type gebouw]]=2,HLOOKUP(Rekenblad2[[#This Row],[Rekenblad 1]],KwaliteitPortiek[#All],2,0), IF(Rekenblad2[[#This Row],[Type gebouw]]=3,HLOOKUP(Rekenblad2[[#This Row],[Rekenblad 1]],KwaliteitGalerij[#All],2,0)))) -> 5 | J69: =IF(Rekenblad2[[#This Row],[Type gebouw]]=1,HLOOKUP(Rekenblad2[[#This Row],[Rekenblad 1]],KwaliteitEGW[#All],6,0), IF(Rekenblad2[[#This Row],[Type gebouw]]=2,HLOOKUP(Rekenblad2[[#This Row],[Rekenblad 1]],KwaliteitPortiek[#All],5,0), IF(Rekenblad2[[#This Row],[Type gebouw]]=3,HLOOKUP(Rekenblad2[[#This Row],[Rekenblad 1]],KwaliteitGalerij[#All],5,0)))) -> 1 | K69: =IF(Rekenblad2[[#This Row],[Type gebouw]]=1,HLOOKUP(Rekenblad2[[#This Row],[Rekenblad 1]],KwaliteitEGW[#All],10,0), IF(Rekenblad2[[#This Row],[Type gebouw]]=2,HLOOKUP(Rekenblad2[[#This Row],[Rekenblad 1]],KwaliteitPortiek[#All],9,0), IF(Rekenblad2[[#This Row],[Type gebouw]]=3,HLOOKUP(Rekenblad2[[#This Row],[Rekenblad 1]],KwaliteitGalerij[#All],9,0)))) -> 4 | L69: =IF(Rekenblad2[[#This Row],[Type gebouw]]=1,HLOOKUP(Rekenblad2[[#This Row],[Rekenblad 1]],KwaliteitEGW[#All],14,0), IF(Rekenblad2[[#This Row],[Type gebouw]]=2,HLOOKUP(Rekenblad2[[#This Row],[Rekenblad 1]],KwaliteitPortiek[#All],13,0), IF(Rekenblad2[[#This Row],[Type gebouw]]=3,HLOOKUP(Rekenblad2[[#This Row],[Rekenblad 1]],KwaliteitGalerij[#All],13,0)))) -> 1
C70: C1 | D70: 3 | E70: De individuele afleverset buiten de woning | F70: =MROUND( IF(Rekenblad2[[#This Row],[Type gebouw]]=0,"Voer type gebouw in", IF(Rekenblad2[[#This Row],[Type gebouw]]=1,HLOOKUP(Rekenblad2[[#This Row],[Rekenblad 1]],StaatEGW[[#All],[A1.1]:[C1.2]],40,0), IF(Rekenblad2[[#This Row],[Type gebouw]]=2,HLOOKUP(Rekenblad2[[#This Row],[Rekenblad 1]],StaatPortiek[[#All],[A1]:[C1]],40,0), IF(Rekenblad2[[#This Row],[Type gebouw]]=3,HLOOKUP(Rekenblad2[[#This Row],[Rekenblad 1]],StaatGalerij[[#All],[A1]:[C1]],40,0), "Onbekende fout")))), 500) -> 500 | G70: =MROUND( IF(Rekenblad2[[#This Row],[Type gebouw]]=0,"Voer type gebouw in", IF(Rekenblad2[[#This Row],[Type gebouw]]=1,HLOOKUP(Rekenblad2[[#This Row],[Rekenblad 1]],StaatEGW[[#All],[A1.1]:[C1.2]],41,0), IF(Rekenblad2[[#This Row],[Type gebouw]]=2,HLOOKUP(Rekenblad2[[#This Row],[Rekenblad 1]],StaatPortiek[[#All],[A1]:[C1]],41,0), IF(Rekenblad2[[#This Row],[Type gebouw]]=3,HLOOKUP(Rekenblad2[[#This Row],[Rekenblad 1]],StaatGalerij[[#All],[A1]:[C1]],41,0), "Onbekende fout")))), 500) -> 4500 | H70: =SUM(Rekenblad2[[#This Row],[Kosten warmteleverancier]:[Kosten woningeigenaar]]) -> 5000 | I70: =IF(Rekenblad2[[#This Row],[Type gebouw]]=1,HLOOKUP(Rekenblad2[[#This Row],[Rekenblad 1]],KwaliteitEGW[#All],2,0), IF(Rekenblad2[[#This Row],[Type gebouw]]=2,HLOOKUP(Rekenblad2[[#This Row],[Rekenblad 1]],KwaliteitPortiek[#All],2,0), IF(Rekenblad2[[#This Row],[Type gebouw]]=3,HLOOKUP(Rekenblad2[[#This Row],[Rekenblad 1]],KwaliteitGalerij[#All],2,0)))) -> 2 | J70: =IF(Rekenblad2[[#This Row],[Type gebouw]]=1,HLOOKUP(Rekenblad2[[#This Row],[Rekenblad 1]],KwaliteitEGW[#All],6,0), IF(Rekenblad2[[#This Row],[Type gebouw]]=2,HLOOKUP(Rekenblad2[[#This Row],[Rekenblad 1]],KwaliteitPortiek[#All],5,0), IF(Rekenblad2[[#This Row],[Type gebouw]]=3,HLOOKUP(Rekenblad2[[#This Row],[Rekenblad 1]],KwaliteitGalerij[#All],5,0)))) -> 2 | K70: =IF(Rekenblad2[[#This Row],[Type gebouw]]=1,HLOOKUP(Rekenblad2[[#This Row],[Rekenblad 1]],KwaliteitEGW[#All],10,0), IF(Rekenblad2[[#This Row],[Type gebouw]]=2,HLOOKUP(Rekenblad2[[#This Row],[Rekenblad 1]],KwaliteitPortiek[#All],9,0), IF(Rekenblad2[[#This Row],[Type gebouw]]=3,HLOOKUP(Rekenblad2[[#This Row],[Rekenblad 1]],KwaliteitGalerij[#All],9,0)))) -> 3 | L70: =IF(Rekenblad2[[#This Row],[Type gebouw]]=1,HLOOKUP(Rekenblad2[[#This Row],[Rekenblad 1]],KwaliteitEGW[#All],14,0), IF(Rekenblad2[[#This Row],[Type gebouw]]=2,HLOOKUP(Rekenblad2[[#This Row],[Rekenblad 1]],KwaliteitPortiek[#All],13,0), IF(Rekenblad2[[#This Row],[Type gebouw]]=3,HLOOKUP(Rekenblad2[[#This Row],[Rekenblad 1]],KwaliteitGalerij[#All],13,0)))) -> 3
C72: Code | D72: Toets
C73: A1.1 | D73: A1.1
C74: A1.2 | D74: A1.2
C75: A2.1 | D75: A2.1
C76: A2.2 | D76: A2.2
C77: A3.1 | D77: A3.1
C78: A3.2 | D78: A3.2
C79: A4.1 | D79: A4.1
C80: A4.2 | D80: A4.2
C81: B1.1 | D81: B1.1
C82: B1.2 | D82: B1.2
C83: B2.1 | D83: B2.1
C84: B2.2 | D84: B2.2
C85: B3.1 | D85: B3.1
C86: B3.2 | D86: B3.2
C87: B4.1 | D87: B4.1
C88: B4.2 | D88: B4.2
C89: C1.1 | D89: C1.1
C90: C1.2 | D90: C1.2
C91: A1 | D91: A1
C92: A2 | D92: A2
C93: A3 | D93: A3
C94: A4 | D94: A4
C95: B1 | D95: B1
C96: B2 | D96: B2
C97: B3 | D97: B3
C98: B4 | D98: B4
C99: C1 | D99: C1
C100: A1 | D100: A1
C101: A2 | D101: A2
C102: A3 | D102: A3
C103: A4 | D103: A4
C104: B1 | D104: B1
C105: B2 | D105: B2
C106: B3 | D106: B3
C107: B4 | D107: B4
C108: C1 | D108: C1

Sheet Svv
A1: Code | B1: Dienst, levering of handeling | C1: Eenheid | D1: Aantal | E1: Prijs per eenheid exlusief btw en inclusief alle opslagen | F1: Prijs per eenheid inclusief btw en inclusief alle opslagen | G1: Totaal exlusief btw en inclusief alle opslagen | H1: Totaal inclusief btw en inclusief alle opslagen | I1: Bron
B2: Kosten warmtebedrijf (tot aan de afleverset)
A3: 1 | B3: Graaf- en herstelkwerkzaamheden
A4: 1.1.a | B4: Graaf- en herstelwerkzaamheden bij gesloten verharding (asfalt) | C4: meter | E4: 340 | F4: =Staat[[#This Row],[Prijs per eenheid exlusief btw en inclusief alle opslagen]]*1.21 -> 411.4 | G4: =Staat[[#This Row],[Prijs per eenheid exlusief btw en inclusief alle opslagen]]*Staat[[#This Row],[Aantal]] -> 0 | H4: =Staat[[#This Row],[Aantal]]*Staat[[#This Row],[Prijs per eenheid inclusief btw en inclusief alle opslagen ]] -> 0 | I4: Bouwkosten Online / Marktonderzoek
A5: 1.1.b | B5: Graaf- en herstelwerkzaamheden bij elementen verharding (tegels 30*30cm) | C5: meter | E5: =22.71+70 -> 92.71 | F5: =Staat[[#This Row],[Prijs per eenheid exlusief btw en inclusief alle opslagen]]*1.21 -> 112.1791 | G5: =Staat[[#This Row],[Prijs per eenheid exlusief btw en inclusief alle opslagen]]*Staat[[#This Row],[Aantal]] -> 0 | H5: =Staat[[#This Row],[Aantal]]*Staat[[#This Row],[Prijs per eenheid inclusief btw en inclusief alle opslagen ]] -> 0 | I5: Bouwkosten Online / Marktonderzoek
A6: 1.1.c | B6: Graaf- en herstelwerkzaamheden bij groen | C6: meter | E6: =(70) -> 70 | F6: =Staat[[#This Row],[Prijs per eenheid exlusief btw en inclusief alle opslagen]]*1.21 -> 84.7 | G6: =Staat[[#This Row],[Prijs per eenheid exlusief btw en inclusief alle opslagen]]*Staat[[#This Row],[Aantal]] -> 0 | H6: =Staat[[#This Row],[Aantal]]*Staat[[#This Row],[Prijs per eenheid inclusief btw en inclusief alle opslagen ]] -> 0 | I6: Bouwkosten Online / Marktonderzoek
A7: 1.2 | B7: Ondiepe kruipruimte leeggraven | C7: woning | E7: 2500 | F7: =Staat[[#This Row],[Prijs per eenheid exlusief btw en inclusief alle opslagen]]*1.21 -> 3025 | G7: =Staat[[#This Row],[Prijs per eenheid exlusief btw en inclusief alle opslagen]]*Staat[[#This Row],[Aantal]] -> 0 | H7: =Staat[[#This Row],[Aantal]]*Staat[[#This Row],[Prijs per eenheid inclusief btw en inclusief alle opslagen ]] -> 0 | I7: Kruipruimte specialist
A8: 2 | B8: Leidingwerk
A9: 2.1 | B9: DN22 (1-2 woningen) | C9: meter | E9: 156 | F9: =Staat[[#This Row],[Prijs per eenheid exlusief btw en inclusief alle opslagen]]*1.21 -> 188.76 | G9: =Staat[[#This Row],[Prijs per eenheid exlusief btw en inclusief alle opslagen]]*Staat[[#This Row],[Aantal]] -> 0 | H9: =Staat[[#This Row],[Aantal]]*Staat[[#This Row],[Prijs per eenheid inclusief btw en inclusief alle opslagen ]] -> 0 | I9: Kostenboek / Marktonderzoek
A10: 2.3 | B10: DN35 (>3 woningen) | C10: meter | E10: 182 | F10: =Staat[[#This Row],[Prijs per eenheid exlusief btw en inclusief alle opslagen]]*1.21 -> 220.22 | G10: =Staat[[#This Row],[Prijs per eenheid exlusief btw en inclusief alle opslagen]]*Staat[[#This Row],[Aantal]] -> 0 | H10: =Staat[[#This Row],[Aantal]]*Staat[[#This Row],[Prijs per eenheid inclusief btw en inclusief alle opslagen ]] -> 0 | I10: Kostenboek / Marktonderzoek
A11: 2.4 | B11: Aanboren/aftakken warmtebuis (aansluiten op nieuwe distributieleiding) | C11: aftakking | E11: 750 | F11: =Staat[[#This Row],[Prijs per eenheid exlusief btw en inclusief alle opslagen]]*1.21 -> 907.5 | G11: =Staat[[#This Row],[Prijs per eenheid exlusief btw en inclusief alle opslagen]]*Staat[[#This Row],[Aantal]] -> 0 | H11: =Staat[[#This Row],[Aantal]]*Staat[[#This Row],[Prijs per eenheid inclusief btw en inclusief alle opslagen ]] -> 0
A12: 2.5 | B12: Aanboren/aftakken warmtebuis (aansluiten op bestaande distributieleiding) | C12: aftakking | E12: 1500 | F12: =Staat[[#This Row],[Prijs per eenheid exlusief btw en inclusief alle opslagen]]*1.21 -> 1815 | G12: =Staat[[#This Row],[Prijs per eenheid exlusief btw en inclusief alle opslagen]]*Staat[[#This Row],[Aantal]] -> 0 | H12: =Staat[[#This Row],[Aantal]]*Staat[[#This Row],[Prijs per eenheid inclusief btw en inclusief alle opslagen ]] -> 0
A13: 3 | B13: Boorwerk
A14: 3.1.a | B14: Boren stenen gevel (Ø 90mm) | C14: stuk | E14: 24.5 | F14: =Staat[[#This Row],[Prijs per eenheid exlusief btw en inclusief alle opslagen]]*1.21 -> 29.645 | G14: =Staat[[#This Row],[Prijs per eenheid exlusief btw en inclusief alle opslagen]]*Staat[[#This Row],[Aantal]] -> 0 | H14: =Staat[[#This Row],[Aantal]]*Staat[[#This Row],[Prijs per eenheid inclusief btw en inclusief alle opslagen ]] -> 0 | I14: Bouwkosten Online
A15: 3.1.b | B15: Boren stenen gevel (Ø 150mm) | C15: stuk | E15: 31.5 | F15: =Staat[[#This Row],[Prijs per eenheid exlusief btw en inclusief alle opslagen]]*1.21 -> 38.115 | G15: =Staat[[#This Row],[Prijs per eenheid exlusief btw en inclusief alle opslagen]]*Staat[[#This Row],[Aantal]] -> 0 | H15: =Staat[[#This Row],[Aantal]]*Staat[[#This Row],[Prijs per eenheid inclusief btw en inclusief alle opslagen ]] -> 0 | I15: Bouwkosten Online
A16: 3.2.a | B16: Boren fundering (Ø 90mm) | C16: stuk | E16: 43.2 | F16: =Staat[[#This Row],[Prijs per eenheid exlusief btw en inclusief alle opslagen]]*1.21 -> 52.272 | G16: =Staat[[#This Row],[Prijs per eenheid exlusief btw en inclusief alle opslagen]]*Staat[[#This Row],[Aantal]] -> 0 | H16: =Staat[[#This Row],[Aantal]]*Staat[[#This Row],[Prijs per eenheid inclusief btw en inclusief alle opslagen ]] -> 0 | I16: Bouwkosten Online
A17: 3.2.b | B17: Boren fundering (Ø 150mm) | C17: stuk | E17: 52.8 | F17: =Staat[[#This Row],[Prijs per eenheid exlusief btw en inclusief alle opslagen]]*1.21 -> 63.888 | G17: =Staat[[#This Row],[Prijs per eenheid exlusief btw en inclusief alle opslagen]]*Staat[[#This Row],[Aantal]] -> 0 | H17: =Staat[[#This Row],[Aantal]]*Staat[[#This Row],[Prijs per eenheid inclusief btw en inclusief alle opslagen ]] -> 0 | I17: Bouwkosten Online
A18: 3.3.a | B18: Boren betonvloer (Ø 90mm) | C18: stuk | E18: 28.8 | F18: =Staat[[#This Row],[Prijs per eenheid exlusief btw en inclusief alle opslagen]]*1.21 -> 34.848 | G18: =Staat[[#This Row],[Prijs per eenheid exlusief btw en inclusief alle opslagen]]*Staat[[#This Row],[Aantal]] -> 0 | H18: =Staat[[#This Row],[Aantal]]*Staat[[#This Row],[Prijs per eenheid inclusief btw en inclusief alle opslagen ]] -> 0 | I18: Bouwkosten Online
A19: 3.3.b | B19: Boren betonvloer (Ø 150mm) | C19: stuk | E19: 35.2 | F19: =Staat[[#This Row],[Prijs per eenheid exlusief btw en inclusief alle opslagen]]*1.21 -> 42.592 | G19: =Staat[[#This Row],[Prijs per eenheid exlusief btw en inclusief alle opslagen]]*Staat[[#This Row],[Aantal]] -> 0 | H19: =Staat[[#This Row],[Aantal]]*Staat[[#This Row],[Prijs per eenheid inclusief btw en inclusief alle opslagen ]] -> 0 | I19: Bouwkosten Online
A20: 3.4.a | B20: Boren tussenwand (Ø 90mm) | C20: stuk | E20: 9.8 | F20: =Staat[[#This Row],[Prijs per eenheid exlusief btw en inclusief alle opslagen]]*1.21 -> 11.858 | G20: =Staat[[#This Row],[Prijs per eenheid exlusief btw en inclusief alle opslagen]]*Staat[[#This Row],[Aantal]] -> 0 | H20: =Staat[[#This Row],[Aantal]]*Staat[[#This Row],[Prijs per eenheid inclusief btw en inclusief alle opslagen ]] -> 0 | I20: Bouwkosten Online
A21: 3.4.b | B21: Boren tussenwand (Ø 150mm) | C21: stuk | E21: 12.6 | F21: =Staat[[#This Row],[Prijs per eenheid exlusief btw en inclusief alle opslagen]]*1.21 -> 15.246 | G21: =Staat[[#This Row],[Prijs per eenheid exlusief btw en inclusief alle opslagen]]*Staat[[#This Row],[Aantal]] -> 0 | H21: =Staat[[#This Row],[Aantal]]*Staat[[#This Row],[Prijs per eenheid inclusief btw en inclusief alle opslagen ]] -> 0 | I21: Bouwkosten Online
A22: 3.5 | B22: Brandwerende doorvoeren | C22: stuk | E22: 100 | F22: =Staat[[#This Row],[Prijs per eenheid exlusief btw en inclusief alle opslagen]]*1.21 -> 121 | G22: =Staat[[#This Row],[Prijs per eenheid exlusief btw en inclusief alle opslagen]]*Staat[[#This Row],[Aantal]] -> 0 | H22: =Staat[[#This Row],[Aantal]]*Staat[[#This Row],[Prijs per eenheid inclusief btw en inclusief alle opslagen ]] -> 0
A23: 4 | B23: Afwerking en maatwerk
A24: 4.1 | B24: Maatwerk bij alternatief A3/A4: isolerende beschermingskap aan buitenzijde en veiligheidsmaatregelen | C24: woning | E24: 300 | F24: =Staat[[#This Row],[Prijs per eenheid exlusief btw en inclusief alle opslagen]]*1.21 -> 363 | G24: =Staat[[#This Row],[Prijs per eenheid exlusief btw en inclusief alle opslagen]]*Staat[[#This Row],[Aantal]] -> 0 | H24: =Staat[[#This Row],[Aantal]]*Staat[[#This Row],[Prijs per eenheid inclusief btw en inclusief alle opslagen ]] -> 0 | I24: Prijzenboek Atriensis projecten
A25: 4.2 | B25: Maatwerk bij alternatief B1: aftimmeren knieschot binnenzijde zolder en veiligheidsmaatregelen bij alternatief B1 | C25: woning | E25: 800 | F25: =Staat[[#This Row],[Prijs per eenheid exlusief btw en inclusief alle opslagen]]*1.21 -> 968 | G25: =Staat[[#This Row],[Prijs per eenheid exlusief btw en inclusief alle opslagen]]*Staat[[#This Row],[Aantal]] -> 0 | H25: =Staat[[#This Row],[Aantal]]*Staat[[#This Row],[Prijs per eenheid inclusief btw en inclusief alle opslagen ]] -> 0 | I25: Prijzenboek Atriensis projecten
A26: 4.3 | B26: Maatwerk bij alternatief B2: verwerken van leiding nabij de dakgoot | C26: woning | E26: 3000 | F26: =Staat[[#This Row],[Prijs per eenheid exlusief btw en inclusief alle opslagen]]*1.21 -> 3630 | G26: =Staat[[#This Row],[Prijs per eenheid exlusief btw en inclusief alle opslagen]]*Staat[[#This Row],[Aantal]] -> 0 | H26: =Staat[[#This Row],[Aantal]]*Staat[[#This Row],[Prijs per eenheid inclusief btw en inclusief alle opslagen ]] -> 0
A27: 4.4 | B27: Maatwerk bij alternatief B3: Koof ten behoeve van leidingwerk op dak | C27: woning | E27: 93.02325581 | F27: =Staat[[#This Row],[Prijs per eenheid exlusief btw en inclusief alle opslagen]]*1.21 -> 112.5581395 | G27: =Staat[[#This Row],[Prijs per eenheid exlusief btw en inclusief alle opslagen]]*Staat[[#This Row],[Aantal]] -> 0 | H27: =Staat[[#This Row],[Aantal]]*Staat[[#This Row],[Prijs per eenheid inclusief btw en inclusief alle opslagen ]] -> 0 | I27: Prijzenboek Atriensis projecten
A28: 4.5 | B28: Afleverset | C28: woning | E28: 0 | F28: =Staat[[#This Row],[Prijs per eenheid exlusief btw en inclusief alle opslagen]]*1.21 -> 0 | G28: =Staat[[#This Row],[Prijs per eenheid exlusief btw en inclusief alle opslagen]]*Staat[[#This Row],[Aantal]] -> 0 | H28: =Staat[[#This Row],[Aantal]]*Staat[[#This Row],[Prijs per eenheid inclusief btw en inclusief alle opslagen ]] -> 0 | I28: Prijzenboek Atriensis projecten
B29: Kosten gebouweigenaar (achter de afleverset)
A30: 5 | B30: Maatregelen achter de voordeur
A31: 5.1.a | B31: Verwijderen combiketel en aanpassingen in de woning. Prijs geldt indien afleverset in dezelfde ruimte en binnen 2 meter van de plek van de combiketel wordt geplaatst. | C31: woning | E31: 972 | F31: =Staat[[#This Row],[Prijs per eenheid exlusief btw en inclusief alle opslagen]]*1.21 -> 1176.12 | G31: =Staat[[#This Row],[Prijs per eenheid exlusief btw en inclusief alle opslagen]]*Staat[[#This Row],[Aantal]] -> 0 | H31: =Staat[[#This Row],[Aantal]]*Staat[[#This Row],[Prijs per eenheid inclusief btw en inclusief alle opslagen ]] -> 0 | I31: Prijzenboek Atriensis projecten
A32: 5.2.b | B32: Toeslag indien afleverset in een andere ruimte en/of een afstand groter dan 2 meter van plek van de combiketel wordt geplaatst. | C32: woning | E32: 965 | F32: =Staat[[#This Row],[Prijs per eenheid exlusief btw en inclusief alle opslagen]]*1.21 -> 1167.65 | G32: =Staat[[#This Row],[Prijs per eenheid exlusief btw en inclusief alle opslagen]]*Staat[[#This Row],[Aantal]] -> 0 | H32: =Staat[[#This Row],[Aantal]]*Staat[[#This Row],[Prijs per eenheid inclusief btw en inclusief alle opslagen ]] -> 0 | I32: Prijzenboek Atriensis projecten
A33: 5.3 | B33: Omkasting voor afleverset als deze in verkeersruimte buiten meterkast of in verblijfsruimte geprojecteerd is | C33: stuk | E33: 500 | F33: =Staat[[#This Row],[Prijs per eenheid exlusief btw en inclusief alle opslagen]]*1.21 -> 605 | G33: =Staat[[#This Row],[Prijs per eenheid exlusief btw en inclusief alle opslagen]]*Staat[[#This Row],[Aantal]] -> 0 | H33: =Staat[[#This Row],[Aantal]]*Staat[[#This Row],[Prijs per eenheid inclusief btw en inclusief alle opslagen ]] -> 0 | I33: Prijzenboek Atriensis projecten
A34: 5.4 | B34: Verwijderen gasleidingen in het zicht plus aanhelen | C34: woning | E34: 240 | F34: =Staat[[#This Row],[Prijs per eenheid exlusief btw en inclusief alle opslagen]]*1.21 -> 290.4 | G34: =Staat[[#This Row],[Prijs per eenheid exlusief btw en inclusief alle opslagen]]*Staat[[#This Row],[Aantal]] -> 0 | H34: =Staat[[#This Row],[Aantal]]*Staat[[#This Row],[Prijs per eenheid inclusief btw en inclusief alle opslagen ]] -> 0 | I34: Prijzenboek Atriensis projecten
A35: 5.5 | B35: Filteren, spoelen, afpersen en volledig waterzijdig inregelen van woonhuisinstallatie | C35: woning | E35: 248 | F35: =Staat[[#This Row],[Prijs per eenheid exlusief btw en inclusief alle opslagen]]*1.21 -> 300.08 | G35: =Staat[[#This Row],[Prijs per eenheid exlusief btw en inclusief alle opslagen]]*Staat[[#This Row],[Aantal]] -> 0 | H35: =Staat[[#This Row],[Aantal]]*Staat[[#This Row],[Prijs per eenheid inclusief btw en inclusief alle opslagen ]] -> 0 | I35: Prijzenboek Atriensis projecten
A36: 5.6 | B36: Vervangen van radiator (aanname dat twee per woning) | C36: woning | E36: =2*410 -> 820 | F36: =Staat[[#This Row],[Prijs per eenheid exlusief btw en inclusief alle opslagen]]*1.21 -> 992.2 | G36: =Staat[[#This Row],[Prijs per eenheid exlusief btw en inclusief alle opslagen]]*Staat[[#This Row],[Aantal]] -> 0 | H36: =Staat[[#This Row],[Aantal]]*Staat[[#This Row],[Prijs per eenheid inclusief btw en inclusief alle opslagen ]] -> 0 | I36: Prijzenboek Atriensis projecten
A37: 5.7 | B37: Vervangen of inbouwen dynamische thermostatische regelventielen bij te handhaven radiator (aaname 2 per woning) | C37: woning | E37: =78*2 -> 156 | F37: =Staat[[#This Row],[Prijs per eenheid exlusief btw en inclusief alle opslagen]]*1.21 -> 188.76 | G37: =Staat[[#This Row],[Prijs per eenheid exlusief btw en inclusief alle opslagen]]*Staat[[#This Row],[Aantal]] -> 0 | H37: =Staat[[#This Row],[Aantal]]*Staat[[#This Row],[Prijs per eenheid inclusief btw en inclusief alle opslagen ]] -> 0
A38: 5.8 | B38: Inductie kookplaat een aanpassing meterkast voor elektrisch koken | C38: woning | E38: 683 | F38: =Staat[[#This Row],[Prijs per eenheid exlusief btw en inclusief alle opslagen]]*1.21 -> 826.43 | G38: =Staat[[#This Row],[Prijs per eenheid exlusief btw en inclusief alle opslagen]]*Staat[[#This Row],[Aantal]] -> 0 | H38: =Staat[[#This Row],[Aantal]]*Staat[[#This Row],[Prijs per eenheid inclusief btw en inclusief alle opslagen ]] -> 0 | I38: Prijzenboek Atriensis projecten
B41: Kosten warmtebedrijf exclusief BTW | C41: =SUM(G1:G28) -> 0
B42: Kosten warmtebedrijf inclusief BTW | C42: =SUM(H2:H28) -> 0
B44: Kosten gebouweigenaar exclusief BTW | C44: =SUM(G30:G38) -> 0
B45: Kosten gebouweigenaar inclusief BTW | C45: =SUM(H31:H38) -> 0
B47: Totaal exclusief BTW | C47: =SUM(G3:G38) -> 0
B48: Totaal inclusief BTW | C48: =SUM(Staat[[Totaal inclusief btw en inclusief alle opslagen ]]) -> 0

Sheet Staat EGW
A1: Nr | B1: Overige kenmerken | C1: Aantal | F1: Breedte | G1: Hoogte
A2: 7 | B2: Aantal meter gesloten verharding (asfalt) vanaf hoofleiding tot gevel | C2: 2 | F2: 6.4 | G2: 2.6
A3: 8 | B3: Aantal meter elementen verharding (tegels 30*30cm) vanaf hoofleiding tot gevel | C3: 3
A4: 9 | B4: Aantal meter groen vanaf hoofleiding tot gevel
A6: Code | B6: Dienst, levering of handeling | C6: Eenheid | D6: A1.1 | E6: A1.2 | F6: A2.1 | G6: A2.2 | H6: A3.1 | I6: A3.2 | J6: A4.1 | K6: A4.2 | L6: B1.1 | M6: B1.2 | N6: B2.1 | O6: B2.2 | P6: B3.1 | Q6: B3.2 | R6: B4.1 | S6: B4.2 | T6: C1.1 | U6: C1.2
B7: Warmtebedrijf (tot aan de afleverset)
A8: =Svv!A3 -> 1 | B8: =Svv!B3 -> Graaf- en herstelkwerkzaamheden
A9: =Svv!A4 -> 1.1.a | B9: =Svv!B4 -> Graaf- en herstelwerkzaamheden bij gesloten verharding (asfalt) | C9: =Svv!C4 -> meter | D9: =C2 -> 2 | E9: =C2 -> 2 | F9: =C2*0.5 -> 1 | G9: =C2*0.5 -> 1 | H9: =C2 -> 2 | I9: =C2 -> 2 | J9: =C2*0.5 -> 1 | K9: =C2*0.5 -> 1 | L9: =C2/6 -> 0.3333333333 | M9: =C2/6 -> 0.3333333333 | N9: =C2/6 -> 0.3333333333 | O9: =C2/6 -> 0.3333333333 | P9: =C2/6 -> 0.3333333333 | Q9: =C2/6 -> 0.3333333333 | R9: =C2/6 -> 0.3333333333 | S9: =C2/6 -> 0.3333333333 | T9: =C2 -> 2 | U9: =C2 -> 2 | V9: Aantallen worden gedeel als meer woningen te gelijk aangesloten
A10: =Svv!A5 -> 1.1.b | B10: =Svv!B5 -> Graaf- en herstelwerkzaamheden bij elementen verharding (tegels 30*30cm) | C10: =Svv!C5 -> meter | D10: =C3 -> 3 | E10: =C3 -> 3 | F10: =C3*0.5 -> 1.5 | G10: =C3*0.5 -> 1.5 | H10: =C3 -> 3 | I10: =C3 -> 3 | J10: =C3*0.5 -> 1.5 | K10: =C3*0.5 -> 1.5 | L10: =C3/6 -> 0.5 | M10: =C3/6 -> 0.5 | N10: =C3/6 -> 0.5 | O10: =C3/6 -> 0.5 | P10: =C3/6 -> 0.5 | Q10: =C3/6 -> 0.5 | R10: =C3/6 -> 0.5 | S10: =C3/6 -> 0.5 | T10: =C3 -> 3 | U10: =C3 -> 3
A11: =Svv!A6 -> 1.1.c | B11: =Svv!B6 -> Graaf- en herstelwerkzaamheden bij groen | C11: =Svv!C6 -> meter | D11: =C4 -> 0 | E11: =C4 -> 0 | F11: =C4*0.5 -> 0 | G11: =C4*0.5 -> 0 | H11: =C4 -> 0 | I11: =C4 -> 0 | J11: =C4*0.5 -> 0 | K11: =C4*0.5 -> 0 | L11: =C4/6 -> 0 | M11: =C4/6 -> 0 | N11: =C4/6 -> 0 | O11: =C4/6 -> 0 | P11: =C4/6 -> 0 | Q11: =C4/6 -> 0 | R11: =C4/6 -> 0 | S11: =C4/6 -> 0 | T11: =C4 -> 0 | U11: 0
A12: =Svv!A7 -> 1.2 | B12: =Svv!B7 -> Ondiepe kruipruimte leeggraven | C12: =Svv!C7 -> woning | R12: 1 | S12: 1
A13: =Svv!A8 -> 2 | B13: =Svv!B8 -> Leidingwerk
A14: =Svv!A9 -> 2.1 | B14: =Svv!B9 -> DN22 (1-2 woningen) | C14: =Svv!C9 -> meter | D14: =SUM(ParEGW[Aantal])*2 -> 10 | E14: =SUM(ParEGW[Aantal])*2 -> 10 | F14: =SUM(ParEGW[Aantal]*0.5)*2 -> 5 | G14: =SUM(ParEGW[Aantal]*0.5)*2 -> 5 | H14: =(SUM(ParEGW[Aantal])+G2*2)*2 -> 20.4 | I14: =(SUM(ParEGW[Aantal])+G2*2)*2 -> 20.4 | J14: =((SUM(ParEGW[Aantal])+G2*2)*0.5)*2 -> 10.2 | K14: =((SUM(ParEGW[Aantal])+G2*2)*0.5)*2 -> 10.2
A15: =Svv!A10 -> 2.3 | B15: =Svv!B10 -> DN35 (>3 woningen) | C15: =Svv!C10 -> meter | L15: =((SUM(ParEGW[Aantal])+(F2*6)+G2*2)/6)*2 -> 16.2 | M15: =((SUM(ParEGW[Aantal])+(F2*6)+(G2*2))/6)*2 -> 16.2 | N15: =((SUM(ParEGW[Aantal])+(F2*6)+(G2*2))/6)*2 -> 16.2 | O15: =((SUM(ParEGW[Aantal])+(F2*6)+(G2*2))/6)*2 -> 16.2 | P15: =((SUM(ParEGW[Aantal])+(F2*6)+(G2*2))/6)*2 -> 16.2 | Q15: =((SUM(ParEGW[Aantal])+(F2*6)+(G2*2))/6)*2 -> 16.2 | R15: =((SUM(ParEGW[Aantal])+(6*F2))/6)*2 -> 14.46666667 | S15: =((SUM(ParEGW[Aantal])+(6*F2))/6)*2 -> 14.46666667 | T15: =SUM(ParEGW[Aantal])*2 -> 10 | U15: =SUM(ParEGW[Aantal])*2 -> 10
A16: =Svv!A11 -> 2.4 | B16: =Svv!B11 -> Aanboren/aftakken warmtebuis (aansluiten op nieuwe distributieleiding) | C16: =Svv!C11 -> aftakking
A17: =Svv!A12 -> 2.5 | B17: =Svv!B12 -> Aanboren/aftakken warmtebuis (aansluiten op bestaande distributieleiding) | C17: =Svv!C12 -> aftakking
A18: =Svv!A13 -> 3 | B18: =Svv!B13 -> Boorwerk
A19: =Svv!A14 -> 3.1.a | B19: =Svv!B14 -> Boren stenen gevel (Ø 90mm) | C19: =Svv!C14 -> stuk | H19: 2 | I19: 2 | J19: 2 | K19: 2 | N19: 2 | O19: 2 | P19: 2 | Q19: 2
A20: =Svv!A15 -> 3.1.b | B20: =Svv!B15 -> Boren stenen gevel (Ø 150mm) | C20: =Svv!C15 -> stuk | L20: =2/6 -> 0.3333333333 | M20: =2/6 -> 0.3333333333
A21: =Svv!A16 -> 3.2.a | B21: =Svv!B16 -> Boren fundering (Ø 90mm) | C21: =Svv!C16 -> stuk | D21: 2 | E21: 2 | F21: 2 | G21: 2 | R21: 2 | S21: 2 | T21: 2 | U21: 2
A22: =Svv!A17 -> 3.2.b | B22: =Svv!B17 -> Boren fundering (Ø 150mm) | C22: =Svv!C17 -> stuk | R22: =2/6 -> 0.3333333333 | S22: =2/6 -> 0.3333333333
A23: =Svv!A18 -> 3.3.a | B23: =Svv!B18 -> Boren betonvloer (Ø 90mm) | C23: =Svv!C18 -> stuk | D23: 2 | E23: 2 | F23: 2 | G23: 2 | P23: 2
A24: =Svv!A19 -> 3.3.b | B24: =Svv!B19 -> Boren betonvloer (Ø 150mm) | C24: =Svv!C19 -> stuk
A25: =Svv!A20 -> 3.4.a | B25: =Svv!B20 -> Boren tussenwand (Ø 90mm) | C25: =Svv!C20 -> stuk
A26: =Svv!A21 -> 3.4.b | B26: =Svv!B21 -> Boren tussenwand (Ø 150mm) | C26: =Svv!C21 -> stuk | L26: =10/6 -> 1.666666667 | M26: =10/6 -> 1.666666667
A27: =Svv!A22 -> 3.5 | B27: =Svv!B22 -> Brandwerende doorvoeren | C27: =Svv!C22 -> stuk | L27: 2 | M27: 2 | N27: 2 | O27: 2 | P27: 2 | Q27: 2 | R27: 2 | S27: 2 | T27: 2
A28: =Svv!A23 -> 4 | B28: =Svv!B23 -> Afwerking en maatwerk
A29: =Svv!A24 -> 4.1 | B29: =Svv!B24 -> Maatwerk bij alternatief A3/A4: isolerende beschermingskap aan buitenzijde en veiligheidsmaatregelen | C29: =Svv!C24 -> woning | H29: 1 | I29: 1 | J29: 0.5 | K29: 0.5
A30: =Svv!A25 -> 4.2 | B30: =Svv!B25 -> Maatwerk bij alternatief B1: aftimmeren knieschot binnenzijde zolder en veiligheidsmaatregelen bij alternatief B1 | C30: =Svv!C25 -> woning | L30: 1 | M30: 1
A31: =Svv!A26 -> 4.3 | B31: =Svv!B26 -> Maatwerk bij alternatief B2: verwerken van leiding nabij de dakgoot | C31: =Svv!C26 -> woning | N31: 1 | O31: 1
A32: =Svv!A27 -> 4.4 | B32: =Svv!B27 -> Maatwerk bij alternatief B3: Koof ten behoeve van leidingwerk op dak | C32: =Svv!C27 -> woning | P32: 1 | Q32: 1
A33: =Svv!A28 -> 4.5 | B33: =Svv!B28 -> Afleverset | C33: =Svv!C28 -> woning | D33: 1 | E33: 1 | F33: 1 | G33: 1 | H33: 1 | I33: 1 | J33: 1 | K33: 1 | L33: 1 | M33: 1 | N33: 1 | O33: 1 | P33: 1 | Q33: 1 | R33: 1 | S33: 1 | T33: 1 | U33: 1
A34: =Svv!A29 -> 0 | B34: =Svv!B29 -> Kosten gebouweigenaar (achter de afleverset)
A35: =Svv!A30 -> 5 | B35: =Svv!B30 -> Maatregelen achter de voordeur
A36: =Svv!A31 -> 5.1.a | B36: =Svv!B31 -> Verwijderen combiketel en aanpassingen in de woning. Prijs geldt indien afleverset in dezelfde ruimte en binnen 2 meter van de plek van de combiketel wordt geplaatst. | C36: =Svv!C31 -> woning | D36: 1 | E36: 1 | F36: 1 | G36: 1 | H36: 1 | I36: 1 | J36: 1 | K36: 1 | L36: 1 | M36: 1 | N36: 1 | O36: 1 | P36: 1 | Q36: 1 | R36: 1 | S36: 1 | T36: 1 | U36: 1
A37: =Svv!A32 -> 5.2.b | B37: =Svv!B32 -> Toeslag indien afleverset in een andere ruimte en/of een afstand groter dan 2 meter van plek van de combiketel wordt geplaatst. | C37: =Svv!C32 -> woning | D37: 0 | E37: 1 | F37: 0 | G37: 1 | H37: 1 | I37: 0 | J37: 1 | K37: 0 | L37: 1 | M37: 0 | N37: 1 | O37: 0 | P37: 1 | Q37: 0 | R37: 0 | S37: 1 | T37: 0 | U37: 1
A38: =Svv!A33 -> 5.3 | B38: =Svv!B33 -> Omkasting voor afleverset als deze in verkeersruimte buiten meterkast of in verblijfsruimte geprojecteerd is | C38: =Svv!C33 -> stuk | D38: 1 | E38: 1 | F38: 1 | G38: 1 | R38: 1 | S38: 1 | T38: 1 | U38: 1
A39: =Svv!A34 -> 5.4 | B39: =Svv!B34 -> Verwijderen gasleidingen in het zicht plus aanhelen | C39: =Svv!C34 -> woning | D39: 1 | E39: 1 | F39: 1 | G39: 1 | H39: 1 | I39: 1 | J39: 1 | K39: 1 | L39: 1 | M39: 1 | N39: 1 | O39: 1 | P39: 1 | Q39: 1 | R39: 1 | S39: 1 | T39: 1 | U39: 1
A40: =Svv!A35 -> 5.5 | B40: =Svv!B35 -> Filteren, spoelen, afpersen en volledig waterzijdig inregelen van woonhuisinstallatie | C40: =Svv!C35 -> woning | D40: 1 | E40: 1 | F40: 1 | G40: 1 | H40: 1 | I40: 1 | J40: 1 | K40: 1 | L40: 1 | M40: 1 | N40: 1 | O40: 1 | P40: 1 | Q40: 1 | R40: 1 | S40: 1 | T40: 1 | U40: 1
A41: =Svv!A36 -> 5.6 | B41: =Svv!B36 -> Vervangen van radiator (aanname dat twee per woning) | C41: =Svv!C36 -> woning | D41: 1 | E41: 1 | F41: 1 | G41: 1 | H41: 1 | I41: 1 | J41: 1 | K41: 1 | L41: 1 | M41: 1 | N41: 1 | O41: 1 | P41: 1 | Q41: 1 | R41: 1 | S41: 1 | T41: 1 | U41: 1
A42: =Svv!A37 -> 5.7 | B42: =Svv!B37 -> Vervangen of inbouwen dynamische thermostatische regelventielen bij te handhaven radiator (aaname 2 per woning) | C42: =Svv!C37 -> woning | D42: 1 | E42: 1 | F42: 1 | G42: 1 | H42: 1 | I42: 1 | J42: 1 | K42: 1 | L42: 1 | M42: 1 | N42: 1 | O42: 1 | P42: 1 | Q42: 1 | R42: 1 | S42: 1 | T42: 1 | U42: 1
A43: =Svv!A38 -> 5.8 | B43: =Svv!B38 -> Inductie kookplaat een aanpassing meterkast voor elektrisch koken | C43: =Svv!C38 -> woning | D43: 1 | E43: 1 | F43: 1 | G43: 1 | H43: 1 | I43: 1 | J43: 1 | K43: 1 | L43: 1 | M43: 1 | N43: 1 | O43: 1 | P43: 1 | Q43: 1 | R43: 1 | S43: 1 | T43: 1 | U43: 1
B44: Kosten
B45: Kosten warmtebedrijf | D45: =MROUND(SUMPRODUCT('Staat EGW'!D7:D33,Svv!$F$2:$F$28),500) -> 3000 | E45: =MROUND(SUMPRODUCT('Staat EGW'!E7:E33,Svv!$F$2:$F$28),500) -> 3000 | F45: =MROUND(SUMPRODUCT('Staat EGW'!F7:F33,Svv!$F$2:$F$28),500) -> 1500 | G45: =MROUND(SUMPRODUCT('Staat EGW'!G7:G33,Svv!$F$2:$F$28),500) -> 1500 | H45: =MROUND(SUMPRODUCT('Staat EGW'!H7:H33,Svv!$F$2:$F$28),500) -> 5500 | I45: =MROUND(SUMPRODUCT('Staat EGW'!I7:I33,Svv!$F$2:$F$28),500) -> 5500 | J45: =MROUND(SUMPRODUCT('Staat EGW'!J7:J33,Svv!$F$2:$F$28),500) -> 2500 | K45: =MROUND(SUMPRODUCT('Staat EGW'!K7:K33,Svv!$F$2:$F$28),500) -> 2500 | L45: =MROUND(SUMPRODUCT('Staat EGW'!L7:L33,Svv!$F$2:$F$28),500) -> 5000 | M45: =MROUND(SUMPRODUCT('Staat EGW'!M7:M33,Svv!$F$2:$F$28),500) -> 5000 | N45: =MROUND(SUMPRODUCT('Staat EGW'!N7:N33,Svv!$F$2:$F$28),500) -> 7500 | O45: =MROUND(SUMPRODUCT('Staat EGW'!O7:O33,Svv!$F$2:$F$28),500) -> 7500 | P45: =MROUND(SUMPRODUCT('Staat EGW'!P7:P33,Svv!$F$2:$F$28),500) -> 4000 | Q45: =MROUND(SUMPRODUCT('Staat EGW'!Q7:Q33,Svv!$F$2:$F$28),500) -> 4000 | R45: =MROUND(SUMPRODUCT('Staat EGW'!R7:R33,Svv!$F$2:$F$28),500) -> 7000 | S45: =MROUND(SUMPRODUCT('Staat EGW'!S7:S33,Svv!$F$2:$F$28),500) -> 7000 | T45: =MROUND(SUMPRODUCT('Staat EGW'!T7:T33,Svv!$F$2:$F$28),500) -> 3500 | U45: =MROUND(SUMPRODUCT('Staat EGW'!U7:U33,Svv!$F$2:$F$28),500) -> 3500
B46: Kosten gebouweigenaar | D46: =MROUND(SUMPRODUCT(D34:D43,Svv!$F$29:$F$38),500) -> 4500 | E46: =MROUND(SUMPRODUCT(E34:E43,Svv!$F$29:$F$38),500) -> 5500 | F46: =MROUND(SUMPRODUCT(F34:F43,Svv!$F$29:$F$38),500) -> 4500 | G46: =MROUND(SUMPRODUCT(G34:G43,Svv!$F$29:$F$38),500) -> 5500 | H46: =MROUND(SUMPRODUCT(H34:H43,Svv!$F$29:$F$38),500) -> 5000 | I46: =MROUND(SUMPRODUCT(I34:I43,Svv!$F$29:$F$38),500) -> 4000 | J46: =MROUND(SUMPRODUCT(J34:J43,Svv!$F$29:$F$38),500) -> 5000 | K46: =MROUND(SUMPRODUCT(K34:K43,Svv!$F$29:$F$38),500) -> 4000 | L46: =MROUND(SUMPRODUCT(L34:L43,Svv!$F$29:$F$38),500) -> 5000 | M46: =MROUND(SUMPRODUCT(M34:M43,Svv!$F$29:$F$38),500) -> 4000 | N46: =MROUND(SUMPRODUCT(N34:N43,Svv!$F$29:$F$38),500) -> 5000 | O46: =MROUND(SUMPRODUCT(O34:O43,Svv!$F$29:$F$38),500) -> 4000 | P46: =MROUND(SUMPRODUCT(P34:P43,Svv!$F$29:$F$38),500) -> 5000 | Q46: =MROUND(SUMPRODUCT(Q34:Q43,Svv!$F$29:$F$38),500) -> 4000 | R46: =MROUND(SUMPRODUCT(R34:R43,Svv!$F$29:$F$38),500) -> 4500 | S46: =MROUND(SUMPRODUCT(S34:S43,Svv!$F$29:$F$38),500) -> 5500 | T46: =MROUND(SUMPRODUCT(T34:T43,Svv!$F$29:$F$38),500) -> 4500 | U46: =MROUND(SUMPRODUCT(U34:U43,Svv!$F$29:$F$38),500) -> 5500
B47: Totaal | D47: =SUM(D45:D46) -> 7500 | E47: =SUM(E45:E46) -> 8500 | F47: 6000 | G47: 7000 | H47: 10500 | I47: 9500 | J47: 7500 | K47: 6500 | L47: 10000 | M47: 9000 | N47: 12500 | O47: 11500 | P47: 9000 | Q47: 8000 | R47: 11500 | S47: 12500 | T47: 8000 | U47: 9000
A48: Kosten

Sheet Staat Portiek
A1: Nr | B1: Overige kenmerken | C1: Aantal | E1: Breedte | F1: Hoogte
A2: 7 | B2: Aantal meter gesloten verharding (asfalt) vanaf hoofleiding tot gevel | C2: 2 | E2: 7.8 | F2: 2.6
A3: 8 | B3: Aantal meter elementen verharding (tegels 30*30cm) vanaf hoofleiding tot gevel | C3: 3
A4: 9 | B4: Aantal meter groen vanaf hoofleiding tot gevel
